Workbook

Sheet Home
B1: =uxb_works!$B$90 -> Safe Cities Index: 2017 | BA1: 0 | BB1: 0
D22: Zoom | O22: Full screen
D23: Select a zoom level appropriate for your display. | O23: To maximise the viewing area, click for Full-Screen mode.
O24: Press Escape to return to normal display mode.
D26: Selected zoom will be applied to all worksheets.
C37: Sponsored by

Sheet Summary
D1: =uxb_works!$B$90 -> Safe Cities Index: 2017 | BA1: 1 | BB1: 0
D7: =iSummary!Q6 -> OVERALL SCORE | H7: =uxb_works!$H$47 -> 2017 Compared to 2015 Updated | O7: =iSummary!AH6 -> 1) DIGITAL SECURITY | S7: =uxb_works!$H$47 -> 2017 Compared to 2015 Updated | Z7: =iSummary!AY6 -> 2) HEALTH SECURITY | AD7: =uxb_works!$H$47 -> 2017 Compared to 2015 Updated | AK7: =iSummary!BP6 -> 3) INFRASTRUCTURE SECURITY | AO7: =uxb_works!$H$47 -> 2017 Compared to 2015 Updated | AV7: =iSummary!CG6 -> 4) PERSONAL SECURITY | AZ7: =uxb_works!$H$47 -> 2017 Compared to 2015 Updated
E8: =iSummary!$D$4 -> 2017 | P8: =iSummary!$D$4 -> 2017 | AA8: =iSummary!$D$4 -> 2017 | AL8: =iSummary!$D$4 -> 2017 | AW8: =iSummary!$D$4 -> 2017
F9: Average | G9: =IF(ISERROR(AVERAGE(G10:G76)),"",AVERAGE(G10:G76)) -> 71.9925 | H9: r | I9: S | J9: r | K9: R | Q9: Average | R9: =IF(ISERROR(AVERAGE(R10:R76)),"",AVERAGE(R10:R76)) -> 66.15233333 | S9: r | T9: S | U9: r | V9: R | AB9: Average | AC9: =IF(ISERROR(AVERAGE(AC10:AC76)),"",AVERAGE(AC10:AC76)) -> 69.18683333 | AD9: r | AE9: S | AF9: r | AG9: R | AM9: Average | AN9: =IF(ISERROR(AVERAGE(AN10:AN76)),"",AVERAGE(AN10:AN76)) -> 78.20283333 | AO9: r | AP9: S | AQ9: r | AR9: R | AX9: Average | AY9: =IF(ISERROR(AVERAGE(AY10:AY76)),"",AVERAGE(AY10:AY76)) -> 74.42816667 | AZ9: r | BA9: S | BB9: r | BC9: R
B10: =iSummary!P8 -> 1 | C10: =IF(B10=0,0,IF(uxb_works!$B$49,IF(G10<$C$80,1,IF(G10>$C$80,4,2)),IF(G10<=$B$80,1,IF(G10<=$B$81,2,(IF(G10<=$B$82,3,4)))))) -> 4 | E10: =iSummary!Q8 -> 1 | F10: =iSummary!R8&iSummary!X8 -> Tokyo | G10: =iSummary!S8 -> 89.8 | H10: =IF(iSummary!T8=0,"=",iSummary!T8) -> 3.5 | I10: =iSummary!U8 -> FALSE | J10: =IF(iSummary!V8=0,"=",iSummary!V8) -> = | K10: =iSummary!W8 -> FALSE | M10: =iSummary!AG8 -> 1 | N10: =IF(M10=0,0,IF(uxb_works!$B$49,IF(R10<$C$80,1,IF(R10>$C$80,4,2)),IF(R10<=$B$80,1,IF(R10<=$B$81,2,(IF(R10<=$B$82,3,4)))))) -> 4 | P10: =iSummary!AH8 -> 1 | Q10: =iSummary!AI8&iSummary!AO8 -> Tokyo | R10: =iSummary!AJ8 -> 88.4 | S10: =IF(iSummary!AK8=0,"=",iSummary!AK8) -> 4.72 | T10: =iSummary!AL8 -> FALSE | U10: =IF(iSummary!AM8=0,"=",iSummary!AM8) -> = | V10: =iSummary!AN8 -> FALSE | X10: =iSummary!AX8 -> 1 | Y10: =IF(X10=0,0,IF(uxb_works!$B$49,IF(AC10<$C$80,1,IF(AC10>$C$80,4,2)),IF(AC10<=$B$80,1,IF(AC10<=$B$81,2,(IF(AC10<=$B$82,3,4)))))) -> 4 | AA10: =iSummary!AY8 -> 1 | AB10: =iSummary!AZ8&iSummary!BF8 -> Osaka | AC10: =iSummary!BA8 -> 87.15 | AD10: =IF(iSummary!BB8=0,"=",iSummary!BB8) -> 8.61 | AE10: =iSummary!BC8 -> FALSE | AF10: =IF(iSummary!BD8=0,"=",iSummary!BD8) -> 6 | AG10: =iSummary!BE8 -> FALSE | AI10: =iSummary!BO8 -> 1 | AJ10: =IF(AI10=0,0,IF(uxb_works!$B$49,IF(AN10<$C$80,1,IF(AN10>$C$80,4,2)),IF(AN10<=$B$80,1,IF(AN10<=$B$81,2,(IF(AN10<=$B$82,3,4)))))) -> 4 | AL10: =iSummary!BP8 -> 1 | AM10: =iSummary!BQ8&iSummary!BW8 -> Singapore | AN10: =iSummary!BR8 -> 97.05 | AO10: =IF(iSummary!BS8=0,"=",iSummary!BS8) -> 6.3 | AP10: =iSummary!BT8 -> FALSE | AQ10: =IF(iSummary!BU8=0,"=",iSummary!BU8) -> 5 | AR10: =iSummary!BV8 -> FALSE | AT10: =iSummary!CF8 -> 1 | AU10: =IF(AT10=0,0,IF(uxb_works!$B$49,IF(AY10<$C$80,1,IF(AY10>$C$80,4,2)),IF(AY10<=$B$80,1,IF(AY10<=$B$81,2,(IF(AY10<=$B$82,3,4)))))) -> 4 | AW10: =iSummary!CG8 -> 1 | AX10: =iSummary!CH8&iSummary!CN8 -> Singapore | AY10: =iSummary!CI8 -> 94.94 | AZ10: =IF(iSummary!CJ8=0,"=",iSummary!CJ8) -> 0.06 | BA10: =iSummary!CK8 -> FALSE | BB10: =IF(iSummary!CL8=0,"=",iSummary!CL8) -> = | BC10: =iSummary!CM8 -> FALSE
B11: =iSummary!P9 -> 1 | C11: =IF(B11=0,0,IF(uxb_works!$B$49,IF(G11<$C$80,1,IF(G11>$C$80,4,2)),IF(G11<=$B$80,1,IF(G11<=$B$81,2,(IF(G11<=$B$82,3,4)))))) -> 4 | E11: =iSummary!Q9 -> 2 | F11: =iSummary!R9&iSummary!X9 -> Singapore | G11: =iSummary!S9 -> 89.64 | H11: =IF(iSummary!T9=0,"=",iSummary!T9) -> 3.9 | I11: =iSummary!U9 -> FALSE | J11: =IF(iSummary!V9=0,"=",iSummary!V9) -> = | K11: =iSummary!W9 -> FALSE | M11: =iSummary!AG9 -> 1 | N11: =IF(M11=0,0,IF(uxb_works!$B$49,IF(R11<$C$80,1,IF(R11>$C$80,4,2)),IF(R11<=$B$80,1,IF(R11<=$B$81,2,(IF(R11<=$B$82,3,4)))))) -> 4 | P11: =iSummary!AH9 -> 2 | Q11: =iSummary!AI9&iSummary!AO9 -> Singapore | R11: =iSummary!AJ9 -> 86.84 | S11: =IF(iSummary!AK9=0,"=",iSummary!AK9) -> 6.49 | T11: =iSummary!AL9 -> FALSE | U11: =IF(iSummary!AM9=0,"=",iSummary!AM9) -> = | V11: =iSummary!AN9 -> FALSE | X11: =iSummary!AX9 -> 1 | Y11: =IF(X11=0,0,IF(uxb_works!$B$49,IF(AC11<$C$80,1,IF(AC11>$C$80,4,2)),IF(AC11<=$B$80,1,IF(AC11<=$B$81,2,(IF(AC11<=$B$82,3,4)))))) -> 4 | AA11: =iSummary!AY9 -> 2 | AB11: =iSummary!AZ9&iSummary!BF9 -> Tokyo | AC11: =iSummary!BA9 -> 85.63 | AD11: =IF(iSummary!BB9=0,"=",iSummary!BB9) -> 7.61 | AE11: =iSummary!BC9 -> FALSE | AF11: =IF(iSummary!BD9=0,"=",iSummary!BD9) -> 7 | AG11: =iSummary!BE9 -> FALSE | AI11: =iSummary!BO9 -> 1 | AJ11: =IF(AI11=0,0,IF(uxb_works!$B$49,IF(AN11<$C$80,1,IF(AN11>$C$80,4,2)),IF(AN11<=$B$80,1,IF(AN11<=$B$81,2,(IF(AN11<=$B$82,3,4)))))) -> 4 | AL11: =iSummary!BP9 -> 2 | AM11: =iSummary!BQ9&iSummary!BW9 -> Madrid | AN11: =iSummary!BR9 -> 96.76 | AO11: =IF(iSummary!BS9=0,"=",iSummary!BS9) -> 12.46 | AP11: =iSummary!BT9 -> FALSE | AQ11: =IF(iSummary!BU9=0,"=",iSummary!BU9) -> 17 | AR11: =iSummary!BV9 -> FALSE | AT11: =iSummary!CF9 -> 1 | AU11: =IF(AT11=0,0,IF(uxb_works!$B$49,IF(AY11<$C$80,1,IF(AY11>$C$80,4,2)),IF(AY11<=$B$80,1,IF(AY11<=$B$81,2,(IF(AY11<=$B$82,3,4)))))) -> 4 | AW11: =iSummary!CG9 -> 2 | AX11: =iSummary!CH9&iSummary!CN9 -> Wellington * | AY11: =iSummary!CI9 -> 92.28 | AZ11: =IF(iSummary!CJ9=0,"=",iSummary!CJ9) ->  | BA11: =iSummary!CK9 -> FALSE | BB11: =IF(iSummary!CL9=0,"=",iSummary!CL9) ->  | BC11: =iSummary!CM9 -> FALSE
B12: =iSummary!P10 -> 1 | C12: =IF(B12=0,0,IF(uxb_works!$B$49,IF(G12<$C$80,1,IF(G12>$C$80,4,2)),IF(G12<=$B$80,1,IF(G12<=$B$81,2,(IF(G12<=$B$82,3,4)))))) -> 4 | E12: =iSummary!Q10 -> 3 | F12: =iSummary!R10&iSummary!X10 -> Osaka | G12: =iSummary!S10 -> 88.87 | H12: =IF(iSummary!T10=0,"=",iSummary!T10) -> 5.65 | I12: =iSummary!U10 -> FALSE | J12: =IF(iSummary!V10=0,"=",iSummary!V10) -> 1 | K12: =iSummary!W10 -> FALSE | M12: =iSummary!AG10 -> 1 | N12: =IF(M12=0,0,IF(uxb_works!$B$49,IF(R12<$C$80,1,IF(R12>$C$80,4,2)),IF(R12<=$B$80,1,IF(R12<=$B$81,2,(IF(R12<=$B$82,3,4)))))) -> 4 | P12: =iSummary!AH10 -> 3 | Q12: =iSummary!AI10&iSummary!AO10 -> Chicago | R12: =iSummary!AJ10 -> 86.75 | S12: =IF(iSummary!AK10=0,"=",iSummary!AK10) -> 17.35 | T12: =iSummary!AL10 -> FALSE | U12: =IF(iSummary!AM10=0,"=",iSummary!AM10) -> 12 | V12: =iSummary!AN10 -> FALSE | X12: =iSummary!AX10 -> 1 | Y12: =IF(X12=0,0,IF(uxb_works!$B$49,IF(AC12<$C$80,1,IF(AC12>$C$80,4,2)),IF(AC12<=$B$80,1,IF(AC12<=$B$81,2,(IF(AC12<=$B$82,3,4)))))) -> 4 | AA12: =iSummary!AY10 -> 3 | AB12: =iSummary!AZ10&iSummary!BF10 -> Frankfurt | AC12: =iSummary!BA10 -> 84.06 | AD12: =IF(iSummary!BB10=0,"=",iSummary!BB10) -> 5.43 | AE12: =iSummary!BC10 -> FALSE | AF12: =IF(iSummary!BD10=0,"=",iSummary!BD10) -> 3 | AG12: =iSummary!BE10 -> FALSE | AI12: =iSummary!BO10 -> 1 | AJ12: =IF(AI12=0,0,IF(uxb_works!$B$49,IF(AN12<$C$80,1,IF(AN12>$C$80,4,2)),IF(AN12<=$B$80,1,IF(AN12<=$B$81,2,(IF(AN12<=$B$82,3,4)))))) -> 4 | AL12: =iSummary!BP10 -> 3 | AM12: =iSummary!BQ10&iSummary!BW10 -> Barcelona | AN12: =iSummary!BR10 -> 96.59 | AO12: =IF(iSummary!BS10=0,"=",iSummary!BS10) -> 8.6 | AP12: =iSummary!BT10 -> FALSE | AQ12: =IF(iSummary!BU10=0,"=",iSummary!BU10) -> 6 | AR12: =iSummary!BV10 -> FALSE | AT12: =iSummary!CF10 -> 1 | AU12: =IF(AT12=0,0,IF(uxb_works!$B$49,IF(AY12<$C$80,1,IF(AY12>$C$80,4,2)),IF(AY12<=$B$80,1,IF(AY12<=$B$81,2,(IF(AY12<=$B$82,3,4)))))) -> 4 | AW12: =iSummary!CG10 -> 3 | AX12: =iSummary!CH10&iSummary!CN10 -> Osaka | AY12: =iSummary!CI10 -> 91.59 | AZ12: =IF(iSummary!CJ10=0,"=",iSummary!CJ10) -> -1.1 | BA12: =iSummary!CK10 -> FALSE | BB12: =IF(iSummary!CL10=0,"=",iSummary!CL10) -> -1 | BC12: =iSummary!CM10 -> FALSE
B13: =iSummary!P11 -> 1 | C13: =IF(B13=0,0,IF(uxb_works!$B$49,IF(G13<$C$80,1,IF(G13>$C$80,4,2)),IF(G13<=$B$80,1,IF(G13<=$B$81,2,(IF(G13<=$B$82,3,4)))))) -> 4 | E13: =iSummary!Q11 -> 4 | F13: =iSummary!R11&iSummary!X11 -> Toronto | G13: =iSummary!S11 -> 87.36 | H13: =IF(iSummary!T11=0,"=",iSummary!T11) -> 5.99 | I13: =iSummary!U11 -> FALSE | J13: =IF(iSummary!V11=0,"=",iSummary!V11) -> 2 | K13: =iSummary!W11 -> FALSE | M13: =iSummary!AG11 -> 1 | N13: =IF(M13=0,0,IF(uxb_works!$B$49,IF(R13<$C$80,1,IF(R13>$C$80,4,2)),IF(R13<=$B$80,1,IF(R13<=$B$81,2,(IF(R13<=$B$82,3,4)))))) -> 4 | P13: =iSummary!AH11 -> 4 | Q13: =iSummary!AI11&iSummary!AO11 -> Amsterdam | R13: =iSummary!AJ11 -> 85.79 | S13: =IF(iSummary!AK11=0,"=",iSummary!AK11) -> 6.98 | T13: =iSummary!AL11 -> FALSE | U13: =IF(iSummary!AM11=0,"=",iSummary!AM11) -> 1 | V13: =iSummary!AN11 -> FALSE | X13: =iSummary!AX11 -> 1 | Y13: =IF(X13=0,0,IF(uxb_works!$B$49,IF(AC13<$C$80,1,IF(AC13>$C$80,4,2)),IF(AC13<=$B$80,1,IF(AC13<=$B$81,2,(IF(AC13<=$B$82,3,4)))))) -> 4 | AA13: =iSummary!AY11 -> 4 | AB13: =iSummary!AZ11&iSummary!BF11 -> Zurich | AC13: =iSummary!BA11 -> 83.39 | AD13: =IF(iSummary!BB11=0,"=",iSummary!BB11) -> 3.31 | AE13: =iSummary!BC11 -> FALSE | AF13: =IF(iSummary!BD11=0,"=",iSummary!BD11) -> -2 | AG13: =iSummary!BE11 -> FALSE | AI13: =iSummary!BO11 -> 1 | AJ13: =IF(AI13=0,0,IF(uxb_works!$B$49,IF(AN13<$C$80,1,IF(AN13>$C$80,4,2)),IF(AN13<=$B$80,1,IF(AN13<=$B$81,2,(IF(AN13<=$B$82,3,4)))))) -> 4 | AL13: =iSummary!BP11 -> 4 | AM13: =iSummary!BQ11&iSummary!BW11 -> Stockholm | AN13: =iSummary!BR11 -> 96.18 | AO13: =IF(iSummary!BS11=0,"=",iSummary!BS11) -> 13.37 | AP13: =iSummary!BT11 -> FALSE | AQ13: =IF(iSummary!BU11=0,"=",iSummary!BU11) -> 16 | AR13: =iSummary!BV11 -> FALSE | AT13: =iSummary!CF11 -> 1 | AU13: =IF(AT13=0,0,IF(uxb_works!$B$49,IF(AY13<$C$80,1,IF(AY13>$C$80,4,2)),IF(AY13<=$B$80,1,IF(AY13<=$B$81,2,(IF(AY13<=$B$82,3,4)))))) -> 4 | AW13: =iSummary!CG11 -> 4 | AX13: =iSummary!CH11&iSummary!CN11 -> Tokyo | AY13: =iSummary!CI11 -> 91.57 | AZ13: =IF(iSummary!CJ11=0,"=",iSummary!CJ11) -> -0.53 | BA13: =iSummary!CK11 -> FALSE | BB13: =IF(iSummary!CL11=0,"=",iSummary!CL11) -> -1 | BC13: =iSummary!CM11 -> FALSE
B14: =iSummary!P12 -> 1 | C14: =IF(B14=0,0,IF(uxb_works!$B$49,IF(G14<$C$80,1,IF(G14>$C$80,4,2)),IF(G14<=$B$80,1,IF(G14<=$B$81,2,(IF(G14<=$B$82,3,4)))))) -> 4 | E14: =iSummary!Q12 -> 5 | F14: =iSummary!R12&iSummary!X12 -> Melbourne | G14: =iSummary!S12 -> 87.3 | H14: =IF(iSummary!T12=0,"=",iSummary!T12) -> 6.03 | I14: =iSummary!U12 -> FALSE | J14: =IF(iSummary!V12=0,"=",iSummary!V12) -> 2 | K14: =iSummary!W12 -> FALSE | M14: =iSummary!AG12 -> 1 | N14: =IF(M14=0,0,IF(uxb_works!$B$49,IF(R14<$C$80,1,IF(R14>$C$80,4,2)),IF(R14<=$B$80,1,IF(R14<=$B$81,2,(IF(R14<=$B$82,3,4)))))) -> 4 | P14: =iSummary!AH12 -> 5 | Q14: =iSummary!AI12&iSummary!AO12 -> Hong Kong | R14: =iSummary!AJ12 -> 85.77 | S14: =IF(iSummary!AK12=0,"=",iSummary!AK12) -> 5.99 | T14: =iSummary!AL12 -> FALSE | U14: =IF(iSummary!AM12=0,"=",iSummary!AM12) -> -2 | V14: =iSummary!AN12 -> FALSE | X14: =iSummary!AX12 -> 1 | Y14: =IF(X14=0,0,IF(uxb_works!$B$49,IF(AC14<$C$80,1,IF(AC14>$C$80,4,2)),IF(AC14<=$B$80,1,IF(AC14<=$B$81,2,(IF(AC14<=$B$82,3,4)))))) -> 4 | AA14: =iSummary!AY12 -> 5 | AB14: =iSummary!AZ12&iSummary!BF12 -> Seoul | AC14: =iSummary!BA12 -> 82.72 | AD14: =IF(iSummary!BB12=0,"=",iSummary!BB12) -> 7.1 | AE14: =iSummary!BC12 -> FALSE | AF14: =IF(iSummary!BD12=0,"=",iSummary!BD12) -> 10 | AG14: =iSummary!BE12 -> FALSE | AI14: =iSummary!BO12 -> 1 | AJ14: =IF(AI14=0,0,IF(uxb_works!$B$49,IF(AN14<$C$80,1,IF(AN14>$C$80,4,2)),IF(AN14<=$B$80,1,IF(AN14<=$B$81,2,(IF(AN14<=$B$82,3,4)))))) -> 4 | AL14: =iSummary!BP12 -> 5 | AM14: =iSummary!BQ12&iSummary!BW12 -> Wellington * | AN14: =iSummary!BR12 -> 96.13 | AO14: =IF(iSummary!BS12=0,"=",iSummary!BS12) ->  | AP14: =iSummary!BT12 -> FALSE | AQ14: =IF(iSummary!BU12=0,"=",iSummary!BU12) ->  | AR14: =iSummary!BV12 -> FALSE | AT14: =iSummary!CF12 -> 1 | AU14: =IF(AT14=0,0,IF(uxb_works!$B$49,IF(AY14<$C$80,1,IF(AY14>$C$80,4,2)),IF(AY14<=$B$80,1,IF(AY14<=$B$81,2,(IF(AY14<=$B$82,3,4)))))) -> 4 | AW14: =iSummary!CG12 -> 5 | AX14: =iSummary!CH12&iSummary!CN12 -> Toronto | AY14: =iSummary!CI12 -> 91.52 | AZ14: =IF(iSummary!CJ12=0,"=",iSummary!CJ12) -> 0.49 | BA14: =iSummary!CK12 -> FALSE | BB14: =IF(iSummary!CL12=0,"=",iSummary!CL12) -> = | BC14: =iSummary!CM12 -> FALSE
B15: =iSummary!P13 -> 1 | C15: =IF(B15=0,0,IF(uxb_works!$B$49,IF(G15<$C$80,1,IF(G15>$C$80,4,2)),IF(G15<=$B$80,1,IF(G15<=$B$81,2,(IF(G15<=$B$82,3,4)))))) -> 4 | E15: =iSummary!Q13 -> 6 | F15: =iSummary!R13&iSummary!X13 -> Amsterdam | G15: =iSummary!S13 -> 87.26 | H15: =IF(iSummary!T13=0,"=",iSummary!T13) -> 3.22 | I15: =iSummary!U13 -> FALSE | J15: =IF(iSummary!V13=0,"=",iSummary!V13) -> -3 | K15: =iSummary!W13 -> FALSE | M15: =iSummary!AG13 -> 1 | N15: =IF(M15=0,0,IF(uxb_works!$B$49,IF(R15<$C$80,1,IF(R15>$C$80,4,2)),IF(R15<=$B$80,1,IF(R15<=$B$81,2,(IF(R15<=$B$82,3,4)))))) -> 4 | P15: =iSummary!AH13 -> 6 | Q15: =iSummary!AI13&iSummary!AO13 -> Toronto | R15: =iSummary!AJ13 -> 85.33 | S15: =IF(iSummary!AK13=0,"=",iSummary!AK13) -> 12.29 | T15: =iSummary!AL13 -> FALSE | U15: =IF(iSummary!AM13=0,"=",iSummary!AM13) -> 3 | V15: =iSummary!AN13 -> FALSE | X15: =iSummary!AX13 -> 1 | Y15: =IF(X15=0,0,IF(uxb_works!$B$49,IF(AC15<$C$80,1,IF(AC15>$C$80,4,2)),IF(AC15<=$B$80,1,IF(AC15<=$B$81,2,(IF(AC15<=$B$82,3,4)))))) -> 4 | AA15: =iSummary!AY13 -> 6 | AB15: =iSummary!AZ13&iSummary!BF13 -> Sydney | AC15: =iSummary!BA13 -> 81.8 | AD15: =IF(iSummary!BB13=0,"=",iSummary!BB13) -> 7.04 | AE15: =iSummary!BC13 -> FALSE | AF15: =IF(iSummary!BD13=0,"=",iSummary!BD13) -> 12 | AG15: =iSummary!BE13 -> FALSE | AI15: =iSummary!BO13 -> 1 | AJ15: =IF(AI15=0,0,IF(uxb_works!$B$49,IF(AN15<$C$80,1,IF(AN15>$C$80,4,2)),IF(AN15<=$B$80,1,IF(AN15<=$B$81,2,(IF(AN15<=$B$82,3,4)))))) -> 4 | AL15: =iSummary!BP13 -> 6 | AM15: =iSummary!BQ13&iSummary!BW13 -> Amsterdam | AN15: =iSummary!BR13 -> 96.05 | AO15: =IF(iSummary!BS13=0,"=",iSummary!BS13) -> 3.61 | AP15: =iSummary!BT13 -> FALSE | AQ15: =IF(iSummary!BU13=0,"=",iSummary!BU13) -> -2 | AR15: =iSummary!BV13 -> FALSE | AT15: =iSummary!CF13 -> 1 | AU15: =IF(AT15=0,0,IF(uxb_works!$B$49,IF(AY15<$C$80,1,IF(AY15>$C$80,4,2)),IF(AY15<=$B$80,1,IF(AY15<=$B$81,2,(IF(AY15<=$B$82,3,4)))))) -> 4 | AW15: =iSummary!CG13 -> 6 | AX15: =iSummary!CH13&iSummary!CN13 -> Taipei | AY15: =iSummary!CI13 -> 90.02 | AZ15: =IF(iSummary!CJ13=0,"=",iSummary!CJ13) -> -0.08 | BA15: =iSummary!CK13 -> FALSE | BB15: =IF(iSummary!CL13=0,"=",iSummary!CL13) -> = | BC15: =iSummary!CM13 -> FALSE
B16: =iSummary!P14 -> 1 | C16: =IF(B16=0,0,IF(uxb_works!$B$49,IF(G16<$C$80,1,IF(G16>$C$80,4,2)),IF(G16<=$B$80,1,IF(G16<=$B$81,2,(IF(G16<=$B$82,3,4)))))) -> 4 | E16: =iSummary!Q14 -> 7 | F16: =iSummary!R14&iSummary!X14 -> Sydney | G16: =iSummary!S14 -> 86.74 | H16: =IF(iSummary!T14=0,"=",iSummary!T14) -> 4.86 | I16: =iSummary!U14 -> FALSE | J16: =IF(iSummary!V14=0,"=",iSummary!V14) -> -2 | K16: =iSummary!W14 -> FALSE | M16: =iSummary!AG14 -> 1 | N16: =IF(M16=0,0,IF(uxb_works!$B$49,IF(R16<$C$80,1,IF(R16>$C$80,4,2)),IF(R16<=$B$80,1,IF(R16<=$B$81,2,(IF(R16<=$B$82,3,4)))))) -> 4 | P16: =iSummary!AH14 -> =7 | Q16: =iSummary!AI14&iSummary!AO14 -> Los Angeles | R16: =iSummary!AJ14 -> 85.12 | S16: =IF(iSummary!AK14=0,"=",iSummary!AK14) -> 13.63 | T16: =iSummary!AL14 -> FALSE | U16: =IF(iSummary!AM14=0,"=",iSummary!AM14) -> 3 | V16: =iSummary!AN14 -> FALSE | X16: =iSummary!AX14 -> 1 | Y16: =IF(X16=0,0,IF(uxb_works!$B$49,IF(AC16<$C$80,1,IF(AC16>$C$80,4,2)),IF(AC16<=$B$80,1,IF(AC16<=$B$81,2,(IF(AC16<=$B$82,3,4)))))) -> 4 | AA16: =iSummary!AY14 -> 7 | AB16: =iSummary!AZ14&iSummary!BF14 -> Brussels | AC16: =iSummary!BA14 -> 81.41 | AD16: =IF(iSummary!BB14=0,"=",iSummary!BB14) -> 2.02 | AE16: =iSummary!BC14 -> FALSE | AF16: =IF(iSummary!BD14=0,"=",iSummary!BD14) -> -3 | AG16: =iSummary!BE14 -> FALSE | AI16: =iSummary!BO14 -> 1 | AJ16: =IF(AI16=0,0,IF(uxb_works!$B$49,IF(AN16<$C$80,1,IF(AN16>$C$80,4,2)),IF(AN16<=$B$80,1,IF(AN16<=$B$81,2,(IF(AN16<=$B$82,3,4)))))) -> 4 | AL16: =iSummary!BP14 -> =7 | AM16: =iSummary!BQ14&iSummary!BW14 -> Hong Kong | AN16: =iSummary!BR14 -> 96.04 | AO16: =IF(iSummary!BS14=0,"=",iSummary!BS14) -> 20.87 | AP16: =iSummary!BT14 -> FALSE | AQ16: =IF(iSummary!BU14=0,"=",iSummary!BU14) -> 26 | AR16: =iSummary!BV14 -> FALSE | AT16: =iSummary!CF14 -> 1 | AU16: =IF(AT16=0,0,IF(uxb_works!$B$49,IF(AY16<$C$80,1,IF(AY16>$C$80,4,2)),IF(AY16<=$B$80,1,IF(AY16<=$B$81,2,(IF(AY16<=$B$82,3,4)))))) -> 4 | AW16: =iSummary!CG14 -> 7 | AX16: =iSummary!CH14&iSummary!CN14 -> Hong Kong | AY16: =iSummary!CI14 -> 89.75 | AZ16: =IF(iSummary!CJ14=0,"=",iSummary!CJ14) -> -2 | BA16: =iSummary!CK14 -> FALSE | BB16: =IF(iSummary!CL14=0,"=",iSummary!CL14) -> -3 | BC16: =iSummary!CM14 -> FALSE
B17: =iSummary!P15 -> 1 | C17: =IF(B17=0,0,IF(uxb_works!$B$49,IF(G17<$C$80,1,IF(G17>$C$80,4,2)),IF(G17<=$B$80,1,IF(G17<=$B$81,2,(IF(G17<=$B$82,3,4)))))) -> 4 | E17: =iSummary!Q15 -> 8 | F17: =iSummary!R15&iSummary!X15 -> Stockholm | G17: =iSummary!S15 -> 86.72 | H17: =IF(iSummary!T15=0,"=",iSummary!T15) -> 5.66 | I17: =iSummary!U15 -> FALSE | J17: =IF(iSummary!V15=0,"=",iSummary!V15) -> = | K17: =iSummary!W15 -> FALSE | M17: =iSummary!AG15 -> 1 | N17: =IF(M17=0,0,IF(uxb_works!$B$49,IF(R17<$C$80,1,IF(R17>$C$80,4,2)),IF(R17<=$B$80,1,IF(R17<=$B$81,2,(IF(R17<=$B$82,3,4)))))) -> 4 | P17: =iSummary!AH15 -> =7 | Q17: =iSummary!AI15&iSummary!AO15 -> San Francisco | R17: =iSummary!AJ15 -> 85.12 | S17: =IF(iSummary!AK15=0,"=",iSummary!AK15) -> 14.77 | T17: =iSummary!AL15 -> FALSE | U17: =IF(iSummary!AM15=0,"=",iSummary!AM15) -> 6 | V17: =iSummary!AN15 -> FALSE | X17: =iSummary!AX15 -> 1 | Y17: =IF(X17=0,0,IF(uxb_works!$B$49,IF(AC17<$C$80,1,IF(AC17>$C$80,4,2)),IF(AC17<=$B$80,1,IF(AC17<=$B$81,2,(IF(AC17<=$B$82,3,4)))))) -> 4 | AA17: =iSummary!AY15 -> 8 | AB17: =iSummary!AZ15&iSummary!BF15 -> Paris | AC17: =iSummary!BA15 -> 81.35 | AD17: =IF(iSummary!BB15=0,"=",iSummary!BB15) -> 2.82 | AE17: =iSummary!BC15 -> FALSE | AF17: =IF(iSummary!BD15=0,"=",iSummary!BD15) -> = | AG17: =iSummary!BE15 -> FALSE | AI17: =iSummary!BO15 -> 1 | AJ17: =IF(AI17=0,0,IF(uxb_works!$B$49,IF(AN17<$C$80,1,IF(AN17>$C$80,4,2)),IF(AN17<=$B$80,1,IF(AN17<=$B$81,2,(IF(AN17<=$B$82,3,4)))))) -> 4 | AL17: =iSummary!BP15 -> =7 | AM17: =iSummary!BQ15&iSummary!BW15 -> Melbourne | AN17: =iSummary!BR15 -> 96.04 | AO17: =IF(iSummary!BS15=0,"=",iSummary!BS15) -> 2.65 | AP17: =iSummary!BT15 -> FALSE | AQ17: =IF(iSummary!BU15=0,"=",iSummary!BU15) -> -5 | AR17: =iSummary!BV15 -> FALSE | AT17: =iSummary!CF15 -> 1 | AU17: =IF(AT17=0,0,IF(uxb_works!$B$49,IF(AY17<$C$80,1,IF(AY17>$C$80,4,2)),IF(AY17<=$B$80,1,IF(AY17<=$B$81,2,(IF(AY17<=$B$82,3,4)))))) -> 4 | AW17: =iSummary!CG15 -> 8 | AX17: =iSummary!CH15&iSummary!CN15 -> Melbourne | AY17: =iSummary!CI15 -> 88.52 | AZ17: =IF(iSummary!CJ15=0,"=",iSummary!CJ15) -> -1.05 | BA17: =iSummary!CK15 -> FALSE | BB17: =IF(iSummary!CL15=0,"=",iSummary!CL15) -> = | BC17: =iSummary!CM15 -> FALSE
B18: =iSummary!P16 -> 1 | C18: =IF(B18=0,0,IF(uxb_works!$B$49,IF(G18<$C$80,1,IF(G18>$C$80,4,2)),IF(G18<=$B$80,1,IF(G18<=$B$81,2,(IF(G18<=$B$82,3,4)))))) -> 4 | E18: =iSummary!Q16 -> 9 | F18: =iSummary!R16&iSummary!X16 -> Hong Kong | G18: =iSummary!S16 -> 86.22 | H18: =IF(iSummary!T16=0,"=",iSummary!T16) -> 7.69 | I18: =iSummary!U16 -> FALSE | J18: =IF(iSummary!V16=0,"=",iSummary!V16) -> 3 | K18: =iSummary!W16 -> FALSE | M18: =iSummary!AG16 -> 1 | N18: =IF(M18=0,0,IF(uxb_works!$B$49,IF(R18<$C$80,1,IF(R18>$C$80,4,2)),IF(R18<=$B$80,1,IF(R18<=$B$81,2,(IF(R18<=$B$82,3,4)))))) -> 4 | P18: =iSummary!AH16 -> 9 | Q18: =iSummary!AI16&iSummary!AO16 -> New York | R18: =iSummary!AJ16 -> 84.95 | S18: =IF(iSummary!AK16=0,"=",iSummary!AK16) -> 9.03 | T18: =iSummary!AL16 -> FALSE | U18: =IF(iSummary!AM16=0,"=",iSummary!AM16) -> -3 | V18: =iSummary!AN16 -> FALSE | X18: =iSummary!AX16 -> 1 | Y18: =IF(X18=0,0,IF(uxb_works!$B$49,IF(AC18<$C$80,1,IF(AC18>$C$80,4,2)),IF(AC18<=$B$80,1,IF(AC18<=$B$81,2,(IF(AC18<=$B$82,3,4)))))) -> 4 | AA18: =iSummary!AY16 -> 9 | AB18: =iSummary!AZ16&iSummary!BF16 -> Melbourne | AC18: =iSummary!BA16 -> 81.34 | AD18: =IF(iSummary!BB16=0,"=",iSummary!BB16) -> 5.63 | AE18: =iSummary!BC16 -> FALSE | AF18: =IF(iSummary!BD16=0,"=",iSummary!BD16) -> 5 | AG18: =iSummary!BE16 -> FALSE | AI18: =iSummary!BO16 -> 1 | AJ18: =IF(AI18=0,0,IF(uxb_works!$B$49,IF(AN18<$C$80,1,IF(AN18>$C$80,4,2)),IF(AN18<=$B$80,1,IF(AN18<=$B$81,2,(IF(AN18<=$B$82,3,4)))))) -> 4 | AL18: =iSummary!BP16 -> 9 | AM18: =iSummary!BQ16&iSummary!BW16 -> Sydney | AN18: =iSummary!BR16 -> 95.73 | AO18: =IF(iSummary!BS16=0,"=",iSummary!BS16) -> 3.04 | AP18: =iSummary!BT16 -> FALSE | AQ18: =IF(iSummary!BU16=0,"=",iSummary!BU16) -> -6 | AR18: =iSummary!BV16 -> FALSE | AT18: =iSummary!CF16 -> 1 | AU18: =IF(AT18=0,0,IF(uxb_works!$B$49,IF(AY18<$C$80,1,IF(AY18>$C$80,4,2)),IF(AY18<=$B$80,1,IF(AY18<=$B$81,2,(IF(AY18<=$B$82,3,4)))))) -> 4 | AW18: =iSummary!CG16 -> 9 | AX18: =iSummary!CH16&iSummary!CN16 -> Stockholm | AY18: =iSummary!CI16 -> 87.93 | AZ18: =IF(iSummary!CJ16=0,"=",iSummary!CJ16) -> -1.68 | BA18: =iSummary!CK16 -> FALSE | BB18: =IF(iSummary!CL16=0,"=",iSummary!CL16) -> -2 | BC18: =iSummary!CM16 -> FALSE
B19: =iSummary!P17 -> 1 | C19: =IF(B19=0,0,IF(uxb_works!$B$49,IF(G19<$C$80,1,IF(G19>$C$80,4,2)),IF(G19<=$B$80,1,IF(G19<=$B$81,2,(IF(G19<=$B$82,3,4)))))) -> 4 | E19: =iSummary!Q17 -> 10 | F19: =iSummary!R17&iSummary!X17 -> Zurich | G19: =iSummary!S17 -> 85.2 | H19: =IF(iSummary!T17=0,"=",iSummary!T17) -> 4.38 | I19: =iSummary!U17 -> FALSE | J19: =IF(iSummary!V17=0,"=",iSummary!V17) -> -1 | K19: =iSummary!W17 -> FALSE | M19: =iSummary!AG17 -> 1 | N19: =IF(M19=0,0,IF(uxb_works!$B$49,IF(R19<$C$80,1,IF(R19>$C$80,4,2)),IF(R19<=$B$80,1,IF(R19<=$B$81,2,(IF(R19<=$B$82,3,4)))))) -> 4 | P19: =iSummary!AH17 -> 10 | Q19: =iSummary!AI17&iSummary!AO17 -> Dallas * | R19: =iSummary!AJ17 -> 84.65 | S19: =IF(iSummary!AK17=0,"=",iSummary!AK17) ->  | T19: =iSummary!AL17 -> FALSE | U19: =IF(iSummary!AM17=0,"=",iSummary!AM17) ->  | V19: =iSummary!AN17 -> FALSE | X19: =iSummary!AX17 -> 1 | Y19: =IF(X19=0,0,IF(uxb_works!$B$49,IF(AC19<$C$80,1,IF(AC19>$C$80,4,2)),IF(AC19<=$B$80,1,IF(AC19<=$B$81,2,(IF(AC19<=$B$82,3,4)))))) -> 4 | AA19: =iSummary!AY17 -> 10 | AB19: =iSummary!AZ17&iSummary!BF17 -> Stockholm | AC19: =iSummary!BA17 -> 79.94 | AD19: =IF(iSummary!BB17=0,"=",iSummary!BB17) -> -5.06 | AE19: =iSummary!BC17 -> FALSE | AF19: =IF(iSummary!BD17=0,"=",iSummary!BD17) -> -9 | AG19: =iSummary!BE17 -> FALSE | AI19: =iSummary!BO17 -> 1 | AJ19: =IF(AI19=0,0,IF(uxb_works!$B$49,IF(AN19<$C$80,1,IF(AN19>$C$80,4,2)),IF(AN19<=$B$80,1,IF(AN19<=$B$81,2,(IF(AN19<=$B$82,3,4)))))) -> 4 | AL19: =iSummary!BP17 -> 10 | AM19: =iSummary!BQ17&iSummary!BW17 -> Zurich | AN19: =iSummary!BR17 -> 95.71 | AO19: =IF(iSummary!BS17=0,"=",iSummary!BS17) -> 2.19 | AP19: =iSummary!BT17 -> FALSE | AQ19: =IF(iSummary!BU17=0,"=",iSummary!BU17) -> -9 | AR19: =iSummary!BV17 -> FALSE | AT19: =iSummary!CF17 -> 1 | AU19: =IF(AT19=0,0,IF(uxb_works!$B$49,IF(AY19<$C$80,1,IF(AY19>$C$80,4,2)),IF(AY19<=$B$80,1,IF(AY19<=$B$81,2,(IF(AY19<=$B$82,3,4)))))) -> 4 | AW19: =iSummary!CG17 -> 10 | AX19: =iSummary!CH17&iSummary!CN17 -> Amsterdam | AY19: =iSummary!CI17 -> 87.42 | AZ19: =IF(iSummary!CJ17=0,"=",iSummary!CJ17) -> -1.46 | BA19: =iSummary!CK17 -> FALSE | BB19: =IF(iSummary!CL17=0,"=",iSummary!CL17) -> -1 | BC19: =iSummary!CM17 -> FALSE
B20: =iSummary!P18 -> 1 | C20: =IF(B20=0,0,IF(uxb_works!$B$49,IF(G20<$C$80,1,IF(G20>$C$80,4,2)),IF(G20<=$B$80,1,IF(G20<=$B$81,2,(IF(G20<=$B$82,3,4)))))) -> 4 | E20: =iSummary!Q18 -> 11 | F20: =iSummary!R18&iSummary!X18 -> Frankfurt | G20: =iSummary!S18 -> 84.86 | H20: =IF(iSummary!T18=0,"=",iSummary!T18) -> 7.85 | I20: =iSummary!U18 -> FALSE | J20: =IF(iSummary!V18=0,"=",iSummary!V18) -> 5 | K20: =iSummary!W18 -> FALSE | M20: =iSummary!AG18 -> 1 | N20: =IF(M20=0,0,IF(uxb_works!$B$49,IF(R20<$C$80,1,IF(R20>$C$80,4,2)),IF(R20<=$B$80,1,IF(R20<=$B$81,2,(IF(R20<=$B$82,3,4)))))) -> 4 | P20: =iSummary!AH18 -> 11 | Q20: =iSummary!AI18&iSummary!AO18 -> Melbourne | R20: =iSummary!AJ18 -> 83.32 | S20: =IF(iSummary!AK18=0,"=",iSummary!AK18) -> 16.9 | T20: =iSummary!AL18 -> FALSE | U20: =IF(iSummary!AM18=0,"=",iSummary!AM18) -> 10 | V20: =iSummary!AN18 -> FALSE | X20: =iSummary!AX18 -> 1 | Y20: =IF(X20=0,0,IF(uxb_works!$B$49,IF(AC20<$C$80,1,IF(AC20>$C$80,4,2)),IF(AC20<=$B$80,1,IF(AC20<=$B$81,2,(IF(AC20<=$B$82,3,4)))))) -> 4 | AA20: =iSummary!AY18 -> 11 | AB20: =iSummary!AZ18&iSummary!BF18 -> Toronto | AC20: =iSummary!BA18 -> 79.84 | AD20: =IF(iSummary!BB18=0,"=",iSummary!BB18) -> 7.51 | AE20: =iSummary!BC18 -> FALSE | AF20: =IF(iSummary!BD18=0,"=",iSummary!BD18) -> 9 | AG20: =iSummary!BE18 -> FALSE | AI20: =iSummary!BO18 -> 1 | AJ20: =IF(AI20=0,0,IF(uxb_works!$B$49,IF(AN20<$C$80,1,IF(AN20>$C$80,4,2)),IF(AN20<=$B$80,1,IF(AN20<=$B$81,2,(IF(AN20<=$B$82,3,4)))))) -> 4 | AL20: =iSummary!BP18 -> 11 | AM20: =iSummary!BQ18&iSummary!BW18 -> Osaka | AN20: =iSummary!BR18 -> 94.61 | AO20: =IF(iSummary!BS18=0,"=",iSummary!BS18) -> 6.47 | AP20: =iSummary!BT18 -> FALSE | AQ20: =IF(iSummary!BU18=0,"=",iSummary!BU18) -> -3 | AR20: =iSummary!BV18 -> FALSE | AT20: =iSummary!CF18 -> 1 | AU20: =IF(AT20=0,0,IF(uxb_works!$B$49,IF(AY20<$C$80,1,IF(AY20>$C$80,4,2)),IF(AY20<=$B$80,1,IF(AY20<=$B$81,2,(IF(AY20<=$B$82,3,4)))))) -> 4 | AW20: =iSummary!CG18 -> 11 | AX20: =iSummary!CH18&iSummary!CN18 -> Frankfurt | AY20: =iSummary!CI18 -> 86.7 | AZ20: =IF(iSummary!CJ18=0,"=",iSummary!CJ18) -> 6.03 | BA20: =iSummary!CK18 -> FALSE | BB20: =IF(iSummary!CL18=0,"=",iSummary!CL18) -> 7 | BC20: =iSummary!CM18 -> FALSE
B21: =iSummary!P19 -> 1 | C21: =IF(B21=0,0,IF(uxb_works!$B$49,IF(G21<$C$80,1,IF(G21>$C$80,4,2)),IF(G21<=$B$80,1,IF(G21<=$B$81,2,(IF(G21<=$B$82,3,4)))))) -> 4 | E21: =iSummary!Q19 -> 12 | F21: =iSummary!R19&iSummary!X19 -> Madrid | G21: =iSummary!S19 -> 83.88 | H21: =IF(iSummary!T19=0,"=",iSummary!T19) -> 11.31 | I21: =iSummary!U19 -> FALSE | J21: =IF(iSummary!V19=0,"=",iSummary!V19) -> 13 | K21: =iSummary!W19 -> FALSE | M21: =iSummary!AG19 -> 1 | N21: =IF(M21=0,0,IF(uxb_works!$B$49,IF(R21<$C$80,1,IF(R21>$C$80,4,2)),IF(R21<=$B$80,1,IF(R21<=$B$81,2,(IF(R21<=$B$82,3,4)))))) -> 4 | P21: =iSummary!AH19 -> 12 | Q21: =iSummary!AI19&iSummary!AO19 -> Sydney | R21: =iSummary!AJ19 -> 82.96 | S21: =IF(iSummary!AK19=0,"=",iSummary!AK19) -> 11.48 | T21: =iSummary!AL19 -> FALSE | U21: =IF(iSummary!AM19=0,"=",iSummary!AM19) -> -1 | V21: =iSummary!AN19 -> FALSE | X21: =iSummary!AX19 -> 1 | Y21: =IF(X21=0,0,IF(uxb_works!$B$49,IF(AC21<$C$80,1,IF(AC21>$C$80,4,2)),IF(AC21<=$B$80,1,IF(AC21<=$B$81,2,(IF(AC21<=$B$82,3,4)))))) -> 4 | AA21: =iSummary!AY19 -> 12 | AB21: =iSummary!AZ19&iSummary!BF19 -> Amsterdam | AC21: =iSummary!BA19 -> 79.79 | AD21: =IF(iSummary!BB19=0,"=",iSummary!BB19) -> 3.75 | AE21: =iSummary!BC19 -> FALSE | AF21: =IF(iSummary!BD19=0,"=",iSummary!BD19) -> 1 | AG21: =iSummary!BE19 -> FALSE | AI21: =iSummary!BO19 -> 1 | AJ21: =IF(AI21=0,0,IF(uxb_works!$B$49,IF(AN21<$C$80,1,IF(AN21>$C$80,4,2)),IF(AN21<=$B$80,1,IF(AN21<=$B$81,2,(IF(AN21<=$B$82,3,4)))))) -> 4 | AL21: =iSummary!BP19 -> 12 | AM21: =iSummary!BQ19&iSummary!BW19 -> Tokyo | AN21: =iSummary!BR19 -> 93.59 | AO21: =IF(iSummary!BS19=0,"=",iSummary!BS19) -> 2.19 | AP21: =iSummary!BT19 -> FALSE | AQ21: =IF(iSummary!BU19=0,"=",iSummary!BU19) -> -7 | AR21: =iSummary!BV19 -> FALSE | AT21: =iSummary!CF19 -> 1 | AU21: =IF(AT21=0,0,IF(uxb_works!$B$49,IF(AY21<$C$80,1,IF(AY21>$C$80,4,2)),IF(AY21<=$B$80,1,IF(AY21<=$B$81,2,(IF(AY21<=$B$82,3,4)))))) -> 4 | AW21: =iSummary!CG19 -> 12 | AX21: =iSummary!CH19&iSummary!CN19 -> Sydney | AY21: =iSummary!CI19 -> 86.46 | AZ21: =IF(iSummary!CJ19=0,"=",iSummary!CJ19) -> -2.12 | BA21: =iSummary!CK19 -> FALSE | BB21: =IF(iSummary!CL19=0,"=",iSummary!CL19) -> -2 | BC21: =iSummary!CM19 -> FALSE
B22: =iSummary!P20 -> 1 | C22: =IF(B22=0,0,IF(uxb_works!$B$49,IF(G22<$C$80,1,IF(G22>$C$80,4,2)),IF(G22<=$B$80,1,IF(G22<=$B$81,2,(IF(G22<=$B$82,3,4)))))) -> 4 | E22: =iSummary!Q20 -> 13 | F22: =iSummary!R20&iSummary!X20 -> Barcelona | G22: =iSummary!S20 -> 83.71 | H22: =IF(iSummary!T20=0,"=",iSummary!T20) -> 6.32 | I22: =iSummary!U20 -> FALSE | J22: =IF(iSummary!V20=0,"=",iSummary!V20) -> 2 | K22: =iSummary!W20 -> FALSE | M22: =iSummary!AG20 -> 1 | N22: =IF(M22=0,0,IF(uxb_works!$B$49,IF(R22<$C$80,1,IF(R22>$C$80,4,2)),IF(R22<=$B$80,1,IF(R22<=$B$81,2,(IF(R22<=$B$82,3,4)))))) -> 4 | P22: =iSummary!AH20 -> 13 | Q22: =iSummary!AI20&iSummary!AO20 -> Stockholm | R22: =iSummary!AJ20 -> 82.81 | S22: =IF(iSummary!AK20=0,"=",iSummary!AK20) -> 15.99 | T22: =iSummary!AL20 -> FALSE | U22: =IF(iSummary!AM20=0,"=",iSummary!AM20) -> 6 | V22: =iSummary!AN20 -> FALSE | X22: =iSummary!AX20 -> 1 | Y22: =IF(X22=0,0,IF(uxb_works!$B$49,IF(AC22<$C$80,1,IF(AC22>$C$80,4,2)),IF(AC22<=$B$80,1,IF(AC22<=$B$81,2,(IF(AC22<=$B$82,3,4)))))) -> 4 | AA22: =iSummary!AY20 -> 13 | AB22: =iSummary!AZ20&iSummary!BF20 -> Singapore | AC22: =iSummary!BA20 -> 79.72 | AD22: =IF(iSummary!BB20=0,"=",iSummary!BB20) -> 2.76 | AE22: =iSummary!BC20 -> FALSE | AF22: =IF(iSummary!BD20=0,"=",iSummary!BD20) -> -1 | AG22: =iSummary!BE20 -> FALSE | AI22: =iSummary!BO20 -> 1 | AJ22: =IF(AI22=0,0,IF(uxb_works!$B$49,IF(AN22<$C$80,1,IF(AN22>$C$80,4,2)),IF(AN22<=$B$80,1,IF(AN22<=$B$81,2,(IF(AN22<=$B$82,3,4)))))) -> 4 | AL22: =iSummary!BP20 -> 13 | AM22: =iSummary!BQ20&iSummary!BW20 -> London | AN22: =iSummary!BR20 -> 93.44 | AO22: =IF(iSummary!BS20=0,"=",iSummary!BS20) -> 22.82 | AP22: =iSummary!BT20 -> FALSE | AQ22: =IF(iSummary!BU20=0,"=",iSummary!BU20) -> 24 | AR22: =iSummary!BV20 -> FALSE | AT22: =iSummary!CF20 -> 1 | AU22: =IF(AT22=0,0,IF(uxb_works!$B$49,IF(AY22<$C$80,1,IF(AY22>$C$80,4,2)),IF(AY22<=$B$80,1,IF(AY22<=$B$81,2,(IF(AY22<=$B$82,3,4)))))) -> 4 | AW22: =iSummary!CG20 -> 13 | AX22: =iSummary!CH20&iSummary!CN20 -> Doha | AY22: =iSummary!CI20 -> 86.04 | AZ22: =IF(iSummary!CJ20=0,"=",iSummary!CJ20) -> 3.38 | BA22: =iSummary!CK20 -> FALSE | BB22: =IF(iSummary!CL20=0,"=",iSummary!CL20) -> 1 | BC22: =iSummary!CM20 -> FALSE
B23: =iSummary!P21 -> 1 | C23: =IF(B23=0,0,IF(uxb_works!$B$49,IF(G23<$C$80,1,IF(G23>$C$80,4,2)),IF(G23<=$B$80,1,IF(G23<=$B$81,2,(IF(G23<=$B$82,3,4)))))) -> 4 | E23: =iSummary!Q21 -> 14 | F23: =iSummary!R21&iSummary!X21 -> Seoul | G23: =iSummary!S21 -> 83.61 | H23: =IF(iSummary!T21=0,"=",iSummary!T21) -> 9.7 | I23: =iSummary!U21 -> FALSE | J23: =IF(iSummary!V21=0,"=",iSummary!V21) -> 6 | K23: =iSummary!W21 -> FALSE | M23: =iSummary!AG21 -> 1 | N23: =IF(M23=0,0,IF(uxb_works!$B$49,IF(R23<$C$80,1,IF(R23>$C$80,4,2)),IF(R23<=$B$80,1,IF(R23<=$B$81,2,(IF(R23<=$B$82,3,4)))))) -> 4 | P23: =iSummary!AH21 -> 14 | Q23: =iSummary!AI21&iSummary!AO21 -> Osaka | R23: =iSummary!AJ21 -> 82.11 | S23: =IF(iSummary!AK21=0,"=",iSummary!AK21) -> 8.61 | T23: =iSummary!AL21 -> FALSE | U23: =IF(iSummary!AM21=0,"=",iSummary!AM21) -> -6 | V23: =iSummary!AN21 -> FALSE | X23: =iSummary!AX21 -> 1 | Y23: =IF(X23=0,0,IF(uxb_works!$B$49,IF(AC23<$C$80,1,IF(AC23>$C$80,4,2)),IF(AC23<=$B$80,1,IF(AC23<=$B$81,2,(IF(AC23<=$B$82,3,4)))))) -> 4 | AA23: =iSummary!AY21 -> 14 | AB23: =iSummary!AZ21&iSummary!BF21 -> Taipei | AC23: =iSummary!BA21 -> 79.23 | AD23: =IF(iSummary!BB21=0,"=",iSummary!BB21) -> 0.48 | AE23: =iSummary!BC21 -> FALSE | AF23: =IF(iSummary!BD21=0,"=",iSummary!BD21) -> -9 | AG23: =iSummary!BE21 -> FALSE | AI23: =iSummary!BO21 -> 1 | AJ23: =IF(AI23=0,0,IF(uxb_works!$B$49,IF(AN23<$C$80,1,IF(AN23>$C$80,4,2)),IF(AN23<=$B$80,1,IF(AN23<=$B$81,2,(IF(AN23<=$B$82,3,4)))))) -> 4 | AL23: =iSummary!BP21 -> 14 | AM23: =iSummary!BQ21&iSummary!BW21 -> Toronto | AN23: =iSummary!BR21 -> 92.75 | AO23: =IF(iSummary!BS21=0,"=",iSummary!BS21) -> 3.68 | AP23: =iSummary!BT21 -> FALSE | AQ23: =IF(iSummary!BU21=0,"=",iSummary!BU21) -> -7 | AR23: =iSummary!BV21 -> FALSE | AT23: =iSummary!CF21 -> 1 | AU23: =IF(AT23=0,0,IF(uxb_works!$B$49,IF(AY23<$C$80,1,IF(AY23>$C$80,4,2)),IF(AY23<=$B$80,1,IF(AY23<=$B$81,2,(IF(AY23<=$B$82,3,4)))))) -> 4 | AW23: =iSummary!CG21 -> 14 | AX23: =iSummary!CH21&iSummary!CN21 -> Madrid | AY23: =iSummary!CI21 -> 85.61 | AZ23: =IF(iSummary!CJ21=0,"=",iSummary!CJ21) -> 18.37 | BA23: =iSummary!CK21 -> FALSE | BB23: =IF(iSummary!CL21=0,"=",iSummary!CL21) -> 16 | BC23: =iSummary!CM21 -> FALSE
B24: =iSummary!P22 -> 1 | C24: =IF(B24=0,0,IF(uxb_works!$B$49,IF(G24<$C$80,1,IF(G24>$C$80,4,2)),IF(G24<=$B$80,1,IF(G24<=$B$81,2,(IF(G24<=$B$82,3,4)))))) -> 4 | E24: =iSummary!Q22 -> 15 | F24: =iSummary!R22&iSummary!X22 -> San Francisco | G24: =iSummary!S22 -> 83.55 | H24: =IF(iSummary!T22=0,"=",iSummary!T22) -> 4.23 | I24: =iSummary!U22 -> FALSE | J24: =IF(iSummary!V22=0,"=",iSummary!V22) -> -4 | K24: =iSummary!W22 -> FALSE | M24: =iSummary!AG22 -> 1 | N24: =IF(M24=0,0,IF(uxb_works!$B$49,IF(R24<$C$80,1,IF(R24>$C$80,4,2)),IF(R24<=$B$80,1,IF(R24<=$B$81,2,(IF(R24<=$B$82,3,4)))))) -> 4 | P24: =iSummary!AH22 -> 15 | Q24: =iSummary!AI22&iSummary!AO22 -> Washington DC | R24: =iSummary!AJ22 -> 80.88 | S24: =IF(iSummary!AK22=0,"=",iSummary!AK22) -> 14.39 | T24: =iSummary!AL22 -> FALSE | U24: =IF(iSummary!AM22=0,"=",iSummary!AM22) -> 5 | V24: =iSummary!AN22 -> FALSE | X24: =iSummary!AX22 -> 1 | Y24: =IF(X24=0,0,IF(uxb_works!$B$49,IF(AC24<$C$80,1,IF(AC24>$C$80,4,2)),IF(AC24<=$B$80,1,IF(AC24<=$B$81,2,(IF(AC24<=$B$82,3,4)))))) -> 4 | AA24: =iSummary!AY22 -> 15 | AB24: =iSummary!AZ22&iSummary!BF22 -> Madrid | AC24: =iSummary!BA22 -> 78.69 | AD24: =IF(iSummary!BB22=0,"=",iSummary!BB22) -> 1.71 | AE24: =iSummary!BC22 -> FALSE | AF24: =IF(iSummary!BD22=0,"=",iSummary!BD22) -> -4 | AG24: =iSummary!BE22 -> FALSE | AI24: =iSummary!BO22 -> 1 | AJ24: =IF(AI24=0,0,IF(uxb_works!$B$49,IF(AN24<$C$80,1,IF(AN24>$C$80,4,2)),IF(AN24<=$B$80,1,IF(AN24<=$B$81,2,(IF(AN24<=$B$82,3,4)))))) -> 4 | AL24: =iSummary!BP22 -> 15 | AM24: =iSummary!BQ22&iSummary!BW22 -> Rome | AN24: =iSummary!BR22 -> 92.31 | AO24: =IF(iSummary!BS22=0,"=",iSummary!BS22) -> 6.76 | AP24: =iSummary!BT22 -> FALSE | AQ24: =IF(iSummary!BU22=0,"=",iSummary!BU22) -> 2 | AR24: =iSummary!BV22 -> FALSE | AT24: =iSummary!CF22 -> 1 | AU24: =IF(AT24=0,0,IF(uxb_works!$B$49,IF(AY24<$C$80,1,IF(AY24>$C$80,4,2)),IF(AY24<=$B$80,1,IF(AY24<=$B$81,2,(IF(AY24<=$B$82,3,4)))))) -> 4 | AW24: =iSummary!CG22 -> 15 | AX24: =iSummary!CH22&iSummary!CN22 -> London | AY24: =iSummary!CI22 -> 85.52 | AZ24: =IF(iSummary!CJ22=0,"=",iSummary!CJ22) -> 5.22 | BA24: =iSummary!CK22 -> FALSE | BB24: =IF(iSummary!CL22=0,"=",iSummary!CL22) -> 4 | BC24: =iSummary!CM22 -> FALSE
B25: =iSummary!P23 -> 1 | C25: =IF(B25=0,0,IF(uxb_works!$B$49,IF(G25<$C$80,1,IF(G25>$C$80,4,2)),IF(G25<=$B$80,1,IF(G25<=$B$81,2,(IF(G25<=$B$82,3,4)))))) -> 4 | E25: =iSummary!Q23 -> 16 | F25: =iSummary!R23&iSummary!X23 -> Wellington * | G25: =iSummary!S23 -> 83.18 | H25: =IF(iSummary!T23=0,"=",iSummary!T23) ->  | I25: =iSummary!U23 -> FALSE | J25: =IF(iSummary!V23=0,"=",iSummary!V23) ->  | K25: =iSummary!W23 -> FALSE | M25: =iSummary!AG23 -> 1 | N25: =IF(M25=0,0,IF(uxb_works!$B$49,IF(R25<$C$80,1,IF(R25>$C$80,4,2)),IF(R25<=$B$80,1,IF(R25<=$B$81,2,(IF(R25<=$B$82,3,4)))))) -> 4 | P25: =iSummary!AH23 -> 16 | Q25: =iSummary!AI23&iSummary!AO23 -> Frankfurt | R25: =iSummary!AJ23 -> 80.5 | S25: =IF(iSummary!AK23=0,"=",iSummary!AK23) -> 17.55 | T25: =iSummary!AL23 -> FALSE | U25: =IF(iSummary!AM23=0,"=",iSummary!AM23) -> 7 | V25: =iSummary!AN23 -> FALSE | X25: =iSummary!AX23 -> 1 | Y25: =IF(X25=0,0,IF(uxb_works!$B$49,IF(AC25<$C$80,1,IF(AC25>$C$80,4,2)),IF(AC25<=$B$80,1,IF(AC25<=$B$81,2,(IF(AC25<=$B$82,3,4)))))) -> 4 | AA25: =iSummary!AY23 -> 16 | AB25: =iSummary!AZ23&iSummary!BF23 -> Barcelona | AC25: =iSummary!BA23 -> 78.54 | AD25: =IF(iSummary!BB23=0,"=",iSummary!BB23) -> 1.04 | AE25: =iSummary!BC23 -> FALSE | AF25: =IF(iSummary!BD23=0,"=",iSummary!BD23) -> -6 | AG25: =iSummary!BE23 -> FALSE | AI25: =iSummary!BO23 -> 1 | AJ25: =IF(AI25=0,0,IF(uxb_works!$B$49,IF(AN25<$C$80,1,IF(AN25>$C$80,4,2)),IF(AN25<=$B$80,1,IF(AN25<=$B$81,2,(IF(AN25<=$B$82,3,4)))))) -> 4 | AL25: =iSummary!BP23 -> 16 | AM25: =iSummary!BQ23&iSummary!BW23 -> Abu Dhabi | AN25: =iSummary!BR23 -> 91.36 | AO25: =IF(iSummary!BS23=0,"=",iSummary!BS23) -> 3.77 | AP25: =iSummary!BT23 -> FALSE | AQ25: =IF(iSummary!BU23=0,"=",iSummary!BU23) -> -5 | AR25: =iSummary!BV23 -> FALSE | AT25: =iSummary!CF23 -> 1 | AU25: =IF(AT25=0,0,IF(uxb_works!$B$49,IF(AY25<$C$80,1,IF(AY25>$C$80,4,2)),IF(AY25<=$B$80,1,IF(AY25<=$B$81,2,(IF(AY25<=$B$82,3,4)))))) -> 4 | AW25: =iSummary!CG23 -> 16 | AX25: =iSummary!CH23&iSummary!CN23 -> Seoul | AY25: =iSummary!CI23 -> 85.34 | AZ25: =IF(iSummary!CJ23=0,"=",iSummary!CJ23) -> 9.27 | BA25: =iSummary!CK23 -> FALSE | BB25: =IF(iSummary!CL23=0,"=",iSummary!CL23) -> 6 | BC25: =iSummary!CM23 -> FALSE
B26: =iSummary!P24 -> 1 | C26: =IF(B26=0,0,IF(uxb_works!$B$49,IF(G26<$C$80,1,IF(G26>$C$80,4,2)),IF(G26<=$B$80,1,IF(G26<=$B$81,2,(IF(G26<=$B$82,3,4)))))) -> 4 | E26: =iSummary!Q24 -> 17 | F26: =iSummary!R24&iSummary!X24 -> Brussels | G26: =iSummary!S24 -> 83.01 | H26: =IF(iSummary!T24=0,"=",iSummary!T24) -> 6.83 | I26: =iSummary!U24 -> FALSE | J26: =IF(iSummary!V24=0,"=",iSummary!V24) -> 2 | K26: =iSummary!W24 -> FALSE | M26: =iSummary!AG24 -> 1 | N26: =IF(M26=0,0,IF(uxb_works!$B$49,IF(R26<$C$80,1,IF(R26>$C$80,4,2)),IF(R26<=$B$80,1,IF(R26<=$B$81,2,(IF(R26<=$B$82,3,4)))))) -> 4 | P26: =iSummary!AH24 -> 17 | Q26: =iSummary!AI24&iSummary!AO24 -> Brussels | R26: =iSummary!AJ24 -> 79.96 | S26: =IF(iSummary!AK24=0,"=",iSummary!AK24) -> 5.36 | T26: =iSummary!AL24 -> FALSE | U26: =IF(iSummary!AM24=0,"=",iSummary!AM24) -> -10 | V26: =iSummary!AN24 -> FALSE | X26: =iSummary!AX24 -> 1 | Y26: =IF(X26=0,0,IF(uxb_works!$B$49,IF(AC26<$C$80,1,IF(AC26>$C$80,4,2)),IF(AC26<=$B$80,1,IF(AC26<=$B$81,2,(IF(AC26<=$B$82,3,4)))))) -> 4 | AA26: =iSummary!AY24 -> 17 | AB26: =iSummary!AZ24&iSummary!BF24 -> Milan | AC26: =iSummary!BA24 -> 76.72 | AD26: =IF(iSummary!BB24=0,"=",iSummary!BB24) -> 8.37 | AE26: =iSummary!BC24 -> FALSE | AF26: =IF(iSummary!BD24=0,"=",iSummary!BD24) -> 8 | AG26: =iSummary!BE24 -> FALSE | AI26: =iSummary!BO24 -> 1 | AJ26: =IF(AI26=0,0,IF(uxb_works!$B$49,IF(AN26<$C$80,1,IF(AN26>$C$80,4,2)),IF(AN26<=$B$80,1,IF(AN26<=$B$81,2,(IF(AN26<=$B$82,3,4)))))) -> 4 | AL26: =iSummary!BP24 -> 17 | AM26: =iSummary!BQ24&iSummary!BW24 -> San Francisco | AN26: =iSummary!BR24 -> 91.21 | AO26: =IF(iSummary!BS24=0,"=",iSummary!BS24) -> 3.26 | AP26: =iSummary!BT24 -> FALSE | AQ26: =IF(iSummary!BU24=0,"=",iSummary!BU24) -> -7 | AR26: =iSummary!BV24 -> FALSE | AT26: =iSummary!CF24 -> 1 | AU26: =IF(AT26=0,0,IF(uxb_works!$B$49,IF(AY26<$C$80,1,IF(AY26>$C$80,4,2)),IF(AY26<=$B$80,1,IF(AY26<=$B$81,2,(IF(AY26<=$B$82,3,4)))))) -> 4 | AW26: =iSummary!CG24 -> 17 | AX26: =iSummary!CH24&iSummary!CN24 -> Barcelona | AY26: =iSummary!CI24 -> 85.28 | AZ26: =IF(iSummary!CJ24=0,"=",iSummary!CJ24) -> 2.47 | BA26: =iSummary!CK24 -> FALSE | BB26: =IF(iSummary!CL24=0,"=",iSummary!CL24) -> -4 | BC26: =iSummary!CM24 -> FALSE
B27: =iSummary!P25 -> 1 | C27: =IF(B27=0,0,IF(uxb_works!$B$49,IF(G27<$C$80,1,IF(G27>$C$80,4,2)),IF(G27<=$B$80,1,IF(G27<=$B$81,2,(IF(G27<=$B$82,3,4)))))) -> 4 | E27: =iSummary!Q25 -> 18 | F27: =iSummary!R25&iSummary!X25 -> Los Angeles | G27: =iSummary!S25 -> 82.26 | H27: =IF(iSummary!T25=0,"=",iSummary!T25) -> 5.39 | I27: =iSummary!U25 -> FALSE | J27: =IF(iSummary!V25=0,"=",iSummary!V25) -> -1 | K27: =iSummary!W25 -> FALSE | M27: =iSummary!AG25 -> 1 | N27: =IF(M27=0,0,IF(uxb_works!$B$49,IF(R27<$C$80,1,IF(R27>$C$80,4,2)),IF(R27<=$B$80,1,IF(R27<=$B$81,2,(IF(R27<=$B$82,3,4)))))) -> 4 | P27: =iSummary!AH25 -> 18 | Q27: =iSummary!AI25&iSummary!AO25 -> Seoul | R27: =iSummary!AJ25 -> 78.42 | S27: =IF(iSummary!AK25=0,"=",iSummary!AK25) -> 21.46 | T27: =iSummary!AL25 -> FALSE | U27: =IF(iSummary!AM25=0,"=",iSummary!AM25) -> 16 | V27: =iSummary!AN25 -> FALSE | X27: =iSummary!AX25 -> 1 | Y27: =IF(X27=0,0,IF(uxb_works!$B$49,IF(AC27<$C$80,1,IF(AC27>$C$80,4,2)),IF(AC27<=$B$80,1,IF(AC27<=$B$81,2,(IF(AC27<=$B$82,3,4)))))) -> 4 | AA27: =iSummary!AY25 -> 18 | AB27: =iSummary!AZ25&iSummary!BF25 -> Rome | AC27: =iSummary!BA25 -> 76.38 | AD27: =IF(iSummary!BB25=0,"=",iSummary!BB25) -> 7.05 | AE27: =iSummary!BC25 -> FALSE | AF27: =IF(iSummary!BD25=0,"=",iSummary!BD25) -> 6 | AG27: =iSummary!BE25 -> FALSE | AI27: =iSummary!BO25 -> 1 | AJ27: =IF(AI27=0,0,IF(uxb_works!$B$49,IF(AN27<$C$80,1,IF(AN27>$C$80,4,2)),IF(AN27<=$B$80,1,IF(AN27<=$B$81,2,(IF(AN27<=$B$82,3,4)))))) -> 4 | AL27: =iSummary!BP25 -> 18 | AM27: =iSummary!BQ25&iSummary!BW25 -> Milan | AN27: =iSummary!BR25 -> 90.36 | AO27: =IF(iSummary!BS25=0,"=",iSummary!BS25) -> 8.37 | AP27: =iSummary!BT25 -> FALSE | AQ27: =IF(iSummary!BU25=0,"=",iSummary!BU25) -> 3 | AR27: =iSummary!BV25 -> FALSE | AT27: =iSummary!CF25 -> 1 | AU27: =IF(AT27=0,0,IF(uxb_works!$B$49,IF(AY27<$C$80,1,IF(AY27>$C$80,4,2)),IF(AY27<=$B$80,1,IF(AY27<=$B$81,2,(IF(AY27<=$B$82,3,4)))))) -> 4 | AW27: =iSummary!CG25 -> 18 | AX27: =iSummary!CH25&iSummary!CN25 -> Washington DC | AY27: =iSummary!CI25 -> 84.82 | AZ27: =IF(iSummary!CJ25=0,"=",iSummary!CJ25) -> 1.28 | BA27: =iSummary!CK25 -> FALSE | BB27: =IF(iSummary!CL25=0,"=",iSummary!CL25) -> -6 | BC27: =iSummary!CM25 -> FALSE
B28: =iSummary!P26 -> 1 | C28: =IF(B28=0,0,IF(uxb_works!$B$49,IF(G28<$C$80,1,IF(G28>$C$80,4,2)),IF(G28<=$B$80,1,IF(G28<=$B$81,2,(IF(G28<=$B$82,3,4)))))) -> 4 | E28: =iSummary!Q26 -> 19 | F28: =iSummary!R26&iSummary!X26 -> Chicago | G28: =iSummary!S26 -> 82.21 | H28: =IF(iSummary!T26=0,"=",iSummary!T26) -> 4.48 | I28: =iSummary!U26 -> FALSE | J28: =IF(iSummary!V26=0,"=",iSummary!V26) -> -6 | K28: =iSummary!W26 -> FALSE | M28: =iSummary!AG26 -> 1 | N28: =IF(M28=0,0,IF(uxb_works!$B$49,IF(R28<$C$80,1,IF(R28>$C$80,4,2)),IF(R28<=$B$80,1,IF(R28<=$B$81,2,(IF(R28<=$B$82,3,4)))))) -> 4 | P28: =iSummary!AH26 -> 19 | Q28: =iSummary!AI26&iSummary!AO26 -> Zurich | R28: =iSummary!AJ26 -> 77.98 | S28: =IF(iSummary!AK26=0,"=",iSummary!AK26) -> 9.94 | T28: =iSummary!AL26 -> FALSE | U28: =IF(iSummary!AM26=0,"=",iSummary!AM26) -> -2 | V28: =iSummary!AN26 -> FALSE | X28: =iSummary!AX26 -> 1 | Y28: =IF(X28=0,0,IF(uxb_works!$B$49,IF(AC28<$C$80,1,IF(AC28>$C$80,4,2)),IF(AC28<=$B$80,1,IF(AC28<=$B$81,2,(IF(AC28<=$B$82,3,4)))))) -> 4 | AA28: =iSummary!AY26 -> 19 | AB28: =iSummary!AZ26&iSummary!BF26 -> London | AC28: =iSummary!BA26 -> 76.06 | AD28: =IF(iSummary!BB26=0,"=",iSummary!BB26) -> 3.57 | AE28: =iSummary!BC26 -> FALSE | AF28: =IF(iSummary!BD26=0,"=",iSummary!BD26) -> = | AG28: =iSummary!BE26 -> FALSE | AI28: =iSummary!BO26 -> 1 | AJ28: =IF(AI28=0,0,IF(uxb_works!$B$49,IF(AN28<$C$80,1,IF(AN28>$C$80,4,2)),IF(AN28<=$B$80,1,IF(AN28<=$B$81,2,(IF(AN28<=$B$82,3,4)))))) -> 4 | AL28: =iSummary!BP26 -> 19 | AM28: =iSummary!BQ26&iSummary!BW26 -> Paris | AN28: =iSummary!BR26 -> 89.9 | AO28: =IF(iSummary!BS26=0,"=",iSummary!BS26) -> 12.06 | AP28: =iSummary!BT26 -> FALSE | AQ28: =IF(iSummary!BU26=0,"=",iSummary!BU26) -> 9 | AR28: =iSummary!BV26 -> FALSE | AT28: =iSummary!CF26 -> 1 | AU28: =IF(AT28=0,0,IF(uxb_works!$B$49,IF(AY28<$C$80,1,IF(AY28>$C$80,4,2)),IF(AY28<=$B$80,1,IF(AY28<=$B$81,2,(IF(AY28<=$B$82,3,4)))))) -> 4 | AW28: =iSummary!CG26 -> 19 | AX28: =iSummary!CH26&iSummary!CN26 -> San Francisco | AY28: =iSummary!CI26 -> 83.74 | AZ28: =IF(iSummary!CJ26=0,"=",iSummary!CJ26) -> -0.01 | BA28: =iSummary!CK26 -> FALSE | BB28: =IF(iSummary!CL26=0,"=",iSummary!CL26) -> -8 | BC28: =iSummary!CM26 -> FALSE
B29: =iSummary!P27 -> 1 | C29: =IF(B29=0,0,IF(uxb_works!$B$49,IF(G29<$C$80,1,IF(G29>$C$80,4,2)),IF(G29<=$B$80,1,IF(G29<=$B$81,2,(IF(G29<=$B$82,3,4)))))) -> 4 | E29: =iSummary!Q27 -> 20 | F29: =iSummary!R27&iSummary!X27 -> London | G29: =iSummary!S27 -> 82.1 | H29: =IF(iSummary!T27=0,"=",iSummary!T27) -> 8.64 | I29: =iSummary!U27 -> FALSE | J29: =IF(iSummary!V27=0,"=",iSummary!V27) -> 1 | K29: =iSummary!W27 -> FALSE | M29: =iSummary!AG27 -> 1 | N29: =IF(M29=0,0,IF(uxb_works!$B$49,IF(R29<$C$80,1,IF(R29>$C$80,4,2)),IF(R29<=$B$80,1,IF(R29<=$B$81,2,(IF(R29<=$B$82,3,4)))))) -> 3 | P29: =iSummary!AH27 -> 20 | Q29: =iSummary!AI27&iSummary!AO27 -> Wellington * | R29: =iSummary!AJ27 -> 74.8 | S29: =IF(iSummary!AK27=0,"=",iSummary!AK27) ->  | T29: =iSummary!AL27 -> FALSE | U29: =IF(iSummary!AM27=0,"=",iSummary!AM27) ->  | V29: =iSummary!AN27 -> FALSE | X29: =iSummary!AX27 -> 1 | Y29: =IF(X29=0,0,IF(uxb_works!$B$49,IF(AC29<$C$80,1,IF(AC29>$C$80,4,2)),IF(AC29<=$B$80,1,IF(AC29<=$B$81,2,(IF(AC29<=$B$82,3,4)))))) -> 3 | AA29: =iSummary!AY27 -> 20 | AB29: =iSummary!AZ27&iSummary!BF27 -> Buenos Aires | AC29: =iSummary!BA27 -> 74.84 | AD29: =IF(iSummary!BB27=0,"=",iSummary!BB27) -> 7.12 | AE29: =iSummary!BC27 -> FALSE | AF29: =IF(iSummary!BD27=0,"=",iSummary!BD27) -> 7 | AG29: =iSummary!BE27 -> FALSE | AI29: =iSummary!BO27 -> 1 | AJ29: =IF(AI29=0,0,IF(uxb_works!$B$49,IF(AN29<$C$80,1,IF(AN29>$C$80,4,2)),IF(AN29<=$B$80,1,IF(AN29<=$B$81,2,(IF(AN29<=$B$82,3,4)))))) -> 4 | AL29: =iSummary!BP27 -> 20 | AM29: =iSummary!BQ27&iSummary!BW27 -> Brussels | AN29: =iSummary!BR27 -> 88.56 | AO29: =IF(iSummary!BS27=0,"=",iSummary!BS27) -> 2.37 | AP29: =iSummary!BT27 -> FALSE | AQ29: =IF(iSummary!BU27=0,"=",iSummary!BU27) -> -6 | AR29: =iSummary!BV27 -> FALSE | AT29: =iSummary!CF27 -> 1 | AU29: =IF(AT29=0,0,IF(uxb_works!$B$49,IF(AY29<$C$80,1,IF(AY29>$C$80,4,2)),IF(AY29<=$B$80,1,IF(AY29<=$B$81,2,(IF(AY29<=$B$82,3,4)))))) -> 4 | AW29: =iSummary!CG27 -> 20 | AX29: =iSummary!CH27&iSummary!CN27 -> Zurich | AY29: =iSummary!CI27 -> 83.72 | AZ29: =IF(iSummary!CJ27=0,"=",iSummary!CJ27) -> 2.08 | BA29: =iSummary!CK27 -> FALSE | BB29: =IF(iSummary!CL27=0,"=",iSummary!CL27) -> -3 | BC29: =iSummary!CM27 -> FALSE
B30: =iSummary!P28 -> 1 | C30: =IF(B30=0,0,IF(uxb_works!$B$49,IF(G30<$C$80,1,IF(G30>$C$80,4,2)),IF(G30<=$B$80,1,IF(G30<=$B$81,2,(IF(G30<=$B$82,3,4)))))) -> 4 | E30: =iSummary!Q28 -> 21 | F30: =iSummary!R28&iSummary!X28 -> New York | G30: =iSummary!S28 -> 81.01 | H30: =IF(iSummary!T28=0,"=",iSummary!T28) -> 0.73 | I30: =iSummary!U28 -> FALSE | J30: =IF(iSummary!V28=0,"=",iSummary!V28) -> -11 | K30: =iSummary!W28 -> FALSE | M30: =iSummary!AG28 -> 1 | N30: =IF(M30=0,0,IF(uxb_works!$B$49,IF(R30<$C$80,1,IF(R30>$C$80,4,2)),IF(R30<=$B$80,1,IF(R30<=$B$81,2,(IF(R30<=$B$82,3,4)))))) -> 3 | P30: =iSummary!AH28 -> =21 | Q30: =iSummary!AI28&iSummary!AO28 -> Barcelona | R30: =iSummary!AJ28 -> 74.44 | S30: =IF(iSummary!AK28=0,"=",iSummary!AK28) -> 13.15 | T30: =iSummary!AL28 -> FALSE | U30: =IF(iSummary!AM28=0,"=",iSummary!AM28) -> 7 | V30: =iSummary!AN28 -> FALSE | X30: =iSummary!AX28 -> 1 | Y30: =IF(X30=0,0,IF(uxb_works!$B$49,IF(AC30<$C$80,1,IF(AC30>$C$80,4,2)),IF(AC30<=$B$80,1,IF(AC30<=$B$81,2,(IF(AC30<=$B$82,3,4)))))) -> 3 | AA30: =iSummary!AY28 -> 21 | AB30: =iSummary!AZ28&iSummary!BF28 -> Athens * | AC30: =iSummary!BA28 -> 74.57 | AD30: =IF(iSummary!BB28=0,"=",iSummary!BB28) ->  | AE30: =iSummary!BC28 -> FALSE | AF30: =IF(iSummary!BD28=0,"=",iSummary!BD28) ->  | AG30: =iSummary!BE28 -> FALSE | AI30: =iSummary!BO28 -> 1 | AJ30: =IF(AI30=0,0,IF(uxb_works!$B$49,IF(AN30<$C$80,1,IF(AN30>$C$80,4,2)),IF(AN30<=$B$80,1,IF(AN30<=$B$81,2,(IF(AN30<=$B$82,3,4)))))) -> 4 | AL30: =iSummary!BP28 -> 21 | AM30: =iSummary!BQ28&iSummary!BW28 -> New York | AN30: =iSummary!BR28 -> 88.39 | AO30: =IF(iSummary!BS28=0,"=",iSummary!BS28) -> 2.26 | AP30: =iSummary!BT28 -> FALSE | AQ30: =IF(iSummary!BU28=0,"=",iSummary!BU28) -> -6 | AR30: =iSummary!BV28 -> FALSE | AT30: =iSummary!CF28 -> 1 | AU30: =IF(AT30=0,0,IF(uxb_works!$B$49,IF(AY30<$C$80,1,IF(AY30>$C$80,4,2)),IF(AY30<=$B$80,1,IF(AY30<=$B$81,2,(IF(AY30<=$B$82,3,4)))))) -> 4 | AW30: =iSummary!CG28 -> 21 | AX30: =iSummary!CH28&iSummary!CN28 -> Los Angeles | AY30: =iSummary!CI28 -> 83.4 | AZ30: =IF(iSummary!CJ28=0,"=",iSummary!CJ28) -> 1.46 | BA30: =iSummary!CK28 -> FALSE | BB30: =IF(iSummary!CL28=0,"=",iSummary!CL28) -> -5 | BC30: =iSummary!CM28 -> FALSE
B31: =iSummary!P29 -> 1 | C31: =IF(B31=0,0,IF(uxb_works!$B$49,IF(G31<$C$80,1,IF(G31>$C$80,4,2)),IF(G31<=$B$80,1,IF(G31<=$B$81,2,(IF(G31<=$B$82,3,4)))))) -> 4 | E31: =iSummary!Q29 -> 22 | F31: =iSummary!R29&iSummary!X29 -> Taipei | G31: =iSummary!S29 -> 80.7 | H31: =IF(iSummary!T29=0,"=",iSummary!T29) -> 3.11 | I31: =iSummary!U29 -> FALSE | J31: =IF(iSummary!V29=0,"=",iSummary!V29) -> -8 | K31: =iSummary!W29 -> FALSE | M31: =iSummary!AG29 -> 1 | N31: =IF(M31=0,0,IF(uxb_works!$B$49,IF(R31<$C$80,1,IF(R31>$C$80,4,2)),IF(R31<=$B$80,1,IF(R31<=$B$81,2,(IF(R31<=$B$82,3,4)))))) -> 3 | P31: =iSummary!AH29 -> =21 | Q31: =iSummary!AI29&iSummary!AO29 -> Madrid | R31: =iSummary!AJ29 -> 74.44 | S31: =IF(iSummary!AK29=0,"=",iSummary!AK29) -> 12.66 | T31: =iSummary!AL29 -> FALSE | U31: =IF(iSummary!AM29=0,"=",iSummary!AM29) -> 5 | V31: =iSummary!AN29 -> FALSE | X31: =iSummary!AX29 -> 1 | Y31: =IF(X31=0,0,IF(uxb_works!$B$49,IF(AC31<$C$80,1,IF(AC31>$C$80,4,2)),IF(AC31<=$B$80,1,IF(AC31<=$B$81,2,(IF(AC31<=$B$82,3,4)))))) -> 3 | AA31: =iSummary!AY29 -> 22 | AB31: =iSummary!AZ29&iSummary!BF29 -> San Francisco | AC31: =iSummary!BA29 -> 74.15 | AD31: =IF(iSummary!BB29=0,"=",iSummary!BB29) -> -1.08 | AE31: =iSummary!BC29 -> FALSE | AF31: =IF(iSummary!BD29=0,"=",iSummary!BD29) -> -6 | AG31: =iSummary!BE29 -> FALSE | AI31: =iSummary!BO29 -> 1 | AJ31: =IF(AI31=0,0,IF(uxb_works!$B$49,IF(AN31<$C$80,1,IF(AN31>$C$80,4,2)),IF(AN31<=$B$80,1,IF(AN31<=$B$81,2,(IF(AN31<=$B$82,3,4)))))) -> 4 | AL31: =iSummary!BP29 -> 22 | AM31: =iSummary!BQ29&iSummary!BW29 -> Los Angeles | AN31: =iSummary!BR29 -> 88.27 | AO31: =IF(iSummary!BS29=0,"=",iSummary!BS29) -> 3.61 | AP31: =iSummary!BT29 -> FALSE | AQ31: =IF(iSummary!BU29=0,"=",iSummary!BU29) -> -4 | AR31: =iSummary!BV29 -> FALSE | AT31: =iSummary!CF29 -> 1 | AU31: =IF(AT31=0,0,IF(uxb_works!$B$49,IF(AY31<$C$80,1,IF(AY31>$C$80,4,2)),IF(AY31<=$B$80,1,IF(AY31<=$B$81,2,(IF(AY31<=$B$82,3,4)))))) -> 4 | AW31: =iSummary!CG29 -> 22 | AX31: =iSummary!CH29&iSummary!CN29 -> Chicago | AY31: =iSummary!CI29 -> 82.84 | AZ31: =IF(iSummary!CJ29=0,"=",iSummary!CJ29) -> 0.85 | BA31: =iSummary!CK29 -> FALSE | BB31: =IF(iSummary!CL29=0,"=",iSummary!CL29) -> -7 | BC31: =iSummary!CM29 -> FALSE
B32: =iSummary!P30 -> 1 | C32: =IF(B32=0,0,IF(uxb_works!$B$49,IF(G32<$C$80,1,IF(G32>$C$80,4,2)),IF(G32<=$B$80,1,IF(G32<=$B$81,2,(IF(G32<=$B$82,3,4)))))) -> 4 | E32: =iSummary!Q30 -> 23 | F32: =iSummary!R30&iSummary!X30 -> Washington DC | G32: =iSummary!S30 -> 80.37 | H32: =IF(iSummary!T30=0,"=",iSummary!T30) -> 3.93 | I32: =iSummary!U30 -> FALSE | J32: =IF(iSummary!V30=0,"=",iSummary!V30) -> -5 | K32: =iSummary!W30 -> FALSE | M32: =iSummary!AG30 -> 1 | N32: =IF(M32=0,0,IF(uxb_works!$B$49,IF(R32<$C$80,1,IF(R32>$C$80,4,2)),IF(R32<=$B$80,1,IF(R32<=$B$81,2,(IF(R32<=$B$82,3,4)))))) -> 3 | P32: =iSummary!AH30 -> 23 | Q32: =iSummary!AI30&iSummary!AO30 -> Buenos Aires | R32: =iSummary!AJ30 -> 74.14 | S32: =IF(iSummary!AK30=0,"=",iSummary!AK30) -> 4.56 | T32: =iSummary!AL30 -> FALSE | U32: =IF(iSummary!AM30=0,"=",iSummary!AM30) -> -9 | V32: =iSummary!AN30 -> FALSE | X32: =iSummary!AX30 -> 1 | Y32: =IF(X32=0,0,IF(uxb_works!$B$49,IF(AC32<$C$80,1,IF(AC32>$C$80,4,2)),IF(AC32<=$B$80,1,IF(AC32<=$B$81,2,(IF(AC32<=$B$82,3,4)))))) -> 3 | AA32: =iSummary!AY30 -> 23 | AB32: =iSummary!AZ30&iSummary!BF30 -> Washington DC | AC32: =iSummary!BA30 -> 73.38 | AD32: =IF(iSummary!BB30=0,"=",iSummary!BB30) -> -1.74 | AE32: =iSummary!BC30 -> FALSE | AF32: =IF(iSummary!BD30=0,"=",iSummary!BD30) -> -6 | AG32: =iSummary!BE30 -> FALSE | AI32: =iSummary!BO30 -> 1 | AJ32: =IF(AI32=0,0,IF(uxb_works!$B$49,IF(AN32<$C$80,1,IF(AN32>$C$80,4,2)),IF(AN32<=$B$80,1,IF(AN32<=$B$81,2,(IF(AN32<=$B$82,3,4)))))) -> 4 | AL32: =iSummary!BP30 -> 23 | AM32: =iSummary!BQ30&iSummary!BW30 -> Frankfurt | AN32: =iSummary!BR30 -> 88.16 | AO32: =IF(iSummary!BS30=0,"=",iSummary!BS30) -> 2.36 | AP32: =iSummary!BT30 -> FALSE | AQ32: =IF(iSummary!BU30=0,"=",iSummary!BU30) -> -7 | AR32: =iSummary!BV30 -> FALSE | AT32: =iSummary!CF30 -> 1 | AU32: =IF(AT32=0,0,IF(uxb_works!$B$49,IF(AY32<$C$80,1,IF(AY32>$C$80,4,2)),IF(AY32<=$B$80,1,IF(AY32<=$B$81,2,(IF(AY32<=$B$82,3,4)))))) -> 4 | AW32: =iSummary!CG30 -> 23 | AX32: =iSummary!CH30&iSummary!CN30 -> Brussels | AY32: =iSummary!CI30 -> 82.09 | AZ32: =IF(iSummary!CJ30=0,"=",iSummary!CJ30) -> 17.54 | BA32: =iSummary!CK30 -> FALSE | BB32: =IF(iSummary!CL30=0,"=",iSummary!CL30) -> 9 | BC32: =iSummary!CM30 -> FALSE
B33: =iSummary!P31 -> 1 | C33: =IF(B33=0,0,IF(uxb_works!$B$49,IF(G33<$C$80,1,IF(G33>$C$80,4,2)),IF(G33<=$B$80,1,IF(G33<=$B$81,2,(IF(G33<=$B$82,3,4)))))) -> 4 | E33: =iSummary!Q31 -> 24 | F33: =iSummary!R31&iSummary!X31 -> Paris | G33: =iSummary!S31 -> 79.71 | H33: =IF(iSummary!T31=0,"=",iSummary!T31) -> 6.5 | I33: =iSummary!U31 -> FALSE | J33: =IF(iSummary!V31=0,"=",iSummary!V31) -> -2 | K33: =iSummary!W31 -> FALSE | M33: =iSummary!AG31 -> 1 | N33: =IF(M33=0,0,IF(uxb_works!$B$49,IF(R33<$C$80,1,IF(R33>$C$80,4,2)),IF(R33<=$B$80,1,IF(R33<=$B$81,2,(IF(R33<=$B$82,3,4)))))) -> 3 | P33: =iSummary!AH31 -> 24 | Q33: =iSummary!AI31&iSummary!AO31 -> London | R33: =iSummary!AJ31 -> 73.36 | S33: =IF(iSummary!AK31=0,"=",iSummary!AK31) -> 2.94 | T33: =iSummary!AL31 -> FALSE | U33: =IF(iSummary!AM31=0,"=",iSummary!AM31) -> -12 | V33: =iSummary!AN31 -> FALSE | X33: =iSummary!AX31 -> 1 | Y33: =IF(X33=0,0,IF(uxb_works!$B$49,IF(AC33<$C$80,1,IF(AC33>$C$80,4,2)),IF(AC33<=$B$80,1,IF(AC33<=$B$81,2,(IF(AC33<=$B$82,3,4)))))) -> 3 | AA33: =iSummary!AY31 -> 24 | AB33: =iSummary!AZ31&iSummary!BF31 -> Hong Kong | AC33: =iSummary!BA31 -> 73.29 | AD33: =IF(iSummary!BB31=0,"=",iSummary!BB31) -> 5.87 | AE33: =iSummary!BC31 -> FALSE | AF33: =IF(iSummary!BD31=0,"=",iSummary!BD31) -> 5 | AG33: =iSummary!BE31 -> FALSE | AI33: =iSummary!BO31 -> 1 | AJ33: =IF(AI33=0,0,IF(uxb_works!$B$49,IF(AN33<$C$80,1,IF(AN33>$C$80,4,2)),IF(AN33<=$B$80,1,IF(AN33<=$B$81,2,(IF(AN33<=$B$82,3,4)))))) -> 4 | AL33: =iSummary!BP31 -> 24 | AM33: =iSummary!BQ31&iSummary!BW31 -> Buenos Aires | AN33: =iSummary!BR31 -> 87.99 | AO33: =IF(iSummary!BS31=0,"=",iSummary!BS31) -> 9.33 | AP33: =iSummary!BT31 -> FALSE | AQ33: =IF(iSummary!BU31=0,"=",iSummary!BU31) -> 1 | AR33: =iSummary!BV31 -> FALSE | AT33: =iSummary!CF31 -> 1 | AU33: =IF(AT33=0,0,IF(uxb_works!$B$49,IF(AY33<$C$80,1,IF(AY33>$C$80,4,2)),IF(AY33<=$B$80,1,IF(AY33<=$B$81,2,(IF(AY33<=$B$82,3,4)))))) -> 4 | AW33: =iSummary!CG31 -> 24 | AX33: =iSummary!CH31&iSummary!CN31 -> Kuala Lumpur * | AY33: =iSummary!CI31 -> 81.02 | AZ33: =IF(iSummary!CJ31=0,"=",iSummary!CJ31) ->  | BA33: =iSummary!CK31 -> FALSE | BB33: =IF(iSummary!CL31=0,"=",iSummary!CL31) ->  | BC33: =iSummary!CM31 -> FALSE
B34: =iSummary!P32 -> 1 | C34: =IF(B34=0,0,IF(uxb_works!$B$49,IF(G34<$C$80,1,IF(G34>$C$80,4,2)),IF(G34<=$B$80,1,IF(G34<=$B$81,2,(IF(G34<=$B$82,3,4)))))) -> 4 | E34: =iSummary!Q32 -> 25 | F34: =iSummary!R32&iSummary!X32 -> Milan | G34: =iSummary!S32 -> 79.3 | H34: =IF(iSummary!T32=0,"=",iSummary!T32) -> 6.72 | I34: =iSummary!U32 -> FALSE | J34: =IF(iSummary!V32=0,"=",iSummary!V32) -> -1 | K34: =iSummary!W32 -> FALSE | M34: =iSummary!AG32 -> 1 | N34: =IF(M34=0,0,IF(uxb_works!$B$49,IF(R34<$C$80,1,IF(R34>$C$80,4,2)),IF(R34<=$B$80,1,IF(R34<=$B$81,2,(IF(R34<=$B$82,3,4)))))) -> 3 | P34: =iSummary!AH32 -> 25 | Q34: =iSummary!AI32&iSummary!AO32 -> Milan | R34: =iSummary!AJ32 -> 73.29 | S34: =IF(iSummary!AK32=0,"=",iSummary!AK32) -> 5.17 | T34: =iSummary!AL32 -> FALSE | U34: =IF(iSummary!AM32=0,"=",iSummary!AM32) -> -9 | V34: =iSummary!AN32 -> FALSE | X34: =iSummary!AX32 -> 1 | Y34: =IF(X34=0,0,IF(uxb_works!$B$49,IF(AC34<$C$80,1,IF(AC34>$C$80,4,2)),IF(AC34<=$B$80,1,IF(AC34<=$B$81,2,(IF(AC34<=$B$82,3,4)))))) -> 3 | AA34: =iSummary!AY32 -> 25 | AB34: =iSummary!AZ32&iSummary!BF32 -> Moscow | AC34: =iSummary!BA32 -> 72.59 | AD34: =IF(iSummary!BB32=0,"=",iSummary!BB32) -> 1.52 | AE34: =iSummary!BC32 -> FALSE | AF34: =IF(iSummary!BD32=0,"=",iSummary!BD32) -> -3 | AG34: =iSummary!BE32 -> FALSE | AI34: =iSummary!BO32 -> 1 | AJ34: =IF(AI34=0,0,IF(uxb_works!$B$49,IF(AN34<$C$80,1,IF(AN34>$C$80,4,2)),IF(AN34<=$B$80,1,IF(AN34<=$B$81,2,(IF(AN34<=$B$82,3,4)))))) -> 4 | AL34: =iSummary!BP32 -> 25 | AM34: =iSummary!BQ32&iSummary!BW32 -> Seoul | AN34: =iSummary!BR32 -> 87.93 | AO34: =IF(iSummary!BS32=0,"=",iSummary!BS32) -> 0.95 | AP34: =iSummary!BT32 -> FALSE | AQ34: =IF(iSummary!BU32=0,"=",iSummary!BU32) -> -12 | AR34: =iSummary!BV32 -> FALSE | AT34: =iSummary!CF32 -> 1 | AU34: =IF(AT34=0,0,IF(uxb_works!$B$49,IF(AY34<$C$80,1,IF(AY34>$C$80,4,2)),IF(AY34<=$B$80,1,IF(AY34<=$B$81,2,(IF(AY34<=$B$82,3,4)))))) -> 4 | AW34: =iSummary!CG32 -> 25 | AX34: =iSummary!CH32&iSummary!CN32 -> New York | AY34: =iSummary!CI32 -> 80.98 | AZ34: =IF(iSummary!CJ32=0,"=",iSummary!CJ32) -> 1.51 | BA34: =iSummary!CK32 -> FALSE | BB34: =IF(iSummary!CL32=0,"=",iSummary!CL32) -> -5 | BC34: =iSummary!CM32 -> FALSE
B35: =iSummary!P33 -> 1 | C35: =IF(B35=0,0,IF(uxb_works!$B$49,IF(G35<$C$80,1,IF(G35>$C$80,4,2)),IF(G35<=$B$80,1,IF(G35<=$B$81,2,(IF(G35<=$B$82,3,4)))))) -> 4 | E35: =iSummary!Q33 -> 26 | F35: =iSummary!R33&iSummary!X33 -> Dallas * | G35: =iSummary!S33 -> 78.73 | H35: =IF(iSummary!T33=0,"=",iSummary!T33) ->  | I35: =iSummary!U33 -> FALSE | J35: =IF(iSummary!V33=0,"=",iSummary!V33) ->  | K35: =iSummary!W33 -> FALSE | M35: =iSummary!AG33 -> 1 | N35: =IF(M35=0,0,IF(uxb_works!$B$49,IF(R35<$C$80,1,IF(R35>$C$80,4,2)),IF(R35<=$B$80,1,IF(R35<=$B$81,2,(IF(R35<=$B$82,3,4)))))) -> 3 | P35: =iSummary!AH33 -> 26 | Q35: =iSummary!AI33&iSummary!AO33 -> Rome | R35: =iSummary!AJ33 -> 71.62 | S35: =IF(iSummary!AK33=0,"=",iSummary!AK33) -> 9.45 | T35: =iSummary!AL33 -> FALSE | U35: =IF(iSummary!AM33=0,"=",iSummary!AM33) -> -1 | V35: =iSummary!AN33 -> FALSE | X35: =iSummary!AX33 -> 1 | Y35: =IF(X35=0,0,IF(uxb_works!$B$49,IF(AC35<$C$80,1,IF(AC35>$C$80,4,2)),IF(AC35<=$B$80,1,IF(AC35<=$B$81,2,(IF(AC35<=$B$82,3,4)))))) -> 3 | AA35: =iSummary!AY33 -> 26 | AB35: =iSummary!AZ33&iSummary!BF33 -> Los Angeles | AC35: =iSummary!BA33 -> 72.26 | AD35: =IF(iSummary!BB33=0,"=",iSummary!BB33) -> 2.88 | AE35: =iSummary!BC33 -> FALSE | AF35: =IF(iSummary!BD33=0,"=",iSummary!BD33) -> -3 | AG35: =iSummary!BE33 -> FALSE | AI35: =iSummary!BO33 -> 1 | AJ35: =IF(AI35=0,0,IF(uxb_works!$B$49,IF(AN35<$C$80,1,IF(AN35>$C$80,4,2)),IF(AN35<=$B$80,1,IF(AN35<=$B$81,2,(IF(AN35<=$B$82,3,4)))))) -> 4 | AL35: =iSummary!BP33 -> 26 | AM35: =iSummary!BQ33&iSummary!BW33 -> Taipei | AN35: =iSummary!BR33 -> 87.59 | AO35: =IF(iSummary!BS33=0,"=",iSummary!BS33) -> 7.67 | AP35: =iSummary!BT33 -> FALSE | AQ35: =IF(iSummary!BU33=0,"=",iSummary!BU33) -> -3 | AR35: =iSummary!BV33 -> FALSE | AT35: =iSummary!CF33 -> 1 | AU35: =IF(AT35=0,0,IF(uxb_works!$B$49,IF(AY35<$C$80,1,IF(AY35>$C$80,4,2)),IF(AY35<=$B$80,1,IF(AY35<=$B$81,2,(IF(AY35<=$B$82,3,4)))))) -> 4 | AW35: =iSummary!CG33 -> =26 | AX35: =iSummary!CH33&iSummary!CN33 -> Beijing | AY35: =iSummary!CI33 -> 80.76 | AZ35: =IF(iSummary!CJ33=0,"=",iSummary!CJ33) -> 18.68 | BA35: =iSummary!CK33 -> FALSE | BB35: =IF(iSummary!CL33=0,"=",iSummary!CL33) -> 11 | BC35: =iSummary!CM33 -> FALSE
B36: =iSummary!P34 -> 1 | C36: =IF(B36=0,0,IF(uxb_works!$B$49,IF(G36<$C$80,1,IF(G36>$C$80,4,2)),IF(G36<=$B$80,1,IF(G36<=$B$81,2,(IF(G36<=$B$82,3,4)))))) -> 4 | E36: =iSummary!Q34 -> 27 | F36: =iSummary!R34&iSummary!X34 -> Rome | G36: =iSummary!S34 -> 78.67 | H36: =IF(iSummary!T34=0,"=",iSummary!T34) -> 8.69 | I36: =iSummary!U34 -> FALSE | J36: =IF(iSummary!V34=0,"=",iSummary!V34) -> = | K36: =iSummary!W34 -> FALSE | M36: =iSummary!AG34 -> 1 | N36: =IF(M36=0,0,IF(uxb_works!$B$49,IF(R36<$C$80,1,IF(R36>$C$80,4,2)),IF(R36<=$B$80,1,IF(R36<=$B$81,2,(IF(R36<=$B$82,3,4)))))) -> 3 | P36: =iSummary!AH34 -> 27 | Q36: =iSummary!AI34&iSummary!AO34 -> Paris | R36: =iSummary!AJ34 -> 70.37 | S36: =IF(iSummary!AK34=0,"=",iSummary!AK34) -> 10.97 | T36: =iSummary!AL34 -> FALSE | U36: =IF(iSummary!AM34=0,"=",iSummary!AM34) -> 5 | V36: =iSummary!AN34 -> FALSE | X36: =iSummary!AX34 -> 1 | Y36: =IF(X36=0,0,IF(uxb_works!$B$49,IF(AC36<$C$80,1,IF(AC36>$C$80,4,2)),IF(AC36<=$B$80,1,IF(AC36<=$B$81,2,(IF(AC36<=$B$82,3,4)))))) -> 3 | AA36: =iSummary!AY34 -> 27 | AB36: =iSummary!AZ34&iSummary!BF34 -> Chicago | AC36: =iSummary!BA34 -> 71.78 | AD36: =IF(iSummary!BB34=0,"=",iSummary!BB34) -> -0.17 | AE36: =iSummary!BC34 -> FALSE | AF36: =IF(iSummary!BD34=0,"=",iSummary!BD34) -> -6 | AG36: =iSummary!BE34 -> FALSE | AI36: =iSummary!BO34 -> 1 | AJ36: =IF(AI36=0,0,IF(uxb_works!$B$49,IF(AN36<$C$80,1,IF(AN36>$C$80,4,2)),IF(AN36<=$B$80,1,IF(AN36<=$B$81,2,(IF(AN36<=$B$82,3,4)))))) -> 4 | AL36: =iSummary!BP34 -> 27 | AM36: =iSummary!BQ34&iSummary!BW34 -> Chicago | AN36: =iSummary!BR34 -> 87.47 | AO36: =IF(iSummary!BS34=0,"=",iSummary!BS34) -> -0.1 | AP36: =iSummary!BT34 -> FALSE | AQ36: =IF(iSummary!BU34=0,"=",iSummary!BU34) -> -15 | AR36: =iSummary!BV34 -> FALSE | AT36: =iSummary!CF34 -> 1 | AU36: =IF(AT36=0,0,IF(uxb_works!$B$49,IF(AY36<$C$80,1,IF(AY36>$C$80,4,2)),IF(AY36<=$B$80,1,IF(AY36<=$B$81,2,(IF(AY36<=$B$82,3,4)))))) -> 4 | AW36: =iSummary!CG34 -> =26 | AX36: =iSummary!CH34&iSummary!CN34 -> Dallas * | AY36: =iSummary!CI34 -> 80.76 | AZ36: =IF(iSummary!CJ34=0,"=",iSummary!CJ34) ->  | BA36: =iSummary!CK34 -> FALSE | BB36: =IF(iSummary!CL34=0,"=",iSummary!CL34) ->  | BC36: =iSummary!CM34 -> FALSE
B37: =iSummary!P35 -> 1 | C37: =IF(B37=0,0,IF(uxb_works!$B$49,IF(G37<$C$80,1,IF(G37>$C$80,4,2)),IF(G37<=$B$80,1,IF(G37<=$B$81,2,(IF(G37<=$B$82,3,4)))))) -> 4 | E37: =iSummary!Q35 -> 28 | F37: =iSummary!R35&iSummary!X35 -> Abu Dhabi | G37: =iSummary!S35 -> 76.91 | H37: =IF(iSummary!T35=0,"=",iSummary!T35) -> 4.18 | I37: =iSummary!U35 -> FALSE | J37: =IF(iSummary!V35=0,"=",iSummary!V35) -> -5 | K37: =iSummary!W35 -> FALSE | M37: =iSummary!AG35 -> 1 | N37: =IF(M37=0,0,IF(uxb_works!$B$49,IF(R37<$C$80,1,IF(R37>$C$80,4,2)),IF(R37<=$B$80,1,IF(R37<=$B$81,2,(IF(R37<=$B$82,3,4)))))) -> 3 | P37: =iSummary!AH35 -> 28 | Q37: =iSummary!AI35&iSummary!AO35 -> Abu Dhabi | R37: =iSummary!AJ35 -> 68.77 | S37: =IF(iSummary!AK35=0,"=",iSummary!AK35) -> -10.44 | T37: =iSummary!AL35 -> FALSE | U37: =IF(iSummary!AM35=0,"=",iSummary!AM35) -> -24 | V37: =iSummary!AN35 -> FALSE | X37: =iSummary!AX35 -> 1 | Y37: =IF(X37=0,0,IF(uxb_works!$B$49,IF(AC37<$C$80,1,IF(AC37>$C$80,4,2)),IF(AC37<=$B$80,1,IF(AC37<=$B$81,2,(IF(AC37<=$B$82,3,4)))))) -> 3 | AA37: =iSummary!AY35 -> 28 | AB37: =iSummary!AZ35&iSummary!BF35 -> Mexico City | AC37: =iSummary!BA35 -> 70.79 | AD37: =IF(iSummary!BB35=0,"=",iSummary!BB35) -> 5.47 | AE37: =iSummary!BC35 -> FALSE | AF37: =IF(iSummary!BD35=0,"=",iSummary!BD35) -> 3 | AG37: =iSummary!BE35 -> FALSE | AI37: =iSummary!BO35 -> 1 | AJ37: =IF(AI37=0,0,IF(uxb_works!$B$49,IF(AN37<$C$80,1,IF(AN37>$C$80,4,2)),IF(AN37<=$B$80,1,IF(AN37<=$B$81,2,(IF(AN37<=$B$82,3,4)))))) -> 4 | AL37: =iSummary!BP35 -> 28 | AM37: =iSummary!BQ35&iSummary!BW35 -> Washington DC | AN37: =iSummary!BR35 -> 82.38 | AO37: =IF(iSummary!BS35=0,"=",iSummary!BS35) -> 1.76 | AP37: =iSummary!BT35 -> FALSE | AQ37: =IF(iSummary!BU35=0,"=",iSummary!BU35) -> -6 | AR37: =iSummary!BV35 -> FALSE | AT37: =iSummary!CF35 -> 1 | AU37: =IF(AT37=0,0,IF(uxb_works!$B$49,IF(AY37<$C$80,1,IF(AY37>$C$80,4,2)),IF(AY37<=$B$80,1,IF(AY37<=$B$81,2,(IF(AY37<=$B$82,3,4)))))) -> 4 | AW37: =iSummary!CG35 -> 28 | AX37: =iSummary!CH35&iSummary!CN35 -> Shanghai | AY37: =iSummary!CI35 -> 80.07 | AZ37: =IF(iSummary!CJ35=0,"=",iSummary!CJ35) -> 6.21 | BA37: =iSummary!CK35 -> FALSE | BB37: =IF(iSummary!CL35=0,"=",iSummary!CL35) -> -5 | BC37: =iSummary!CM35 -> FALSE
B38: =iSummary!P36 -> 1 | C38: =IF(B38=0,0,IF(uxb_works!$B$49,IF(G38<$C$80,1,IF(G38>$C$80,4,2)),IF(G38<=$B$80,1,IF(G38<=$B$81,2,(IF(G38<=$B$82,3,4)))))) -> 4 | E38: =iSummary!Q36 -> 29 | F38: =iSummary!R36&iSummary!X36 -> Buenos Aires | G38: =iSummary!S36 -> 76.35 | H38: =IF(iSummary!T36=0,"=",iSummary!T36) -> 6.33 | I38: =iSummary!U36 -> FALSE | J38: =IF(iSummary!V36=0,"=",iSummary!V36) -> -3 | K38: =iSummary!W36 -> FALSE | M38: =iSummary!AG36 -> 1 | N38: =IF(M38=0,0,IF(uxb_works!$B$49,IF(R38<$C$80,1,IF(R38>$C$80,4,2)),IF(R38<=$B$80,1,IF(R38<=$B$81,2,(IF(R38<=$B$82,3,4)))))) -> 3 | P38: =iSummary!AH36 -> 29 | Q38: =iSummary!AI36&iSummary!AO36 -> Johannesburg | R38: =iSummary!AJ36 -> 66.28 | S38: =IF(iSummary!AK36=0,"=",iSummary!AK36) -> 7.88 | T38: =iSummary!AL36 -> FALSE | U38: =IF(iSummary!AM36=0,"=",iSummary!AM36) -> 4 | V38: =iSummary!AN36 -> FALSE | X38: =iSummary!AX36 -> 1 | Y38: =IF(X38=0,0,IF(uxb_works!$B$49,IF(AC38<$C$80,1,IF(AC38>$C$80,4,2)),IF(AC38<=$B$80,1,IF(AC38<=$B$81,2,(IF(AC38<=$B$82,3,4)))))) -> 3 | AA38: =iSummary!AY36 -> 29 | AB38: =iSummary!AZ36&iSummary!BF36 -> Dallas * | AC38: =iSummary!BA36 -> 70.27 | AD38: =IF(iSummary!BB36=0,"=",iSummary!BB36) ->  | AE38: =iSummary!BC36 -> FALSE | AF38: =IF(iSummary!BD36=0,"=",iSummary!BD36) ->  | AG38: =iSummary!BE36 -> FALSE | AI38: =iSummary!BO36 -> 1 | AJ38: =IF(AI38=0,0,IF(uxb_works!$B$49,IF(AN38<$C$80,1,IF(AN38>$C$80,4,2)),IF(AN38<=$B$80,1,IF(AN38<=$B$81,2,(IF(AN38<=$B$82,3,4)))))) -> 4 | AL38: =iSummary!BP36 -> 29 | AM38: =iSummary!BQ36&iSummary!BW36 -> Athens * | AN38: =iSummary!BR36 -> 82.05 | AO38: =IF(iSummary!BS36=0,"=",iSummary!BS36) ->  | AP38: =iSummary!BT36 -> FALSE | AQ38: =IF(iSummary!BU36=0,"=",iSummary!BU36) ->  | AR38: =iSummary!BV36 -> FALSE | AT38: =iSummary!CF36 -> 1 | AU38: =IF(AT38=0,0,IF(uxb_works!$B$49,IF(AY38<$C$80,1,IF(AY38>$C$80,4,2)),IF(AY38<=$B$80,1,IF(AY38<=$B$81,2,(IF(AY38<=$B$82,3,4)))))) -> 4 | AW38: =iSummary!CG36 -> 29 | AX38: =iSummary!CH36&iSummary!CN36 -> Abu Dhabi | AY38: =iSummary!CI36 -> 78.95 | AZ38: =IF(iSummary!CJ36=0,"=",iSummary!CJ36) -> 10.37 | BA38: =iSummary!CK36 -> FALSE | BB38: =IF(iSummary!CL36=0,"=",iSummary!CL36) -> -2 | BC38: =iSummary!CM36 -> FALSE
B39: =iSummary!P37 -> 1 | C39: =IF(B39=0,0,IF(uxb_works!$B$49,IF(G39<$C$80,1,IF(G39>$C$80,4,2)),IF(G39<=$B$80,1,IF(G39<=$B$81,2,(IF(G39<=$B$82,3,4)))))) -> 3 | E39: =iSummary!Q37 -> 30 | F39: =iSummary!R37&iSummary!X37 -> Doha | G39: =iSummary!S37 -> 73.59 | H39: =IF(iSummary!T37=0,"=",iSummary!T37) -> 4.78 | I39: =iSummary!U37 -> FALSE | J39: =IF(iSummary!V37=0,"=",iSummary!V37) -> -2 | K39: =iSummary!W37 -> FALSE | M39: =iSummary!AG37 -> 1 | N39: =IF(M39=0,0,IF(uxb_works!$B$49,IF(R39<$C$80,1,IF(R39>$C$80,4,2)),IF(R39<=$B$80,1,IF(R39<=$B$81,2,(IF(R39<=$B$82,3,4)))))) -> 3 | P39: =iSummary!AH37 -> 30 | Q39: =iSummary!AI37&iSummary!AO37 -> Kuala Lumpur * | R39: =iSummary!AJ37 -> 66.17 | S39: =IF(iSummary!AK37=0,"=",iSummary!AK37) ->  | T39: =iSummary!AL37 -> FALSE | U39: =IF(iSummary!AM37=0,"=",iSummary!AM37) ->  | V39: =iSummary!AN37 -> FALSE | X39: =iSummary!AX37 -> 1 | Y39: =IF(X39=0,0,IF(uxb_works!$B$49,IF(AC39<$C$80,1,IF(AC39>$C$80,4,2)),IF(AC39<=$B$80,1,IF(AC39<=$B$81,2,(IF(AC39<=$B$82,3,4)))))) -> 3 | AA39: =iSummary!AY37 -> 30 | AB39: =iSummary!AZ37&iSummary!BF37 -> Shanghai | AC39: =iSummary!BA37 -> 69.92 | AD39: =IF(iSummary!BB37=0,"=",iSummary!BB37) -> 3.63 | AE39: =iSummary!BC37 -> FALSE | AF39: =IF(iSummary!BD37=0,"=",iSummary!BD37) -> = | AG39: =iSummary!BE37 -> FALSE | AI39: =iSummary!BO37 -> 1 | AJ39: =IF(AI39=0,0,IF(uxb_works!$B$49,IF(AN39<$C$80,1,IF(AN39>$C$80,4,2)),IF(AN39<=$B$80,1,IF(AN39<=$B$81,2,(IF(AN39<=$B$82,3,4)))))) -> 4 | AL39: =iSummary!BP37 -> 30 | AM39: =iSummary!BQ37&iSummary!BW37 -> Doha | AN39: =iSummary!BR37 -> 81.72 | AO39: =IF(iSummary!BS37=0,"=",iSummary!BS37) -> 6.23 | AP39: =iSummary!BT37 -> FALSE | AQ39: =IF(iSummary!BU37=0,"=",iSummary!BU37) -> 1 | AR39: =iSummary!BV37 -> FALSE | AT39: =iSummary!CF37 -> 1 | AU39: =IF(AT39=0,0,IF(uxb_works!$B$49,IF(AY39<$C$80,1,IF(AY39>$C$80,4,2)),IF(AY39<=$B$80,1,IF(AY39<=$B$81,2,(IF(AY39<=$B$82,3,4)))))) -> 4 | AW39: =iSummary!CG37 -> 30 | AX39: =iSummary!CH37&iSummary!CN37 -> Mumbai | AY39: =iSummary!CI37 -> 77.89 | AZ39: =IF(iSummary!CJ37=0,"=",iSummary!CJ37) -> 10.24 | BA39: =iSummary!CK37 -> FALSE | BB39: =IF(iSummary!CL37=0,"=",iSummary!CL37) -> -1 | BC39: =iSummary!CM37 -> FALSE
B40: =iSummary!P38 -> 1 | C40: =IF(B40=0,0,IF(uxb_works!$B$49,IF(G40<$C$80,1,IF(G40>$C$80,4,2)),IF(G40<=$B$80,1,IF(G40<=$B$81,2,(IF(G40<=$B$82,3,4)))))) -> 3 | E40: =iSummary!Q38 -> 31 | F40: =iSummary!R38&iSummary!X38 -> Kuala Lumpur * | G40: =iSummary!S38 -> 73.11 | H40: =IF(iSummary!T38=0,"=",iSummary!T38) ->  | I40: =iSummary!U38 -> FALSE | J40: =IF(iSummary!V38=0,"=",iSummary!V38) ->  | K40: =iSummary!W38 -> FALSE | M40: =iSummary!AG38 -> 1 | N40: =IF(M40=0,0,IF(uxb_works!$B$49,IF(R40<$C$80,1,IF(R40>$C$80,4,2)),IF(R40<=$B$80,1,IF(R40<=$B$81,2,(IF(R40<=$B$82,3,4)))))) -> 3 | P40: =iSummary!AH38 -> 31 | Q40: =iSummary!AI38&iSummary!AO38 -> Taipei | R40: =iSummary!AJ38 -> 65.98 | S40: =IF(iSummary!AK38=0,"=",iSummary!AK38) -> 4.37 | T40: =iSummary!AL38 -> FALSE | U40: =IF(iSummary!AM38=0,"=",iSummary!AM38) -> -4 | V40: =iSummary!AN38 -> FALSE | X40: =iSummary!AX38 -> 1 | Y40: =IF(X40=0,0,IF(uxb_works!$B$49,IF(AC40<$C$80,1,IF(AC40>$C$80,4,2)),IF(AC40<=$B$80,1,IF(AC40<=$B$81,2,(IF(AC40<=$B$82,3,4)))))) -> 3 | AA40: =iSummary!AY38 -> 31 | AB40: =iSummary!AZ38&iSummary!BF38 -> New York | AC40: =iSummary!BA38 -> 69.73 | AD40: =IF(iSummary!BB38=0,"=",iSummary!BB38) -> -9.87 | AE40: =iSummary!BC38 -> FALSE | AF40: =IF(iSummary!BD38=0,"=",iSummary!BD38) -> -28 | AG40: =iSummary!BE38 -> FALSE | AI40: =iSummary!BO38 -> 1 | AJ40: =IF(AI40=0,0,IF(uxb_works!$B$49,IF(AN40<$C$80,1,IF(AN40>$C$80,4,2)),IF(AN40<=$B$80,1,IF(AN40<=$B$81,2,(IF(AN40<=$B$82,3,4)))))) -> 4 | AL40: =iSummary!BP38 -> 31 | AM40: =iSummary!BQ38&iSummary!BW38 -> Santiago | AN40: =iSummary!BR38 -> 81.35 | AO40: =IF(iSummary!BS38=0,"=",iSummary!BS38) -> 6.17 | AP40: =iSummary!BT38 -> FALSE | AQ40: =IF(iSummary!BU38=0,"=",iSummary!BU38) -> 1 | AR40: =iSummary!BV38 -> FALSE | AT40: =iSummary!CF38 -> 1 | AU40: =IF(AT40=0,0,IF(uxb_works!$B$49,IF(AY40<$C$80,1,IF(AY40>$C$80,4,2)),IF(AY40<=$B$80,1,IF(AY40<=$B$81,2,(IF(AY40<=$B$82,3,4)))))) -> 4 | AW40: =iSummary!CG38 -> 31 | AX40: =iSummary!CH38&iSummary!CN38 -> Paris | AY40: =iSummary!CI38 -> 77.23 | AZ40: =IF(iSummary!CJ38=0,"=",iSummary!CJ38) -> 0.14 | BA40: =iSummary!CK38 -> FALSE | BB40: =IF(iSummary!CL38=0,"=",iSummary!CL38) -> -10 | BC40: =iSummary!CM38 -> FALSE
B41: =iSummary!P39 -> 1 | C41: =IF(B41=0,0,IF(uxb_works!$B$49,IF(G41<$C$80,1,IF(G41>$C$80,4,2)),IF(G41<=$B$80,1,IF(G41<=$B$81,2,(IF(G41<=$B$82,3,4)))))) -> 3 | E41: =iSummary!Q39 -> 32 | F41: =iSummary!R39&iSummary!X39 -> Beijing | G41: =iSummary!S39 -> 72.06 | H41: =IF(iSummary!T39=0,"=",iSummary!T39) -> 7.66 | I41: =iSummary!U39 -> FALSE | J41: =IF(iSummary!V39=0,"=",iSummary!V39) -> = | K41: =iSummary!W39 -> FALSE | M41: =iSummary!AG39 -> 1 | N41: =IF(M41=0,0,IF(uxb_works!$B$49,IF(R41<$C$80,1,IF(R41>$C$80,4,2)),IF(R41<=$B$80,1,IF(R41<=$B$81,2,(IF(R41<=$B$82,3,4)))))) -> 3 | P41: =iSummary!AH39 -> 32 | Q41: =iSummary!AI39&iSummary!AO39 -> Jeddah * | R41: =iSummary!AJ39 -> 65.86 | S41: =IF(iSummary!AK39=0,"=",iSummary!AK39) ->  | T41: =iSummary!AL39 -> FALSE | U41: =IF(iSummary!AM39=0,"=",iSummary!AM39) ->  | V41: =iSummary!AN39 -> FALSE | X41: =iSummary!AX39 -> 1 | Y41: =IF(X41=0,0,IF(uxb_works!$B$49,IF(AC41<$C$80,1,IF(AC41>$C$80,4,2)),IF(AC41<=$B$80,1,IF(AC41<=$B$81,2,(IF(AC41<=$B$82,3,4)))))) -> 3 | AA41: =iSummary!AY39 -> 32 | AB41: =iSummary!AZ39&iSummary!BF39 -> Wellington * | AC41: =iSummary!BA39 -> 69.51 | AD41: =IF(iSummary!BB39=0,"=",iSummary!BB39) ->  | AE41: =iSummary!BC39 -> FALSE | AF41: =IF(iSummary!BD39=0,"=",iSummary!BD39) ->  | AG41: =iSummary!BE39 -> FALSE | AI41: =iSummary!BO39 -> 1 | AJ41: =IF(AI41=0,0,IF(uxb_works!$B$49,IF(AN41<$C$80,1,IF(AN41>$C$80,4,2)),IF(AN41<=$B$80,1,IF(AN41<=$B$81,2,(IF(AN41<=$B$82,3,4)))))) -> 4 | AL41: =iSummary!BP39 -> 32 | AM41: =iSummary!BQ39&iSummary!BW39 -> Rio de Janeiro | AN41: =iSummary!BR39 -> 79.53 | AO41: =IF(iSummary!BS39=0,"=",iSummary!BS39) -> 2.74 | AP41: =iSummary!BT39 -> FALSE | AQ41: =IF(iSummary!BU39=0,"=",iSummary!BU39) -> -2 | AR41: =iSummary!BV39 -> FALSE | AT41: =iSummary!CF39 -> 1 | AU41: =IF(AT41=0,0,IF(uxb_works!$B$49,IF(AY41<$C$80,1,IF(AY41>$C$80,4,2)),IF(AY41<=$B$80,1,IF(AY41<=$B$81,2,(IF(AY41<=$B$82,3,4)))))) -> 4 | AW41: =iSummary!CG39 -> 32 | AX41: =iSummary!CH39&iSummary!CN39 -> Milan | AY41: =iSummary!CI39 -> 76.83 | AZ41: =IF(iSummary!CJ39=0,"=",iSummary!CJ39) -> 4.95 | BA41: =iSummary!CK39 -> FALSE | BB41: =IF(iSummary!CL39=0,"=",iSummary!CL39) -> -8 | BC41: =iSummary!CM39 -> FALSE
B42: =iSummary!P40 -> 1 | C42: =IF(B42=0,0,IF(uxb_works!$B$49,IF(G42<$C$80,1,IF(G42>$C$80,4,2)),IF(G42<=$B$80,1,IF(G42<=$B$81,2,(IF(G42<=$B$82,3,4)))))) -> 3 | E42: =iSummary!Q40 -> 33 | F42: =iSummary!R40&iSummary!X40 -> Athens * | G42: =iSummary!S40 -> 71.9 | H42: =IF(iSummary!T40=0,"=",iSummary!T40) ->  | I42: =iSummary!U40 -> FALSE | J42: =IF(iSummary!V40=0,"=",iSummary!V40) ->  | K42: =iSummary!W40 -> FALSE | M42: =iSummary!AG40 -> 1 | N42: =IF(M42=0,0,IF(uxb_works!$B$49,IF(R42<$C$80,1,IF(R42>$C$80,4,2)),IF(R42<=$B$80,1,IF(R42<=$B$81,2,(IF(R42<=$B$82,3,4)))))) -> 3 | P42: =iSummary!AH40 -> 33 | Q42: =iSummary!AI40&iSummary!AO40 -> Beijing | R42: =iSummary!AJ40 -> 65.38 | S42: =IF(iSummary!AK40=0,"=",iSummary!AK40) -> 16.51 | T42: =iSummary!AL40 -> FALSE | U42: =IF(iSummary!AM40=0,"=",iSummary!AM40) -> 6 | V42: =iSummary!AN40 -> FALSE | X42: =iSummary!AX40 -> 1 | Y42: =IF(X42=0,0,IF(uxb_works!$B$49,IF(AC42<$C$80,1,IF(AC42>$C$80,4,2)),IF(AC42<=$B$80,1,IF(AC42<=$B$81,2,(IF(AC42<=$B$82,3,4)))))) -> 3 | AA42: =iSummary!AY40 -> 33 | AB42: =iSummary!AZ40&iSummary!BF40 -> Abu Dhabi | AC42: =iSummary!BA40 -> 68.54 | AD42: =IF(iSummary!BB40=0,"=",iSummary!BB40) -> 12.99 | AE42: =iSummary!BC40 -> FALSE | AF42: =IF(iSummary!BD40=0,"=",iSummary!BD40) -> 9 | AG42: =iSummary!BE40 -> FALSE | AI42: =iSummary!BO40 -> 1 | AJ42: =IF(AI42=0,0,IF(uxb_works!$B$49,IF(AN42<$C$80,1,IF(AN42>$C$80,4,2)),IF(AN42<=$B$80,1,IF(AN42<=$B$81,2,(IF(AN42<=$B$82,3,4)))))) -> 4 | AL42: =iSummary!BP40 -> 33 | AM42: =iSummary!BQ40&iSummary!BW40 -> Sao Paulo | AN42: =iSummary!BR40 -> 79.44 | AO42: =IF(iSummary!BS40=0,"=",iSummary!BS40) -> 1.38 | AP42: =iSummary!BT40 -> FALSE | AQ42: =IF(iSummary!BU40=0,"=",iSummary!BU40) -> -6 | AR42: =iSummary!BV40 -> FALSE | AT42: =iSummary!CF40 -> 1 | AU42: =IF(AT42=0,0,IF(uxb_works!$B$49,IF(AY42<$C$80,1,IF(AY42>$C$80,4,2)),IF(AY42<=$B$80,1,IF(AY42<=$B$81,2,(IF(AY42<=$B$82,3,4)))))) -> 4 | AW42: =iSummary!CG40 -> 33 | AX42: =iSummary!CH40&iSummary!CN40 -> Delhi | AY42: =iSummary!CI40 -> 76.61 | AZ42: =IF(iSummary!CJ40=0,"=",iSummary!CJ40) -> 8.3 | BA42: =iSummary!CK40 -> FALSE | BB42: =IF(iSummary!CL40=0,"=",iSummary!CL40) -> -5 | BC42: =iSummary!CM40 -> FALSE
B43: =iSummary!P41 -> 1 | C43: =IF(B43=0,0,IF(uxb_works!$B$49,IF(G43<$C$80,1,IF(G43>$C$80,4,2)),IF(G43<=$B$80,1,IF(G43<=$B$81,2,(IF(G43<=$B$82,3,4)))))) -> 3 | E43: =iSummary!Q41 -> 34 | F43: =iSummary!R41&iSummary!X41 -> Shanghai | G43: =iSummary!S41 -> 70.93 | H43: =IF(iSummary!T41=0,"=",iSummary!T41) -> 4.4 | I43: =iSummary!U41 -> FALSE | J43: =IF(iSummary!V41=0,"=",iSummary!V41) -> -4 | K43: =iSummary!W41 -> FALSE | M43: =iSummary!AG41 -> 1 | N43: =IF(M43=0,0,IF(uxb_works!$B$49,IF(R43<$C$80,1,IF(R43>$C$80,4,2)),IF(R43<=$B$80,1,IF(R43<=$B$81,2,(IF(R43<=$B$82,3,4)))))) -> 3 | P43: =iSummary!AH41 -> 34 | Q43: =iSummary!AI41&iSummary!AO41 -> Doha | R43: =iSummary!AJ41 -> 64.02 | S43: =IF(iSummary!AK41=0,"=",iSummary!AK41) -> 4.29 | T43: =iSummary!AL41 -> FALSE | U43: =IF(iSummary!AM41=0,"=",iSummary!AM41) -> -3 | V43: =iSummary!AN41 -> FALSE | X43: =iSummary!AX41 -> 1 | Y43: =IF(X43=0,0,IF(uxb_works!$B$49,IF(AC43<$C$80,1,IF(AC43>$C$80,4,2)),IF(AC43<=$B$80,1,IF(AC43<=$B$81,2,(IF(AC43<=$B$82,3,4)))))) -> 3 | AA43: =iSummary!AY41 -> 34 | AB43: =iSummary!AZ41&iSummary!BF41 -> Beijing | AC43: =iSummary!BA41 -> 67.63 | AD43: =IF(iSummary!BB41=0,"=",iSummary!BB41) -> -0.44 | AE43: =iSummary!BC41 -> FALSE | AF43: =IF(iSummary!BD41=0,"=",iSummary!BD41) -> -8 | AG43: =iSummary!BE41 -> FALSE | AI43: =iSummary!BO41 -> 1 | AJ43: =IF(AI43=0,0,IF(uxb_works!$B$49,IF(AN43<$C$80,1,IF(AN43>$C$80,4,2)),IF(AN43<=$B$80,1,IF(AN43<=$B$81,2,(IF(AN43<=$B$82,3,4)))))) -> 4 | AL43: =iSummary!BP41 -> 34 | AM43: =iSummary!BQ41&iSummary!BW41 -> Dallas * | AN43: =iSummary!BR41 -> 79.23 | AO43: =IF(iSummary!BS41=0,"=",iSummary!BS41) ->  | AP43: =iSummary!BT41 -> FALSE | AQ43: =IF(iSummary!BU41=0,"=",iSummary!BU41) ->  | AR43: =iSummary!BV41 -> FALSE | AT43: =iSummary!CF41 -> 1 | AU43: =IF(AT43=0,0,IF(uxb_works!$B$49,IF(AY43<$C$80,1,IF(AY43>$C$80,4,2)),IF(AY43<=$B$80,1,IF(AY43<=$B$81,2,(IF(AY43<=$B$82,3,4)))))) -> 3 | AW43: =iSummary!CG41 -> 34 | AX43: =iSummary!CH41&iSummary!CN41 -> Kuwait City | AY43: =iSummary!CI41 -> 74.82 | AZ43: =IF(iSummary!CJ41=0,"=",iSummary!CJ41) -> 17.67 | BA43: =iSummary!CK41 -> FALSE | BB43: =IF(iSummary!CL41=0,"=",iSummary!CL41) -> 7 | BC43: =iSummary!CM41 -> FALSE
B44: =iSummary!P42 -> 1 | C44: =IF(B44=0,0,IF(uxb_works!$B$49,IF(G44<$C$80,1,IF(G44>$C$80,4,2)),IF(G44<=$B$80,1,IF(G44<=$B$81,2,(IF(G44<=$B$82,3,4)))))) -> 3 | E44: =iSummary!Q42 -> 35 | F44: =iSummary!R42&iSummary!X42 -> Santiago | G44: =iSummary!S42 -> 70.03 | H44: =IF(iSummary!T42=0,"=",iSummary!T42) -> 2.49 | I44: =iSummary!U42 -> FALSE | J44: =IF(iSummary!V42=0,"=",iSummary!V42) -> -6 | K44: =iSummary!W42 -> FALSE | M44: =iSummary!AG42 -> 1 | N44: =IF(M44=0,0,IF(uxb_works!$B$49,IF(R44<$C$80,1,IF(R44>$C$80,4,2)),IF(R44<=$B$80,1,IF(R44<=$B$81,2,(IF(R44<=$B$82,3,4)))))) -> 3 | P44: =iSummary!AH42 -> 35 | Q44: =iSummary!AI42&iSummary!AO42 -> Athens * | R44: =iSummary!AJ42 -> 61.94 | S44: =IF(iSummary!AK42=0,"=",iSummary!AK42) ->  | T44: =iSummary!AL42 -> FALSE | U44: =IF(iSummary!AM42=0,"=",iSummary!AM42) ->  | V44: =iSummary!AN42 -> FALSE | X44: =iSummary!AX42 -> 1 | Y44: =IF(X44=0,0,IF(uxb_works!$B$49,IF(AC44<$C$80,1,IF(AC44>$C$80,4,2)),IF(AC44<=$B$80,1,IF(AC44<=$B$81,2,(IF(AC44<=$B$82,3,4)))))) -> 3 | AA44: =iSummary!AY42 -> 35 | AB44: =iSummary!AZ42&iSummary!BF42 -> Santiago | AC44: =iSummary!BA42 -> 67.17 | AD44: =IF(iSummary!BB42=0,"=",iSummary!BB42) -> -0.27 | AE44: =iSummary!BC42 -> FALSE | AF44: =IF(iSummary!BD42=0,"=",iSummary!BD42) -> -7 | AG44: =iSummary!BE42 -> FALSE | AI44: =iSummary!BO42 -> 1 | AJ44: =IF(AI44=0,0,IF(uxb_works!$B$49,IF(AN44<$C$80,1,IF(AN44>$C$80,4,2)),IF(AN44<=$B$80,1,IF(AN44<=$B$81,2,(IF(AN44<=$B$82,3,4)))))) -> 4 | AL44: =iSummary!BP42 -> 35 | AM44: =iSummary!BQ42&iSummary!BW42 -> Kuala Lumpur * | AN44: =iSummary!BR42 -> 78.12 | AO44: =IF(iSummary!BS42=0,"=",iSummary!BS42) ->  | AP44: =iSummary!BT42 -> FALSE | AQ44: =IF(iSummary!BU42=0,"=",iSummary!BU42) ->  | AR44: =iSummary!BV42 -> FALSE | AT44: =iSummary!CF42 -> 1 | AU44: =IF(AT44=0,0,IF(uxb_works!$B$49,IF(AY44<$C$80,1,IF(AY44>$C$80,4,2)),IF(AY44<=$B$80,1,IF(AY44<=$B$81,2,(IF(AY44<=$B$82,3,4)))))) -> 3 | AW44: =iSummary!CG42 -> 35 | AX44: =iSummary!CH42&iSummary!CN42 -> Rome | AY44: =iSummary!CI42 -> 74.39 | AZ44: =IF(iSummary!CJ42=0,"=",iSummary!CJ42) -> 11.51 | BA44: =iSummary!CK42 -> FALSE | BB44: =IF(iSummary!CL42=0,"=",iSummary!CL42) -> = | BC44: =iSummary!CM42 -> FALSE
B45: =iSummary!P43 -> 1 | C45: =IF(B45=0,0,IF(uxb_works!$B$49,IF(G45<$C$80,1,IF(G45>$C$80,4,2)),IF(G45<=$B$80,1,IF(G45<=$B$81,2,(IF(G45<=$B$82,3,4)))))) -> 3 | E45: =iSummary!Q43 -> 36 | F45: =iSummary!R43&iSummary!X43 -> Kuwait City | G45: =iSummary!S43 -> 67.61 | H45: =IF(iSummary!T43=0,"=",iSummary!T43) -> 5.09 | I45: =iSummary!U43 -> FALSE | J45: =IF(iSummary!V43=0,"=",iSummary!V43) -> -1 | K45: =iSummary!W43 -> FALSE | M45: =iSummary!AG43 -> 1 | N45: =IF(M45=0,0,IF(uxb_works!$B$49,IF(R45<$C$80,1,IF(R45>$C$80,4,2)),IF(R45<=$B$80,1,IF(R45<=$B$81,2,(IF(R45<=$B$82,3,4)))))) -> 3 | P45: =iSummary!AH43 -> 36 | Q45: =iSummary!AI43&iSummary!AO43 -> Istanbul | R45: =iSummary!AJ43 -> 61.71 | S45: =IF(iSummary!AK43=0,"=",iSummary!AK43) -> 18.38 | T45: =iSummary!AL43 -> FALSE | U45: =IF(iSummary!AM43=0,"=",iSummary!AM43) -> 9 | V45: =iSummary!AN43 -> FALSE | X45: =iSummary!AX43 -> 1 | Y45: =IF(X45=0,0,IF(uxb_works!$B$49,IF(AC45<$C$80,1,IF(AC45>$C$80,4,2)),IF(AC45<=$B$80,1,IF(AC45<=$B$81,2,(IF(AC45<=$B$82,3,4)))))) -> 3 | AA45: =iSummary!AY43 -> 36 | AB45: =iSummary!AZ43&iSummary!BF43 -> Kuala Lumpur * | AC45: =iSummary!BA43 -> 67.15 | AD45: =IF(iSummary!BB43=0,"=",iSummary!BB43) ->  | AE45: =iSummary!BC43 -> FALSE | AF45: =IF(iSummary!BD43=0,"=",iSummary!BD43) ->  | AG45: =iSummary!BE43 -> FALSE | AI45: =iSummary!BO43 -> 1 | AJ45: =IF(AI45=0,0,IF(uxb_works!$B$49,IF(AN45<$C$80,1,IF(AN45>$C$80,4,2)),IF(AN45<=$B$80,1,IF(AN45<=$B$81,2,(IF(AN45<=$B$82,3,4)))))) -> 4 | AL45: =iSummary!BP43 -> 36 | AM45: =iSummary!BQ43&iSummary!BW43 -> Moscow | AN45: =iSummary!BR43 -> 76.36 | AO45: =IF(iSummary!BS43=0,"=",iSummary!BS43) -> 3.79 | AP45: =iSummary!BT43 -> FALSE | AQ45: =IF(iSummary!BU43=0,"=",iSummary!BU43) -> -2 | AR45: =iSummary!BV43 -> FALSE | AT45: =iSummary!CF43 -> 1 | AU45: =IF(AT45=0,0,IF(uxb_works!$B$49,IF(AY45<$C$80,1,IF(AY45>$C$80,4,2)),IF(AY45<=$B$80,1,IF(AY45<=$B$81,2,(IF(AY45<=$B$82,3,4)))))) -> 3 | AW45: =iSummary!CG43 -> 36 | AX45: =iSummary!CH43&iSummary!CN43 -> Santiago | AY45: =iSummary!CI43 -> 71.02 | AZ45: =IF(iSummary!CJ43=0,"=",iSummary!CJ43) -> 10.5 | BA45: =iSummary!CK43 -> FALSE | BB45: =IF(iSummary!CL43=0,"=",iSummary!CL43) -> 3 | BC45: =iSummary!CM43 -> FALSE
B46: =iSummary!P44 -> 1 | C46: =IF(B46=0,0,IF(uxb_works!$B$49,IF(G46<$C$80,1,IF(G46>$C$80,4,2)),IF(G46<=$B$80,1,IF(G46<=$B$81,2,(IF(G46<=$B$82,3,4)))))) -> 3 | E46: =iSummary!Q44 -> 37 | F46: =iSummary!R44&iSummary!X44 -> Rio de Janeiro | G46: =iSummary!S44 -> 66.54 | H46: =IF(iSummary!T44=0,"=",iSummary!T44) -> 2.5 | I46: =iSummary!U44 -> FALSE | J46: =IF(iSummary!V44=0,"=",iSummary!V44) -> -4 | K46: =iSummary!W44 -> FALSE | M46: =iSummary!AG44 -> 1 | N46: =IF(M46=0,0,IF(uxb_works!$B$49,IF(R46<$C$80,1,IF(R46>$C$80,4,2)),IF(R46<=$B$80,1,IF(R46<=$B$81,2,(IF(R46<=$B$82,3,4)))))) -> 3 | P46: =iSummary!AH44 -> 37 | Q46: =iSummary!AI44&iSummary!AO44 -> Riyadh | R46: =iSummary!AJ44 -> 60.86 | S46: =IF(iSummary!AK44=0,"=",iSummary!AK44) -> 11.1 | T46: =iSummary!AL44 -> FALSE | U46: =IF(iSummary!AM44=0,"=",iSummary!AM44) -> 1 | V46: =iSummary!AN44 -> FALSE | X46: =iSummary!AX44 -> 1 | Y46: =IF(X46=0,0,IF(uxb_works!$B$49,IF(AC46<$C$80,1,IF(AC46>$C$80,4,2)),IF(AC46<=$B$80,1,IF(AC46<=$B$81,2,(IF(AC46<=$B$82,3,4)))))) -> 3 | AA46: =iSummary!AY44 -> 37 | AB46: =iSummary!AZ44&iSummary!BF44 -> Bangkok | AC46: =iSummary!BA44 -> 66.64 | AD46: =IF(iSummary!BB44=0,"=",iSummary!BB44) -> 2.24 | AE46: =iSummary!BC44 -> FALSE | AF46: =IF(iSummary!BD44=0,"=",iSummary!BD44) -> -5 | AG46: =iSummary!BE44 -> FALSE | AI46: =iSummary!BO44 -> 1 | AJ46: =IF(AI46=0,0,IF(uxb_works!$B$49,IF(AN46<$C$80,1,IF(AN46>$C$80,4,2)),IF(AN46<=$B$80,1,IF(AN46<=$B$81,2,(IF(AN46<=$B$82,3,4)))))) -> 3 | AL46: =iSummary!BP44 -> 37 | AM46: =iSummary!BQ44&iSummary!BW44 -> Beijing | AN46: =iSummary!BR44 -> 74.49 | AO46: =IF(iSummary!BS44=0,"=",iSummary!BS44) -> -4.11 | AP46: =iSummary!BT44 -> FALSE | AQ46: =IF(iSummary!BU44=0,"=",iSummary!BU44) -> -11 | AR46: =iSummary!BV44 -> FALSE | AT46: =iSummary!CF44 -> 1 | AU46: =IF(AT46=0,0,IF(uxb_works!$B$49,IF(AY46<$C$80,1,IF(AY46>$C$80,4,2)),IF(AY46<=$B$80,1,IF(AY46<=$B$81,2,(IF(AY46<=$B$82,3,4)))))) -> 3 | AW46: =iSummary!CG44 -> 37 | AX46: =iSummary!CH44&iSummary!CN44 -> Sao Paulo | AY46: =iSummary!CI44 -> 70.08 | AZ46: =IF(iSummary!CJ44=0,"=",iSummary!CJ44) -> 13.28 | BA46: =iSummary!CK44 -> FALSE | BB46: =IF(iSummary!CL44=0,"=",iSummary!CL44) -> 6 | BC46: =iSummary!CM44 -> FALSE
B47: =iSummary!P45 -> 1 | C47: =IF(B47=0,0,IF(uxb_works!$B$49,IF(G47<$C$80,1,IF(G47>$C$80,4,2)),IF(G47<=$B$80,1,IF(G47<=$B$81,2,(IF(G47<=$B$82,3,4)))))) -> 3 | E47: =iSummary!Q45 -> 38 | F47: =iSummary!R45&iSummary!X45 -> Sao Paulo | G47: =iSummary!S45 -> 66.3 | H47: =IF(iSummary!T45=0,"=",iSummary!T45) -> 3.75 | I47: =iSummary!U45 -> FALSE | J47: =IF(iSummary!V45=0,"=",iSummary!V45) -> -4 | K47: =iSummary!W45 -> FALSE | M47: =iSummary!AG45 -> 1 | N47: =IF(M47=0,0,IF(uxb_works!$B$49,IF(R47<$C$80,1,IF(R47>$C$80,4,2)),IF(R47<=$B$80,1,IF(R47<=$B$81,2,(IF(R47<=$B$82,3,4)))))) -> 3 | P47: =iSummary!AH45 -> 38 | Q47: =iSummary!AI45&iSummary!AO45 -> Quito * | R47: =iSummary!AJ45 -> 60.65 | S47: =IF(iSummary!AK45=0,"=",iSummary!AK45) ->  | T47: =iSummary!AL45 -> FALSE | U47: =IF(iSummary!AM45=0,"=",iSummary!AM45) ->  | V47: =iSummary!AN45 -> FALSE | X47: =iSummary!AX45 -> 1 | Y47: =IF(X47=0,0,IF(uxb_works!$B$49,IF(AC47<$C$80,1,IF(AC47>$C$80,4,2)),IF(AC47<=$B$80,1,IF(AC47<=$B$81,2,(IF(AC47<=$B$82,3,4)))))) -> 3 | AA47: =iSummary!AY45 -> 38 | AB47: =iSummary!AZ45&iSummary!BF45 -> Riyadh | AC47: =iSummary!BA45 -> 66.13 | AD47: =IF(iSummary!BB45=0,"=",iSummary!BB45) -> 9.3 | AE47: =iSummary!BC45 -> FALSE | AF47: =IF(iSummary!BD45=0,"=",iSummary!BD45) -> 2 | AG47: =iSummary!BE45 -> FALSE | AI47: =iSummary!BO45 -> 1 | AJ47: =IF(AI47=0,0,IF(uxb_works!$B$49,IF(AN47<$C$80,1,IF(AN47>$C$80,4,2)),IF(AN47<=$B$80,1,IF(AN47<=$B$81,2,(IF(AN47<=$B$82,3,4)))))) -> 3 | AL47: =iSummary!BP45 -> 38 | AM47: =iSummary!BQ45&iSummary!BW45 -> Shanghai | AN47: =iSummary!BR45 -> 74.3 | AO47: =IF(iSummary!BS45=0,"=",iSummary!BS45) -> -3.54 | AP47: =iSummary!BT45 -> FALSE | AQ47: =IF(iSummary!BU45=0,"=",iSummary!BU45) -> -10 | AR47: =iSummary!BV45 -> FALSE | AT47: =iSummary!CF45 -> 1 | AU47: =IF(AT47=0,0,IF(uxb_works!$B$49,IF(AY47<$C$80,1,IF(AY47>$C$80,4,2)),IF(AY47<=$B$80,1,IF(AY47<=$B$81,2,(IF(AY47<=$B$82,3,4)))))) -> 3 | AW47: =iSummary!CG45 -> 38 | AX47: =iSummary!CH45&iSummary!CN45 -> Rio de Janeiro | AY47: =iSummary!CI45 -> 69.85 | AZ47: =IF(iSummary!CJ45=0,"=",iSummary!CJ45) -> 3.24 | BA47: =iSummary!CK45 -> FALSE | BB47: =IF(iSummary!CL45=0,"=",iSummary!CL45) -> -7 | BC47: =iSummary!CM45 -> FALSE
B48: =iSummary!P46 -> 1 | C48: =IF(B48=0,0,IF(uxb_works!$B$49,IF(G48<$C$80,1,IF(G48>$C$80,4,2)),IF(G48<=$B$80,1,IF(G48<=$B$81,2,(IF(G48<=$B$82,3,4)))))) -> 3 | E48: =iSummary!Q46 -> 39 | F48: =iSummary!R46&iSummary!X46 -> Mexico City | G48: =iSummary!S46 -> 65.52 | H48: =IF(iSummary!T46=0,"=",iSummary!T46) -> 3.28 | I48: =iSummary!U46 -> FALSE | J48: =IF(iSummary!V46=0,"=",iSummary!V46) -> -3 | K48: =iSummary!W46 -> FALSE | M48: =iSummary!AG46 -> 1 | N48: =IF(M48=0,0,IF(uxb_works!$B$49,IF(R48<$C$80,1,IF(R48>$C$80,4,2)),IF(R48<=$B$80,1,IF(R48<=$B$81,2,(IF(R48<=$B$82,3,4)))))) -> 3 | P48: =iSummary!AH46 -> 39 | Q48: =iSummary!AI46&iSummary!AO46 -> Santiago | R48: =iSummary!AJ46 -> 60.57 | S48: =IF(iSummary!AK46=0,"=",iSummary!AK46) -> -6.44 | T48: =iSummary!AL46 -> FALSE | U48: =IF(iSummary!AM46=0,"=",iSummary!AM46) -> -21 | V48: =iSummary!AN46 -> FALSE | X48: =iSummary!AX46 -> 1 | Y48: =IF(X48=0,0,IF(uxb_works!$B$49,IF(AC48<$C$80,1,IF(AC48>$C$80,4,2)),IF(AC48<=$B$80,1,IF(AC48<=$B$81,2,(IF(AC48<=$B$82,3,4)))))) -> 3 | AA48: =iSummary!AY46 -> 39 | AB48: =iSummary!AZ46&iSummary!BF46 -> Bogota * | AC48: =iSummary!BA46 -> 65.37 | AD48: =IF(iSummary!BB46=0,"=",iSummary!BB46) ->  | AE48: =iSummary!BC46 -> FALSE | AF48: =IF(iSummary!BD46=0,"=",iSummary!BD46) ->  | AG48: =iSummary!BE46 -> FALSE | AI48: =iSummary!BO46 -> 1 | AJ48: =IF(AI48=0,0,IF(uxb_works!$B$49,IF(AN48<$C$80,1,IF(AN48>$C$80,4,2)),IF(AN48<=$B$80,1,IF(AN48<=$B$81,2,(IF(AN48<=$B$82,3,4)))))) -> 3 | AL48: =iSummary!BP46 -> 39 | AM48: =iSummary!BQ46&iSummary!BW46 -> Mexico City | AN48: =iSummary!BR46 -> 72.98 | AO48: =IF(iSummary!BS46=0,"=",iSummary!BS46) -> 14.14 | AP48: =iSummary!BT46 -> FALSE | AQ48: =IF(iSummary!BU46=0,"=",iSummary!BU46) -> 2 | AR48: =iSummary!BV46 -> FALSE | AT48: =iSummary!CF46 -> 1 | AU48: =IF(AT48=0,0,IF(uxb_works!$B$49,IF(AY48<$C$80,1,IF(AY48>$C$80,4,2)),IF(AY48<=$B$80,1,IF(AY48<=$B$81,2,(IF(AY48<=$B$82,3,4)))))) -> 3 | AW48: =iSummary!CG46 -> 39 | AX48: =iSummary!CH46&iSummary!CN46 -> Manila * | AY48: =iSummary!CI46 -> 69.83 | AZ48: =IF(iSummary!CJ46=0,"=",iSummary!CJ46) ->  | BA48: =iSummary!CK46 -> FALSE | BB48: =IF(iSummary!CL46=0,"=",iSummary!CL46) ->  | BC48: =iSummary!CM46 -> FALSE
B49: =iSummary!P47 -> 1 | C49: =IF(B49=0,0,IF(uxb_works!$B$49,IF(G49<$C$80,1,IF(G49>$C$80,4,2)),IF(G49<=$B$80,1,IF(G49<=$B$81,2,(IF(G49<=$B$82,3,4)))))) -> 3 | E49: =iSummary!Q47 -> 40 | F49: =iSummary!R47&iSummary!X47 -> Istanbul | G49: =iSummary!S47 -> 65.23 | H49: =IF(iSummary!T47=0,"=",iSummary!T47) -> 5.42 | I49: =iSummary!U47 -> FALSE | J49: =IF(iSummary!V47=0,"=",iSummary!V47) -> -1 | K49: =iSummary!W47 -> FALSE | M49: =iSummary!AG47 -> 1 | N49: =IF(M49=0,0,IF(uxb_works!$B$49,IF(R49<$C$80,1,IF(R49>$C$80,4,2)),IF(R49<=$B$80,1,IF(R49<=$B$81,2,(IF(R49<=$B$82,3,4)))))) -> 3 | P49: =iSummary!AH47 -> 40 | Q49: =iSummary!AI47&iSummary!AO47 -> Kuwait City | R49: =iSummary!AJ47 -> 60.17 | S49: =IF(iSummary!AK47=0,"=",iSummary!AK47) -> -0.54 | T49: =iSummary!AL47 -> FALSE | U49: =IF(iSummary!AM47=0,"=",iSummary!AM47) -> -11 | V49: =iSummary!AN47 -> FALSE | X49: =iSummary!AX47 -> 1 | Y49: =IF(X49=0,0,IF(uxb_works!$B$49,IF(AC49<$C$80,1,IF(AC49>$C$80,4,2)),IF(AC49<=$B$80,1,IF(AC49<=$B$81,2,(IF(AC49<=$B$82,3,4)))))) -> 3 | AA49: =iSummary!AY47 -> 40 | AB49: =iSummary!AZ47&iSummary!BF47 -> Rio de Janeiro | AC49: =iSummary!BA47 -> 64.8 | AD49: =IF(iSummary!BB47=0,"=",iSummary!BB47) -> 3.26 | AE49: =iSummary!BC47 -> FALSE | AF49: =IF(iSummary!BD47=0,"=",iSummary!BD47) -> -6 | AG49: =iSummary!BE47 -> FALSE | AI49: =iSummary!BO47 -> 1 | AJ49: =IF(AI49=0,0,IF(uxb_works!$B$49,IF(AN49<$C$80,1,IF(AN49>$C$80,4,2)),IF(AN49<=$B$80,1,IF(AN49<=$B$81,2,(IF(AN49<=$B$82,3,4)))))) -> 3 | AL49: =iSummary!BP47 -> 40 | AM49: =iSummary!BQ47&iSummary!BW47 -> Kuwait City | AN49: =iSummary!BR47 -> 71.66 | AO49: =IF(iSummary!BS47=0,"=",iSummary!BS47) -> -0.67 | AP49: =iSummary!BT47 -> FALSE | AQ49: =IF(iSummary!BU47=0,"=",iSummary!BU47) -> -5 | AR49: =iSummary!BV47 -> FALSE | AT49: =iSummary!CF47 -> 1 | AU49: =IF(AT49=0,0,IF(uxb_works!$B$49,IF(AY49<$C$80,1,IF(AY49>$C$80,4,2)),IF(AY49<=$B$80,1,IF(AY49<=$B$81,2,(IF(AY49<=$B$82,3,4)))))) -> 3 | AW49: =iSummary!CG47 -> 40 | AX49: =iSummary!CH47&iSummary!CN47 -> Cairo * | AY49: =iSummary!CI47 -> 69.75 | AZ49: =IF(iSummary!CJ47=0,"=",iSummary!CJ47) ->  | BA49: =iSummary!CK47 -> FALSE | BB49: =IF(iSummary!CL47=0,"=",iSummary!CL47) ->  | BC49: =iSummary!CM47 -> FALSE
B50: =iSummary!P48 -> 1 | C50: =IF(B50=0,0,IF(uxb_works!$B$49,IF(G50<$C$80,1,IF(G50>$C$80,4,2)),IF(G50<=$B$80,1,IF(G50<=$B$81,2,(IF(G50<=$B$82,3,4)))))) -> 3 | E50: =iSummary!Q48 -> 41 | F50: =iSummary!R48&iSummary!X48 -> Moscow | G50: =iSummary!S48 -> 63.99 | H50: =IF(iSummary!T48=0,"=",iSummary!T48) -> 4.4 | I50: =iSummary!U48 -> FALSE | J50: =IF(iSummary!V48=0,"=",iSummary!V48) -> -1 | K50: =iSummary!W48 -> FALSE | M50: =iSummary!AG48 -> 1 | N50: =IF(M50=0,0,IF(uxb_works!$B$49,IF(R50<$C$80,1,IF(R50>$C$80,4,2)),IF(R50<=$B$80,1,IF(R50<=$B$81,2,(IF(R50<=$B$82,3,4)))))) -> 3 | P50: =iSummary!AH48 -> 41 | Q50: =iSummary!AI48&iSummary!AO48 -> Lima | R50: =iSummary!AJ48 -> 59.78 | S50: =IF(iSummary!AK48=0,"=",iSummary!AK48) -> 8.19 | T50: =iSummary!AL48 -> FALSE | U50: =IF(iSummary!AM48=0,"=",iSummary!AM48) -> -6 | V50: =iSummary!AN48 -> FALSE | X50: =iSummary!AX48 -> 1 | Y50: =IF(X50=0,0,IF(uxb_works!$B$49,IF(AC50<$C$80,1,IF(AC50>$C$80,4,2)),IF(AC50<=$B$80,1,IF(AC50<=$B$81,2,(IF(AC50<=$B$82,3,4)))))) -> 3 | AA50: =iSummary!AY48 -> 41 | AB50: =iSummary!AZ48&iSummary!BF48 -> Kuwait City | AC50: =iSummary!BA48 -> 63.81 | AD50: =IF(iSummary!BB48=0,"=",iSummary!BB48) -> 3.94 | AE50: =iSummary!BC48 -> FALSE | AF50: =IF(iSummary!BD48=0,"=",iSummary!BD48) -> -6 | AG50: =iSummary!BE48 -> FALSE | AI50: =iSummary!BO48 -> 1 | AJ50: =IF(AI50=0,0,IF(uxb_works!$B$49,IF(AN50<$C$80,1,IF(AN50>$C$80,4,2)),IF(AN50<=$B$80,1,IF(AN50<=$B$81,2,(IF(AN50<=$B$82,3,4)))))) -> 3 | AL50: =iSummary!BP48 -> 41 | AM50: =iSummary!BQ48&iSummary!BW48 -> Istanbul | AN50: =iSummary!BR48 -> 70.79 | AO50: =IF(iSummary!BS48=0,"=",iSummary!BS48) -> -0.66 | AP50: =iSummary!BT48 -> FALSE | AQ50: =IF(iSummary!BU48=0,"=",iSummary!BU48) -> -5 | AR50: =iSummary!BV48 -> FALSE | AT50: =iSummary!CF48 -> 1 | AU50: =IF(AT50=0,0,IF(uxb_works!$B$49,IF(AY50<$C$80,1,IF(AY50>$C$80,4,2)),IF(AY50<=$B$80,1,IF(AY50<=$B$81,2,(IF(AY50<=$B$82,3,4)))))) -> 3 | AW50: =iSummary!CG48 -> 41 | AX50: =iSummary!CH48&iSummary!CN48 -> Athens * | AY50: =iSummary!CI48 -> 69.03 | AZ50: =IF(iSummary!CJ48=0,"=",iSummary!CJ48) ->  | BA50: =iSummary!CK48 -> FALSE | BB50: =IF(iSummary!CL48=0,"=",iSummary!CL48) ->  | BC50: =iSummary!CM48 -> FALSE
B51: =iSummary!P49 -> 1 | C51: =IF(B51=0,0,IF(uxb_works!$B$49,IF(G51<$C$80,1,IF(G51>$C$80,4,2)),IF(G51<=$B$80,1,IF(G51<=$B$81,2,(IF(G51<=$B$82,3,4)))))) -> 3 | E51: =iSummary!Q49 -> 42 | F51: =iSummary!R49&iSummary!X49 -> Jeddah * | G51: =iSummary!S49 -> 62.8 | H51: =IF(iSummary!T49=0,"=",iSummary!T49) ->  | I51: =iSummary!U49 -> FALSE | J51: =IF(iSummary!V49=0,"=",iSummary!V49) ->  | K51: =iSummary!W49 -> FALSE | M51: =iSummary!AG49 -> 1 | N51: =IF(M51=0,0,IF(uxb_works!$B$49,IF(R51<$C$80,1,IF(R51>$C$80,4,2)),IF(R51<=$B$80,1,IF(R51<=$B$81,2,(IF(R51<=$B$82,3,4)))))) -> 3 | P51: =iSummary!AH49 -> 42 | Q51: =iSummary!AI49&iSummary!AO49 -> Shanghai | R51: =iSummary!AJ49 -> 59.42 | S51: =IF(iSummary!AK49=0,"=",iSummary!AK49) -> 11.28 | T51: =iSummary!AL49 -> FALSE | U51: =IF(iSummary!AM49=0,"=",iSummary!AM49) -> -2 | V51: =iSummary!AN49 -> FALSE | X51: =iSummary!AX49 -> 1 | Y51: =IF(X51=0,0,IF(uxb_works!$B$49,IF(AC51<$C$80,1,IF(AC51>$C$80,4,2)),IF(AC51<=$B$80,1,IF(AC51<=$B$81,2,(IF(AC51<=$B$82,3,4)))))) -> 3 | AA51: =iSummary!AY49 -> 42 | AB51: =iSummary!AZ49&iSummary!BF49 -> Sao Paulo | AC51: =iSummary!BA49 -> 63.74 | AD51: =IF(iSummary!BB49=0,"=",iSummary!BB49) -> -0.18 | AE51: =iSummary!BC49 -> FALSE | AF51: =IF(iSummary!BD49=0,"=",iSummary!BD49) -> -9 | AG51: =iSummary!BE49 -> FALSE | AI51: =iSummary!BO49 -> 1 | AJ51: =IF(AI51=0,0,IF(uxb_works!$B$49,IF(AN51<$C$80,1,IF(AN51>$C$80,4,2)),IF(AN51<=$B$80,1,IF(AN51<=$B$81,2,(IF(AN51<=$B$82,3,4)))))) -> 3 | AL51: =iSummary!BP49 -> 42 | AM51: =iSummary!BQ49&iSummary!BW49 -> Bogota * | AN51: =iSummary!BR49 -> 69.79 | AO51: =IF(iSummary!BS49=0,"=",iSummary!BS49) ->  | AP51: =iSummary!BT49 -> FALSE | AQ51: =IF(iSummary!BU49=0,"=",iSummary!BU49) ->  | AR51: =iSummary!BV49 -> FALSE | AT51: =iSummary!CF49 -> 1 | AU51: =IF(AT51=0,0,IF(uxb_works!$B$49,IF(AY51<$C$80,1,IF(AY51>$C$80,4,2)),IF(AY51<=$B$80,1,IF(AY51<=$B$81,2,(IF(AY51<=$B$82,3,4)))))) -> 3 | AW51: =iSummary!CG49 -> 42 | AX51: =iSummary!CH49&iSummary!CN49 -> Buenos Aires | AY51: =iSummary!CI49 -> 68.41 | AZ51: =IF(iSummary!CJ49=0,"=",iSummary!CJ49) -> 4.3 | BA51: =iSummary!CK49 -> FALSE | BB51: =IF(iSummary!CL49=0,"=",iSummary!CL49) -> -8 | BC51: =iSummary!CM49 -> FALSE
B52: =iSummary!P50 -> 1 | C52: =IF(B52=0,0,IF(uxb_works!$B$49,IF(G52<$C$80,1,IF(G52>$C$80,4,2)),IF(G52<=$B$80,1,IF(G52<=$B$81,2,(IF(G52<=$B$82,3,4)))))) -> 3 | E52: =iSummary!Q50 -> 43 | F52: =iSummary!R50&iSummary!X50 -> Delhi | G52: =iSummary!S50 -> 62.34 | H52: =IF(iSummary!T50=0,"=",iSummary!T50) -> 0.91 | I52: =iSummary!U50 -> FALSE | J52: =IF(iSummary!V50=0,"=",iSummary!V50) -> -6 | K52: =iSummary!W50 -> FALSE | M52: =iSummary!AG50 -> 1 | N52: =IF(M52=0,0,IF(uxb_works!$B$49,IF(R52<$C$80,1,IF(R52>$C$80,4,2)),IF(R52<=$B$80,1,IF(R52<=$B$81,2,(IF(R52<=$B$82,3,4)))))) -> 3 | P52: =iSummary!AH50 -> 43 | Q52: =iSummary!AI50&iSummary!AO50 -> Caracas * | R52: =iSummary!AJ50 -> 58.39 | S52: =IF(iSummary!AK50=0,"=",iSummary!AK50) ->  | T52: =iSummary!AL50 -> FALSE | U52: =IF(iSummary!AM50=0,"=",iSummary!AM50) ->  | V52: =iSummary!AN50 -> FALSE | X52: =iSummary!AX50 -> 1 | Y52: =IF(X52=0,0,IF(uxb_works!$B$49,IF(AC52<$C$80,1,IF(AC52>$C$80,4,2)),IF(AC52<=$B$80,1,IF(AC52<=$B$81,2,(IF(AC52<=$B$82,3,4)))))) -> 3 | AA52: =iSummary!AY50 -> 43 | AB52: =iSummary!AZ50&iSummary!BF50 -> Jeddah * | AC52: =iSummary!BA50 -> 63.56 | AD52: =IF(iSummary!BB50=0,"=",iSummary!BB50) ->  | AE52: =iSummary!BC50 -> FALSE | AF52: =IF(iSummary!BD50=0,"=",iSummary!BD50) ->  | AG52: =iSummary!BE50 -> FALSE | AI52: =iSummary!BO50 -> 1 | AJ52: =IF(AI52=0,0,IF(uxb_works!$B$49,IF(AN52<$C$80,1,IF(AN52>$C$80,4,2)),IF(AN52<=$B$80,1,IF(AN52<=$B$81,2,(IF(AN52<=$B$82,3,4)))))) -> 3 | AL52: =iSummary!BP50 -> 43 | AM52: =iSummary!BQ50&iSummary!BW50 -> Bangkok | AN52: =iSummary!BR50 -> 68.33 | AO52: =IF(iSummary!BS50=0,"=",iSummary!BS50) -> 12.16 | AP52: =iSummary!BT50 -> FALSE | AQ52: =IF(iSummary!BU50=0,"=",iSummary!BU50) -> 1 | AR52: =iSummary!BV50 -> FALSE | AT52: =iSummary!CF50 -> 1 | AU52: =IF(AT52=0,0,IF(uxb_works!$B$49,IF(AY52<$C$80,1,IF(AY52>$C$80,4,2)),IF(AY52<=$B$80,1,IF(AY52<=$B$81,2,(IF(AY52<=$B$82,3,4)))))) -> 3 | AW52: =iSummary!CG50 -> 43 | AX52: =iSummary!CH50&iSummary!CN50 -> Dhaka * | AY52: =iSummary!CI50 -> 67.15 | AZ52: =IF(iSummary!CJ50=0,"=",iSummary!CJ50) ->  | BA52: =iSummary!CK50 -> FALSE | BB52: =IF(iSummary!CL50=0,"=",iSummary!CL50) ->  | BC52: =iSummary!CM50 -> FALSE
B53: =iSummary!P51 -> 1 | C53: =IF(B53=0,0,IF(uxb_works!$B$49,IF(G53<$C$80,1,IF(G53>$C$80,4,2)),IF(G53<=$B$80,1,IF(G53<=$B$81,2,(IF(G53<=$B$82,3,4)))))) -> 3 | E53: =iSummary!Q51 -> 44 | F53: =iSummary!R51&iSummary!X51 -> Lima | G53: =iSummary!S51 -> 61.9 | H53: =IF(iSummary!T51=0,"=",iSummary!T51) -> -3.29 | I53: =iSummary!U51 -> FALSE | J53: =IF(iSummary!V51=0,"=",iSummary!V51) -> -13 | K53: =iSummary!W51 -> FALSE | M53: =iSummary!AG51 -> 1 | N53: =IF(M53=0,0,IF(uxb_works!$B$49,IF(R53<$C$80,1,IF(R53>$C$80,4,2)),IF(R53<=$B$80,1,IF(R53<=$B$81,2,(IF(R53<=$B$82,3,4)))))) -> 3 | P53: =iSummary!AH51 -> 44 | Q53: =iSummary!AI51&iSummary!AO51 -> Casablanca * | R53: =iSummary!AJ51 -> 57.37 | S53: =IF(iSummary!AK51=0,"=",iSummary!AK51) ->  | T53: =iSummary!AL51 -> FALSE | U53: =IF(iSummary!AM51=0,"=",iSummary!AM51) ->  | V53: =iSummary!AN51 -> FALSE | X53: =iSummary!AX51 -> 1 | Y53: =IF(X53=0,0,IF(uxb_works!$B$49,IF(AC53<$C$80,1,IF(AC53>$C$80,4,2)),IF(AC53<=$B$80,1,IF(AC53<=$B$81,2,(IF(AC53<=$B$82,3,4)))))) -> 3 | AA53: =iSummary!AY51 -> 44 | AB53: =iSummary!AZ51&iSummary!BF51 -> Tehran | AC53: =iSummary!BA51 -> 62.96 | AD53: =IF(iSummary!BB51=0,"=",iSummary!BB51) -> 10.01 | AE53: =iSummary!BC51 -> FALSE | AF53: =IF(iSummary!BD51=0,"=",iSummary!BD51) -> 1 | AG53: =iSummary!BE51 -> FALSE | AI53: =iSummary!BO51 -> 1 | AJ53: =IF(AI53=0,0,IF(uxb_works!$B$49,IF(AN53<$C$80,1,IF(AN53>$C$80,4,2)),IF(AN53<=$B$80,1,IF(AN53<=$B$81,2,(IF(AN53<=$B$82,3,4)))))) -> 3 | AL53: =iSummary!BP51 -> 44 | AM53: =iSummary!BQ51&iSummary!BW51 -> Cairo * | AN53: =iSummary!BR51 -> 68 | AO53: =IF(iSummary!BS51=0,"=",iSummary!BS51) ->  | AP53: =iSummary!BT51 -> FALSE | AQ53: =IF(iSummary!BU51=0,"=",iSummary!BU51) ->  | AR53: =iSummary!BV51 -> FALSE | AT53: =iSummary!CF51 -> 1 | AU53: =IF(AT53=0,0,IF(uxb_works!$B$49,IF(AY53<$C$80,1,IF(AY53>$C$80,4,2)),IF(AY53<=$B$80,1,IF(AY53<=$B$81,2,(IF(AY53<=$B$82,3,4)))))) -> 3 | AW53: =iSummary!CG51 -> 44 | AX53: =iSummary!CH51&iSummary!CN51 -> Istanbul | AY53: =iSummary!CI51 -> 65.84 | AZ53: =IF(iSummary!CJ51=0,"=",iSummary!CJ51) -> -4.97 | BA53: =iSummary!CK51 -> FALSE | BB53: =IF(iSummary!CL51=0,"=",iSummary!CL51) -> -18 | BC53: =iSummary!CM51 -> FALSE
B54: =iSummary!P52 -> 1 | C54: =IF(B54=0,0,IF(uxb_works!$B$49,IF(G54<$C$80,1,IF(G54>$C$80,4,2)),IF(G54<=$B$80,1,IF(G54<=$B$81,2,(IF(G54<=$B$82,3,4)))))) -> 3 | E54: =iSummary!Q52 -> 45 | F54: =iSummary!R52&iSummary!X52 -> Mumbai | G54: =iSummary!S52 -> 61.84 | H54: =IF(iSummary!T52=0,"=",iSummary!T52) -> 1.87 | I54: =iSummary!U52 -> FALSE | J54: =IF(iSummary!V52=0,"=",iSummary!V52) -> -7 | K54: =iSummary!W52 -> FALSE | M54: =iSummary!AG52 -> 1 | N54: =IF(M54=0,0,IF(uxb_works!$B$49,IF(R54<$C$80,1,IF(R54>$C$80,4,2)),IF(R54<=$B$80,1,IF(R54<=$B$81,2,(IF(R54<=$B$82,3,4)))))) -> 3 | P54: =iSummary!AH52 -> 45 | Q54: =iSummary!AI52&iSummary!AO52 -> Bogota * | R54: =iSummary!AJ52 -> 54.62 | S54: =IF(iSummary!AK52=0,"=",iSummary!AK52) ->  | T54: =iSummary!AL52 -> FALSE | U54: =IF(iSummary!AM52=0,"=",iSummary!AM52) ->  | V54: =iSummary!AN52 -> FALSE | X54: =iSummary!AX52 -> 1 | Y54: =IF(X54=0,0,IF(uxb_works!$B$49,IF(AC54<$C$80,1,IF(AC54>$C$80,4,2)),IF(AC54<=$B$80,1,IF(AC54<=$B$81,2,(IF(AC54<=$B$82,3,4)))))) -> 3 | AA54: =iSummary!AY52 -> =45 | AB54: =iSummary!AZ52&iSummary!BF52 -> Doha | AC54: =iSummary!BA52 -> 62.6 | AD54: =IF(iSummary!BB52=0,"=",iSummary!BB52) -> 5.25 | AE54: =iSummary!BC52 -> FALSE | AF54: =IF(iSummary!BD52=0,"=",iSummary!BD52) -> -6 | AG54: =iSummary!BE52 -> FALSE | AI54: =iSummary!BO52 -> 1 | AJ54: =IF(AI54=0,0,IF(uxb_works!$B$49,IF(AN54<$C$80,1,IF(AN54>$C$80,4,2)),IF(AN54<=$B$80,1,IF(AN54<=$B$81,2,(IF(AN54<=$B$82,3,4)))))) -> 3 | AL54: =iSummary!BP52 -> 45 | AM54: =iSummary!BQ52&iSummary!BW52 -> Casablanca * | AN54: =iSummary!BR52 -> 66.27 | AO54: =IF(iSummary!BS52=0,"=",iSummary!BS52) ->  | AP54: =iSummary!BT52 -> FALSE | AQ54: =IF(iSummary!BU52=0,"=",iSummary!BU52) ->  | AR54: =iSummary!BV52 -> FALSE | AT54: =iSummary!CF52 -> 1 | AU54: =IF(AT54=0,0,IF(uxb_works!$B$49,IF(AY54<$C$80,1,IF(AY54>$C$80,4,2)),IF(AY54<=$B$80,1,IF(AY54<=$B$81,2,(IF(AY54<=$B$82,3,4)))))) -> 3 | AW54: =iSummary!CG52 -> 45 | AX54: =iSummary!CH52&iSummary!CN52 -> Mexico City | AY54: =iSummary!CI52 -> 64.62 | AZ54: =IF(iSummary!CJ52=0,"=",iSummary!CJ52) -> 2.51 | BA54: =iSummary!CK52 -> FALSE | BB54: =IF(iSummary!CL52=0,"=",iSummary!CL52) -> -9 | BC54: =iSummary!CM52 -> FALSE
B55: =iSummary!P53 -> 1 | C55: =IF(B55=0,0,IF(uxb_works!$B$49,IF(G55<$C$80,1,IF(G55>$C$80,4,2)),IF(G55<=$B$80,1,IF(G55<=$B$81,2,(IF(G55<=$B$82,3,4)))))) -> 3 | E55: =iSummary!Q53 -> 46 | F55: =iSummary!R53&iSummary!X53 -> Bogota * | G55: =iSummary!S53 -> 61.36 | H55: =IF(iSummary!T53=0,"=",iSummary!T53) ->  | I55: =iSummary!U53 -> FALSE | J55: =IF(iSummary!V53=0,"=",iSummary!V53) ->  | K55: =iSummary!W53 -> FALSE | M55: =iSummary!AG53 -> 1 | N55: =IF(M55=0,0,IF(uxb_works!$B$49,IF(R55<$C$80,1,IF(R55>$C$80,4,2)),IF(R55<=$B$80,1,IF(R55<=$B$81,2,(IF(R55<=$B$82,3,4)))))) -> 3 | P55: =iSummary!AH53 -> =46 | Q55: =iSummary!AI53&iSummary!AO53 -> Delhi | R55: =iSummary!AJ53 -> 54.61 | S55: =IF(iSummary!AK53=0,"=",iSummary!AK53) -> -5.22 | T55: =iSummary!AL53 -> FALSE | U55: =IF(iSummary!AM53=0,"=",iSummary!AM53) -> -16 | V55: =iSummary!AN53 -> FALSE | X55: =iSummary!AX53 -> 1 | Y55: =IF(X55=0,0,IF(uxb_works!$B$49,IF(AC55<$C$80,1,IF(AC55>$C$80,4,2)),IF(AC55<=$B$80,1,IF(AC55<=$B$81,2,(IF(AC55<=$B$82,3,4)))))) -> 3 | AA55: =iSummary!AY53 -> =45 | AB55: =iSummary!AZ53&iSummary!BF53 -> Istanbul | AC55: =iSummary!BA53 -> 62.6 | AD55: =IF(iSummary!BB53=0,"=",iSummary!BB53) -> 8.95 | AE55: =iSummary!BC53 -> FALSE | AF55: =IF(iSummary!BD53=0,"=",iSummary!BD53) -> -2 | AG55: =iSummary!BE53 -> FALSE | AI55: =iSummary!BO53 -> 1 | AJ55: =IF(AI55=0,0,IF(uxb_works!$B$49,IF(AN55<$C$80,1,IF(AN55>$C$80,4,2)),IF(AN55<=$B$80,1,IF(AN55<=$B$81,2,(IF(AN55<=$B$82,3,4)))))) -> 3 | AL55: =iSummary!BP53 -> 46 | AM55: =iSummary!BQ53&iSummary!BW53 -> Ho Chi Minh City | AN55: =iSummary!BR53 -> 65.73 | AO55: =IF(iSummary!BS53=0,"=",iSummary!BS53) -> 13.29 | AP55: =iSummary!BT53 -> FALSE | AQ55: =IF(iSummary!BU53=0,"=",iSummary!BU53) -> = | AR55: =iSummary!BV53 -> FALSE | AT55: =iSummary!CF53 -> 1 | AU55: =IF(AT55=0,0,IF(uxb_works!$B$49,IF(AY55<$C$80,1,IF(AY55>$C$80,4,2)),IF(AY55<=$B$80,1,IF(AY55<=$B$81,2,(IF(AY55<=$B$82,3,4)))))) -> 3 | AW55: =iSummary!CG53 -> 46 | AX55: =iSummary!CH53&iSummary!CN53 -> Casablanca * | AY55: =iSummary!CI53 -> 62.63 | AZ55: =IF(iSummary!CJ53=0,"=",iSummary!CJ53) ->  | BA55: =iSummary!CK53 -> FALSE | BB55: =IF(iSummary!CL53=0,"=",iSummary!CL53) ->  | BC55: =iSummary!CM53 -> FALSE
B56: =iSummary!P54 -> 1 | C56: =IF(B56=0,0,IF(uxb_works!$B$49,IF(G56<$C$80,1,IF(G56>$C$80,4,2)),IF(G56<=$B$80,1,IF(G56<=$B$81,2,(IF(G56<=$B$82,3,4)))))) -> 3 | E56: =iSummary!Q54 -> 47 | F56: =iSummary!R54&iSummary!X54 -> Riyadh | G56: =iSummary!S54 -> 61.23 | H56: =IF(iSummary!T54=0,"=",iSummary!T54) -> 5.39 | I56: =iSummary!U54 -> FALSE | J56: =IF(iSummary!V54=0,"=",iSummary!V54) -> -4 | K56: =iSummary!W54 -> FALSE | M56: =iSummary!AG54 -> 1 | N56: =IF(M56=0,0,IF(uxb_works!$B$49,IF(R56<$C$80,1,IF(R56>$C$80,4,2)),IF(R56<=$B$80,1,IF(R56<=$B$81,2,(IF(R56<=$B$82,3,4)))))) -> 3 | P56: =iSummary!AH54 -> =46 | Q56: =iSummary!AI54&iSummary!AO54 -> Mumbai | R56: =iSummary!AJ54 -> 54.61 | S56: =IF(iSummary!AK54=0,"=",iSummary!AK54) -> -9.96 | T56: =iSummary!AL54 -> FALSE | U56: =IF(iSummary!AM54=0,"=",iSummary!AM54) -> -24 | V56: =iSummary!AN54 -> FALSE | X56: =iSummary!AX54 -> 1 | Y56: =IF(X56=0,0,IF(uxb_works!$B$49,IF(AC56<$C$80,1,IF(AC56>$C$80,4,2)),IF(AC56<=$B$80,1,IF(AC56<=$B$81,2,(IF(AC56<=$B$82,3,4)))))) -> 3 | AA56: =iSummary!AY54 -> 47 | AB56: =iSummary!AZ54&iSummary!BF54 -> Lima | AC56: =iSummary!BA54 -> 62.48 | AD56: =IF(iSummary!BB54=0,"=",iSummary!BB54) -> 3.07 | AE56: =iSummary!BC54 -> FALSE | AF56: =IF(iSummary!BD54=0,"=",iSummary!BD54) -> -11 | AG56: =iSummary!BE54 -> FALSE | AI56: =iSummary!BO54 -> 1 | AJ56: =IF(AI56=0,0,IF(uxb_works!$B$49,IF(AN56<$C$80,1,IF(AN56>$C$80,4,2)),IF(AN56<=$B$80,1,IF(AN56<=$B$81,2,(IF(AN56<=$B$82,3,4)))))) -> 3 | AL56: =iSummary!BP54 -> 47 | AM56: =iSummary!BQ54&iSummary!BW54 -> Lima | AN56: =iSummary!BR54 -> 64.47 | AO56: =IF(iSummary!BS54=0,"=",iSummary!BS54) -> -14.45 | AP56: =iSummary!BT54 -> FALSE | AQ56: =IF(iSummary!BU54=0,"=",iSummary!BU54) -> -23 | AR56: =iSummary!BV54 -> FALSE | AT56: =iSummary!CF54 -> 1 | AU56: =IF(AT56=0,0,IF(uxb_works!$B$49,IF(AY56<$C$80,1,IF(AY56>$C$80,4,2)),IF(AY56<=$B$80,1,IF(AY56<=$B$81,2,(IF(AY56<=$B$82,3,4)))))) -> 3 | AW56: =iSummary!CG54 -> 47 | AX56: =iSummary!CH54&iSummary!CN54 -> Riyadh | AY56: =iSummary!CI54 -> 61.04 | AZ56: =IF(iSummary!CJ54=0,"=",iSummary!CJ54) -> 6.34 | BA56: =iSummary!CK54 -> FALSE | BB56: =IF(iSummary!CL54=0,"=",iSummary!CL54) -> -2 | BC56: =iSummary!CM54 -> FALSE
B57: =iSummary!P55 -> 1 | C57: =IF(B57=0,0,IF(uxb_works!$B$49,IF(G57<$C$80,1,IF(G57>$C$80,4,2)),IF(G57<=$B$80,1,IF(G57<=$B$81,2,(IF(G57<=$B$82,3,4)))))) -> 3 | E57: =iSummary!Q55 -> 48 | F57: =iSummary!R55&iSummary!X55 -> Casablanca * | G57: =iSummary!S55 -> 61.2 | H57: =IF(iSummary!T55=0,"=",iSummary!T55) ->  | I57: =iSummary!U55 -> FALSE | J57: =IF(iSummary!V55=0,"=",iSummary!V55) ->  | K57: =iSummary!W55 -> FALSE | M57: =iSummary!AG55 -> 1 | N57: =IF(M57=0,0,IF(uxb_works!$B$49,IF(R57<$C$80,1,IF(R57>$C$80,4,2)),IF(R57<=$B$80,1,IF(R57<=$B$81,2,(IF(R57<=$B$82,3,4)))))) -> 3 | P57: =iSummary!AH55 -> 48 | Q57: =iSummary!AI55&iSummary!AO55 -> Mexico City | R57: =iSummary!AJ55 -> 53.69 | S57: =IF(iSummary!AK55=0,"=",iSummary!AK55) -> -9 | T57: =iSummary!AL55 -> FALSE | U57: =IF(iSummary!AM55=0,"=",iSummary!AM55) -> -24 | V57: =iSummary!AN55 -> FALSE | X57: =iSummary!AX55 -> 1 | Y57: =IF(X57=0,0,IF(uxb_works!$B$49,IF(AC57<$C$80,1,IF(AC57>$C$80,4,2)),IF(AC57<=$B$80,1,IF(AC57<=$B$81,2,(IF(AC57<=$B$82,3,4)))))) -> 3 | AA57: =iSummary!AY55 -> 48 | AB57: =iSummary!AZ55&iSummary!BF55 -> Ho Chi Minh City | AC57: =iSummary!BA55 -> 61.29 | AD57: =IF(iSummary!BB55=0,"=",iSummary!BB55) -> 8.28 | AE57: =iSummary!BC55 -> FALSE | AF57: =IF(iSummary!BD55=0,"=",iSummary!BD55) -> -4 | AG57: =iSummary!BE55 -> FALSE | AI57: =iSummary!BO55 -> 1 | AJ57: =IF(AI57=0,0,IF(uxb_works!$B$49,IF(AN57<$C$80,1,IF(AN57>$C$80,4,2)),IF(AN57<=$B$80,1,IF(AN57<=$B$81,2,(IF(AN57<=$B$82,3,4)))))) -> 3 | AL57: =iSummary!BP55 -> 48 | AM57: =iSummary!BQ55&iSummary!BW55 -> Tehran | AN57: =iSummary!BR55 -> 63.95 | AO57: =IF(iSummary!BS55=0,"=",iSummary!BS55) -> -2.01 | AP57: =iSummary!BT55 -> FALSE | AQ57: =IF(iSummary!BU55=0,"=",iSummary!BU55) -> -10 | AR57: =iSummary!BV55 -> FALSE | AT57: =iSummary!CF55 -> 1 | AU57: =IF(AT57=0,0,IF(uxb_works!$B$49,IF(AY57<$C$80,1,IF(AY57>$C$80,4,2)),IF(AY57<=$B$80,1,IF(AY57<=$B$81,2,(IF(AY57<=$B$82,3,4)))))) -> 3 | AW57: =iSummary!CG55 -> 48 | AX57: =iSummary!CH55&iSummary!CN55 -> Lima | AY57: =iSummary!CI55 -> 60.87 | AZ57: =IF(iSummary!CJ55=0,"=",iSummary!CJ55) -> -9.98 | BA57: =iSummary!CK55 -> FALSE | BB57: =IF(iSummary!CL55=0,"=",iSummary!CL55) -> -23 | BC57: =iSummary!CM55 -> FALSE
B58: =iSummary!P56 -> 1 | C58: =IF(B58=0,0,IF(uxb_works!$B$49,IF(G58<$C$80,1,IF(G58>$C$80,4,2)),IF(G58<=$B$80,1,IF(G58<=$B$81,2,(IF(G58<=$B$82,3,4)))))) -> 3 | E58: =iSummary!Q56 -> 49 | F58: =iSummary!R56&iSummary!X56 -> Bangkok | G58: =iSummary!S56 -> 60.05 | H58: =IF(iSummary!T56=0,"=",iSummary!T56) -> 2.57 | I58: =iSummary!U56 -> FALSE | J58: =IF(iSummary!V56=0,"=",iSummary!V56) -> -7 | K58: =iSummary!W56 -> FALSE | M58: =iSummary!AG56 -> 1 | N58: =IF(M58=0,0,IF(uxb_works!$B$49,IF(R58<$C$80,1,IF(R58>$C$80,4,2)),IF(R58<=$B$80,1,IF(R58<=$B$81,2,(IF(R58<=$B$82,3,4)))))) -> 3 | P58: =iSummary!AH56 -> =49 | Q58: =iSummary!AI56&iSummary!AO56 -> Rio de Janeiro | R58: =iSummary!AJ56 -> 51.96 | S58: =IF(iSummary!AK56=0,"=",iSummary!AK56) -> 0.72 | T58: =iSummary!AL56 -> FALSE | U58: =IF(iSummary!AM56=0,"=",iSummary!AM56) -> -12 | V58: =iSummary!AN56 -> FALSE | X58: =iSummary!AX56 -> 1 | Y58: =IF(X58=0,0,IF(uxb_works!$B$49,IF(AC58<$C$80,1,IF(AC58>$C$80,4,2)),IF(AC58<=$B$80,1,IF(AC58<=$B$81,2,(IF(AC58<=$B$82,3,4)))))) -> 3 | AA58: =iSummary!AY56 -> 49 | AB58: =iSummary!AZ56&iSummary!BF56 -> Manila * | AC58: =iSummary!BA56 -> 60.12 | AD58: =IF(iSummary!BB56=0,"=",iSummary!BB56) ->  | AE58: =iSummary!BC56 -> FALSE | AF58: =IF(iSummary!BD56=0,"=",iSummary!BD56) ->  | AG58: =iSummary!BE56 -> FALSE | AI58: =iSummary!BO56 -> 1 | AJ58: =IF(AI58=0,0,IF(uxb_works!$B$49,IF(AN58<$C$80,1,IF(AN58>$C$80,4,2)),IF(AN58<=$B$80,1,IF(AN58<=$B$81,2,(IF(AN58<=$B$82,3,4)))))) -> 3 | AL58: =iSummary!BP56 -> 49 | AM58: =iSummary!BQ56&iSummary!BW56 -> Jakarta | AN58: =iSummary!BR56 -> 63.32 | AO58: =IF(iSummary!BS56=0,"=",iSummary!BS56) -> 4.67 | AP58: =iSummary!BT56 -> FALSE | AQ58: =IF(iSummary!BU56=0,"=",iSummary!BU56) -> -6 | AR58: =iSummary!BV56 -> FALSE | AT58: =iSummary!CF56 -> 1 | AU58: =IF(AT58=0,0,IF(uxb_works!$B$49,IF(AY58<$C$80,1,IF(AY58>$C$80,4,2)),IF(AY58<=$B$80,1,IF(AY58<=$B$81,2,(IF(AY58<=$B$82,3,4)))))) -> 3 | AW58: =iSummary!CG56 -> 49 | AX58: =iSummary!CH56&iSummary!CN56 -> Bangkok | AY58: =iSummary!CI56 -> 60.8 | AZ58: =IF(iSummary!CJ56=0,"=",iSummary!CJ56) -> -3.68 | BA58: =iSummary!CK56 -> FALSE | BB58: =IF(iSummary!CL56=0,"=",iSummary!CL56) -> -16 | BC58: =iSummary!CM56 -> FALSE
B59: =iSummary!P57 -> 1 | C59: =IF(B59=0,0,IF(uxb_works!$B$49,IF(G59<$C$80,1,IF(G59>$C$80,4,2)),IF(G59<=$B$80,1,IF(G59<=$B$81,2,(IF(G59<=$B$82,3,4)))))) -> 3 | E59: =iSummary!Q57 -> 50 | F59: =iSummary!R57&iSummary!X57 -> Johannesburg | G59: =iSummary!S57 -> 59.17 | H59: =IF(iSummary!T57=0,"=",iSummary!T57) -> -0.15 | I59: =iSummary!U57 -> FALSE | J59: =IF(iSummary!V57=0,"=",iSummary!V57) -> -9 | K59: =iSummary!W57 -> FALSE | M59: =iSummary!AG57 -> 1 | N59: =IF(M59=0,0,IF(uxb_works!$B$49,IF(R59<$C$80,1,IF(R59>$C$80,4,2)),IF(R59<=$B$80,1,IF(R59<=$B$81,2,(IF(R59<=$B$82,3,4)))))) -> 3 | P59: =iSummary!AH57 -> =49 | Q59: =iSummary!AI57&iSummary!AO57 -> Sao Paulo | R59: =iSummary!AJ57 -> 51.96 | S59: =IF(iSummary!AK57=0,"=",iSummary!AK57) -> 0.53 | T59: =iSummary!AL57 -> FALSE | U59: =IF(iSummary!AM57=0,"=",iSummary!AM57) -> -13 | V59: =iSummary!AN57 -> FALSE | X59: =iSummary!AX57 -> 1 | Y59: =IF(X59=0,0,IF(uxb_works!$B$49,IF(AC59<$C$80,1,IF(AC59>$C$80,4,2)),IF(AC59<=$B$80,1,IF(AC59<=$B$81,2,(IF(AC59<=$B$82,3,4)))))) -> 3 | AA59: =iSummary!AY57 -> 50 | AB59: =iSummary!AZ57&iSummary!BF57 -> Delhi | AC59: =iSummary!BA57 -> 59.65 | AD59: =IF(iSummary!BB57=0,"=",iSummary!BB57) -> 0.76 | AE59: =iSummary!BC57 -> FALSE | AF59: =IF(iSummary!BD57=0,"=",iSummary!BD57) -> -13 | AG59: =iSummary!BE57 -> FALSE | AI59: =iSummary!BO57 -> 1 | AJ59: =IF(AI59=0,0,IF(uxb_works!$B$49,IF(AN59<$C$80,1,IF(AN59>$C$80,4,2)),IF(AN59<=$B$80,1,IF(AN59<=$B$81,2,(IF(AN59<=$B$82,3,4)))))) -> 3 | AL59: =iSummary!BP57 -> 50 | AM59: =iSummary!BQ57&iSummary!BW57 -> Jeddah * | AN59: =iSummary!BR57 -> 61.74 | AO59: =IF(iSummary!BS57=0,"=",iSummary!BS57) ->  | AP59: =iSummary!BT57 -> FALSE | AQ59: =IF(iSummary!BU57=0,"=",iSummary!BU57) ->  | AR59: =iSummary!BV57 -> FALSE | AT59: =iSummary!CF57 -> 1 | AU59: =IF(AT59=0,0,IF(uxb_works!$B$49,IF(AY59<$C$80,1,IF(AY59>$C$80,4,2)),IF(AY59<=$B$80,1,IF(AY59<=$B$81,2,(IF(AY59<=$B$82,3,4)))))) -> 3 | AW59: =iSummary!CG57 -> 50 | AX59: =iSummary!CH57&iSummary!CN57 -> Jeddah * | AY59: =iSummary!CI57 -> 60.05 | AZ59: =IF(iSummary!CJ57=0,"=",iSummary!CJ57) ->  | BA59: =iSummary!CK57 -> FALSE | BB59: =IF(iSummary!CL57=0,"=",iSummary!CL57) ->  | BC59: =iSummary!CM57 -> FALSE
B60: =iSummary!P58 -> 1 | C60: =IF(B60=0,0,IF(uxb_works!$B$49,IF(G60<$C$80,1,IF(G60>$C$80,4,2)),IF(G60<=$B$80,1,IF(G60<=$B$81,2,(IF(G60<=$B$82,3,4)))))) -> 3 | E60: =iSummary!Q58 -> 51 | F60: =iSummary!R58&iSummary!X58 -> Cairo * | G60: =iSummary!S58 -> 58.33 | H60: =IF(iSummary!T58=0,"=",iSummary!T58) ->  | I60: =iSummary!U58 -> FALSE | J60: =IF(iSummary!V58=0,"=",iSummary!V58) ->  | K60: =iSummary!W58 -> FALSE | M60: =iSummary!AG58 -> 1 | N60: =IF(M60=0,0,IF(uxb_works!$B$49,IF(R60<$C$80,1,IF(R60>$C$80,4,2)),IF(R60<=$B$80,1,IF(R60<=$B$81,2,(IF(R60<=$B$82,3,4)))))) -> 2 | P60: =iSummary!AH58 -> 51 | Q60: =iSummary!AI58&iSummary!AO58 -> Moscow | R60: =iSummary!AJ58 -> 49.03 | S60: =IF(iSummary!AK58=0,"=",iSummary!AK58) -> 0.99 | T60: =iSummary!AL58 -> FALSE | U60: =IF(iSummary!AM58=0,"=",iSummary!AM58) -> -10 | V60: =iSummary!AN58 -> FALSE | X60: =iSummary!AX58 -> 1 | Y60: =IF(X60=0,0,IF(uxb_works!$B$49,IF(AC60<$C$80,1,IF(AC60>$C$80,4,2)),IF(AC60<=$B$80,1,IF(AC60<=$B$81,2,(IF(AC60<=$B$82,3,4)))))) -> 3 | AA60: =iSummary!AY58 -> 51 | AB60: =iSummary!AZ58&iSummary!BF58 -> Casablanca * | AC60: =iSummary!BA58 -> 58.52 | AD60: =IF(iSummary!BB58=0,"=",iSummary!BB58) ->  | AE60: =iSummary!BC58 -> FALSE | AF60: =IF(iSummary!BD58=0,"=",iSummary!BD58) ->  | AG60: =iSummary!BE58 -> FALSE | AI60: =iSummary!BO58 -> 1 | AJ60: =IF(AI60=0,0,IF(uxb_works!$B$49,IF(AN60<$C$80,1,IF(AN60>$C$80,4,2)),IF(AN60<=$B$80,1,IF(AN60<=$B$81,2,(IF(AN60<=$B$82,3,4)))))) -> 3 | AL60: =iSummary!BP58 -> 51 | AM60: =iSummary!BQ58&iSummary!BW58 -> Mumbai | AN60: =iSummary!BR58 -> 59.12 | AO60: =IF(iSummary!BS58=0,"=",iSummary!BS58) -> 3.22 | AP60: =iSummary!BT58 -> FALSE | AQ60: =IF(iSummary!BU58=0,"=",iSummary!BU58) -> -6 | AR60: =iSummary!BV58 -> FALSE | AT60: =iSummary!CF58 -> 1 | AU60: =IF(AT60=0,0,IF(uxb_works!$B$49,IF(AY60<$C$80,1,IF(AY60>$C$80,4,2)),IF(AY60<=$B$80,1,IF(AY60<=$B$81,2,(IF(AY60<=$B$82,3,4)))))) -> 3 | AW60: =iSummary!CG58 -> 51 | AX60: =iSummary!CH58&iSummary!CN58 -> Jakarta | AY60: =iSummary!CI58 -> 59.24 | AZ60: =IF(iSummary!CJ58=0,"=",iSummary!CJ58) -> 2.96 | BA60: =iSummary!CK58 -> FALSE | BB60: =IF(iSummary!CL58=0,"=",iSummary!CL58) -> -7 | BC60: =iSummary!CM58 -> FALSE
B61: =iSummary!P59 -> 1 | C61: =IF(B61=0,0,IF(uxb_works!$B$49,IF(G61<$C$80,1,IF(G61>$C$80,4,2)),IF(G61<=$B$80,1,IF(G61<=$B$81,2,(IF(G61<=$B$82,3,4)))))) -> 3 | E61: =iSummary!Q59 -> 52 | F61: =iSummary!R59&iSummary!X59 -> Tehran | G61: =iSummary!S59 -> 56.49 | H61: =IF(iSummary!T59=0,"=",iSummary!T59) -> 2.91 | I61: =iSummary!U59 -> FALSE | J61: =IF(iSummary!V59=0,"=",iSummary!V59) -> -7 | K61: =iSummary!W59 -> FALSE | M61: =iSummary!AG59 -> 1 | N61: =IF(M61=0,0,IF(uxb_works!$B$49,IF(R61<$C$80,1,IF(R61>$C$80,4,2)),IF(R61<=$B$80,1,IF(R61<=$B$81,2,(IF(R61<=$B$82,3,4)))))) -> 2 | P61: =iSummary!AH59 -> 52 | Q61: =iSummary!AI59&iSummary!AO59 -> Bangkok | R61: =iSummary!AJ59 -> 44.44 | S61: =IF(iSummary!AK59=0,"=",iSummary!AK59) -> -0.42 | T61: =iSummary!AL59 -> FALSE | U61: =IF(iSummary!AM59=0,"=",iSummary!AM59) -> -8 | V61: =iSummary!AN59 -> FALSE | X61: =iSummary!AX59 -> 1 | Y61: =IF(X61=0,0,IF(uxb_works!$B$49,IF(AC61<$C$80,1,IF(AC61>$C$80,4,2)),IF(AC61<=$B$80,1,IF(AC61<=$B$81,2,(IF(AC61<=$B$82,3,4)))))) -> 3 | AA61: =iSummary!AY59 -> 52 | AB61: =iSummary!AZ59&iSummary!BF59 -> Johannesburg | AC61: =iSummary!BA59 -> 57.71 | AD61: =IF(iSummary!BB59=0,"=",iSummary!BB59) -> 1.98 | AE61: =iSummary!BC59 -> FALSE | AF61: =IF(iSummary!BD59=0,"=",iSummary!BD59) -> -11 | AG61: =iSummary!BE59 -> FALSE | AI61: =iSummary!BO59 -> 1 | AJ61: =IF(AI61=0,0,IF(uxb_works!$B$49,IF(AN61<$C$80,1,IF(AN61>$C$80,4,2)),IF(AN61<=$B$80,1,IF(AN61<=$B$81,2,(IF(AN61<=$B$82,3,4)))))) -> 3 | AL61: =iSummary!BP59 -> 52 | AM61: =iSummary!BQ59&iSummary!BW59 -> Delhi | AN61: =iSummary!BR59 -> 58.49 | AO61: =IF(iSummary!BS59=0,"=",iSummary!BS59) -> -0.2 | AP61: =iSummary!BT59 -> FALSE | AQ61: =IF(iSummary!BU59=0,"=",iSummary!BU59) -> -10 | AR61: =iSummary!BV59 -> FALSE | AT61: =iSummary!CF59 -> 1 | AU61: =IF(AT61=0,0,IF(uxb_works!$B$49,IF(AY61<$C$80,1,IF(AY61>$C$80,4,2)),IF(AY61<=$B$80,1,IF(AY61<=$B$81,2,(IF(AY61<=$B$82,3,4)))))) -> 3 | AW61: =iSummary!CG59 -> 52 | AX61: =iSummary!CH59&iSummary!CN59 -> Tehran | AY61: =iSummary!CI59 -> 59.18 | AZ61: =IF(iSummary!CJ59=0,"=",iSummary!CJ59) -> 2.34 | BA61: =iSummary!CK59 -> FALSE | BB61: =IF(iSummary!CL59=0,"=",iSummary!CL59) -> -10 | BC61: =iSummary!CM59 -> FALSE
B62: =iSummary!P60 -> 1 | C62: =IF(B62=0,0,IF(uxb_works!$B$49,IF(G62<$C$80,1,IF(G62>$C$80,4,2)),IF(G62<=$B$80,1,IF(G62<=$B$81,2,(IF(G62<=$B$82,3,4)))))) -> 3 | E62: =iSummary!Q60 -> 53 | F62: =iSummary!R60&iSummary!X60 -> Quito * | G62: =iSummary!S60 -> 56.39 | H62: =IF(iSummary!T60=0,"=",iSummary!T60) ->  | I62: =iSummary!U60 -> FALSE | J62: =IF(iSummary!V60=0,"=",iSummary!V60) ->  | K62: =iSummary!W60 -> FALSE | M62: =iSummary!AG60 -> 1 | N62: =IF(M62=0,0,IF(uxb_works!$B$49,IF(R62<$C$80,1,IF(R62>$C$80,4,2)),IF(R62<=$B$80,1,IF(R62<=$B$81,2,(IF(R62<=$B$82,3,4)))))) -> 2 | P62: =iSummary!AH60 -> 53 | Q62: =iSummary!AI60&iSummary!AO60 -> Cairo * | R62: =iSummary!AJ60 -> 43.29 | S62: =IF(iSummary!AK60=0,"=",iSummary!AK60) ->  | T62: =iSummary!AL60 -> FALSE | U62: =IF(iSummary!AM60=0,"=",iSummary!AM60) ->  | V62: =iSummary!AN60 -> FALSE | X62: =iSummary!AX60 -> 1 | Y62: =IF(X62=0,0,IF(uxb_works!$B$49,IF(AC62<$C$80,1,IF(AC62>$C$80,4,2)),IF(AC62<=$B$80,1,IF(AC62<=$B$81,2,(IF(AC62<=$B$82,3,4)))))) -> 3 | AA62: =iSummary!AY60 -> 53 | AB62: =iSummary!AZ60&iSummary!BF60 -> Quito * | AC62: =iSummary!BA60 -> 57.46 | AD62: =IF(iSummary!BB60=0,"=",iSummary!BB60) ->  | AE62: =iSummary!BC60 -> FALSE | AF62: =IF(iSummary!BD60=0,"=",iSummary!BD60) ->  | AG62: =iSummary!BE60 -> FALSE | AI62: =iSummary!BO60 -> 1 | AJ62: =IF(AI62=0,0,IF(uxb_works!$B$49,IF(AN62<$C$80,1,IF(AN62>$C$80,4,2)),IF(AN62<=$B$80,1,IF(AN62<=$B$81,2,(IF(AN62<=$B$82,3,4)))))) -> 3 | AL62: =iSummary!BP60 -> 53 | AM62: =iSummary!BQ60&iSummary!BW60 -> Caracas * | AN62: =iSummary!BR60 -> 58.42 | AO62: =IF(iSummary!BS60=0,"=",iSummary!BS60) ->  | AP62: =iSummary!BT60 -> FALSE | AQ62: =IF(iSummary!BU60=0,"=",iSummary!BU60) ->  | AR62: =iSummary!BV60 -> FALSE | AT62: =iSummary!CF60 -> 1 | AU62: =IF(AT62=0,0,IF(uxb_works!$B$49,IF(AY62<$C$80,1,IF(AY62>$C$80,4,2)),IF(AY62<=$B$80,1,IF(AY62<=$B$81,2,(IF(AY62<=$B$82,3,4)))))) -> 3 | AW62: =iSummary!CG60 -> 53 | AX62: =iSummary!CH60&iSummary!CN60 -> Moscow | AY62: =iSummary!CI60 -> 58 | AZ62: =IF(iSummary!CJ60=0,"=",iSummary!CJ60) -> 11.32 | BA62: =iSummary!CK60 -> FALSE | BB62: =IF(iSummary!CL60=0,"=",iSummary!CL60) -> -7 | BC62: =iSummary!CM60 -> FALSE
B63: =iSummary!P61 -> 1 | C63: =IF(B63=0,0,IF(uxb_works!$B$49,IF(G63<$C$80,1,IF(G63>$C$80,4,2)),IF(G63<=$B$80,1,IF(G63<=$B$81,2,(IF(G63<=$B$82,3,4)))))) -> 3 | E63: =iSummary!Q61 -> 54 | F63: =iSummary!R61&iSummary!X61 -> Caracas * | G63: =iSummary!S61 -> 55.22 | H63: =IF(iSummary!T61=0,"=",iSummary!T61) ->  | I63: =iSummary!U61 -> FALSE | J63: =IF(iSummary!V61=0,"=",iSummary!V61) ->  | K63: =iSummary!W61 -> FALSE | M63: =iSummary!AG61 -> 1 | N63: =IF(M63=0,0,IF(uxb_works!$B$49,IF(R63<$C$80,1,IF(R63>$C$80,4,2)),IF(R63<=$B$80,1,IF(R63<=$B$81,2,(IF(R63<=$B$82,3,4)))))) -> 2 | P63: =iSummary!AH61 -> 54 | Q63: =iSummary!AI61&iSummary!AO61 -> Karachi * | R63: =iSummary!AJ61 -> 43.22 | S63: =IF(iSummary!AK61=0,"=",iSummary!AK61) ->  | T63: =iSummary!AL61 -> FALSE | U63: =IF(iSummary!AM61=0,"=",iSummary!AM61) ->  | V63: =iSummary!AN61 -> FALSE | X63: =iSummary!AX61 -> 1 | Y63: =IF(X63=0,0,IF(uxb_works!$B$49,IF(AC63<$C$80,1,IF(AC63>$C$80,4,2)),IF(AC63<=$B$80,1,IF(AC63<=$B$81,2,(IF(AC63<=$B$82,3,4)))))) -> 3 | AA63: =iSummary!AY61 -> 54 | AB63: =iSummary!AZ61&iSummary!BF61 -> Caracas * | AC63: =iSummary!BA61 -> 56.72 | AD63: =IF(iSummary!BB61=0,"=",iSummary!BB61) ->  | AE63: =iSummary!BC61 -> FALSE | AF63: =IF(iSummary!BD61=0,"=",iSummary!BD61) ->  | AG63: =iSummary!BE61 -> FALSE | AI63: =iSummary!BO61 -> 1 | AJ63: =IF(AI63=0,0,IF(uxb_works!$B$49,IF(AN63<$C$80,1,IF(AN63>$C$80,4,2)),IF(AN63<=$B$80,1,IF(AN63<=$B$81,2,(IF(AN63<=$B$82,3,4)))))) -> 3 | AL63: =iSummary!BP61 -> 54 | AM63: =iSummary!BQ61&iSummary!BW61 -> Riyadh | AN63: =iSummary!BR61 -> 56.88 | AO63: =IF(iSummary!BS61=0,"=",iSummary!BS61) -> -5.21 | AP63: =iSummary!BT61 -> FALSE | AQ63: =IF(iSummary!BU61=0,"=",iSummary!BU61) -> -14 | AR63: =iSummary!BV61 -> FALSE | AT63: =iSummary!CF61 -> 1 | AU63: =IF(AT63=0,0,IF(uxb_works!$B$49,IF(AY63<$C$80,1,IF(AY63>$C$80,4,2)),IF(AY63<=$B$80,1,IF(AY63<=$B$81,2,(IF(AY63<=$B$82,3,4)))))) -> 3 | AW63: =iSummary!CG61 -> 54 | AX63: =iSummary!CH61&iSummary!CN61 -> Johannesburg | AY63: =iSummary!CI61 -> 57.65 | AZ63: =IF(iSummary!CJ61=0,"=",iSummary!CJ61) -> -1.36 | BA63: =iSummary!CK61 -> FALSE | BB63: =IF(iSummary!CL61=0,"=",iSummary!CL61) -> -14 | BC63: =iSummary!CM61 -> FALSE
B64: =iSummary!P62 -> 1 | C64: =IF(B64=0,0,IF(uxb_works!$B$49,IF(G64<$C$80,1,IF(G64>$C$80,4,2)),IF(G64<=$B$80,1,IF(G64<=$B$81,2,(IF(G64<=$B$82,3,4)))))) -> 3 | E64: =iSummary!Q62 -> 55 | F64: =iSummary!R62&iSummary!X62 -> Manila * | G64: =iSummary!S62 -> 54.86 | H64: =IF(iSummary!T62=0,"=",iSummary!T62) ->  | I64: =iSummary!U62 -> FALSE | J64: =IF(iSummary!V62=0,"=",iSummary!V62) ->  | K64: =iSummary!W62 -> FALSE | M64: =iSummary!AG62 -> 1 | N64: =IF(M64=0,0,IF(uxb_works!$B$49,IF(R64<$C$80,1,IF(R64>$C$80,4,2)),IF(R64<=$B$80,1,IF(R64<=$B$81,2,(IF(R64<=$B$82,3,4)))))) -> 2 | P64: =iSummary!AH62 -> 55 | Q64: =iSummary!AI62&iSummary!AO62 -> Tehran | R64: =iSummary!AJ62 -> 39.88 | S64: =IF(iSummary!AK62=0,"=",iSummary!AK62) -> 1.3 | T64: =iSummary!AL62 -> FALSE | U64: =IF(iSummary!AM62=0,"=",iSummary!AM62) -> -9 | V64: =iSummary!AN62 -> FALSE | X64: =iSummary!AX62 -> 1 | Y64: =IF(X64=0,0,IF(uxb_works!$B$49,IF(AC64<$C$80,1,IF(AC64>$C$80,4,2)),IF(AC64<=$B$80,1,IF(AC64<=$B$81,2,(IF(AC64<=$B$82,3,4)))))) -> 3 | AA64: =iSummary!AY62 -> 55 | AB64: =iSummary!AZ62&iSummary!BF62 -> Mumbai | AC64: =iSummary!BA62 -> 55.74 | AD64: =IF(iSummary!BB62=0,"=",iSummary!BB62) -> 3.96 | AE64: =iSummary!BC62 -> FALSE | AF64: =IF(iSummary!BD62=0,"=",iSummary!BD62) -> -9 | AG64: =iSummary!BE62 -> FALSE | AI64: =iSummary!BO62 -> 1 | AJ64: =IF(AI64=0,0,IF(uxb_works!$B$49,IF(AN64<$C$80,1,IF(AN64>$C$80,4,2)),IF(AN64<=$B$80,1,IF(AN64<=$B$81,2,(IF(AN64<=$B$82,3,4)))))) -> 3 | AL64: =iSummary!BP62 -> 55 | AM64: =iSummary!BQ62&iSummary!BW62 -> Johannesburg | AN64: =iSummary!BR62 -> 55.06 | AO64: =IF(iSummary!BS62=0,"=",iSummary!BS62) -> -9.09 | AP64: =iSummary!BT62 -> FALSE | AQ64: =IF(iSummary!BU62=0,"=",iSummary!BU62) -> -16 | AR64: =iSummary!BV62 -> FALSE | AT64: =iSummary!CF62 -> 1 | AU64: =IF(AT64=0,0,IF(uxb_works!$B$49,IF(AY64<$C$80,1,IF(AY64>$C$80,4,2)),IF(AY64<=$B$80,1,IF(AY64<=$B$81,2,(IF(AY64<=$B$82,3,4)))))) -> 3 | AW64: =iSummary!CG62 -> 55 | AX64: =iSummary!CH62&iSummary!CN62 -> Bogota * | AY64: =iSummary!CI62 -> 55.66 | AZ64: =IF(iSummary!CJ62=0,"=",iSummary!CJ62) ->  | BA64: =iSummary!CK62 -> FALSE | BB64: =IF(iSummary!CL62=0,"=",iSummary!CL62) ->  | BC64: =iSummary!CM62 -> FALSE
B65: =iSummary!P63 -> 1 | C65: =IF(B65=0,0,IF(uxb_works!$B$49,IF(G65<$C$80,1,IF(G65>$C$80,4,2)),IF(G65<=$B$80,1,IF(G65<=$B$81,2,(IF(G65<=$B$82,3,4)))))) -> 3 | E65: =iSummary!Q63 -> 56 | F65: =iSummary!R63&iSummary!X63 -> Ho Chi Minh City | G65: =iSummary!S63 -> 54.33 | H65: =IF(iSummary!T63=0,"=",iSummary!T63) -> 1.26 | I65: =iSummary!U63 -> FALSE | J65: =IF(iSummary!V63=0,"=",iSummary!V63) -> -10 | K65: =iSummary!W63 -> FALSE | M65: =iSummary!AG63 -> 1 | N65: =IF(M65=0,0,IF(uxb_works!$B$49,IF(R65<$C$80,1,IF(R65>$C$80,4,2)),IF(R65<=$B$80,1,IF(R65<=$B$81,2,(IF(R65<=$B$82,3,4)))))) -> 2 | P65: =iSummary!AH63 -> 56 | Q65: =iSummary!AI63&iSummary!AO63 -> Ho Chi Minh City | R65: =iSummary!AJ63 -> 39.78 | S65: =IF(iSummary!AK63=0,"=",iSummary!AK63) -> -5.53 | T65: =iSummary!AL63 -> FALSE | U65: =IF(iSummary!AM63=0,"=",iSummary!AM63) -> -14 | V65: =iSummary!AN63 -> FALSE | X65: =iSummary!AX63 -> 1 | Y65: =IF(X65=0,0,IF(uxb_works!$B$49,IF(AC65<$C$80,1,IF(AC65>$C$80,4,2)),IF(AC65<=$B$80,1,IF(AC65<=$B$81,2,(IF(AC65<=$B$82,3,4)))))) -> 3 | AA65: =iSummary!AY63 -> 56 | AB65: =iSummary!AZ63&iSummary!BF63 -> Jakarta | AC65: =iSummary!BA63 -> 54.4 | AD65: =IF(iSummary!BB63=0,"=",iSummary!BB63) -> -3.69 | AE65: =iSummary!BC63 -> FALSE | AF65: =IF(iSummary!BD63=0,"=",iSummary!BD63) -> -18 | AG65: =iSummary!BE63 -> FALSE | AI65: =iSummary!BO63 -> 1 | AJ65: =IF(AI65=0,0,IF(uxb_works!$B$49,IF(AN65<$C$80,1,IF(AN65>$C$80,4,2)),IF(AN65<=$B$80,1,IF(AN65<=$B$81,2,(IF(AN65<=$B$82,3,4)))))) -> 3 | AL65: =iSummary!BP63 -> 56 | AM65: =iSummary!BQ63&iSummary!BW63 -> Manila * | AN65: =iSummary!BR63 -> 52.89 | AO65: =IF(iSummary!BS63=0,"=",iSummary!BS63) ->  | AP65: =iSummary!BT63 -> FALSE | AQ65: =IF(iSummary!BU63=0,"=",iSummary!BU63) ->  | AR65: =iSummary!BV63 -> FALSE | AT65: =iSummary!CF63 -> 1 | AU65: =IF(AT65=0,0,IF(uxb_works!$B$49,IF(AY65<$C$80,1,IF(AY65>$C$80,4,2)),IF(AY65<=$B$80,1,IF(AY65<=$B$81,2,(IF(AY65<=$B$82,3,4)))))) -> 3 | AW65: =iSummary!CG63 -> 56 | AX65: =iSummary!CH63&iSummary!CN63 -> Quito * | AY65: =iSummary!CI63 -> 55.41 | AZ65: =IF(iSummary!CJ63=0,"=",iSummary!CJ63) ->  | BA65: =iSummary!CK63 -> FALSE | BB65: =IF(iSummary!CL63=0,"=",iSummary!CL63) ->  | BC65: =iSummary!CM63 -> FALSE
B66: =iSummary!P64 -> 1 | C66: =IF(B66=0,0,IF(uxb_works!$B$49,IF(G66<$C$80,1,IF(G66>$C$80,4,2)),IF(G66<=$B$80,1,IF(G66<=$B$81,2,(IF(G66<=$B$82,3,4)))))) -> 3 | E66: =iSummary!Q64 -> 57 | F66: =iSummary!R64&iSummary!X64 -> Jakarta | G66: =iSummary!S64 -> 53.39 | H66: =IF(iSummary!T64=0,"=",iSummary!T64) -> -1.11 | I66: =iSummary!U64 -> FALSE | J66: =IF(iSummary!V64=0,"=",iSummary!V64) -> -13 | K66: =iSummary!W64 -> FALSE | M66: =iSummary!AG64 -> 1 | N66: =IF(M66=0,0,IF(uxb_works!$B$49,IF(R66<$C$80,1,IF(R66>$C$80,4,2)),IF(R66<=$B$80,1,IF(R66<=$B$81,2,(IF(R66<=$B$82,3,4)))))) -> 2 | P66: =iSummary!AH64 -> 57 | Q66: =iSummary!AI64&iSummary!AO64 -> Yangon * | R66: =iSummary!AJ64 -> 39.07 | S66: =IF(iSummary!AK64=0,"=",iSummary!AK64) ->  | T66: =iSummary!AL64 -> FALSE | U66: =IF(iSummary!AM64=0,"=",iSummary!AM64) ->  | V66: =iSummary!AN64 -> FALSE | X66: =iSummary!AX64 -> 1 | Y66: =IF(X66=0,0,IF(uxb_works!$B$49,IF(AC66<$C$80,1,IF(AC66>$C$80,4,2)),IF(AC66<=$B$80,1,IF(AC66<=$B$81,2,(IF(AC66<=$B$82,3,4)))))) -> 3 | AA66: =iSummary!AY64 -> 57 | AB66: =iSummary!AZ64&iSummary!BF64 -> Cairo * | AC66: =iSummary!BA64 -> 52.28 | AD66: =IF(iSummary!BB64=0,"=",iSummary!BB64) ->  | AE66: =iSummary!BC64 -> FALSE | AF66: =IF(iSummary!BD64=0,"=",iSummary!BD64) ->  | AG66: =iSummary!BE64 -> FALSE | AI66: =iSummary!BO64 -> 1 | AJ66: =IF(AI66=0,0,IF(uxb_works!$B$49,IF(AN66<$C$80,1,IF(AN66>$C$80,4,2)),IF(AN66<=$B$80,1,IF(AN66<=$B$81,2,(IF(AN66<=$B$82,3,4)))))) -> 3 | AL66: =iSummary!BP64 -> 57 | AM66: =iSummary!BQ64&iSummary!BW64 -> Quito * | AN66: =iSummary!BR64 -> 52.03 | AO66: =IF(iSummary!BS64=0,"=",iSummary!BS64) ->  | AP66: =iSummary!BT64 -> FALSE | AQ66: =IF(iSummary!BU64=0,"=",iSummary!BU64) ->  | AR66: =iSummary!BV64 -> FALSE | AT66: =iSummary!CF64 -> 1 | AU66: =IF(AT66=0,0,IF(uxb_works!$B$49,IF(AY66<$C$80,1,IF(AY66>$C$80,4,2)),IF(AY66<=$B$80,1,IF(AY66<=$B$81,2,(IF(AY66<=$B$82,3,4)))))) -> 3 | AW66: =iSummary!CG64 -> 57 | AX66: =iSummary!CH64&iSummary!CN64 -> Yangon * | AY66: =iSummary!CI64 -> 52.43 | AZ66: =IF(iSummary!CJ64=0,"=",iSummary!CJ64) ->  | BA66: =iSummary!CK64 -> FALSE | BB66: =IF(iSummary!CL64=0,"=",iSummary!CL64) ->  | BC66: =iSummary!CM64 -> FALSE
B67: =iSummary!P65 -> 1 | C67: =IF(B67=0,0,IF(uxb_works!$B$49,IF(G67<$C$80,1,IF(G67>$C$80,4,2)),IF(G67<=$B$80,1,IF(G67<=$B$81,2,(IF(G67<=$B$82,3,4)))))) -> 2 | E67: =iSummary!Q65 -> 58 | F67: =iSummary!R65&iSummary!X65 -> Dhaka * | G67: =iSummary!S65 -> 47.37 | H67: =IF(iSummary!T65=0,"=",iSummary!T65) ->  | I67: =iSummary!U65 -> FALSE | J67: =IF(iSummary!V65=0,"=",iSummary!V65) ->  | K67: =iSummary!W65 -> FALSE | M67: =iSummary!AG65 -> 1 | N67: =IF(M67=0,0,IF(uxb_works!$B$49,IF(R67<$C$80,1,IF(R67>$C$80,4,2)),IF(R67<=$B$80,1,IF(R67<=$B$81,2,(IF(R67<=$B$82,3,4)))))) -> 2 | P67: =iSummary!AH65 -> 58 | Q67: =iSummary!AI65&iSummary!AO65 -> Dhaka * | R67: =iSummary!AJ65 -> 38.33 | S67: =IF(iSummary!AK65=0,"=",iSummary!AK65) ->  | T67: =iSummary!AL65 -> FALSE | U67: =IF(iSummary!AM65=0,"=",iSummary!AM65) ->  | V67: =iSummary!AN65 -> FALSE | X67: =iSummary!AX65 -> 1 | Y67: =IF(X67=0,0,IF(uxb_works!$B$49,IF(AC67<$C$80,1,IF(AC67>$C$80,4,2)),IF(AC67<=$B$80,1,IF(AC67<=$B$81,2,(IF(AC67<=$B$82,3,4)))))) -> 2 | AA67: =iSummary!AY65 -> 58 | AB67: =iSummary!AZ65&iSummary!BF65 -> Yangon * | AC67: =iSummary!BA65 -> 45.79 | AD67: =IF(iSummary!BB65=0,"=",iSummary!BB65) ->  | AE67: =iSummary!BC65 -> FALSE | AF67: =IF(iSummary!BD65=0,"=",iSummary!BD65) ->  | AG67: =iSummary!BE65 -> FALSE | AI67: =iSummary!BO65 -> 1 | AJ67: =IF(AI67=0,0,IF(uxb_works!$B$49,IF(AN67<$C$80,1,IF(AN67>$C$80,4,2)),IF(AN67<=$B$80,1,IF(AN67<=$B$81,2,(IF(AN67<=$B$82,3,4)))))) -> 2 | AL67: =iSummary!BP65 -> 58 | AM67: =iSummary!BQ65&iSummary!BW65 -> Yangon * | AN67: =iSummary!BR65 -> 48.58 | AO67: =IF(iSummary!BS65=0,"=",iSummary!BS65) ->  | AP67: =iSummary!BT65 -> FALSE | AQ67: =IF(iSummary!BU65=0,"=",iSummary!BU65) ->  | AR67: =iSummary!BV65 -> FALSE | AT67: =iSummary!CF65 -> 1 | AU67: =IF(AT67=0,0,IF(uxb_works!$B$49,IF(AY67<$C$80,1,IF(AY67>$C$80,4,2)),IF(AY67<=$B$80,1,IF(AY67<=$B$81,2,(IF(AY67<=$B$82,3,4)))))) -> 3 | AW67: =iSummary!CG65 -> 58 | AX67: =iSummary!CH65&iSummary!CN65 -> Ho Chi Minh City | AY67: =iSummary!CI65 -> 50.53 | AZ67: =IF(iSummary!CJ65=0,"=",iSummary!CJ65) -> -10.97 | BA67: =iSummary!CK65 -> FALSE | BB67: =IF(iSummary!CL65=0,"=",iSummary!CL65) -> -20 | BC67: =iSummary!CM65 -> FALSE
B68: =iSummary!P66 -> 1 | C68: =IF(B68=0,0,IF(uxb_works!$B$49,IF(G68<$C$80,1,IF(G68>$C$80,4,2)),IF(G68<=$B$80,1,IF(G68<=$B$81,2,(IF(G68<=$B$82,3,4)))))) -> 2 | E68: =iSummary!Q66 -> 59 | F68: =iSummary!R66&iSummary!X66 -> Yangon * | G68: =iSummary!S66 -> 46.47 | H68: =IF(iSummary!T66=0,"=",iSummary!T66) ->  | I68: =iSummary!U66 -> FALSE | J68: =IF(iSummary!V66=0,"=",iSummary!V66) ->  | K68: =iSummary!W66 -> FALSE | M68: =iSummary!AG66 -> 1 | N68: =IF(M68=0,0,IF(uxb_works!$B$49,IF(R68<$C$80,1,IF(R68>$C$80,4,2)),IF(R68<=$B$80,1,IF(R68<=$B$81,2,(IF(R68<=$B$82,3,4)))))) -> 2 | P68: =iSummary!AH66 -> 59 | Q68: =iSummary!AI66&iSummary!AO66 -> Manila * | R68: =iSummary!AJ66 -> 36.61 | S68: =IF(iSummary!AK66=0,"=",iSummary!AK66) ->  | T68: =iSummary!AL66 -> FALSE | U68: =IF(iSummary!AM66=0,"=",iSummary!AM66) ->  | V68: =iSummary!AN66 -> FALSE | X68: =iSummary!AX66 -> 1 | Y68: =IF(X68=0,0,IF(uxb_works!$B$49,IF(AC68<$C$80,1,IF(AC68>$C$80,4,2)),IF(AC68<=$B$80,1,IF(AC68<=$B$81,2,(IF(AC68<=$B$82,3,4)))))) -> 2 | AA68: =iSummary!AY66 -> 59 | AB68: =iSummary!AZ66&iSummary!BF66 -> Dhaka * | AC68: =iSummary!BA66 -> 45.59 | AD68: =IF(iSummary!BB66=0,"=",iSummary!BB66) ->  | AE68: =iSummary!BC66 -> FALSE | AF68: =IF(iSummary!BD66=0,"=",iSummary!BD66) ->  | AG68: =iSummary!BE66 -> FALSE | AI68: =iSummary!BO66 -> 1 | AJ68: =IF(AI68=0,0,IF(uxb_works!$B$49,IF(AN68<$C$80,1,IF(AN68>$C$80,4,2)),IF(AN68<=$B$80,1,IF(AN68<=$B$81,2,(IF(AN68<=$B$82,3,4)))))) -> 2 | AL68: =iSummary!BP66 -> 59 | AM68: =iSummary!BQ66&iSummary!BW66 -> Karachi * | AN68: =iSummary!BR66 -> 40.11 | AO68: =IF(iSummary!BS66=0,"=",iSummary!BS66) ->  | AP68: =iSummary!BT66 -> FALSE | AQ68: =IF(iSummary!BU66=0,"=",iSummary!BU66) ->  | AR68: =iSummary!BV66 -> FALSE | AT68: =iSummary!CF66 -> 1 | AU68: =IF(AT68=0,0,IF(uxb_works!$B$49,IF(AY68<$C$80,1,IF(AY68>$C$80,4,2)),IF(AY68<=$B$80,1,IF(AY68<=$B$81,2,(IF(AY68<=$B$82,3,4)))))) -> 2 | AW68: =iSummary!CG66 -> 59 | AX68: =iSummary!CH66&iSummary!CN66 -> Caracas * | AY68: =iSummary!CI66 -> 47.36 | AZ68: =IF(iSummary!CJ66=0,"=",iSummary!CJ66) ->  | BA68: =iSummary!CK66 -> FALSE | BB68: =IF(iSummary!CL66=0,"=",iSummary!CL66) ->  | BC68: =iSummary!CM66 -> FALSE
B69: =iSummary!P67 -> 1 | C69: =IF(B69=0,0,IF(uxb_works!$B$49,IF(G69<$C$80,1,IF(G69>$C$80,4,2)),IF(G69<=$B$80,1,IF(G69<=$B$81,2,(IF(G69<=$B$82,3,4)))))) -> 2 | E69: =iSummary!Q67 -> 60 | F69: =iSummary!R67&iSummary!X67 -> Karachi * | G69: =iSummary!S67 -> 38.77 | H69: =IF(iSummary!T67=0,"=",iSummary!T67) ->  | I69: =iSummary!U67 -> FALSE | J69: =IF(iSummary!V67=0,"=",iSummary!V67) ->  | K69: =iSummary!W67 -> FALSE | M69: =iSummary!AG67 -> 1 | N69: =IF(M69=0,0,IF(uxb_works!$B$49,IF(R69<$C$80,1,IF(R69>$C$80,4,2)),IF(R69<=$B$80,1,IF(R69<=$B$81,2,(IF(R69<=$B$82,3,4)))))) -> 2 | P69: =iSummary!AH67 -> 60 | Q69: =iSummary!AI67&iSummary!AO67 -> Jakarta | R69: =iSummary!AJ67 -> 36.6 | S69: =IF(iSummary!AK67=0,"=",iSummary!AK67) -> -8.38 | T69: =iSummary!AL67 -> FALSE | U69: =IF(iSummary!AM67=0,"=",iSummary!AM67) -> -17 | V69: =iSummary!AN67 -> FALSE | X69: =iSummary!AX67 -> 1 | Y69: =IF(X69=0,0,IF(uxb_works!$B$49,IF(AC69<$C$80,1,IF(AC69>$C$80,4,2)),IF(AC69<=$B$80,1,IF(AC69<=$B$81,2,(IF(AC69<=$B$82,3,4)))))) -> 2 | AA69: =iSummary!AY67 -> 60 | AB69: =iSummary!AZ67&iSummary!BF67 -> Karachi * | AC69: =iSummary!BA67 -> 39.92 | AD69: =IF(iSummary!BB67=0,"=",iSummary!BB67) ->  | AE69: =iSummary!BC67 -> FALSE | AF69: =IF(iSummary!BD67=0,"=",iSummary!BD67) ->  | AG69: =iSummary!BE67 -> FALSE | AI69: =iSummary!BO67 -> 1 | AJ69: =IF(AI69=0,0,IF(uxb_works!$B$49,IF(AN69<$C$80,1,IF(AN69>$C$80,4,2)),IF(AN69<=$B$80,1,IF(AN69<=$B$81,2,(IF(AN69<=$B$82,3,4)))))) -> 2 | AL69: =iSummary!BP67 -> 60 | AM69: =iSummary!BQ67&iSummary!BW67 -> Dhaka * | AN69: =iSummary!BR67 -> 38.42 | AO69: =IF(iSummary!BS67=0,"=",iSummary!BS67) ->  | AP69: =iSummary!BT67 -> FALSE | AQ69: =IF(iSummary!BU67=0,"=",iSummary!BU67) ->  | AR69: =iSummary!BV67 -> FALSE | AT69: =iSummary!CF67 -> 1 | AU69: =IF(AT69=0,0,IF(uxb_works!$B$49,IF(AY69<$C$80,1,IF(AY69>$C$80,4,2)),IF(AY69<=$B$80,1,IF(AY69<=$B$81,2,(IF(AY69<=$B$82,3,4)))))) -> 2 | AW69: =iSummary!CG67 -> 60 | AX69: =iSummary!CH67&iSummary!CN67 -> Karachi * | AY69: =iSummary!CI67 -> 31.85 | AZ69: =IF(iSummary!CJ67=0,"=",iSummary!CJ67) ->  | BA69: =iSummary!CK67 -> FALSE | BB69: =IF(iSummary!CL67=0,"=",iSummary!CL67) ->  | BC69: =iSummary!CM67 -> FALSE
B70: =iSummary!P68 -> 0 | C70: =IF(B70=0,0,IF(uxb_works!$B$49,IF(G70<$C$80,1,IF(G70>$C$80,4,2)),IF(G70<=$B$80,1,IF(G70<=$B$81,2,(IF(G70<=$B$82,3,4)))))) -> 0 | E70: =iSummary!Q68 ->  | F70: =iSummary!R68&iSummary!X68 ->  | G70: =iSummary!S68 ->  | H70: =IF(iSummary!T68=0,"=",iSummary!T68) ->  | I70: =iSummary!U68 -> FALSE | J70: =IF(iSummary!V68=0,"=",iSummary!V68) ->  | K70: =iSummary!W68 -> FALSE | M70: =iSummary!AG68 -> 0 | N70: =IF(M70=0,0,IF(uxb_works!$B$49,IF(R70<$C$80,1,IF(R70>$C$80,4,2)),IF(R70<=$B$80,1,IF(R70<=$B$81,2,(IF(R70<=$B$82,3,4)))))) -> 0 | P70: =iSummary!AH68 ->  | Q70: =iSummary!AI68&iSummary!AO68 ->  | R70: =iSummary!AJ68 ->  | S70: =IF(iSummary!AK68=0,"=",iSummary!AK68) ->  | T70: =iSummary!AL68 -> FALSE | U70: =IF(iSummary!AM68=0,"=",iSummary!AM68) ->  | V70: =iSummary!AN68 -> FALSE | X70: =iSummary!AX68 -> 0 | Y70: =IF(X70=0,0,IF(uxb_works!$B$49,IF(AC70<$C$80,1,IF(AC70>$C$80,4,2)),IF(AC70<=$B$80,1,IF(AC70<=$B$81,2,(IF(AC70<=$B$82,3,4)))))) -> 0 | AA70: =iSummary!AY68 ->  | AB70: =iSummary!AZ68&iSummary!BF68 ->  | AC70: =iSummary!BA68 ->  | AD70: =IF(iSummary!BB68=0,"=",iSummary!BB68) ->  | AE70: =iSummary!BC68 -> FALSE | AF70: =IF(iSummary!BD68=0,"=",iSummary!BD68) ->  | AG70: =iSummary!BE68 -> FALSE | AI70: =iSummary!BO68 -> 0 | AJ70: =IF(AI70=0,0,IF(uxb_works!$B$49,IF(AN70<$C$80,1,IF(AN70>$C$80,4,2)),IF(AN70<=$B$80,1,IF(AN70<=$B$81,2,(IF(AN70<=$B$82,3,4)))))) -> 0 | AL70: =iSummary!BP68 ->  | AM70: =iSummary!BQ68&iSummary!BW68 ->  | AN70: =iSummary!BR68 ->  | AO70: =IF(iSummary!BS68=0,"=",iSummary!BS68) ->  | AP70: =iSummary!BT68 -> FALSE | AQ70: =IF(iSummary!BU68=0,"=",iSummary!BU68) ->  | AR70: =iSummary!BV68 -> FALSE | AT70: =iSummary!CF68 -> 0 | AU70: =IF(AT70=0,0,IF(uxb_works!$B$49,IF(AY70<$C$80,1,IF(AY70>$C$80,4,2)),IF(AY70<=$B$80,1,IF(AY70<=$B$81,2,(IF(AY70<=$B$82,3,4)))))) -> 0 | AW70: =iSummary!CG68 ->  | AX70: =iSummary!CH68&iSummary!CN68 ->  | AY70: =iSummary!CI68 ->  | AZ70: =IF(iSummary!CJ68=0,"=",iSummary!CJ68) ->  | BA70: =iSummary!CK68 -> FALSE | BB70: =IF(iSummary!CL68=0,"=",iSummary!CL68) ->  | BC70: =iSummary!CM68 -> FALSE
B80: 25 | C80: 1
B81: 50
B82: 75

Sheet Indicator_Ranking
D1: =uxb_works!$B$90 -> Safe Cities Index: 2017 | BA1: 2 | BB1: 0
BE2: 3 | BF2: 1
D4: =iIndiRank!G2 -> OVERALL SCORE
D5: =iIndiRank!F2 -> 
D8: DISTRIBUTION
Q12: Units
D13: =uxb_works!C46 -> 2017 | K13: =iIndiRank!C5 -> Compare 2017 with 2015 Updated | Q13: =uxb_works!H21 -> Weighted sum of the category scores
C14: =IF(AND(uxb_works!$B$49,iIndiRank!D2<=1),1,0) -> 0 | Q14: Definition
E15: Rank | F15: City | G15: Score / 100 | H15: Score / 100 | I15: Score Visualisation | K15: r | L15: S | M15: r | N15: R | Q15: =uxb_works!I21 -> The overall score is the weighted sum of the following category scores: 1) DIGITAL SECURITY 2) HEALTH SECURITY 3) INFRASTRUCTURE SECURITY 4) PERSONAL SECURITY
B16: =iIndiRank!O8 -> 1 | C16: =IF(B16=0,0,IF($C$14=1,IF(G16<$C$80,1,IF(G16>$C$80,4,2)),IF(G16<Summary!$B$80,1,IF(G16<=Summary!$B$81,2,(IF(G16<=Summary!$B$82,3,4)))))) -> 4 | E16: =iIndiRank!R8 -> 1 | F16: =iIndiRank!S8 -> Tokyo | G16: =iIndiRank!T8 -> 89.8 | H16: =IF(ISNUMBER(iIndiRank!AA8),ROUND(iIndiRank!AA8,2),"") -> 89.8 | I16: =IF($C$14=1,IF(AND(ISNUMBER(G16),G16>0),REPT("|",G16*10),""),IF(AND(ISNUMBER(G16),G16>0),REPT("|",G16/3),"")) -> ||||||||||||||||||||||||||||| | K16: =IF(iIndiRank!U8=0,"=",iIndiRank!U8) -> 3.5 | L16: =IF(ISERROR(iIndiRank!V8),"",iIndiRank!V8) -> FALSE | M16: =IF(iIndiRank!W8=0,"=",iIndiRank!W8) -> = | N16: =IF(ISERROR(iIndiRank!X8),"",iIndiRank!X8) -> FALSE
B17: =iIndiRank!O9 -> 1 | C17: =IF(B17=0,0,IF($C$14=1,IF(G17<$C$80,1,IF(G17>$C$80,4,2)),IF(G17<Summary!$B$80,1,IF(G17<=Summary!$B$81,2,(IF(G17<=Summary!$B$82,3,4)))))) -> 4 | E17: =iIndiRank!R9 -> 2 | F17: =iIndiRank!S9 -> Singapore | G17: =iIndiRank!T9 -> 89.64 | H17: =IF(ISNUMBER(iIndiRank!AA9),ROUND(iIndiRank!AA9,2),"") -> 89.64 | I17: =IF($C$14=1,IF(AND(ISNUMBER(G17),G17>0),REPT("|",G17*10),""),IF(AND(ISNUMBER(G17),G17>0),REPT("|",G17/3),"")) -> ||||||||||||||||||||||||||||| | K17: =IF(iIndiRank!U9=0,"=",iIndiRank!U9) -> 3.9 | L17: =IF(ISERROR(iIndiRank!V9),"",iIndiRank!V9) -> FALSE | M17: =IF(iIndiRank!W9=0,"=",iIndiRank!W9) -> = | N17: =IF(ISERROR(iIndiRank!X9),"",iIndiRank!X9) -> FALSE
B18: =iIndiRank!O10 -> 1 | C18: =IF(B18=0,0,IF($C$14=1,IF(G18<$C$80,1,IF(G18>$C$80,4,2)),IF(G18<Summary!$B$80,1,IF(G18<=Summary!$B$81,2,(IF(G18<=Summary!$B$82,3,4)))))) -> 4 | E18: =iIndiRank!R10 -> 3 | F18: =iIndiRank!S10 -> Osaka | G18: =iIndiRank!T10 -> 88.87 | H18: =IF(ISNUMBER(iIndiRank!AA10),ROUND(iIndiRank!AA10,2),"") -> 88.87 | I18: ||||||||||||||||||||||||||||| | K18: =IF(iIndiRank!U10=0,"=",iIndiRank!U10) -> 5.65 | L18: =IF(ISERROR(iIndiRank!V10),"",iIndiRank!V10) -> FALSE | M18: =IF(iIndiRank!W10=0,"=",iIndiRank!W10) -> 1 | N18: =IF(ISERROR(iIndiRank!X10),"",iIndiRank!X10) -> FALSE
B19: =iIndiRank!O11 -> 1 | C19: =IF(B19=0,0,IF($C$14=1,IF(G19<$C$80,1,IF(G19>$C$80,4,2)),IF(G19<Summary!$B$80,1,IF(G19<=Summary!$B$81,2,(IF(G19<=Summary!$B$82,3,4)))))) -> 4 | E19: =iIndiRank!R11 -> 4 | F19: =iIndiRank!S11 -> Toronto | G19: =iIndiRank!T11 -> 87.36 | H19: =IF(ISNUMBER(iIndiRank!AA11),ROUND(iIndiRank!AA11,2),"") -> 87.36 | I19: ||||||||||||||||||||||||||||| | K19: =IF(iIndiRank!U11=0,"=",iIndiRank!U11) -> 5.99 | L19: =IF(ISERROR(iIndiRank!V11),"",iIndiRank!V11) -> FALSE | M19: =IF(iIndiRank!W11=0,"=",iIndiRank!W11) -> 2 | N19: =IF(ISERROR(iIndiRank!X11),"",iIndiRank!X11) -> FALSE
B20: =iIndiRank!O12 -> 1 | C20: =IF(B20=0,0,IF($C$14=1,IF(G20<$C$80,1,IF(G20>$C$80,4,2)),IF(G20<Summary!$B$80,1,IF(G20<=Summary!$B$81,2,(IF(G20<=Summary!$B$82,3,4)))))) -> 4 | E20: =iIndiRank!R12 -> 5 | F20: =iIndiRank!S12 -> Melbourne | G20: =iIndiRank!T12 -> 87.3 | H20: =IF(ISNUMBER(iIndiRank!AA12),ROUND(iIndiRank!AA12,2),"") -> 87.3 | I20: ||||||||||||||||||||||||||||| | K20: =IF(iIndiRank!U12=0,"=",iIndiRank!U12) -> 6.03 | L20: =IF(ISERROR(iIndiRank!V12),"",iIndiRank!V12) -> FALSE | M20: =IF(iIndiRank!W12=0,"=",iIndiRank!W12) -> 2 | N20: =IF(ISERROR(iIndiRank!X12),"",iIndiRank!X12) -> FALSE
B21: =iIndiRank!O13 -> 1 | C21: =IF(B21=0,0,IF($C$14=1,IF(G21<$C$80,1,IF(G21>$C$80,4,2)),IF(G21<Summary!$B$80,1,IF(G21<=Summary!$B$81,2,(IF(G21<=Summary!$B$82,3,4)))))) -> 4 | E21: =iIndiRank!R13 -> 6 | F21: =iIndiRank!S13 -> Amsterdam | G21: =iIndiRank!T13 -> 87.26 | H21: =IF(ISNUMBER(iIndiRank!AA13),ROUND(iIndiRank!AA13,2),"") -> 87.26 | I21: ||||||||||||||||||||||||||||| | K21: =IF(iIndiRank!U13=0,"=",iIndiRank!U13) -> 3.22 | L21: =IF(ISERROR(iIndiRank!V13),"",iIndiRank!V13) -> FALSE | M21: =IF(iIndiRank!W13=0,"=",iIndiRank!W13) -> -3 | N21: =IF(ISERROR(iIndiRank!X13),"",iIndiRank!X13) -> FALSE
B22: =iIndiRank!O14 -> 1 | C22: =IF(B22=0,0,IF($C$14=1,IF(G22<$C$80,1,IF(G22>$C$80,4,2)),IF(G22<Summary!$B$80,1,IF(G22<=Summary!$B$81,2,(IF(G22<=Summary!$B$82,3,4)))))) -> 4 | E22: =iIndiRank!R14 -> 7 | F22: =iIndiRank!S14 -> Sydney | G22: =iIndiRank!T14 -> 86.74 | H22: =IF(ISNUMBER(iIndiRank!AA14),ROUND(iIndiRank!AA14,2),"") -> 86.74 | I22: |||||||||||||||||||||||||||| | K22: =IF(iIndiRank!U14=0,"=",iIndiRank!U14) -> 4.86 | L22: =IF(ISERROR(iIndiRank!V14),"",iIndiRank!V14) -> FALSE | M22: =IF(iIndiRank!W14=0,"=",iIndiRank!W14) -> -2 | N22: =IF(ISERROR(iIndiRank!X14),"",iIndiRank!X14) -> FALSE
B23: =iIndiRank!O15 -> 1 | C23: =IF(B23=0,0,IF($C$14=1,IF(G23<$C$80,1,IF(G23>$C$80,4,2)),IF(G23<Summary!$B$80,1,IF(G23<=Summary!$B$81,2,(IF(G23<=Summary!$B$82,3,4)))))) -> 4 | E23: =iIndiRank!R15 -> 8 | F23: =iIndiRank!S15 -> Stockholm | G23: =iIndiRank!T15 -> 86.72 | H23: =IF(ISNUMBER(iIndiRank!AA15),ROUND(iIndiRank!AA15,2),"") -> 86.72 | I23: |||||||||||||||||||||||||||| | K23: =IF(iIndiRank!U15=0,"=",iIndiRank!U15) -> 5.66 | L23: =IF(ISERROR(iIndiRank!V15),"",iIndiRank!V15) -> FALSE | M23: =IF(iIndiRank!W15=0,"=",iIndiRank!W15) -> = | N23: =IF(ISERROR(iIndiRank!X15),"",iIndiRank!X15) -> FALSE
B24: =iIndiRank!O16 -> 1 | C24: =IF(B24=0,0,IF($C$14=1,IF(G24<$C$80,1,IF(G24>$C$80,4,2)),IF(G24<Summary!$B$80,1,IF(G24<=Summary!$B$81,2,(IF(G24<=Summary!$B$82,3,4)))))) -> 4 | E24: =iIndiRank!R16 -> 9 | F24: =iIndiRank!S16 -> Hong Kong | G24: =iIndiRank!T16 -> 86.22 | H24: =IF(ISNUMBER(iIndiRank!AA16),ROUND(iIndiRank!AA16,2),"") -> 86.22 | I24: |||||||||||||||||||||||||||| | K24: =IF(iIndiRank!U16=0,"=",iIndiRank!U16) -> 7.69 | L24: =IF(ISERROR(iIndiRank!V16),"",iIndiRank!V16) -> FALSE | M24: =IF(iIndiRank!W16=0,"=",iIndiRank!W16) -> 3 | N24: =IF(ISERROR(iIndiRank!X16),"",iIndiRank!X16) -> FALSE
B25: =iIndiRank!O17 -> 1 | C25: =IF(B25=0,0,IF($C$14=1,IF(G25<$C$80,1,IF(G25>$C$80,4,2)),IF(G25<Summary!$B$80,1,IF(G25<=Summary!$B$81,2,(IF(G25<=Summary!$B$82,3,4)))))) -> 4 | E25: =iIndiRank!R17 -> 10 | F25: =iIndiRank!S17 -> Zurich | G25: =iIndiRank!T17 -> 85.2 | H25: =IF(ISNUMBER(iIndiRank!AA17),ROUND(iIndiRank!AA17,2),"") -> 85.2 | I25: |||||||||||||||||||||||||||| | K25: =IF(iIndiRank!U17=0,"=",iIndiRank!U17) -> 4.38 | L25: =IF(ISERROR(iIndiRank!V17),"",iIndiRank!V17) -> FALSE | M25: =IF(iIndiRank!W17=0,"=",iIndiRank!W17) -> -1 | N25: =IF(ISERROR(iIndiRank!X17),"",iIndiRank!X17) -> FALSE
B26: =iIndiRank!O18 -> 1 | C26: =IF(B26=0,0,IF($C$14=1,IF(G26<$C$80,1,IF(G26>$C$80,4,2)),IF(G26<Summary!$B$80,1,IF(G26<=Summary!$B$81,2,(IF(G26<=Summary!$B$82,3,4)))))) -> 4 | E26: =iIndiRank!R18 -> 11 | F26: =iIndiRank!S18 -> Frankfurt | G26: =iIndiRank!T18 -> 84.86 | H26: =IF(ISNUMBER(iIndiRank!AA18),ROUND(iIndiRank!AA18,2),"") -> 84.86 | I26: |||||||||||||||||||||||||||| | K26: =IF(iIndiRank!U18=0,"=",iIndiRank!U18) -> 7.85 | L26: =IF(ISERROR(iIndiRank!V18),"",iIndiRank!V18) -> FALSE | M26: =IF(iIndiRank!W18=0,"=",iIndiRank!W18) -> 5 | N26: =IF(ISERROR(iIndiRank!X18),"",iIndiRank!X18) -> FALSE
B27: =iIndiRank!O19 -> 1 | C27: =IF(B27=0,0,IF($C$14=1,IF(G27<$C$80,1,IF(G27>$C$80,4,2)),IF(G27<Summary!$B$80,1,IF(G27<=Summary!$B$81,2,(IF(G27<=Summary!$B$82,3,4)))))) -> 4 | E27: =iIndiRank!R19 -> 12 | F27: =iIndiRank!S19 -> Madrid | G27: =iIndiRank!T19 -> 83.88 | H27: =IF(ISNUMBER(iIndiRank!AA19),ROUND(iIndiRank!AA19,2),"") -> 83.88 | I27: ||||||||||||||||||||||||||| | K27: =IF(iIndiRank!U19=0,"=",iIndiRank!U19) -> 11.31 | L27: =IF(ISERROR(iIndiRank!V19),"",iIndiRank!V19) -> FALSE | M27: =IF(iIndiRank!W19=0,"=",iIndiRank!W19) -> 13 | N27: =IF(ISERROR(iIndiRank!X19),"",iIndiRank!X19) -> FALSE
B28: =iIndiRank!O20 -> 1 | C28: =IF(B28=0,0,IF($C$14=1,IF(G28<$C$80,1,IF(G28>$C$80,4,2)),IF(G28<Summary!$B$80,1,IF(G28<=Summary!$B$81,2,(IF(G28<=Summary!$B$82,3,4)))))) -> 4 | E28: =iIndiRank!R20 -> 13 | F28: =iIndiRank!S20 -> Barcelona | G28: =iIndiRank!T20 -> 83.71 | H28: =IF(ISNUMBER(iIndiRank!AA20),ROUND(iIndiRank!AA20,2),"") -> 83.71 | I28: ||||||||||||||||||||||||||| | K28: =IF(iIndiRank!U20=0,"=",iIndiRank!U20) -> 6.32 | L28: =IF(ISERROR(iIndiRank!V20),"",iIndiRank!V20) -> FALSE | M28: =IF(iIndiRank!W20=0,"=",iIndiRank!W20) -> 2 | N28: =IF(ISERROR(iIndiRank!X20),"",iIndiRank!X20) -> FALSE
B29: =iIndiRank!O21 -> 1 | C29: =IF(B29=0,0,IF($C$14=1,IF(G29<$C$80,1,IF(G29>$C$80,4,2)),IF(G29<Summary!$B$80,1,IF(G29<=Summary!$B$81,2,(IF(G29<=Summary!$B$82,3,4)))))) -> 4 | E29: =iIndiRank!R21 -> 14 | F29: =iIndiRank!S21 -> Seoul | G29: =iIndiRank!T21 -> 83.61 | H29: =IF(ISNUMBER(iIndiRank!AA21),ROUND(iIndiRank!AA21,2),"") -> 83.61 | I29: ||||||||||||||||||||||||||| | K29: =IF(iIndiRank!U21=0,"=",iIndiRank!U21) -> 9.7 | L29: =IF(ISERROR(iIndiRank!V21),"",iIndiRank!V21) -> FALSE | M29: =IF(iIndiRank!W21=0,"=",iIndiRank!W21) -> 6 | N29: =IF(ISERROR(iIndiRank!X21),"",iIndiRank!X21) -> FALSE
B30: =iIndiRank!O22 -> 1 | C30: =IF(B30=0,0,IF($C$14=1,IF(G30<$C$80,1,IF(G30>$C$80,4,2)),IF(G30<Summary!$B$80,1,IF(G30<=Summary!$B$81,2,(IF(G30<=Summary!$B$82,3,4)))))) -> 4 | E30: =iIndiRank!R22 -> 15 | F30: =iIndiRank!S22 -> San Francisco | G30: =iIndiRank!T22 -> 83.55 | H30: =IF(ISNUMBER(iIndiRank!AA22),ROUND(iIndiRank!AA22,2),"") -> 83.55 | I30: ||||||||||||||||||||||||||| | K30: =IF(iIndiRank!U22=0,"=",iIndiRank!U22) -> 4.23 | L30: =IF(ISERROR(iIndiRank!V22),"",iIndiRank!V22) -> FALSE | M30: =IF(iIndiRank!W22=0,"=",iIndiRank!W22) -> -4 | N30: =IF(ISERROR(iIndiRank!X22),"",iIndiRank!X22) -> FALSE
B31: =iIndiRank!O23 -> 1 | C31: =IF(B31=0,0,IF($C$14=1,IF(G31<$C$80,1,IF(G31>$C$80,4,2)),IF(G31<Summary!$B$80,1,IF(G31<=Summary!$B$81,2,(IF(G31<=Summary!$B$82,3,4)))))) -> 4 | E31: =iIndiRank!R23 -> 16 | F31: =iIndiRank!S23 -> Wellington * | G31: =iIndiRank!T23 -> 83.18 | H31: =IF(ISNUMBER(iIndiRank!AA23),ROUND(iIndiRank!AA23,2),"") -> 83.18 | I31: ||||||||||||||||||||||||||| | K31: =IF(iIndiRank!U23=0,"=",iIndiRank!U23) ->  | L31: =IF(ISERROR(iIndiRank!V23),"",iIndiRank!V23) -> FALSE | M31: =IF(iIndiRank!W23=0,"=",iIndiRank!W23) ->  | N31: =IF(ISERROR(iIndiRank!X23),"",iIndiRank!X23) -> FALSE
B32: =iIndiRank!O24 -> 1 | C32: =IF(B32=0,0,IF($C$14=1,IF(G32<$C$80,1,IF(G32>$C$80,4,2)),IF(G32<Summary!$B$80,1,IF(G32<=Summary!$B$81,2,(IF(G32<=Summary!$B$82,3,4)))))) -> 4 | E32: =iIndiRank!R24 -> 17 | F32: =iIndiRank!S24 -> Brussels | G32: =iIndiRank!T24 -> 83.01 | H32: =IF(ISNUMBER(iIndiRank!AA24),ROUND(iIndiRank!AA24,2),"") -> 83.01 | I32: ||||||||||||||||||||||||||| | K32: =IF(iIndiRank!U24=0,"=",iIndiRank!U24) -> 6.83 | L32: =IF(ISERROR(iIndiRank!V24),"",iIndiRank!V24) -> FALSE | M32: =IF(iIndiRank!W24=0,"=",iIndiRank!W24) -> 2 | N32: =IF(ISERROR(iIndiRank!X24),"",iIndiRank!X24) -> FALSE
B33: =iIndiRank!O25 -> 1 | C33: =IF(B33=0,0,IF($C$14=1,IF(G33<$C$80,1,IF(G33>$C$80,4,2)),IF(G33<Summary!$B$80,1,IF(G33<=Summary!$B$81,2,(IF(G33<=Summary!$B$82,3,4)))))) -> 4 | E33: =iIndiRank!R25 -> 18 | F33: =iIndiRank!S25 -> Los Angeles | G33: =iIndiRank!T25 -> 82.26 | H33: =IF(ISNUMBER(iIndiRank!AA25),ROUND(iIndiRank!AA25,2),"") -> 82.26 | I33: ||||||||||||||||||||||||||| | K33: =IF(iIndiRank!U25=0,"=",iIndiRank!U25) -> 5.39 | L33: =IF(ISERROR(iIndiRank!V25),"",iIndiRank!V25) -> FALSE | M33: =IF(iIndiRank!W25=0,"=",iIndiRank!W25) -> -1 | N33: =IF(ISERROR(iIndiRank!X25),"",iIndiRank!X25) -> FALSE
B34: =iIndiRank!O26 -> 1 | C34: =IF(B34=0,0,IF($C$14=1,IF(G34<$C$80,1,IF(G34>$C$80,4,2)),IF(G34<Summary!$B$80,1,IF(G34<=Summary!$B$81,2,(IF(G34<=Summary!$B$82,3,4)))))) -> 4 | E34: =iIndiRank!R26 -> 19 | F34: =iIndiRank!S26 -> Chicago | G34: =iIndiRank!T26 -> 82.21 | H34: =IF(ISNUMBER(iIndiRank!AA26),ROUND(iIndiRank!AA26,2),"") -> 82.21 | I34: ||||||||||||||||||||||||||| | K34: =IF(iIndiRank!U26=0,"=",iIndiRank!U26) -> 4.48 | L34: =IF(ISERROR(iIndiRank!V26),"",iIndiRank!V26) -> FALSE | M34: =IF(iIndiRank!W26=0,"=",iIndiRank!W26) -> -6 | N34: =IF(ISERROR(iIndiRank!X26),"",iIndiRank!X26) -> FALSE
B35: =iIndiRank!O27 -> 1 | C35: =IF(B35=0,0,IF($C$14=1,IF(G35<$C$80,1,IF(G35>$C$80,4,2)),IF(G35<Summary!$B$80,1,IF(G35<=Summary!$B$81,2,(IF(G35<=Summary!$B$82,3,4)))))) -> 4 | E35: =iIndiRank!R27 -> 20 | F35: =iIndiRank!S27 -> London | G35: =iIndiRank!T27 -> 82.1 | H35: =IF(ISNUMBER(iIndiRank!AA27),ROUND(iIndiRank!AA27,2),"") -> 82.1 | I35: ||||||||||||||||||||||||||| | K35: =IF(iIndiRank!U27=0,"=",iIndiRank!U27) -> 8.64 | L35: =IF(ISERROR(iIndiRank!V27),"",iIndiRank!V27) -> FALSE | M35: =IF(iIndiRank!W27=0,"=",iIndiRank!W27) -> 1 | N35: =IF(ISERROR(iIndiRank!X27),"",iIndiRank!X27) -> FALSE
B36: =iIndiRank!O28 -> 1 | C36: =IF(B36=0,0,IF($C$14=1,IF(G36<$C$80,1,IF(G36>$C$80,4,2)),IF(G36<Summary!$B$80,1,IF(G36<=Summary!$B$81,2,(IF(G36<=Summary!$B$82,3,4)))))) -> 4 | E36: =iIndiRank!R28 -> 21 | F36: =iIndiRank!S28 -> New York | G36: =iIndiRank!T28 -> 81.01 | H36: =IF(ISNUMBER(iIndiRank!AA28),ROUND(iIndiRank!AA28,2),"") -> 81.01 | I36: ||||||||||||||||||||||||||| | K36: =IF(iIndiRank!U28=0,"=",iIndiRank!U28) -> 0.73 | L36: =IF(ISERROR(iIndiRank!V28),"",iIndiRank!V28) -> FALSE | M36: =IF(iIndiRank!W28=0,"=",iIndiRank!W28) -> -11 | N36: =IF(ISERROR(iIndiRank!X28),"",iIndiRank!X28) -> FALSE
B37: =iIndiRank!O29 -> 1 | C37: =IF(B37=0,0,IF($C$14=1,IF(G37<$C$80,1,IF(G37>$C$80,4,2)),IF(G37<Summary!$B$80,1,IF(G37<=Summary!$B$81,2,(IF(G37<=Summary!$B$82,3,4)))))) -> 4 | E37: =iIndiRank!R29 -> 22 | F37: =iIndiRank!S29 -> Taipei | G37: =iIndiRank!T29 -> 80.7 | H37: =IF(ISNUMBER(iIndiRank!AA29),ROUND(iIndiRank!AA29,2),"") -> 80.7 | I37: |||||||||||||||||||||||||| | K37: =IF(iIndiRank!U29=0,"=",iIndiRank!U29) -> 3.11 | L37: =IF(ISERROR(iIndiRank!V29),"",iIndiRank!V29) -> FALSE | M37: =IF(iIndiRank!W29=0,"=",iIndiRank!W29) -> -8 | N37: =IF(ISERROR(iIndiRank!X29),"",iIndiRank!X29) -> FALSE
B38: =iIndiRank!O30 -> 1 | C38: =IF(B38=0,0,IF($C$14=1,IF(G38<$C$80,1,IF(G38>$C$80,4,2)),IF(G38<Summary!$B$80,1,IF(G38<=Summary!$B$81,2,(IF(G38<=Summary!$B$82,3,4)))))) -> 4 | E38: =iIndiRank!R30 -> 23 | F38: =iIndiRank!S30 -> Washington DC | G38: =iIndiRank!T30 -> 80.37 | H38: =IF(ISNUMBER(iIndiRank!AA30),ROUND(iIndiRank!AA30,2),"") -> 80.37 | I38: |||||||||||||||||||||||||| | K38: =IF(iIndiRank!U30=0,"=",iIndiRank!U30) -> 3.93 | L38: =IF(ISERROR(iIndiRank!V30),"",iIndiRank!V30) -> FALSE | M38: =IF(iIndiRank!W30=0,"=",iIndiRank!W30) -> -5 | N38: =IF(ISERROR(iIndiRank!X30),"",iIndiRank!X30) -> FALSE
B39: =iIndiRank!O31 -> 1 | C39: =IF(B39=0,0,IF($C$14=1,IF(G39<$C$80,1,IF(G39>$C$80,4,2)),IF(G39<Summary!$B$80,1,IF(G39<=Summary!$B$81,2,(IF(G39<=Summary!$B$82,3,4)))))) -> 4 | E39: =iIndiRank!R31 -> 24 | F39: =iIndiRank!S31 -> Paris | G39: =iIndiRank!T31 -> 79.71 | H39: =IF(ISNUMBER(iIndiRank!AA31),ROUND(iIndiRank!AA31,2),"") -> 79.71 | I39: |||||||||||||||||||||||||| | K39: =IF(iIndiRank!U31=0,"=",iIndiRank!U31) -> 6.5 | L39: =IF(ISERROR(iIndiRank!V31),"",iIndiRank!V31) -> FALSE | M39: =IF(iIndiRank!W31=0,"=",iIndiRank!W31) -> -2 | N39: =IF(ISERROR(iIndiRank!X31),"",iIndiRank!X31) -> FALSE
B40: =iIndiRank!O32 -> 1 | C40: =IF(B40=0,0,IF($C$14=1,IF(G40<$C$80,1,IF(G40>$C$80,4,2)),IF(G40<Summary!$B$80,1,IF(G40<=Summary!$B$81,2,(IF(G40<=Summary!$B$82,3,4)))))) -> 4 | E40: =iIndiRank!R32 -> 25 | F40: =iIndiRank!S32 -> Milan | G40: =iIndiRank!T32 -> 79.3 | H40: =IF(ISNUMBER(iIndiRank!AA32),ROUND(iIndiRank!AA32,2),"") -> 79.3 | I40: |||||||||||||||||||||||||| | K40: =IF(iIndiRank!U32=0,"=",iIndiRank!U32) -> 6.72 | L40: =IF(ISERROR(iIndiRank!V32),"",iIndiRank!V32) -> FALSE | M40: =IF(iIndiRank!W32=0,"=",iIndiRank!W32) -> -1 | N40: =IF(ISERROR(iIndiRank!X32),"",iIndiRank!X32) -> FALSE
B41: =iIndiRank!O33 -> 1 | C41: =IF(B41=0,0,IF($C$14=1,IF(G41<$C$80,1,IF(G41>$C$80,4,2)),IF(G41<Summary!$B$80,1,IF(G41<=Summary!$B$81,2,(IF(G41<=Summary!$B$82,3,4)))))) -> 4 | E41: =iIndiRank!R33 -> 26 | F41: =iIndiRank!S33 -> Dallas * | G41: =iIndiRank!T33 -> 78.73 | H41: =IF(ISNUMBER(iIndiRank!AA33),ROUND(iIndiRank!AA33,2),"") -> 78.73 | I41: |||||||||||||||||||||||||| | K41: =IF(iIndiRank!U33=0,"=",iIndiRank!U33) ->  | L41: =IF(ISERROR(iIndiRank!V33),"",iIndiRank!V33) -> FALSE | M41: =IF(iIndiRank!W33=0,"=",iIndiRank!W33) ->  | N41: =IF(ISERROR(iIndiRank!X33),"",iIndiRank!X33) -> FALSE
B42: =iIndiRank!O34 -> 1 | C42: =IF(B42=0,0,IF($C$14=1,IF(G42<$C$80,1,IF(G42>$C$80,4,2)),IF(G42<Summary!$B$80,1,IF(G42<=Summary!$B$81,2,(IF(G42<=Summary!$B$82,3,4)))))) -> 4 | E42: =iIndiRank!R34 -> 27 | F42: =iIndiRank!S34 -> Rome | G42: =iIndiRank!T34 -> 78.67 | H42: =IF(ISNUMBER(iIndiRank!AA34),ROUND(iIndiRank!AA34,2),"") -> 78.67 | I42: |||||||||||||||||||||||||| | K42: =IF(iIndiRank!U34=0,"=",iIndiRank!U34) -> 8.69 | L42: =IF(ISERROR(iIndiRank!V34),"",iIndiRank!V34) -> FALSE | M42: =IF(iIndiRank!W34=0,"=",iIndiRank!W34) -> = | N42: =IF(ISERROR(iIndiRank!X34),"",iIndiRank!X34) -> FALSE
B43: =iIndiRank!O35 -> 1 | C43: =IF(B43=0,0,IF($C$14=1,IF(G43<$C$80,1,IF(G43>$C$80,4,2)),IF(G43<Summary!$B$80,1,IF(G43<=Summary!$B$81,2,(IF(G43<=Summary!$B$82,3,4)))))) -> 4 | E43: =iIndiRank!R35 -> 28 | F43: =iIndiRank!S35 -> Abu Dhabi | G43: =iIndiRank!T35 -> 76.91 | H43: =IF(ISNUMBER(iIndiRank!AA35),ROUND(iIndiRank!AA35,2),"") -> 76.91 | I43: ||||||||||||||||||||||||| | K43: =IF(iIndiRank!U35=0,"=",iIndiRank!U35) -> 4.18 | L43: =IF(ISERROR(iIndiRank!V35),"",iIndiRank!V35) -> FALSE | M43: =IF(iIndiRank!W35=0,"=",iIndiRank!W35) -> -5 | N43: =IF(ISERROR(iIndiRank!X35),"",iIndiRank!X35) -> FALSE
B44: =iIndiRank!O36 -> 1 | C44: =IF(B44=0,0,IF($C$14=1,IF(G44<$C$80,1,IF(G44>$C$80,4,2)),IF(G44<Summary!$B$80,1,IF(G44<=Summary!$B$81,2,(IF(G44<=Summary!$B$82,3,4)))))) -> 4 | E44: =iIndiRank!R36 -> 29 | F44: =iIndiRank!S36 -> Buenos Aires | G44: =iIndiRank!T36 -> 76.35 | H44: =IF(ISNUMBER(iIndiRank!AA36),ROUND(iIndiRank!AA36,2),"") -> 76.35 | I44: ||||||||||||||||||||||||| | K44: =IF(iIndiRank!U36=0,"=",iIndiRank!U36) -> 6.33 | L44: =IF(ISERROR(iIndiRank!V36),"",iIndiRank!V36) -> FALSE | M44: =IF(iIndiRank!W36=0,"=",iIndiRank!W36) -> -3 | N44: =IF(ISERROR(iIndiRank!X36),"",iIndiRank!X36) -> FALSE
B45: =iIndiRank!O37 -> 1 | C45: =IF(B45=0,0,IF($C$14=1,IF(G45<$C$80,1,IF(G45>$C$80,4,2)),IF(G45<Summary!$B$80,1,IF(G45<=Summary!$B$81,2,(IF(G45<=Summary!$B$82,3,4)))))) -> 3 | E45: =iIndiRank!R37 -> 30 | F45: =iIndiRank!S37 -> Doha | G45: =iIndiRank!T37 -> 73.59 | H45: =IF(ISNUMBER(iIndiRank!AA37),ROUND(iIndiRank!AA37,2),"") -> 73.59 | I45: |||||||||||||||||||||||| | K45: =IF(iIndiRank!U37=0,"=",iIndiRank!U37) -> 4.78 | L45: =IF(ISERROR(iIndiRank!V37),"",iIndiRank!V37) -> FALSE | M45: =IF(iIndiRank!W37=0,"=",iIndiRank!W37) -> -2 | N45: =IF(ISERROR(iIndiRank!X37),"",iIndiRank!X37) -> FALSE
B46: =iIndiRank!O38 -> 1 | C46: =IF(B46=0,0,IF($C$14=1,IF(G46<$C$80,1,IF(G46>$C$80,4,2)),IF(G46<Summary!$B$80,1,IF(G46<=Summary!$B$81,2,(IF(G46<=Summary!$B$82,3,4)))))) -> 3 | E46: =iIndiRank!R38 -> 31 | F46: =iIndiRank!S38 -> Kuala Lumpur * | G46: =iIndiRank!T38 -> 73.11 | H46: =IF(ISNUMBER(iIndiRank!AA38),ROUND(iIndiRank!AA38,2),"") -> 73.11 | I46: |||||||||||||||||||||||| | K46: =IF(iIndiRank!U38=0,"=",iIndiRank!U38) ->  | L46: =IF(ISERROR(iIndiRank!V38),"",iIndiRank!V38) -> FALSE | M46: =IF(iIndiRank!W38=0,"=",iIndiRank!W38) ->  | N46: =IF(ISERROR(iIndiRank!X38),"",iIndiRank!X38) -> FALSE
B47: =iIndiRank!O39 -> 1 | C47: =IF(B47=0,0,IF($C$14=1,IF(G47<$C$80,1,IF(G47>$C$80,4,2)),IF(G47<Summary!$B$80,1,IF(G47<=Summary!$B$81,2,(IF(G47<=Summary!$B$82,3,4)))))) -> 3 | E47: =iIndiRank!R39 -> 32 | F47: =iIndiRank!S39 -> Beijing | G47: =iIndiRank!T39 -> 72.06 | H47: =IF(ISNUMBER(iIndiRank!AA39),ROUND(iIndiRank!AA39,2),"") -> 72.06 | I47: |||||||||||||||||||||||| | K47: =IF(iIndiRank!U39=0,"=",iIndiRank!U39) -> 7.66 | L47: =IF(ISERROR(iIndiRank!V39),"",iIndiRank!V39) -> FALSE | M47: =IF(iIndiRank!W39=0,"=",iIndiRank!W39) -> = | N47: =IF(ISERROR(iIndiRank!X39),"",iIndiRank!X39) -> FALSE
B48: =iIndiRank!O40 -> 1 | C48: =IF(B48=0,0,IF($C$14=1,IF(G48<$C$80,1,IF(G48>$C$80,4,2)),IF(G48<Summary!$B$80,1,IF(G48<=Summary!$B$81,2,(IF(G48<=Summary!$B$82,3,4)))))) -> 3 | E48: =iIndiRank!R40 -> 33 | F48: =iIndiRank!S40 -> Athens * | G48: =iIndiRank!T40 -> 71.9 | H48: =IF(ISNUMBER(iIndiRank!AA40),ROUND(iIndiRank!AA40,2),"") -> 71.9 | I48: ||||||||||||||||||||||| | K48: =IF(iIndiRank!U40=0,"=",iIndiRank!U40) ->  | L48: =IF(ISERROR(iIndiRank!V40),"",iIndiRank!V40) -> FALSE | M48: =IF(iIndiRank!W40=0,"=",iIndiRank!W40) ->  | N48: =IF(ISERROR(iIndiRank!X40),"",iIndiRank!X40) -> FALSE
B49: =iIndiRank!O41 -> 1 | C49: =IF(B49=0,0,IF($C$14=1,IF(G49<$C$80,1,IF(G49>$C$80,4,2)),IF(G49<Summary!$B$80,1,IF(G49<=Summary!$B$81,2,(IF(G49<=Summary!$B$82,3,4)))))) -> 3 | E49: =iIndiRank!R41 -> 34 | F49: =iIndiRank!S41 -> Shanghai | G49: =iIndiRank!T41 -> 70.93 | H49: =IF(ISNUMBER(iIndiRank!AA41),ROUND(iIndiRank!AA41,2),"") -> 70.93 | I49: ||||||||||||||||||||||| | K49: =IF(iIndiRank!U41=0,"=",iIndiRank!U41) -> 4.4 | L49: =IF(ISERROR(iIndiRank!V41),"",iIndiRank!V41) -> FALSE | M49: =IF(iIndiRank!W41=0,"=",iIndiRank!W41) -> -4 | N49: =IF(ISERROR(iIndiRank!X41),"",iIndiRank!X41) -> FALSE
B50: =iIndiRank!O42 -> 1 | C50: =IF(B50=0,0,IF($C$14=1,IF(G50<$C$80,1,IF(G50>$C$80,4,2)),IF(G50<Summary!$B$80,1,IF(G50<=Summary!$B$81,2,(IF(G50<=Summary!$B$82,3,4)))))) -> 3 | E50: =iIndiRank!R42 -> 35 | F50: =iIndiRank!S42 -> Santiago | G50: =iIndiRank!T42 -> 70.03 | H50: =IF(ISNUMBER(iIndiRank!AA42),ROUND(iIndiRank!AA42,2),"") -> 70.03 | I50: ||||||||||||||||||||||| | K50: =IF(iIndiRank!U42=0,"=",iIndiRank!U42) -> 2.49 | L50: =IF(ISERROR(iIndiRank!V42),"",iIndiRank!V42) -> FALSE | M50: =IF(iIndiRank!W42=0,"=",iIndiRank!W42) -> -6 | N50: =IF(ISERROR(iIndiRank!X42),"",iIndiRank!X42) -> FALSE
B51: =iIndiRank!O43 -> 1 | C51: =IF(B51=0,0,IF($C$14=1,IF(G51<$C$80,1,IF(G51>$C$80,4,2)),IF(G51<Summary!$B$80,1,IF(G51<=Summary!$B$81,2,(IF(G51<=Summary!$B$82,3,4)))))) -> 3 | E51: =iIndiRank!R43 -> 36 | F51: =iIndiRank!S43 -> Kuwait City | G51: =iIndiRank!T43 -> 67.61 | H51: =IF(ISNUMBER(iIndiRank!AA43),ROUND(iIndiRank!AA43,2),"") -> 67.61 | I51: |||||||||||||||||||||| | K51: =IF(iIndiRank!U43=0,"=",iIndiRank!U43) -> 5.09 | L51: =IF(ISERROR(iIndiRank!V43),"",iIndiRank!V43) -> FALSE | M51: =IF(iIndiRank!W43=0,"=",iIndiRank!W43) -> -1 | N51: =IF(ISERROR(iIndiRank!X43),"",iIndiRank!X43) -> FALSE
B52: =iIndiRank!O44 -> 1 | C52: =IF(B52=0,0,IF($C$14=1,IF(G52<$C$80,1,IF(G52>$C$80,4,2)),IF(G52<Summary!$B$80,1,IF(G52<=Summary!$B$81,2,(IF(G52<=Summary!$B$82,3,4)))))) -> 3 | E52: =iIndiRank!R44 -> 37 | F52: =iIndiRank!S44 -> Rio de Janeiro | G52: =iIndiRank!T44 -> 66.54 | H52: =IF(ISNUMBER(iIndiRank!AA44),ROUND(iIndiRank!AA44,2),"") -> 66.54 | I52: |||||||||||||||||||||| | K52: =IF(iIndiRank!U44=0,"=",iIndiRank!U44) -> 2.5 | L52: =IF(ISERROR(iIndiRank!V44),"",iIndiRank!V44) -> FALSE | M52: =IF(iIndiRank!W44=0,"=",iIndiRank!W44) -> -4 | N52: =IF(ISERROR(iIndiRank!X44),"",iIndiRank!X44) -> FALSE
B53: =iIndiRank!O45 -> 1 | C53: =IF(B53=0,0,IF($C$14=1,IF(G53<$C$80,1,IF(G53>$C$80,4,2)),IF(G53<Summary!$B$80,1,IF(G53<=Summary!$B$81,2,(IF(G53<=Summary!$B$82,3,4)))))) -> 3 | E53: =iIndiRank!R45 -> 38 | F53: =iIndiRank!S45 -> Sao Paulo | G53: =iIndiRank!T45 -> 66.3 | H53: =IF(ISNUMBER(iIndiRank!AA45),ROUND(iIndiRank!AA45,2),"") -> 66.3 | I53: |||||||||||||||||||||| | K53: =IF(iIndiRank!U45=0,"=",iIndiRank!U45) -> 3.75 | L53: =IF(ISERROR(iIndiRank!V45),"",iIndiRank!V45) -> FALSE | M53: =IF(iIndiRank!W45=0,"=",iIndiRank!W45) -> -4 | N53: =IF(ISERROR(iIndiRank!X45),"",iIndiRank!X45) -> FALSE
B54: =iIndiRank!O46 -> 1 | C54: =IF(B54=0,0,IF($C$14=1,IF(G54<$C$80,1,IF(G54>$C$80,4,2)),IF(G54<Summary!$B$80,1,IF(G54<=Summary!$B$81,2,(IF(G54<=Summary!$B$82,3,4)))))) -> 3 | E54: =iIndiRank!R46 -> 39 | F54: =iIndiRank!S46 -> Mexico City | G54: =iIndiRank!T46 -> 65.52 | H54: =IF(ISNUMBER(iIndiRank!AA46),ROUND(iIndiRank!AA46,2),"") -> 65.52 | I54: ||||||||||||||||||||| | K54: =IF(iIndiRank!U46=0,"=",iIndiRank!U46) -> 3.28 | L54: =IF(ISERROR(iIndiRank!V46),"",iIndiRank!V46) -> FALSE | M54: =IF(iIndiRank!W46=0,"=",iIndiRank!W46) -> -3 | N54: =IF(ISERROR(iIndiRank!X46),"",iIndiRank!X46) -> FALSE
B55: =iIndiRank!O47 -> 1 | C55: =IF(B55=0,0,IF($C$14=1,IF(G55<$C$80,1,IF(G55>$C$80,4,2)),IF(G55<Summary!$B$80,1,IF(G55<=Summary!$B$81,2,(IF(G55<=Summary!$B$82,3,4)))))) -> 3 | E55: =iIndiRank!R47 -> 40 | F55: =iIndiRank!S47 -> Istanbul | G55: =iIndiRank!T47 -> 65.23 | H55: =IF(ISNUMBER(iIndiRank!AA47),ROUND(iIndiRank!AA47,2),"") -> 65.23 | I55: ||||||||||||||||||||| | K55: =IF(iIndiRank!U47=0,"=",iIndiRank!U47) -> 5.42 | L55: =IF(ISERROR(iIndiRank!V47),"",iIndiRank!V47) -> FALSE | M55: =IF(iIndiRank!W47=0,"=",iIndiRank!W47) -> -1 | N55: =IF(ISERROR(iIndiRank!X47),"",iIndiRank!X47) -> FALSE
B56: =iIndiRank!O48 -> 1 | C56: =IF(B56=0,0,IF($C$14=1,IF(G56<$C$80,1,IF(G56>$C$80,4,2)),IF(G56<Summary!$B$80,1,IF(G56<=Summary!$B$81,2,(IF(G56<=Summary!$B$82,3,4)))))) -> 3 | E56: =iIndiRank!R48 -> 41 | F56: =iIndiRank!S48 -> Moscow | G56: =iIndiRank!T48 -> 63.99 | H56: =IF(ISNUMBER(iIndiRank!AA48),ROUND(iIndiRank!AA48,2),"") -> 63.99 | I56: ||||||||||||||||||||| | K56: =IF(iIndiRank!U48=0,"=",iIndiRank!U48) -> 4.4 | L56: =IF(ISERROR(iIndiRank!V48),"",iIndiRank!V48) -> FALSE | M56: =IF(iIndiRank!W48=0,"=",iIndiRank!W48) -> -1 | N56: =IF(ISERROR(iIndiRank!X48),"",iIndiRank!X48) -> FALSE
B57: =iIndiRank!O49 -> 1 | C57: =IF(B57=0,0,IF($C$14=1,IF(G57<$C$80,1,IF(G57>$C$80,4,2)),IF(G57<Summary!$B$80,1,IF(G57<=Summary!$B$81,2,(IF(G57<=Summary!$B$82,3,4)))))) -> 3 | E57: =iIndiRank!R49 -> 42 | F57: =iIndiRank!S49 -> Jeddah * | G57: =iIndiRank!T49 -> 62.8 | H57: =IF(ISNUMBER(iIndiRank!AA49),ROUND(iIndiRank!AA49,2),"") -> 62.8 | I57: |||||||||||||||||||| | K57: =IF(iIndiRank!U49=0,"=",iIndiRank!U49) ->  | L57: =IF(ISERROR(iIndiRank!V49),"",iIndiRank!V49) -> FALSE | M57: =IF(iIndiRank!W49=0,"=",iIndiRank!W49) ->  | N57: =IF(ISERROR(iIndiRank!X49),"",iIndiRank!X49) -> FALSE
B58: =iIndiRank!O50 -> 1 | C58: =IF(B58=0,0,IF($C$14=1,IF(G58<$C$80,1,IF(G58>$C$80,4,2)),IF(G58<Summary!$B$80,1,IF(G58<=Summary!$B$81,2,(IF(G58<=Summary!$B$82,3,4)))))) -> 3 | E58: =iIndiRank!R50 -> 43 | F58: =iIndiRank!S50 -> Delhi | G58: =iIndiRank!T50 -> 62.34 | H58: =IF(ISNUMBER(iIndiRank!AA50),ROUND(iIndiRank!AA50,2),"") -> 62.34 | I58: |||||||||||||||||||| | K58: =IF(iIndiRank!U50=0,"=",iIndiRank!U50) -> 0.91 | L58: =IF(ISERROR(iIndiRank!V50),"",iIndiRank!V50) -> FALSE | M58: =IF(iIndiRank!W50=0,"=",iIndiRank!W50) -> -6 | N58: =IF(ISERROR(iIndiRank!X50),"",iIndiRank!X50) -> FALSE
B59: =iIndiRank!O51 -> 1 | C59: =IF(B59=0,0,IF($C$14=1,IF(G59<$C$80,1,IF(G59>$C$80,4,2)),IF(G59<Summary!$B$80,1,IF(G59<=Summary!$B$81,2,(IF(G59<=Summary!$B$82,3,4)))))) -> 3 | E59: =iIndiRank!R51 -> 44 | F59: =iIndiRank!S51 -> Lima | G59: =iIndiRank!T51 -> 61.9 | H59: =IF(ISNUMBER(iIndiRank!AA51),ROUND(iIndiRank!AA51,2),"") -> 61.9 | I59: |||||||||||||||||||| | K59: =IF(iIndiRank!U51=0,"=",iIndiRank!U51) -> -3.29 | L59: =IF(ISERROR(iIndiRank!V51),"",iIndiRank!V51) -> FALSE | M59: =IF(iIndiRank!W51=0,"=",iIndiRank!W51) -> -13 | N59: =IF(ISERROR(iIndiRank!X51),"",iIndiRank!X51) -> FALSE
B60: =iIndiRank!O52 -> 1 | C60: =IF(B60=0,0,IF($C$14=1,IF(G60<$C$80,1,IF(G60>$C$80,4,2)),IF(G60<Summary!$B$80,1,IF(G60<=Summary!$B$81,2,(IF(G60<=Summary!$B$82,3,4)))))) -> 3 | E60: =iIndiRank!R52 -> 45 | F60: =iIndiRank!S52 -> Mumbai | G60: =iIndiRank!T52 -> 61.84 | H60: =IF(ISNUMBER(iIndiRank!AA52),ROUND(iIndiRank!AA52,2),"") -> 61.84 | I60: |||||||||||||||||||| | K60: =IF(iIndiRank!U52=0,"=",iIndiRank!U52) -> 1.87 | L60: =IF(ISERROR(iIndiRank!V52),"",iIndiRank!V52) -> FALSE | M60: =IF(iIndiRank!W52=0,"=",iIndiRank!W52) -> -7 | N60: =IF(ISERROR(iIndiRank!X52),"",iIndiRank!X52) -> FALSE
B61: =iIndiRank!O53 -> 1 | C61: =IF(B61=0,0,IF($C$14=1,IF(G61<$C$80,1,IF(G61>$C$80,4,2)),IF(G61<Summary!$B$80,1,IF(G61<=Summary!$B$81,2,(IF(G61<=Summary!$B$82,3,4)))))) -> 3 | E61: =iIndiRank!R53 -> 46 | F61: =iIndiRank!S53 -> Bogota * | G61: =iIndiRank!T53 -> 61.36 | H61: =IF(ISNUMBER(iIndiRank!AA53),ROUND(iIndiRank!AA53,2),"") -> 61.36 | I61: |||||||||||||||||||| | K61: =IF(iIndiRank!U53=0,"=",iIndiRank!U53) ->  | L61: =IF(ISERROR(iIndiRank!V53),"",iIndiRank!V53) -> FALSE | M61: =IF(iIndiRank!W53=0,"=",iIndiRank!W53) ->  | N61: =IF(ISERROR(iIndiRank!X53),"",iIndiRank!X53) -> FALSE
B62: =iIndiRank!O54 -> 1 | C62: =IF(B62=0,0,IF($C$14=1,IF(G62<$C$80,1,IF(G62>$C$80,4,2)),IF(G62<Summary!$B$80,1,IF(G62<=Summary!$B$81,2,(IF(G62<=Summary!$B$82,3,4)))))) -> 3 | E62: =iIndiRank!R54 -> 47 | F62: =iIndiRank!S54 -> Riyadh | G62: =iIndiRank!T54 -> 61.23 | H62: =IF(ISNUMBER(iIndiRank!AA54),ROUND(iIndiRank!AA54,2),"") -> 61.23 | I62: |||||||||||||||||||| | K62: =IF(iIndiRank!U54=0,"=",iIndiRank!U54) -> 5.39 | L62: =IF(ISERROR(iIndiRank!V54),"",iIndiRank!V54) -> FALSE | M62: =IF(iIndiRank!W54=0,"=",iIndiRank!W54) -> -4 | N62: =IF(ISERROR(iIndiRank!X54),"",iIndiRank!X54) -> FALSE
B63: =iIndiRank!O55 -> 1 | C63: =IF(B63=0,0,IF($C$14=1,IF(G63<$C$80,1,IF(G63>$C$80,4,2)),IF(G63<Summary!$B$80,1,IF(G63<=Summary!$B$81,2,(IF(G63<=Summary!$B$82,3,4)))))) -> 3 | E63: =iIndiRank!R55 -> 48 | F63: =iIndiRank!S55 -> Casablanca * | G63: =iIndiRank!T55 -> 61.2 | H63: =IF(ISNUMBER(iIndiRank!AA55),ROUND(iIndiRank!AA55,2),"") -> 61.2 | I63: |||||||||||||||||||| | K63: =IF(iIndiRank!U55=0,"=",iIndiRank!U55) ->  | L63: =IF(ISERROR(iIndiRank!V55),"",iIndiRank!V55) -> FALSE | M63: =IF(iIndiRank!W55=0,"=",iIndiRank!W55) ->  | N63: =IF(ISERROR(iIndiRank!X55),"",iIndiRank!X55) -> FALSE
B64: =iIndiRank!O56 -> 1 | C64: =IF(B64=0,0,IF($C$14=1,IF(G64<$C$80,1,IF(G64>$C$80,4,2)),IF(G64<Summary!$B$80,1,IF(G64<=Summary!$B$81,2,(IF(G64<=Summary!$B$82,3,4)))))) -> 3 | E64: =iIndiRank!R56 -> 49 | F64: =iIndiRank!S56 -> Bangkok | G64: =iIndiRank!T56 -> 60.05 | H64: =IF(ISNUMBER(iIndiRank!AA56),ROUND(iIndiRank!AA56,2),"") -> 60.05 | I64: |||||||||||||||||||| | K64: =IF(iIndiRank!U56=0,"=",iIndiRank!U56) -> 2.57 | L64: =IF(ISERROR(iIndiRank!V56),"",iIndiRank!V56) -> FALSE | M64: =IF(iIndiRank!W56=0,"=",iIndiRank!W56) -> -7 | N64: =IF(ISERROR(iIndiRank!X56),"",iIndiRank!X56) -> FALSE
B65: =iIndiRank!O57 -> 1 | C65: =IF(B65=0,0,IF($C$14=1,IF(G65<$C$80,1,IF(G65>$C$80,4,2)),IF(G65<Summary!$B$80,1,IF(G65<=Summary!$B$81,2,(IF(G65<=Summary!$B$82,3,4)))))) -> 3 | E65: =iIndiRank!R57 -> 50 | F65: =iIndiRank!S57 -> Johannesburg | G65: =iIndiRank!T57 -> 59.17 | H65: =IF(ISNUMBER(iIndiRank!AA57),ROUND(iIndiRank!AA57,2),"") -> 59.17 | I65: ||||||||||||||||||| | K65: =IF(iIndiRank!U57=0,"=",iIndiRank!U57) -> -0.15 | L65: =IF(ISERROR(iIndiRank!V57),"",iIndiRank!V57) -> FALSE | M65: =IF(iIndiRank!W57=0,"=",iIndiRank!W57) -> -9 | N65: =IF(ISERROR(iIndiRank!X57),"",iIndiRank!X57) -> FALSE
B66: =iIndiRank!O58 -> 1 | C66: =IF(B66=0,0,IF($C$14=1,IF(G66<$C$80,1,IF(G66>$C$80,4,2)),IF(G66<Summary!$B$80,1,IF(G66<=Summary!$B$81,2,(IF(G66<=Summary!$B$82,3,4)))))) -> 3 | E66: =iIndiRank!R58 -> 51 | F66: =iIndiRank!S58 -> Cairo * | G66: =iIndiRank!T58 -> 58.33 | H66: =IF(ISNUMBER(iIndiRank!AA58),ROUND(iIndiRank!AA58,2),"") -> 58.33 | I66: ||||||||||||||||||| | K66: =IF(iIndiRank!U58=0,"=",iIndiRank!U58) ->  | L66: =IF(ISERROR(iIndiRank!V58),"",iIndiRank!V58) -> FALSE | M66: =IF(iIndiRank!W58=0,"=",iIndiRank!W58) ->  | N66: =IF(ISERROR(iIndiRank!X58),"",iIndiRank!X58) -> FALSE
B67: =iIndiRank!O59 -> 1 | C67: =IF(B67=0,0,IF($C$14=1,IF(G67<$C$80,1,IF(G67>$C$80,4,2)),IF(G67<Summary!$B$80,1,IF(G67<=Summary!$B$81,2,(IF(G67<=Summary!$B$82,3,4)))))) -> 3 | E67: =iIndiRank!R59 -> 52 | F67: =iIndiRank!S59 -> Tehran | G67: =iIndiRank!T59 -> 56.49 | H67: =IF(ISNUMBER(iIndiRank!AA59),ROUND(iIndiRank!AA59,2),"") -> 56.49 | I67: |||||||||||||||||| | K67: =IF(iIndiRank!U59=0,"=",iIndiRank!U59) -> 2.91 | L67: =IF(ISERROR(iIndiRank!V59),"",iIndiRank!V59) -> FALSE | M67: =IF(iIndiRank!W59=0,"=",iIndiRank!W59) -> -7 | N67: =IF(ISERROR(iIndiRank!X59),"",iIndiRank!X59) -> FALSE
B68: =iIndiRank!O60 -> 1 | C68: =IF(B68=0,0,IF($C$14=1,IF(G68<$C$80,1,IF(G68>$C$80,4,2)),IF(G68<Summary!$B$80,1,IF(G68<=Summary!$B$81,2,(IF(G68<=Summary!$B$82,3,4)))))) -> 3 | E68: =iIndiRank!R60 -> 53 | F68: =iIndiRank!S60 -> Quito * | G68: =iIndiRank!T60 -> 56.39 | H68: =IF(ISNUMBER(iIndiRank!AA60),ROUND(iIndiRank!AA60,2),"") -> 56.39 | I68: |||||||||||||||||| | K68: =IF(iIndiRank!U60=0,"=",iIndiRank!U60) ->  | L68: =IF(ISERROR(iIndiRank!V60),"",iIndiRank!V60) -> FALSE | M68: =IF(iIndiRank!W60=0,"=",iIndiRank!W60) ->  | N68: =IF(ISERROR(iIndiRank!X60),"",iIndiRank!X60) -> FALSE
B69: =iIndiRank!O61 -> 1 | C69: =IF(B69=0,0,IF($C$14=1,IF(G69<$C$80,1,IF(G69>$C$80,4,2)),IF(G69<Summary!$B$80,1,IF(G69<=Summary!$B$81,2,(IF(G69<=Summary!$B$82,3,4)))))) -> 3 | E69: =iIndiRank!R61 -> 54 | F69: =iIndiRank!S61 -> Caracas * | G69: =iIndiRank!T61 -> 55.22 | H69: =IF(ISNUMBER(iIndiRank!AA61),ROUND(iIndiRank!AA61,2),"") -> 55.22 | I69: |||||||||||||||||| | K69: =IF(iIndiRank!U61=0,"=",iIndiRank!U61) ->  | L69: =IF(ISERROR(iIndiRank!V61),"",iIndiRank!V61) -> FALSE | M69: =IF(iIndiRank!W61=0,"=",iIndiRank!W61) ->  | N69: =IF(ISERROR(iIndiRank!X61),"",iIndiRank!X61) -> FALSE
B70: =iIndiRank!O62 -> 1 | C70: =IF(B70=0,0,IF($C$14=1,IF(G70<$C$80,1,IF(G70>$C$80,4,2)),IF(G70<Summary!$B$80,1,IF(G70<=Summary!$B$81,2,(IF(G70<=Summary!$B$82,3,4)))))) -> 3 | E70: =iIndiRank!R62 -> 55 | F70: =iIndiRank!S62 -> Manila * | G70: =iIndiRank!T62 -> 54.86 | H70: =IF(ISNUMBER(iIndiRank!AA62),ROUND(iIndiRank!AA62,2),"") -> 54.86 | I70: |||||||||||||||||| | K70: =IF(iIndiRank!U62=0,"=",iIndiRank!U62) ->  | L70: =IF(ISERROR(iIndiRank!V62),"",iIndiRank!V62) -> FALSE | M70: =IF(iIndiRank!W62=0,"=",iIndiRank!W62) ->  | N70: =IF(ISERROR(iIndiRank!X62),"",iIndiRank!X62) -> FALSE
B71: =iIndiRank!O63 -> 1 | C71: =IF(B71=0,0,IF($C$14=1,IF(G71<$C$80,1,IF(G71>$C$80,4,2)),IF(G71<Summary!$B$80,1,IF(G71<=Summary!$B$81,2,(IF(G71<=Summary!$B$82,3,4)))))) -> 3 | E71: =iIndiRank!R63 -> 56 | F71: =iIndiRank!S63 -> Ho Chi Minh City | G71: =iIndiRank!T63 -> 54.33 | H71: =IF(ISNUMBER(iIndiRank!AA63),ROUND(iIndiRank!AA63,2),"") -> 54.33 | I71: |||||||||||||||||| | K71: =IF(iIndiRank!U63=0,"=",iIndiRank!U63) -> 1.26 | L71: =IF(ISERROR(iIndiRank!V63),"",iIndiRank!V63) -> FALSE | M71: =IF(iIndiRank!W63=0,"=",iIndiRank!W63) -> -10 | N71: =IF(ISERROR(iIndiRank!X63),"",iIndiRank!X63) -> FALSE
B72: =iIndiRank!O64 -> 1 | C72: =IF(B72=0,0,IF($C$14=1,IF(G72<$C$80,1,IF(G72>$C$80,4,2)),IF(G72<Summary!$B$80,1,IF(G72<=Summary!$B$81,2,(IF(G72<=Summary!$B$82,3,4)))))) -> 3 | E72: =iIndiRank!R64 -> 57 | F72: =iIndiRank!S64 -> Jakarta | G72: =iIndiRank!T64 -> 53.39 | H72: =IF(ISNUMBER(iIndiRank!AA64),ROUND(iIndiRank!AA64,2),"") -> 53.39 | I72: ||||||||||||||||| | K72: =IF(iIndiRank!U64=0,"=",iIndiRank!U64) -> -1.11 | L72: =IF(ISERROR(iIndiRank!V64),"",iIndiRank!V64) -> FALSE | M72: =IF(iIndiRank!W64=0,"=",iIndiRank!W64) -> -13 | N72: =IF(ISERROR(iIndiRank!X64),"",iIndiRank!X64) -> FALSE
B73: =iIndiRank!O65 -> 1 | C73: =IF(B73=0,0,IF($C$14=1,IF(G73<$C$80,1,IF(G73>$C$80,4,2)),IF(G73<Summary!$B$80,1,IF(G73<=Summary!$B$81,2,(IF(G73<=Summary!$B$82,3,4)))))) -> 2 | E73: =iIndiRank!R65 -> 58 | F73: =iIndiRank!S65 -> Dhaka * | G73: =iIndiRank!T65 -> 47.37 | H73: =IF(ISNUMBER(iIndiRank!AA65),ROUND(iIndiRank!AA65,2),"") -> 47.37 | I73: ||||||||||||||| | K73: =IF(iIndiRank!U65=0,"=",iIndiRank!U65) ->  | L73: =IF(ISERROR(iIndiRank!V65),"",iIndiRank!V65) -> FALSE | M73: =IF(iIndiRank!W65=0,"=",iIndiRank!W65) ->  | N73: =IF(ISERROR(iIndiRank!X65),"",iIndiRank!X65) -> FALSE
B74: =iIndiRank!O66 -> 1 | C74: =IF(B74=0,0,IF($C$14=1,IF(G74<$C$80,1,IF(G74>$C$80,4,2)),IF(G74<Summary!$B$80,1,IF(G74<=Summary!$B$81,2,(IF(G74<=Summary!$B$82,3,4)))))) -> 2 | E74: =iIndiRank!R66 -> 59 | F74: =iIndiRank!S66 -> Yangon * | G74: =iIndiRank!T66 -> 46.47 | H74: =IF(ISNUMBER(iIndiRank!AA66),ROUND(iIndiRank!AA66,2),"") -> 46.47 | I74: ||||||||||||||| | K74: =IF(iIndiRank!U66=0,"=",iIndiRank!U66) ->  | L74: =IF(ISERROR(iIndiRank!V66),"",iIndiRank!V66) -> FALSE | M74: =IF(iIndiRank!W66=0,"=",iIndiRank!W66) ->  | N74: =IF(ISERROR(iIndiRank!X66),"",iIndiRank!X66) -> FALSE
B75: =iIndiRank!O67 -> 1 | C75: =IF(B75=0,0,IF($C$14=1,IF(G75<$C$80,1,IF(G75>$C$80,4,2)),IF(G75<Summary!$B$80,1,IF(G75<=Summary!$B$81,2,(IF(G75<=Summary!$B$82,3,4)))))) -> 2 | E75: =iIndiRank!R67 -> 60 | F75: =iIndiRank!S67 -> Karachi * | G75: =iIndiRank!T67 -> 38.77 | H75: =IF(ISNUMBER(iIndiRank!AA67),ROUND(iIndiRank!AA67,2),"") -> 38.77 | I75: |||||||||||| | K75: =IF(iIndiRank!U67=0,"=",iIndiRank!U67) ->  | L75: =IF(ISERROR(iIndiRank!V67),"",iIndiRank!V67) -> FALSE | M75: =IF(iIndiRank!W67=0,"=",iIndiRank!W67) ->  | N75: =IF(ISERROR(iIndiRank!X67),"",iIndiRank!X67) -> FALSE
B76: =iIndiRank!O68 -> 0 | C76: =IF(B76=0,0,IF($C$14=1,IF(G76<$C$80,1,IF(G76>$C$80,4,2)),IF(G76<Summary!$B$80,1,IF(G76<=Summary!$B$81,2,(IF(G76<=Summary!$B$82,3,4)))))) -> 0 | E76: =iIndiRank!R68 ->  | F76: =iIndiRank!S68 ->  | G76: =iIndiRank!T68 ->  | H76: =IF(ISNUMBER(iIndiRank!AA68),ROUND(iIndiRank!AA68,2),"") ->  | K76: =IF(iIndiRank!U68=0,"=",iIndiRank!U68) ->  | L76: =IF(ISERROR(iIndiRank!V68),"",iIndiRank!V68) -> FALSE | M76: =IF(iIndiRank!W68=0,"=",iIndiRank!W68) ->  | N76: =IF(ISERROR(iIndiRank!X68),"",iIndiRank!X68) -> FALSE
C80: =Summary!C80 -> 1

Sheet Scatter
B1: =uxb_works!B90 -> Safe Cities Index: 2017 | BA1: 2 | BB1: 1
BA2: 1 | BB2: 3
B5: =iScatter!G1 -> OVERALL SCORE | I5: ="Scores relating to "&uxb_works!C46&" index" -> Scores relating to 2017 index | R5: =iScatter!G2 -> OVERALL SCORE
B6: =IF(iScatter!B1=1,"",iScatter!F1) ->  | R6: =IF(iScatter!B2=1,"",iScatter!F2) -> 
Y25: CORRELATION(X,Y)
X26: =IF(ISERROR(iScatter!B14),"n/a",iScatter!B14) -> 1

Sheet Scatter_InOut
B1: =uxb_works!B90 -> Safe Cities Index: 2017 | BA1: 2 | BB1: 2
BA2: 1 | BB2: 3
B5: =iScatter_InOut!F1 -> 1) DIGITAL SECURITY | I5: ="Scores relating to "&uxb_works!C46&" index" -> Scores relating to 2017 index
K6: =iRatios!C2 -> Select a city
J8: =IF(K8="",0,1) -> 1 | K8: INPUT INDICATORS
J9: =IF(K9="",0,1) -> 1 | K9: =iRatios!O31 -> 1.1.1) Privacy policy | L9: =iRatios!P31 -> 
J10: 1 | K10: =iRatios!O32 -> 1.1.2) Citizen awareness of digital threats | L10: =iRatios!P32 -> 
J11: 1 | K11: =iRatios!O33 -> 1.1.3) Public-private partnerships | L11: =iRatios!P33 -> 
J12: 1 | K12: =iRatios!O34 -> 1.1.4) Level of technology employed | L12: =iRatios!P34 -> 
J13: 1 | K13: =iRatios!O35 -> 1.1.5) Dedicated cyber security teams | L13: =iRatios!P35 -> 
J14: 0 | K14: =iRatios!O36 ->  | L14: =iRatios!P36 -> 
J15: 0 | K15: =iRatios!O37 ->  | L15: =iRatios!P37 -> 
J16: 0 | K16: =iRatios!O38 ->  | L16: =iRatios!P38 -> 
J17: 1 | K17: OUTPUT INDICATORS | L17: =iRatios!P39 -> 
J18: 1 | K18: =iRatios!O42 -> 1.2.1) Frequency of identity theft | L18: =iRatios!P42 -> 
J19: 1 | K19: =iRatios!O43 -> 1.2.2) Percentage of computers infected | L19: =iRatios!P43 -> 
J20: 1 | K20: =iRatios!O44 -> 1.2.3) Percentage with Internet access | L20: =iRatios!P44 -> 
J21: 0 | K21: =iRatios!O45 ->  | L21: =iRatios!P45 -> 
J22: 0 | K22: =iRatios!O46 ->  | L22: =iRatios!P46 -> 
J23: 0 | K23: =iRatios!O47 ->  | L23: =iRatios!P47 -> 
J24: 0 | K24: =iRatios!O48 ->  | L24: =iRatios!P48 -> 
J25: 0 | K25: =iRatios!O49 ->  | L25: =iRatios!P49 -> 
J26: 0 | K26: =iRatios!O50 ->  | L26: =iRatios!P50 -> 
J27: 0 | K27: =iRatios!O51 ->  | L27: =iRatios!P51 -> 
J28: =IF(K28="",0,1) -> 0 | K28: =iRatios!O52 ->  | L28: =iRatios!P52 -> 
J29: 0 | K29: =iRatios!O53 ->  | L29: =iRatios!P53 -> 

Sheet Scores
N1: =uxb_works!$B$90 -> Safe Cities Index: 2017 | BA1: 2 | BB1: 3
P4: =Data_2017!J4 -> 1 | Q4: =Data_2017!K4 -> 2 | R4: =Data_2017!L4 -> 3 | S4: =Data_2017!M4 -> 4 | T4: =Data_2017!N4 -> 5 | U4: =Data_2017!O4 -> 6 | V4: =Data_2017!P4 -> 7 | W4: =Data_2017!Q4 -> 8 | X4: =Data_2017!R4 -> 9 | Y4: =Data_2017!S4 -> 10 | Z4: =Data_2017!T4 -> 11 | AA4: =Data_2017!U4 -> 12 | AB4: =Data_2017!V4 -> 13 | AC4: =Data_2017!W4 -> 14 | AD4: =Data_2017!X4 -> 15 | AE4: =Data_2017!Y4 -> 16 | AF4: =Data_2017!Z4 -> 17 | AG4: =Data_2017!AA4 -> 18 | AH4: =Data_2017!AB4 -> 19 | AI4: =Data_2017!AC4 -> 20 | AJ4: =Data_2017!AD4 -> 21 | AK4: =Data_2017!AE4 -> 22 | AL4: =Data_2017!AF4 -> 23 | AM4: =Data_2017!AG4 -> 24 | AN4: =Data_2017!AH4 -> 25 | AO4: =Data_2017!AI4 -> 26 | AP4: =Data_2017!AJ4 -> 27 | AQ4: =Data_2017!AK4 -> 28 | AR4: =Data_2017!AL4 -> 29 | AS4: =Data_2017!AM4 -> 30 | AT4: =Data_2017!AN4 -> 31 | AU4: =Data_2017!AO4 -> 32 | AV4: =Data_2017!AP4 -> 33 | AW4: =Data_2017!AQ4 -> 34 | AX4: =Data_2017!AR4 -> 35 | AY4: =Data_2017!AS4 -> 36 | AZ4: =Data_2017!AT4 -> 37 | BA4: =Data_2017!AU4 -> 38 | BB4: =Data_2017!AV4 -> 39 | BC4: =Data_2017!AW4 -> 40 | BD4: =Data_2017!AX4 -> 41 | BE4: =Data_2017!AY4 -> 42 | BF4: =Data_2017!AZ4 -> 43 | BG4: =Data_2017!BA4 -> 44 | BH4: =Data_2017!BB4 -> 45 | BI4: =Data_2017!BC4 -> 46 | BJ4: =Data_2017!BD4 -> 47 | BK4: =Data_2017!BE4 -> 48 | BL4: =Data_2017!BF4 -> 49 | BM4: =Data_2017!BG4 -> 50 | BN4: =Data_2017!BH4 -> 51 | BO4: =Data_2017!BI4 -> 52 | BP4: =Data_2017!BJ4 -> 53 | BQ4: =Data_2017!BK4 -> 54 | BR4: =Data_2017!BL4 -> 55 | BS4: =Data_2017!BM4 -> 56 | BT4: =Data_2017!BN4 -> 57 | BU4: =Data_2017!BO4 -> 58 | BV4: =Data_2017!BP4 -> 59 | BW4: =Data_2017!BQ4 -> 60 | BX4: =Data_2017!BR4 -> 61
B5: =tblIndicators!A1 -> ID | F5: =tblIndicators!F1 -> DEPTH | N5: ="Indicators: "&uxb_works!C46 -> Indicators: 2017 | O5: Weight | P5: =CHOOSE(uxb_works!$B$46,Scores_2014_O!P5,Scores_2014_N!P5,Scores_2017!P5) -> Abu Dhabi | Q5: =CHOOSE(uxb_works!$B$46,Scores_2014_O!Q5,Scores_2014_N!Q5,Scores_2017!Q5) -> Amsterdam | R5: =CHOOSE(uxb_works!$B$46,Scores_2014_O!R5,Scores_2014_N!R5,Scores_2017!R5) -> Athens | S5: =CHOOSE(uxb_works!$B$46,Scores_2014_O!S5,Scores_2014_N!S5,Scores_2017!S5) -> Bangkok | T5: =CHOOSE(uxb_works!$B$46,Scores_2014_O!T5,Scores_2014_N!T5,Scores_2017!T5) -> Barcelona | U5: =CHOOSE(uxb_works!$B$46,Scores_2014_O!U5,Scores_2014_N!U5,Scores_2017!U5) -> Beijing | V5: =CHOOSE(uxb_works!$B$46,Scores_2014_O!V5,Scores_2014_N!V5,Scores_2017!V5) -> Bogota | W5: =CHOOSE(uxb_works!$B$46,Scores_2014_O!W5,Scores_2014_N!W5,Scores_2017!W5) -> Brussels | X5: =CHOOSE(uxb_works!$B$46,Scores_2014_O!X5,Scores_2014_N!X5,Scores_2017!X5) -> Buenos Aires | Y5: =CHOOSE(uxb_works!$B$46,Scores_2014_O!Z5,Scores_2014_N!Y5,Scores_2017!Y5) -> Cairo | Z5: =CHOOSE(uxb_works!$B$46,Scores_2014_O!AA5,Scores_2014_N!Z5,Scores_2017!Z5) -> Caracas | AA5: =CHOOSE(uxb_works!$B$46,Scores_2014_O!AB5,Scores_2014_N!AA5,Scores_2017!AA5) -> Casablanca | AB5: =CHOOSE(uxb_works!$B$46,Scores_2014_O!AC5,Scores_2014_N!AB5,Scores_2017!AB5) -> Chicago | AC5: =CHOOSE(uxb_works!$B$46,Scores_2014_O!AD5,Scores_2014_N!AC5,Scores_2017!AC5) -> Dallas | AD5: =CHOOSE(uxb_works!$B$46,Scores_2014_O!AE5,Scores_2014_N!AD5,Scores_2017!AD5) -> Delhi | AE5: =CHOOSE(uxb_works!$B$46,Scores_2014_O!AF5,Scores_2014_N!AE5,Scores_2017!AE5) -> Dhaka | AF5: =CHOOSE(uxb_works!$B$46,Scores_2014_O!AG5,Scores_2014_N!AF5,Scores_2017!AF5) -> Doha | AG5: =CHOOSE(uxb_works!$B$46,Scores_2014_O!AH5,Scores_2014_N!AG5,Scores_2017!AG5) -> Frankfurt | AH5: =CHOOSE(uxb_works!$B$46,Scores_2014_O!AI5,Scores_2014_N!AH5,Scores_2017!AH5) -> Ho Chi Minh City | AI5: =CHOOSE(uxb_works!$B$46,Scores_2014_O!AJ5,Scores_2014_N!AI5,Scores_2017!AI5) -> Hong Kong | AJ5: =CHOOSE(uxb_works!$B$46,Scores_2014_O!AK5,Scores_2014_N!AJ5,Scores_2017!AJ5) -> Istanbul | AK5: =CHOOSE(uxb_works!$B$46,Scores_2014_O!AL5,Scores_2014_N!AK5,Scores_2017!AK5) -> Jakarta | AL5: =CHOOSE(uxb_works!$B$46,Scores_2014_O!AM5,Scores_2014_N!AL5,Scores_2017!AL5) -> Jeddah | AM5: =CHOOSE(uxb_works!$B$46,Scores_2014_O!AN5,Scores_2014_N!AM5,Scores_2017!AM5) -> Johannesburg | AN5: =CHOOSE(uxb_works!$B$46,Scores_2014_O!AO5,Scores_2014_N!AN5,Scores_2017!AN5) -> Karachi | AO5: =CHOOSE(uxb_works!$B$46,Scores_2014_O!AP5,Scores_2014_N!AO5,Scores_2017!AO5) -> Kuala Lumpur | AP5: =CHOOSE(uxb_works!$B$46,Scores_2014_O!AQ5,Scores_2014_N!AP5,Scores_2017!AP5) -> Kuwait City | AQ5: =CHOOSE(uxb_works!$B$46,Scores_2014_O!Y5,Scores_2014_N!AQ5,Scores_2017!AQ5) -> Lima | AR5: =CHOOSE(uxb_works!$B$46,Scores_2014_O!AR5,Scores_2014_N!AR5,Scores_2017!AR5) -> London | AS5: =CHOOSE(uxb_works!$B$46,Scores_2014_O!AS5,Scores_2014_N!AS5,Scores_2017!AS5) -> Los Angeles | AT5: =CHOOSE(uxb_works!$B$46,Scores_2014_O!AT5,Scores_2014_N!AT5,Scores_2017!AT5) -> Madrid | AU5: =CHOOSE(uxb_works!$B$46,Scores_2014_O!AU5,Scores_2014_N!AU5,Scores_2017!AU5) -> Manila | AV5: =CHOOSE(uxb_works!$B$46,Scores_2014_O!AV5,Scores_2014_N!AV5,Scores_2017!AV5) -> Melbourne | AW5: =CHOOSE(uxb_works!$B$46,Scores_2014_O!AW5,Scores_2014_N!AW5,Scores_2017!AW5) -> Mexico City | AX5: =CHOOSE(uxb_works!$B$46,Scores_2014_O!AX5,Scores_2014_N!AX5,Scores_2017!AX5) -> Milan | AY5: =CHOOSE(uxb_works!$B$46,Scores_2014_O!AY5,Scores_2014_N!AY5,Scores_2017!AY5) -> Moscow | AZ5: =CHOOSE(uxb_works!$B$46,Scores_2014_O!AZ5,Scores_2014_N!AZ5,Scores_2017!AZ5) -> Mumbai | BA5: =CHOOSE(uxb_works!$B$46,Scores_2014_O!BA5,Scores_2014_N!BA5,Scores_2017!BA5) -> New York | BB5: =CHOOSE(uxb_works!$B$46,Scores_2014_O!BB5,Scores_2014_N!BB5,Scores_2017!BB5) -> Osaka | BC5: =CHOOSE(uxb_works!$B$46,Scores_2014_O!BC5,Scores_2014_N!BC5,Scores_2017!BC5) -> Paris | BD5: =CHOOSE(uxb_works!$B$46,Scores_2014_O!BD5,Scores_2014_N!BD5,Scores_2017!BD5) -> Quito | BE5: =CHOOSE(uxb_works!$B$46,Scores_2014_O!BE5,Scores_2014_N!BE5,Scores_2017!BE5) -> Rio de Janeiro | BF5: =CHOOSE(uxb_works!$B$46,Scores_2014_O!BF5,Scores_2014_N!BF5,Scores_2017!BF5) -> Riyadh | BG5: =CHOOSE(uxb_works!$B$46,Scores_2014_O!BG5,Scores_2014_N!BG5,Scores_2017!BG5) -> Rome | BH5: =CHOOSE(uxb_works!$B$46,Scores_2014_O!BH5,Scores_2014_N!BH5,Scores_2017!BH5) -> San Francisco | BI5: =CHOOSE(uxb_works!$B$46,Scores_2014_O!BI5,Scores_2014_N!BI5,Scores_2017!BI5) -> Santiago | BJ5: =CHOOSE(uxb_works!$B$46,Scores_2014_O!BJ5,Scores_2014_N!BJ5,Scores_2017!BJ5) -> Sao Paulo | BK5: =CHOOSE(uxb_works!$B$46,Scores_2014_O!BK5,Scores_2014_N!BK5,Scores_2017!BK5) -> Seoul | BL5: =CHOOSE(uxb_works!$B$46,Scores_2014_O!BL5,Scores_2014_N!BL5,Scores_2017!BL5) -> Shanghai | BM5: =CHOOSE(uxb_works!$B$46,Scores_2014_O!BM5,Scores_2014_N!BM5,Scores_2017!BM5) -> Singapore | BN5: =CHOOSE(uxb_works!$B$46,Scores_2014_O!BN5,Scores_2014_N!BN5,Scores_2017!BN5) -> Stockholm | BO5: =CHOOSE(uxb_works!$B$46,Scores_2014_O!BO5,Scores_2014_N!BO5,Scores_2017!BO5) -> Sydney | BP5: =CHOOSE(uxb_works!$B$46,Scores_2014_O!BP5,Scores_2014_N!BP5,Scores_2017!BP5) -> Taipei | BQ5: =CHOOSE(uxb_works!$B$46,Scores_2014_O!BQ5,Scores_2014_N!BQ5,Scores_2017!BQ5) -> Tehran | BR5: =CHOOSE(uxb_works!$B$46,Scores_2014_O!BR5,Scores_2014_N!BR5,Scores_2017!BR5) -> Tokyo | BS5: =CHOOSE(uxb_works!$B$46,Scores_2014_O!BS5,Scores_2014_N!BS5,Scores_2017!BS5) -> Toronto | BT5: =CHOOSE(uxb_works!$B$46,Scores_2014_O!BT5,Scores_2014_N!BT5,Scores_2017!BT5) -> Washington DC | BU5: =CHOOSE(uxb_works!$B$46,Scores_2014_O!BU5,Scores_2014_N!BU5,Scores_2017!BU5) -> Wellington | BV5: =CHOOSE(uxb_works!$B$46,Scores_2014_O!BV5,Scores_2014_N!BV5,Scores_2017!BV5) -> Yangon | BW5: =CHOOSE(uxb_works!$B$46,Scores_2014_O!BW5,Scores_2014_N!BW5,Scores_2017!BW5) -> Zurich | BX5: =IF(uxb_works!B66=0,Scores_2017!$BY$5,CHOOSE(uxb_works!$B$46,Scores_2014_O!BX5,Scores_2014_N!BX5,Scores_2017!BX5)) -> 0
B6: =tblIndicators!A2 -> 1 | F6: 5 | N6: =CHOOSE(uxb_works!$B$46,Scores_2014_O!N6,Scores_2014_N!N6,Scores_2017!N6) -> OVERALL SCORE | P6: =CHOOSE(uxb_works!$B$46,Scores_2014_O!P6,Scores_2014_N!P6,Scores_2017!P6) -> 76.90756229 | Q6: =CHOOSE(uxb_works!$B$46,Scores_2014_O!Q6,Scores_2014_N!Q6,Scores_2017!Q6) -> 87.26365184 | R6: =CHOOSE(uxb_works!$B$46,Scores_2014_O!R6,Scores_2014_N!R6,Scores_2017!R6) -> 71.89683679 | S6: =CHOOSE(uxb_works!$B$46,Scores_2014_O!S6,Scores_2014_N!S6,Scores_2017!S6) -> 60.05264818 | T6: =CHOOSE(uxb_works!$B$46,Scores_2014_O!T6,Scores_2014_N!T6,Scores_2017!T6) -> 83.71460727 | U6: =CHOOSE(uxb_works!$B$46,Scores_2014_O!U6,Scores_2014_N!U6,Scores_2017!U6) -> 72.0648727 | V6: =CHOOSE(uxb_works!$B$46,Scores_2014_O!V6,Scores_2014_N!V6,Scores_2017!V6) -> 61.35954616 | W6: =CHOOSE(uxb_works!$B$46,Scores_2014_O!W6,Scores_2014_N!W6,Scores_2017!W6) -> 83.00614496 | X6: =CHOOSE(uxb_works!$B$46,Scores_2014_O!X6,Scores_2014_N!X6,Scores_2017!X6) -> 76.34825673 | Y6: =CHOOSE(uxb_works!$B$46,Scores_2014_O!Z6,Scores_2014_N!Y6,Scores_2017!Y6) -> 58.33188155 | Z6: =CHOOSE(uxb_works!$B$46,Scores_2014_O!AA6,Scores_2014_N!Z6,Scores_2017!Z6) -> 55.2206246 | AA6: =CHOOSE(uxb_works!$B$46,Scores_2014_O!AB6,Scores_2014_N!AA6,Scores_2017!AA6) -> 61.19832086 | AB6: =CHOOSE(uxb_works!$B$46,Scores_2014_O!AC6,Scores_2014_N!AB6,Scores_2017!AB6) -> 82.20844145 | AC6: =CHOOSE(uxb_works!$B$46,Scores_2014_O!AD6,Scores_2014_N!AC6,Scores_2017!AC6) -> 78.72792027 | AD6: =CHOOSE(uxb_works!$B$46,Scores_2014_O!AE6,Scores_2014_N!AD6,Scores_2017!AD6) -> 62.33769874 | AE6: =CHOOSE(uxb_works!$B$46,Scores_2014_O!AF6,Scores_2014_N!AE6,Scores_2017!AE6) -> 47.37255408 | AF6: =CHOOSE(uxb_works!$B$46,Scores_2014_O!AG6,Scores_2014_N!AF6,Scores_2017!AF6) -> 73.59415789 | AG6: =CHOOSE(uxb_works!$B$46,Scores_2014_O!AH6,Scores_2014_N!AG6,Scores_2017!AG6) -> 84.85636532 | AH6: =CHOOSE(uxb_works!$B$46,Scores_2014_O!AI6,Scores_2014_N!AH6,Scores_2017!AH6) -> 54.33231167 | AI6: =CHOOSE(uxb_works!$B$46,Scores_2014_O!AJ6,Scores_2014_N!AI6,Scores_2017!AI6) -> 86.21514971 | AJ6: =CHOOSE(uxb_works!$B$46,Scores_2014_O!AK6,Scores_2014_N!AJ6,Scores_2017!AJ6) -> 65.23359548 | AK6: =CHOOSE(uxb_works!$B$46,Scores_2014_O!AL6,Scores_2014_N!AK6,Scores_2017!AK6) -> 53.39262875 | AL6: =CHOOSE(uxb_works!$B$46,Scores_2014_O!AM6,Scores_2014_N!AL6,Scores_2017!AL6) -> 62.80275938 | AM6: =CHOOSE(uxb_works!$B$46,Scores_2014_O!AN6,Scores_2014_N!AM6,Scores_2017!AM6) -> 59.17426593 | AN6: =CHOOSE(uxb_works!$B$46,Scores_2014_O!AO6,Scores_2014_N!AN6,Scores_2017!AN6) -> 38.77377951 | AO6: =CHOOSE(uxb_works!$B$46,Scores_2014_O!AP6,Scores_2014_N!AO6,Scores_2017!AO6) -> 73.11277136 | AP6: =CHOOSE(uxb_works!$B$46,Scores_2014_O!AQ6,Scores_2014_N!AP6,Scores_2017!AP6) -> 67.61378923 | AQ6: =CHOOSE(uxb_works!$B$46,Scores_2014_O!Y6,Scores_2014_N!AQ6,Scores_2017!AQ6) -> 61.8984041 | AR6: =CHOOSE(uxb_works!$B$46,Scores_2014_O!AR6,Scores_2014_N!AR6,Scores_2017!AR6) -> 82.0960116 | AS6: =CHOOSE(uxb_works!$B$46,Scores_2014_O!AS6,Scores_2014_N!AS6,Scores_2017!AS6) -> 82.2630742 | AT6: =CHOOSE(uxb_works!$B$46,Scores_2014_O!AT6,Scores_2014_N!AT6,Scores_2017!AT6) -> 83.87630072 | AU6: =CHOOSE(uxb_works!$B$46,Scores_2014_O!AU6,Scores_2014_N!AU6,Scores_2017!AU6) -> 54.86124053 | AV6: =CHOOSE(uxb_works!$B$46,Scores_2014_O!AV6,Scores_2014_N!AV6,Scores_2017!AV6) -> 87.30344089 | AW6: =CHOOSE(uxb_works!$B$46,Scores_2014_O!AW6,Scores_2014_N!AW6,Scores_2017!AW6) -> 65.51926077 | AX6: =CHOOSE(uxb_works!$B$46,Scores_2014_O!AX6,Scores_2014_N!AX6,Scores_2017!AX6) -> 79.30028254 | AY6: =CHOOSE(uxb_works!$B$46,Scores_2014_O!AY6,Scores_2014_N!AY6,Scores_2017!AY6) -> 63.99406689 | AZ6: =CHOOSE(uxb_works!$B$46,Scores_2014_O!AZ6,Scores_2014_N!AZ6,Scores_2017!AZ6) -> 61.84005564 | BA6: =CHOOSE(uxb_works!$B$46,Scores_2014_O!BA6,Scores_2014_N!BA6,Scores_2017!BA6) -> 81.01216514 | BB6: =CHOOSE(uxb_works!$B$46,Scores_2014_O!BB6,Scores_2014_N!BB6,Scores_2017!BB6) -> 88.86505643 | BC6: =CHOOSE(uxb_works!$B$46,Scores_2014_O!BC6,Scores_2014_N!BC6,Scores_2017!BC6) -> 79.7132879 | BD6: =CHOOSE(uxb_works!$B$46,Scores_2014_O!BD6,Scores_2014_N!BD6,Scores_2017!BD6) -> 56.3875886 | BE6: =CHOOSE(uxb_works!$B$46,Scores_2014_O!BE6,Scores_2014_N!BE6,Scores_2017!BE6) -> 66.5377459 | BF6: =CHOOSE(uxb_works!$B$46,Scores_2014_O!BF6,Scores_2014_N!BF6,Scores_2017!BF6) -> 61.22744169 | BG6: =CHOOSE(uxb_works!$B$46,Scores_2014_O!BG6,Scores_2014_N!BG6,Scores_2017!BG6) -> 78.67443896 | BH6: =CHOOSE(uxb_works!$B$46,Scores_2014_O!BH6,Scores_2014_N!BH6,Scores_2017!BH6) -> 83.55295794 | BI6: =CHOOSE(uxb_works!$B$46,Scores_2014_O!BI6,Scores_2014_N!BI6,Scores_2017!BI6) -> 70.02515454 | BJ6: =CHOOSE(uxb_works!$B$46,Scores_2014_O!BJ6,Scores_2014_N!BJ6,Scores_2017!BJ6) -> 66.30482714 | BK6: =CHOOSE(uxb_works!$B$46,Scores_2014_O!BK6,Scores_2014_N!BK6,Scores_2017!BK6) -> 83.60510848 | BL6: =CHOOSE(uxb_works!$B$46,Scores_2014_O!BL6,Scores_2014_N!BL6,Scores_2017!BL6) -> 70.92839226 | BM6: =CHOOSE(uxb_works!$B$46,Scores_2014_O!BM6,Scores_2014_N!BM6,Scores_2017!BM6) -> 89.6376696 | BN6: =CHOOSE(uxb_works!$B$46,Scores_2014_O!BN6,Scores_2014_N!BN6,Scores_2017!BN6) -> 86.71652201 | BO6: =CHOOSE(uxb_works!$B$46,Scores_2014_O!BO6,Scores_2014_N!BO6,Scores_2017!BO6) -> 86.73597447 | BP6: =CHOOSE(uxb_works!$B$46,Scores_2014_O!BP6,Scores_2014_N!BP6,Scores_2017!BP6) -> 80.70204841 | BQ6: =CHOOSE(uxb_works!$B$46,Scores_2014_O!BQ6,Scores_2014_N!BQ6,Scores_2017!BQ6) -> 56.49341108 | BR6: =CHOOSE(uxb_works!$B$46,Scores_2014_O!BR6,Scores_2014_N!BR6,Scores_2017!BR6) -> 89.7970623 | BS6: =CHOOSE(uxb_works!$B$46,Scores_2014_O!BS6,Scores_2014_N!BS6,Scores_2017!BS6) -> 87.35979689 | BT6: =CHOOSE(uxb_works!$B$46,Scores_2014_O!BT6,Scores_2014_N!BT6,Scores_2017!BT6) -> 80.36620689 | BU6: =CHOOSE(uxb_works!$B$46,Scores_2014_O!BU6,Scores_2014_N!BU6,Scores_2017!BU6) -> 83.18096901 | BV6: =CHOOSE(uxb_works!$B$46,Scores_2014_O!BV6,Scores_2014_N!BV6,Scores_2017!BV6) -> 46.4662144 | BW6: =CHOOSE(uxb_works!$B$46,Scores_2014_O!BW6,Scores_2014_N!BW6,Scores_2017!BW6) -> 85.19854612 | BX6: =CHOOSE(uxb_works!$B$46,Scores_2014_O!BX6,Scores_2014_N!BX6,Scores_2017!BX6) -> 89.57583272
B7: =tblIndicators!A3 -> 2 | F7: =CHOOSE(uxb_works!$B$46,Scores_2014_O!F7,Scores_2014_N!F7,Scores_2017!F7) -> 1 | N7: =REPT(" ",F7)&CHOOSE(uxb_works!$B$46,Scores_2014_O!N7,Scores_2014_N!N7,Scores_2017!N7) -> 1) DIGITAL SECURITY | O7: =CHOOSE(uxb_works!$B$46,Scores_2014_O!O7,Scores_2014_N!O7,Scores_2017!O7) -> 0.25 | P7: =CHOOSE(uxb_works!$B$46,Scores_2014_O!P7,Scores_2014_N!P7,Scores_2017!P7) -> 68.77421079 | Q7: =CHOOSE(uxb_works!$B$46,Scores_2014_O!Q7,Scores_2014_N!Q7,Scores_2017!Q7) -> 85.79071003 | R7: =CHOOSE(uxb_works!$B$46,Scores_2014_O!R7,Scores_2014_N!R7,Scores_2017!R7) -> 61.93823211 | S7: =CHOOSE(uxb_works!$B$46,Scores_2014_O!S7,Scores_2014_N!S7,Scores_2017!S7) -> 44.44312295 | T7: =CHOOSE(uxb_works!$B$46,Scores_2014_O!T7,Scores_2014_N!T7,Scores_2017!T7) -> 74.44146723 | U7: =CHOOSE(uxb_works!$B$46,Scores_2014_O!U7,Scores_2014_N!U7,Scores_2017!U7) -> 65.37625312 | V7: =CHOOSE(uxb_works!$B$46,Scores_2014_O!V7,Scores_2014_N!V7,Scores_2017!V7) -> 54.62267995 | W7: =CHOOSE(uxb_works!$B$46,Scores_2014_O!W7,Scores_2014_N!W7,Scores_2017!W7) -> 79.96316016 | X7: =CHOOSE(uxb_works!$B$46,Scores_2014_O!X7,Scores_2014_N!X7,Scores_2017!X7) -> 74.14300266 | Y7: =CHOOSE(uxb_works!$B$46,Scores_2014_O!Z7,Scores_2014_N!Y7,Scores_2017!Y7) -> 43.29318615 | Z7: =CHOOSE(uxb_works!$B$46,Scores_2014_O!AA7,Scores_2014_N!Z7,Scores_2017!Z7) -> 58.38656486 | AA7: =CHOOSE(uxb_works!$B$46,Scores_2014_O!AB7,Scores_2014_N!AA7,Scores_2017!AA7) -> 57.37227831 | AB7: =CHOOSE(uxb_works!$B$46,Scores_2014_O!AC7,Scores_2014_N!AB7,Scores_2017!AB7) -> 86.75044749 | AC7: =CHOOSE(uxb_works!$B$46,Scores_2014_O!AD7,Scores_2014_N!AC7,Scores_2017!AC7) -> 84.65378499 | AD7: =CHOOSE(uxb_works!$B$46,Scores_2014_O!AE7,Scores_2014_N!AD7,Scores_2017!AD7) -> 54.60558828 | AE7: =CHOOSE(uxb_works!$B$46,Scores_2014_O!AF7,Scores_2014_N!AE7,Scores_2017!AE7) -> 38.33333333 | AF7: =CHOOSE(uxb_works!$B$46,Scores_2014_O!AG7,Scores_2014_N!AF7,Scores_2017!AF7) -> 64.01838092 | AG7: =CHOOSE(uxb_works!$B$46,Scores_2014_O!AH7,Scores_2014_N!AG7,Scores_2017!AG7) -> 80.50043522 | AH7: =CHOOSE(uxb_works!$B$46,Scores_2014_O!AI7,Scores_2014_N!AH7,Scores_2017!AH7) -> 39.78223301 | AI7: =CHOOSE(uxb_works!$B$46,Scores_2014_O!AJ7,Scores_2014_N!AI7,Scores_2017!AI7) -> 85.77435209 | AJ7: =CHOOSE(uxb_works!$B$46,Scores_2014_O!AK7,Scores_2014_N!AJ7,Scores_2017!AJ7) -> 61.70645587 | AK7: =CHOOSE(uxb_works!$B$46,Scores_2014_O!AL7,Scores_2014_N!AK7,Scores_2017!AK7) -> 36.60449061 | AL7: =CHOOSE(uxb_works!$B$46,Scores_2014_O!AM7,Scores_2014_N!AL7,Scores_2017!AL7) -> 65.86058694 | AM7: =CHOOSE(uxb_works!$B$46,Scores_2014_O!AN7,Scores_2014_N!AM7,Scores_2017!AM7) -> 66.27791672 | AN7: =CHOOSE(uxb_works!$B$46,Scores_2014_O!AO7,Scores_2014_N!AN7,Scores_2017!AN7) -> 43.2175597 | AO7: =CHOOSE(uxb_works!$B$46,Scores_2014_O!AP7,Scores_2014_N!AO7,Scores_2017!AO7) -> 66.16721472 | AP7: =CHOOSE(uxb_works!$B$46,Scores_2014_O!AQ7,Scores_2014_N!AP7,Scores_2017!AP7) -> 60.16669309 | AQ7: =CHOOSE(uxb_works!$B$46,Scores_2014_O!Y7,Scores_2014_N!AQ7,Scores_2017!AQ7) -> 59.77894506 | AR7: =CHOOSE(uxb_works!$B$46,Scores_2014_O!AR7,Scores_2014_N!AR7,Scores_2017!AR7) -> 73.36350818 | AS7: =CHOOSE(uxb_works!$B$46,Scores_2014_O!AS7,Scores_2014_N!AS7,Scores_2017!AS7) -> 85.11970999 | AT7: =CHOOSE(uxb_works!$B$46,Scores_2014_O!AT7,Scores_2014_N!AT7,Scores_2017!AT7) -> 74.44146723 | AU7: =CHOOSE(uxb_works!$B$46,Scores_2014_O!AU7,Scores_2014_N!AU7,Scores_2017!AU7) -> 36.60918429 | AV7: =CHOOSE(uxb_works!$B$46,Scores_2014_O!AV7,Scores_2014_N!AV7,Scores_2017!AV7) -> 83.31706285 | AW7: =CHOOSE(uxb_works!$B$46,Scores_2014_O!AW7,Scores_2014_N!AW7,Scores_2017!AW7) -> 53.69033138 | AX7: =CHOOSE(uxb_works!$B$46,Scores_2014_O!AX7,Scores_2014_N!AX7,Scores_2017!AX7) -> 73.28965592 | AY7: =CHOOSE(uxb_works!$B$46,Scores_2014_O!AY7,Scores_2014_N!AY7,Scores_2017!AY7) -> 49.0279579 | AZ7: =CHOOSE(uxb_works!$B$46,Scores_2014_O!AZ7,Scores_2014_N!AZ7,Scores_2017!AZ7) -> 54.60558828 | BA7: =CHOOSE(uxb_works!$B$46,Scores_2014_O!BA7,Scores_2014_N!BA7,Scores_2017!BA7) -> 84.95028272 | BB7: =CHOOSE(uxb_works!$B$46,Scores_2014_O!BB7,Scores_2014_N!BB7,Scores_2017!BB7) -> 82.1109533 | BC7: =CHOOSE(uxb_works!$B$46,Scores_2014_O!BC7,Scores_2014_N!BC7,Scores_2017!BC7) -> 70.37343201 | BD7: =CHOOSE(uxb_works!$B$46,Scores_2014_O!BD7,Scores_2014_N!BD7,Scores_2017!BD7) -> 60.64844768 | BE7: =CHOOSE(uxb_works!$B$46,Scores_2014_O!BE7,Scores_2014_N!BE7,Scores_2017!BE7) -> 51.96240259 | BF7: =CHOOSE(uxb_works!$B$46,Scores_2014_O!BF7,Scores_2014_N!BF7,Scores_2017!BF7) -> 60.86058694 | BG7: =CHOOSE(uxb_works!$B$46,Scores_2014_O!BG7,Scores_2014_N!BG7,Scores_2017!BG7) -> 71.62298925 | BH7: =CHOOSE(uxb_works!$B$46,Scores_2014_O!BH7,Scores_2014_N!BH7,Scores_2017!BH7) -> 85.11970999 | BI7: =CHOOSE(uxb_works!$B$46,Scores_2014_O!BI7,Scores_2014_N!BI7,Scores_2017!BI7) -> 60.56569648 | BJ7: =CHOOSE(uxb_works!$B$46,Scores_2014_O!BJ7,Scores_2014_N!BJ7,Scores_2017!BJ7) -> 51.96240259 | BK7: =CHOOSE(uxb_works!$B$46,Scores_2014_O!BK7,Scores_2014_N!BK7,Scores_2017!BK7) -> 78.42433352 | BL7: =CHOOSE(uxb_works!$B$46,Scores_2014_O!BL7,Scores_2014_N!BL7,Scores_2017!BL7) -> 59.42322471 | BM7: =CHOOSE(uxb_works!$B$46,Scores_2014_O!BM7,Scores_2014_N!BM7,Scores_2017!BM7) -> 86.83841827 | BN7: =CHOOSE(uxb_works!$B$46,Scores_2014_O!BN7,Scores_2014_N!BN7,Scores_2017!BN7) -> 82.80677455 | BO7: =CHOOSE(uxb_works!$B$46,Scores_2014_O!BO7,Scores_2014_N!BO7,Scores_2017!BO7) -> 82.9570299 | BP7: =CHOOSE(uxb_works!$B$46,Scores_2014_O!BP7,Scores_2014_N!BP7,Scores_2017!BP7) -> 65.97727729 | BQ7: =CHOOSE(uxb_works!$B$46,Scores_2014_O!BQ7,Scores_2014_N!BQ7,Scores_2017!BQ7) -> 39.88486906 | BR7: =CHOOSE(uxb_works!$B$46,Scores_2014_O!BR7,Scores_2014_N!BR7,Scores_2017!BR7) -> 88.40283625 | BS7: =CHOOSE(uxb_works!$B$46,Scores_2014_O!BS7,Scores_2014_N!BS7,Scores_2017!BS7) -> 85.33158936 | BT7: =CHOOSE(uxb_works!$B$46,Scores_2014_O!BT7,Scores_2014_N!BT7,Scores_2017!BT7) -> 80.88213272 | BU7: =CHOOSE(uxb_works!$B$46,Scores_2014_O!BU7,Scores_2014_N!BU7,Scores_2017!BU7) -> 74.80102137 | BV7: =CHOOSE(uxb_works!$B$46,Scores_2014_O!BV7,Scores_2014_N!BV7,Scores_2017!BV7) -> 39.06720227 | BW7: =CHOOSE(uxb_works!$B$46,Scores_2014_O!BW7,Scores_2014_N!BW7,Scores_2017!BW7) -> 77.97698131 | BX7: =CHOOSE(uxb_works!$B$46,Scores_2014_O!BX7,Scores_2014_N!BX7,Scores_2017!BX7) -> 82.53452148
B8: =tblIndicators!A4 -> 3 | F8: =CHOOSE(uxb_works!$B$46,Scores_2014_O!F8,Scores_2014_N!F8,Scores_2017!F8) -> 2 | N8: =REPT(" ",F8)&CHOOSE(uxb_works!$B$46,Scores_2014_O!N8,Scores_2014_N!N8,Scores_2017!N8) -> 1.1) Digital security (Inputs) | O8: =CHOOSE(uxb_works!$B$46,Scores_2014_O!O8,Scores_2014_N!O8,Scores_2017!O8) -> 0.5 | P8: =CHOOSE(uxb_works!$B$46,Scores_2014_O!P8,Scores_2014_N!P8,Scores_2017!P8) -> 63.33333333 | Q8: =CHOOSE(uxb_works!$B$46,Scores_2014_O!Q8,Scores_2014_N!Q8,Scores_2017!Q8) -> 80 | R8: =CHOOSE(uxb_works!$B$46,Scores_2014_O!R8,Scores_2014_N!R8,Scores_2017!R8) -> 60 | S8: =CHOOSE(uxb_works!$B$46,Scores_2014_O!S8,Scores_2014_N!S8,Scores_2017!S8) -> 28.33333333 | T8: =CHOOSE(uxb_works!$B$46,Scores_2014_O!T8,Scores_2014_N!T8,Scores_2017!T8) -> 80 | U8: =CHOOSE(uxb_works!$B$46,Scores_2014_O!U8,Scores_2014_N!U8,Scores_2017!U8) -> 63.33333333 | V8: =CHOOSE(uxb_works!$B$46,Scores_2014_O!V8,Scores_2014_N!V8,Scores_2017!V8) -> 41.66666667 | W8: =CHOOSE(uxb_works!$B$46,Scores_2014_O!W8,Scores_2014_N!W8,Scores_2017!W8) -> 80 | X8: =CHOOSE(uxb_works!$B$46,Scores_2014_O!X8,Scores_2014_N!X8,Scores_2017!X8) -> 66.66666667 | Y8: =CHOOSE(uxb_works!$B$46,Scores_2014_O!Z8,Scores_2014_N!Y8,Scores_2017!Y8) -> 26.66666667 | Z8: =CHOOSE(uxb_works!$B$46,Scores_2014_O!AA8,Scores_2014_N!Z8,Scores_2017!Z8) -> 46.66666667 | AA8: =CHOOSE(uxb_works!$B$46,Scores_2014_O!AB8,Scores_2014_N!AA8,Scores_2017!AA8) -> 46.66666667 | AB8: =CHOOSE(uxb_works!$B$46,Scores_2014_O!AC8,Scores_2014_N!AB8,Scores_2017!AB8) -> 100 | AC8: =CHOOSE(uxb_works!$B$46,Scores_2014_O!AD8,Scores_2014_N!AC8,Scores_2017!AC8) -> 100 | AD8: =CHOOSE(uxb_works!$B$46,Scores_2014_O!AE8,Scores_2014_N!AD8,Scores_2017!AD8) -> 63.33333333 | AE8: =CHOOSE(uxb_works!$B$46,Scores_2014_O!AF8,Scores_2014_N!AE8,Scores_2017!AE8) -> 26.66666667 | AF8: =CHOOSE(uxb_works!$B$46,Scores_2014_O!AG8,Scores_2014_N!AF8,Scores_2017!AF8) -> 58.33333333 | AG8: =CHOOSE(uxb_works!$B$46,Scores_2014_O!AH8,Scores_2014_N!AG8,Scores_2017!AG8) -> 80 | AH8: =CHOOSE(uxb_works!$B$46,Scores_2014_O!AI8,Scores_2014_N!AH8,Scores_2017!AH8) -> 21.66666667 | AI8: =CHOOSE(uxb_works!$B$46,Scores_2014_O!AJ8,Scores_2014_N!AI8,Scores_2017!AI8) -> 100 | AJ8: =CHOOSE(uxb_works!$B$46,Scores_2014_O!AK8,Scores_2014_N!AJ8,Scores_2017!AJ8) -> 60 | AK8: =CHOOSE(uxb_works!$B$46,Scores_2014_O!AL8,Scores_2014_N!AK8,Scores_2017!AK8) -> 28.33333333 | AL8: =CHOOSE(uxb_works!$B$46,Scores_2014_O!AM8,Scores_2014_N!AL8,Scores_2017!AL8) -> 58.33333333 | AM8: =CHOOSE(uxb_works!$B$46,Scores_2014_O!AN8,Scores_2014_N!AM8,Scores_2017!AM8) -> 58.33333333 | AN8: =CHOOSE(uxb_works!$B$46,Scores_2014_O!AO8,Scores_2014_N!AN8,Scores_2017!AN8) -> 35 | AO8: =CHOOSE(uxb_works!$B$46,Scores_2014_O!AP8,Scores_2014_N!AO8,Scores_2017!AO8) -> 58.33333333 | AP8: =CHOOSE(uxb_works!$B$46,Scores_2014_O!AQ8,Scores_2014_N!AP8,Scores_2017!AP8) -> 41.66666667 | AQ8: =CHOOSE(uxb_works!$B$46,Scores_2014_O!Y8,Scores_2014_N!AQ8,Scores_2017!AQ8) -> 58.33333333 | AR8: =CHOOSE(uxb_works!$B$46,Scores_2014_O!AR8,Scores_2014_N!AR8,Scores_2017!AR8) -> 80 | AS8: =CHOOSE(uxb_works!$B$46,Scores_2014_O!AS8,Scores_2014_N!AS8,Scores_2017!AS8) -> 100 | AT8: =CHOOSE(uxb_works!$B$46,Scores_2014_O!AT8,Scores_2014_N!AT8,Scores_2017!AT8) -> 80 | AU8: =CHOOSE(uxb_works!$B$46,Scores_2014_O!AU8,Scores_2014_N!AU8,Scores_2017!AU8) -> 31.66666667 | AV8: =CHOOSE(uxb_works!$B$46,Scores_2014_O!AV8,Scores_2014_N!AV8,Scores_2017!AV8) -> 90 | AW8: =CHOOSE(uxb_works!$B$46,Scores_2014_O!AW8,Scores_2014_N!AW8,Scores_2017!AW8) -> 58.33333333 | AX8: =CHOOSE(uxb_works!$B$46,Scores_2014_O!AX8,Scores_2014_N!AX8,Scores_2017!AX8) -> 83.33333333 | AY8: =CHOOSE(uxb_works!$B$46,Scores_2014_O!AY8,Scores_2014_N!AY8,Scores_2017!AY8) -> 41.66666667 | AZ8: =CHOOSE(uxb_works!$B$46,Scores_2014_O!AZ8,Scores_2014_N!AZ8,Scores_2017!AZ8) -> 63.33333333 | BA8: =CHOOSE(uxb_works!$B$46,Scores_2014_O!BA8,Scores_2014_N!BA8,Scores_2017!BA8) -> 100 | BB8: =CHOOSE(uxb_works!$B$46,Scores_2014_O!BB8,Scores_2014_N!BB8,Scores_2017!BB8) -> 78.33333333 | BC8: =CHOOSE(uxb_works!$B$46,Scores_2014_O!BC8,Scores_2014_N!BC8,Scores_2017!BC8) -> 73.33333333 | BD8: =CHOOSE(uxb_works!$B$46,Scores_2014_O!BD8,Scores_2014_N!BD8,Scores_2017!BD8) -> 48.33333333 | BE8: =CHOOSE(uxb_works!$B$46,Scores_2014_O!BE8,Scores_2014_N!BE8,Scores_2017!BE8) -> 43.33333333 | BF8: =CHOOSE(uxb_works!$B$46,Scores_2014_O!BF8,Scores_2014_N!BF8,Scores_2017!BF8) -> 48.33333333 | BG8: =CHOOSE(uxb_works!$B$46,Scores_2014_O!BG8,Scores_2014_N!BG8,Scores_2017!BG8) -> 80 | BH8: =CHOOSE(uxb_works!$B$46,Scores_2014_O!BH8,Scores_2014_N!BH8,Scores_2017!BH8) -> 100 | BI8: =CHOOSE(uxb_works!$B$46,Scores_2014_O!BI8,Scores_2014_N!BI8,Scores_2017!BI8) -> 58.33333333 | BJ8: =CHOOSE(uxb_works!$B$46,Scores_2014_O!BJ8,Scores_2014_N!BJ8,Scores_2017!BJ8) -> 43.33333333 | BK8: =CHOOSE(uxb_works!$B$46,Scores_2014_O!BK8,Scores_2014_N!BK8,Scores_2017!BK8) -> 66.66666667 | BL8: =CHOOSE(uxb_works!$B$46,Scores_2014_O!BL8,Scores_2014_N!BL8,Scores_2017!BL8) -> 53.33333333 | BM8: =CHOOSE(uxb_works!$B$46,Scores_2014_O!BM8,Scores_2014_N!BM8,Scores_2017!BM8) -> 95 | BN8: =CHOOSE(uxb_works!$B$46,Scores_2014_O!BN8,Scores_2014_N!BN8,Scores_2017!BN8) -> 75 | BO8: =CHOOSE(uxb_works!$B$46,Scores_2014_O!BO8,Scores_2014_N!BO8,Scores_2017!BO8) -> 90 | BP8: =CHOOSE(uxb_works!$B$46,Scores_2014_O!BP8,Scores_2014_N!BP8,Scores_2017!BP8) -> 88.33333333 | BQ8: =CHOOSE(uxb_works!$B$46,Scores_2014_O!BQ8,Scores_2014_N!BQ8,Scores_2017!BQ8) -> 16.66666667 | BR8: =CHOOSE(uxb_works!$B$46,Scores_2014_O!BR8,Scores_2014_N!BR8,Scores_2017!BR8) -> 88.33333333 | BS8: =CHOOSE(uxb_works!$B$46,Scores_2014_O!BS8,Scores_2014_N!BS8,Scores_2017!BS8) -> 90 | BT8: =CHOOSE(uxb_works!$B$46,Scores_2014_O!BT8,Scores_2014_N!BT8,Scores_2017!BT8) -> 90 | BU8: =CHOOSE(uxb_works!$B$46,Scores_2014_O!BU8,Scores_2014_N!BU8,Scores_2017!BU8) -> 68.33333333 | BV8: =CHOOSE(uxb_works!$B$46,Scores_2014_O!BV8,Scores_2014_N!BV8,Scores_2017!BV8) -> 16.66666667 | BW8: =CHOOSE(uxb_works!$B$46,Scores_2014_O!BW8,Scores_2014_N!BW8,Scores_2017!BW8) -> 75 | BX8: =CHOOSE(uxb_works!$B$46,Scores_2014_O!BX8,Scores_2014_N!BX8,Scores_2017!BX8) -> 78.33333333
B9: =tblIndicators!A5 -> 4 | F9: =CHOOSE(uxb_works!$B$46,Scores_2014_O!F9,Scores_2014_N!F9,Scores_2017!F9) -> 3 | N9: =REPT(" ",F9)&CHOOSE(uxb_works!$B$46,Scores_2014_O!N9,Scores_2014_N!N9,Scores_2017!N9) -> 1.1.1) Privacy policy | O9: =CHOOSE(uxb_works!$B$46,Scores_2014_O!O9,Scores_2014_N!O9,Scores_2017!O9) -> 0.2 | P9: =CHOOSE(uxb_works!$B$46,Scores_2014_O!P9,Scores_2014_N!P9,Scores_2017!P9) -> 50 | Q9: =CHOOSE(uxb_works!$B$46,Scores_2014_O!Q9,Scores_2014_N!Q9,Scores_2017!Q9) -> 100 | R9: =CHOOSE(uxb_works!$B$46,Scores_2014_O!R9,Scores_2014_N!R9,Scores_2017!R9) -> 75 | S9: =CHOOSE(uxb_works!$B$46,Scores_2014_O!S9,Scores_2014_N!S9,Scores_2017!S9) -> 25 | T9: =CHOOSE(uxb_works!$B$46,Scores_2014_O!T9,Scores_2014_N!T9,Scores_2017!T9) -> 100 | U9: =CHOOSE(uxb_works!$B$46,Scores_2014_O!U9,Scores_2014_N!U9,Scores_2017!U9) -> 75 | V9: =CHOOSE(uxb_works!$B$46,Scores_2014_O!V9,Scores_2014_N!V9,Scores_2017!V9) -> 50 | W9: =CHOOSE(uxb_works!$B$46,Scores_2014_O!W9,Scores_2014_N!W9,Scores_2017!W9) -> 100 | X9: =CHOOSE(uxb_works!$B$46,Scores_2014_O!X9,Scores_2014_N!X9,Scores_2017!X9) -> 75 | Y9: =CHOOSE(uxb_works!$B$46,Scores_2014_O!Z9,Scores_2014_N!Y9,Scores_2017!Y9) -> 50 | Z9: =CHOOSE(uxb_works!$B$46,Scores_2014_O!AA9,Scores_2014_N!Z9,Scores_2017!Z9) -> 25 | AA9: =CHOOSE(uxb_works!$B$46,Scores_2014_O!AB9,Scores_2014_N!AA9,Scores_2017!AA9) -> 75 | AB9: =CHOOSE(uxb_works!$B$46,Scores_2014_O!AC9,Scores_2014_N!AB9,Scores_2017!AB9) -> 100 | AC9: =CHOOSE(uxb_works!$B$46,Scores_2014_O!AD9,Scores_2014_N!AC9,Scores_2017!AC9) -> 100 | AD9: =CHOOSE(uxb_works!$B$46,Scores_2014_O!AE9,Scores_2014_N!AD9,Scores_2017!AD9) -> 25 | AE9: =CHOOSE(uxb_works!$B$46,Scores_2014_O!AF9,Scores_2014_N!AE9,Scores_2017!AE9) -> 0 | AF9: =CHOOSE(uxb_works!$B$46,Scores_2014_O!AG9,Scores_2014_N!AF9,Scores_2017!AF9) -> 50 | AG9: =CHOOSE(uxb_works!$B$46,Scores_2014_O!AH9,Scores_2014_N!AG9,Scores_2017!AG9) -> 100 | AH9: =CHOOSE(uxb_works!$B$46,Scores_2014_O!AI9,Scores_2014_N!AH9,Scores_2017!AH9) -> 25 | AI9: =CHOOSE(uxb_works!$B$46,Scores_2014_O!AJ9,Scores_2014_N!AI9,Scores_2017!AI9) -> 100 | AJ9: =CHOOSE(uxb_works!$B$46,Scores_2014_O!AK9,Scores_2014_N!AJ9,Scores_2017!AJ9) -> 25 | AK9: =CHOOSE(uxb_works!$B$46,Scores_2014_O!AL9,Scores_2014_N!AK9,Scores_2017!AK9) -> 25 | AL9: =CHOOSE(uxb_works!$B$46,Scores_2014_O!AM9,Scores_2014_N!AL9,Scores_2017!AL9) -> 50 | AM9: =CHOOSE(uxb_works!$B$46,Scores_2014_O!AN9,Scores_2014_N!AM9,Scores_2017!AM9) -> 50 | AN9: =CHOOSE(uxb_works!$B$46,Scores_2014_O!AO9,Scores_2014_N!AN9,Scores_2017!AN9) -> 25 | AO9: =CHOOSE(uxb_works!$B$46,Scores_2014_O!AP9,Scores_2014_N!AO9,Scores_2017!AO9) -> 50 | AP9: =CHOOSE(uxb_works!$B$46,Scores_2014_O!AQ9,Scores_2014_N!AP9,Scores_2017!AP9) -> 50 | AQ9: =CHOOSE(uxb_works!$B$46,Scores_2014_O!Y9,Scores_2014_N!AQ9,Scores_2017!AQ9) -> 50 | AR9: =CHOOSE(uxb_works!$B$46,Scores_2014_O!AR9,Scores_2014_N!AR9,Scores_2017!AR9) -> 100 | AS9: =CHOOSE(uxb_works!$B$46,Scores_2014_O!AS9,Scores_2014_N!AS9,Scores_2017!AS9) -> 100 | AT9: =CHOOSE(uxb_works!$B$46,Scores_2014_O!AT9,Scores_2014_N!AT9,Scores_2017!AT9) -> 100 | AU9: =CHOOSE(uxb_works!$B$46,Scores_2014_O!AU9,Scores_2014_N!AU9,Scores_2017!AU9) -> 25 | AV9: =CHOOSE(uxb_works!$B$46,Scores_2014_O!AV9,Scores_2014_N!AV9,Scores_2017!AV9) -> 100 | AW9: =CHOOSE(uxb_works!$B$46,Scores_2014_O!AW9,Scores_2014_N!AW9,Scores_2017!AW9) -> 50 | AX9: =CHOOSE(uxb_works!$B$46,Scores_2014_O!AX9,Scores_2014_N!AX9,Scores_2017!AX9) -> 100 | AY9: =CHOOSE(uxb_works!$B$46,Scores_2014_O!AY9,Scores_2014_N!AY9,Scores_2017!AY9) -> 50 | AZ9: =CHOOSE(uxb_works!$B$46,Scores_2014_O!AZ9,Scores_2014_N!AZ9,Scores_2017!AZ9) -> 25 | BA9: =CHOOSE(uxb_works!$B$46,Scores_2014_O!BA9,Scores_2014_N!BA9,Scores_2017!BA9) -> 100 | BB9: =CHOOSE(uxb_works!$B$46,Scores_2014_O!BB9,Scores_2014_N!BB9,Scores_2017!BB9) -> 75 | BC9: =CHOOSE(uxb_works!$B$46,Scores_2014_O!BC9,Scores_2014_N!BC9,Scores_2017!BC9) -> 100 | BD9: =CHOOSE(uxb_works!$B$46,Scores_2014_O!BD9,Scores_2014_N!BD9,Scores_2017!BD9) -> 0 | BE9: =CHOOSE(uxb_works!$B$46,Scores_2014_O!BE9,Scores_2014_N!BE9,Scores_2017!BE9) -> 25 | BF9: =CHOOSE(uxb_works!$B$46,Scores_2014_O!BF9,Scores_2014_N!BF9,Scores_2017!BF9) -> 50 | BG9: =CHOOSE(uxb_works!$B$46,Scores_2014_O!BG9,Scores_2014_N!BG9,Scores_2017!BG9) -> 100 | BH9: =CHOOSE(uxb_works!$B$46,Scores_2014_O!BH9,Scores_2014_N!BH9,Scores_2017!BH9) -> 100 | BI9: =CHOOSE(uxb_works!$B$46,Scores_2014_O!BI9,Scores_2014_N!BI9,Scores_2017!BI9) -> 50 | BJ9: =CHOOSE(uxb_works!$B$46,Scores_2014_O!BJ9,Scores_2014_N!BJ9,Scores_2017!BJ9) -> 25 | BK9: =CHOOSE(uxb_works!$B$46,Scores_2014_O!BK9,Scores_2014_N!BK9,Scores_2017!BK9) -> 100 | BL9: =CHOOSE(uxb_works!$B$46,Scores_2014_O!BL9,Scores_2014_N!BL9,Scores_2017!BL9) -> 75 | BM9: =CHOOSE(uxb_works!$B$46,Scores_2014_O!BM9,Scores_2014_N!BM9,Scores_2017!BM9) -> 75 | BN9: =CHOOSE(uxb_works!$B$46,Scores_2014_O!BN9,Scores_2014_N!BN9,Scores_2017!BN9) -> 75 | BO9: =CHOOSE(uxb_works!$B$46,Scores_2014_O!BO9,Scores_2014_N!BO9,Scores_2017!BO9) -> 100 | BP9: =CHOOSE(uxb_works!$B$46,Scores_2014_O!BP9,Scores_2014_N!BP9,Scores_2017!BP9) -> 75 | BQ9: =CHOOSE(uxb_works!$B$46,Scores_2014_O!BQ9,Scores_2014_N!BQ9,Scores_2017!BQ9) -> 0 | BR9: =CHOOSE(uxb_works!$B$46,Scores_2014_O!BR9,Scores_2014_N!BR9,Scores_2017!BR9) -> 75 | BS9: =CHOOSE(uxb_works!$B$46,Scores_2014_O!BS9,Scores_2014_N!BS9,Scores_2017!BS9) -> 100 | BT9: =CHOOSE(uxb_works!$B$46,Scores_2014_O!BT9,Scores_2014_N!BT9,Scores_2017!BT9) -> 100 | BU9: =CHOOSE(uxb_works!$B$46,Scores_2014_O!BU9,Scores_2014_N!BU9,Scores_2017!BU9) -> 75 | BV9: =CHOOSE(uxb_works!$B$46,Scores_2014_O!BV9,Scores_2014_N!BV9,Scores_2017!BV9) -> 0 | BW9: =CHOOSE(uxb_works!$B$46,Scores_2014_O!BW9,Scores_2014_N!BW9,Scores_2017!BW9) -> 75 | BX9: =CHOOSE(uxb_works!$B$46,Scores_2014_O!BX9,Scores_2014_N!BX9,Scores_2017!BX9) -> 75
B10: =tblIndicators!A6 -> 5 | F10: =CHOOSE(uxb_works!$B$46,Scores_2014_O!F10,Scores_2014_N!F10,Scores_2017!F10) -> 3 | N10: =REPT(" ",F10)&CHOOSE(uxb_works!$B$46,Scores_2014_O!N10,Scores_2014_N!N10,Scores_2017!N10) -> 1.1.2) Citizen awareness of digital threats | O10: =CHOOSE(uxb_works!$B$46,Scores_2014_O!O10,Scores_2014_N!O10,Scores_2017!O10) -> 0.2 | P10: =CHOOSE(uxb_works!$B$46,Scores_2014_O!P10,Scores_2014_N!P10,Scores_2017!P10) -> 66.66666667 | Q10: =CHOOSE(uxb_works!$B$46,Scores_2014_O!Q10,Scores_2014_N!Q10,Scores_2017!Q10) -> 100 | R10: =CHOOSE(uxb_works!$B$46,Scores_2014_O!R10,Scores_2014_N!R10,Scores_2017!R10) -> 100 | S10: =CHOOSE(uxb_works!$B$46,Scores_2014_O!S10,Scores_2014_N!S10,Scores_2017!S10) -> 66.66666667 | T10: =CHOOSE(uxb_works!$B$46,Scores_2014_O!T10,Scores_2014_N!T10,Scores_2017!T10) -> 100 | U10: =CHOOSE(uxb_works!$B$46,Scores_2014_O!U10,Scores_2014_N!U10,Scores_2017!U10) -> 66.66666667 | V10: =CHOOSE(uxb_works!$B$46,Scores_2014_O!V10,Scores_2014_N!V10,Scores_2017!V10) -> 33.33333333 | W10: =CHOOSE(uxb_works!$B$46,Scores_2014_O!W10,Scores_2014_N!W10,Scores_2017!W10) -> 100 | X10: =CHOOSE(uxb_works!$B$46,Scores_2014_O!X10,Scores_2014_N!X10,Scores_2017!X10) -> 33.33333333 | Y10: =CHOOSE(uxb_works!$B$46,Scores_2014_O!Z10,Scores_2014_N!Y10,Scores_2017!Y10) -> 33.33333333 | Z10: =CHOOSE(uxb_works!$B$46,Scores_2014_O!AA10,Scores_2014_N!Z10,Scores_2017!Z10) -> 33.33333333 | AA10: =CHOOSE(uxb_works!$B$46,Scores_2014_O!AB10,Scores_2014_N!AA10,Scores_2017!AA10) -> 33.33333333 | AB10: =CHOOSE(uxb_works!$B$46,Scores_2014_O!AC10,Scores_2014_N!AB10,Scores_2017!AB10) -> 100 | AC10: =CHOOSE(uxb_works!$B$46,Scores_2014_O!AD10,Scores_2014_N!AC10,Scores_2017!AC10) -> 100 | AD10: =CHOOSE(uxb_works!$B$46,Scores_2014_O!AE10,Scores_2014_N!AD10,Scores_2017!AD10) -> 66.66666667 | AE10: =CHOOSE(uxb_works!$B$46,Scores_2014_O!AF10,Scores_2014_N!AE10,Scores_2017!AE10) -> 33.33333333 | AF10: =CHOOSE(uxb_works!$B$46,Scores_2014_O!AG10,Scores_2014_N!AF10,Scores_2017!AF10) -> 66.66666667 | AG10: =CHOOSE(uxb_works!$B$46,Scores_2014_O!AH10,Scores_2014_N!AG10,Scores_2017!AG10) -> 100 | AH10: =CHOOSE(uxb_works!$B$46,Scores_2014_O!AI10,Scores_2014_N!AH10,Scores_2017!AH10) -> 33.33333333 | AI10: =CHOOSE(uxb_works!$B$46,Scores_2014_O!AJ10,Scores_2014_N!AI10,Scores_2017!AI10) -> 100 | AJ10: =CHOOSE(uxb_works!$B$46,Scores_2014_O!AK10,Scores_2014_N!AJ10,Scores_2017!AJ10) -> 100 | AK10: =CHOOSE(uxb_works!$B$46,Scores_2014_O!AL10,Scores_2014_N!AK10,Scores_2017!AK10) -> 66.66666667 | AL10: =CHOOSE(uxb_works!$B$46,Scores_2014_O!AM10,Scores_2014_N!AL10,Scores_2017!AL10) -> 66.66666667 | AM10: =CHOOSE(uxb_works!$B$46,Scores_2014_O!AN10,Scores_2014_N!AM10,Scores_2017!AM10) -> 66.66666667 | AN10: =CHOOSE(uxb_works!$B$46,Scores_2014_O!AO10,Scores_2014_N!AN10,Scores_2017!AN10) -> 100 | AO10: =CHOOSE(uxb_works!$B$46,Scores_2014_O!AP10,Scores_2014_N!AO10,Scores_2017!AO10) -> 66.66666667 | AP10: =CHOOSE(uxb_works!$B$46,Scores_2014_O!AQ10,Scores_2014_N!AP10,Scores_2017!AP10) -> 33.33333333 | AQ10: =CHOOSE(uxb_works!$B$46,Scores_2014_O!Y10,Scores_2014_N!AQ10,Scores_2017!AQ10) -> 66.66666667 | AR10: =CHOOSE(uxb_works!$B$46,Scores_2014_O!AR10,Scores_2014_N!AR10,Scores_2017!AR10) -> 100 | AS10: =CHOOSE(uxb_works!$B$46,Scores_2014_O!AS10,Scores_2014_N!AS10,Scores_2017!AS10) -> 100 | AT10: =CHOOSE(uxb_works!$B$46,Scores_2014_O!AT10,Scores_2014_N!AT10,Scores_2017!AT10) -> 100 | AU10: =CHOOSE(uxb_works!$B$46,Scores_2014_O!AU10,Scores_2014_N!AU10,Scores_2017!AU10) -> 33.33333333 | AV10: =CHOOSE(uxb_works!$B$46,Scores_2014_O!AV10,Scores_2014_N!AV10,Scores_2017!AV10) -> 100 | AW10: =CHOOSE(uxb_works!$B$46,Scores_2014_O!AW10,Scores_2014_N!AW10,Scores_2017!AW10) -> 66.66666667 | AX10: =CHOOSE(uxb_works!$B$46,Scores_2014_O!AX10,Scores_2014_N!AX10,Scores_2017!AX10) -> 66.66666667 | AY10: =CHOOSE(uxb_works!$B$46,Scores_2014_O!AY10,Scores_2014_N!AY10,Scores_2017!AY10) -> 33.33333333 | AZ10: =CHOOSE(uxb_works!$B$46,Scores_2014_O!AZ10,Scores_2014_N!AZ10,Scores_2017!AZ10) -> 66.66666667 | BA10: =CHOOSE(uxb_works!$B$46,Scores_2014_O!BA10,Scores_2014_N!BA10,Scores_2017!BA10) -> 100 | BB10: =CHOOSE(uxb_works!$B$46,Scores_2014_O!BB10,Scores_2014_N!BB10,Scores_2017!BB10) -> 66.66666667 | BC10: =CHOOSE(uxb_works!$B$46,Scores_2014_O!BC10,Scores_2014_N!BC10,Scores_2017!BC10) -> 66.66666667 | BD10: =CHOOSE(uxb_works!$B$46,Scores_2014_O!BD10,Scores_2014_N!BD10,Scores_2017!BD10) -> 66.66666667 | BE10: =CHOOSE(uxb_works!$B$46,Scores_2014_O!BE10,Scores_2014_N!BE10,Scores_2017!BE10) -> 66.66666667 | BF10: =CHOOSE(uxb_works!$B$46,Scores_2014_O!BF10,Scores_2014_N!BF10,Scores_2017!BF10) -> 66.66666667 | BG10: =CHOOSE(uxb_works!$B$46,Scores_2014_O!BG10,Scores_2014_N!BG10,Scores_2017!BG10) -> 100 | BH10: =CHOOSE(uxb_works!$B$46,Scores_2014_O!BH10,Scores_2014_N!BH10,Scores_2017!BH10) -> 100 | BI10: =CHOOSE(uxb_works!$B$46,Scores_2014_O!BI10,Scores_2014_N!BI10,Scores_2017!BI10) -> 66.66666667 | BJ10: =CHOOSE(uxb_works!$B$46,Scores_2014_O!BJ10,Scores_2014_N!BJ10,Scores_2017!BJ10) -> 66.66666667 | BK10: =CHOOSE(uxb_works!$B$46,Scores_2014_O!BK10,Scores_2014_N!BK10,Scores_2017!BK10) -> 33.33333333 | BL10: =CHOOSE(uxb_works!$B$46,Scores_2014_O!BL10,Scores_2014_N!BL10,Scores_2017!BL10) -> 66.66666667 | BM10: =CHOOSE(uxb_works!$B$46,Scores_2014_O!BM10,Scores_2014_N!BM10,Scores_2017!BM10) -> 100 | BN10: =CHOOSE(uxb_works!$B$46,Scores_2014_O!BN10,Scores_2014_N!BN10,Scores_2017!BN10) -> 100 | BO10: =CHOOSE(uxb_works!$B$46,Scores_2014_O!BO10,Scores_2014_N!BO10,Scores_2017!BO10) -> 100 | BP10: =CHOOSE(uxb_works!$B$46,Scores_2014_O!BP10,Scores_2014_N!BP10,Scores_2017!BP10) -> 66.66666667 | BQ10: =CHOOSE(uxb_works!$B$46,Scores_2014_O!BQ10,Scores_2014_N!BQ10,Scores_2017!BQ10) -> 33.33333333 | BR10: =CHOOSE(uxb_works!$B$46,Scores_2014_O!BR10,Scores_2014_N!BR10,Scores_2017!BR10) -> 66.66666667 | BS10: =CHOOSE(uxb_works!$B$46,Scores_2014_O!BS10,Scores_2014_N!BS10,Scores_2017!BS10) -> 100 | BT10: =CHOOSE(uxb_works!$B$46,Scores_2014_O!BT10,Scores_2014_N!BT10,Scores_2017!BT10) -> 100 | BU10: =CHOOSE(uxb_works!$B$46,Scores_2014_O!BU10,Scores_2014_N!BU10,Scores_2017!BU10) -> 66.66666667 | BV10: =CHOOSE(uxb_works!$B$46,Scores_2014_O!BV10,Scores_2014_N!BV10,Scores_2017!BV10) -> 33.33333333 | BW10: =CHOOSE(uxb_works!$B$46,Scores_2014_O!BW10,Scores_2014_N!BW10,Scores_2017!BW10) -> 100 | BX10: =CHOOSE(uxb_works!$B$46,Scores_2014_O!BX10,Scores_2014_N!BX10,Scores_2017!BX10) -> 66.66666667
B11: =tblIndicators!A7 -> 6 | F11: =CHOOSE(uxb_works!$B$46,Scores_2014_O!F11,Scores_2014_N!F11,Scores_2017!F11) -> 3 | N11: =REPT(" ",F11)&CHOOSE(uxb_works!$B$46,Scores_2014_O!N11,Scores_2014_N!N11,Scores_2017!N11) -> 1.1.3) Public-private partnerships | O11: =CHOOSE(uxb_works!$B$46,Scores_2014_O!O11,Scores_2014_N!O11,Scores_2017!O11) -> 0.2 | P11: =CHOOSE(uxb_works!$B$46,Scores_2014_O!P11,Scores_2014_N!P11,Scores_2017!P11) -> 50 | Q11: =CHOOSE(uxb_works!$B$46,Scores_2014_O!Q11,Scores_2014_N!Q11,Scores_2017!Q11) -> 50 | R11: =CHOOSE(uxb_works!$B$46,Scores_2014_O!R11,Scores_2014_N!R11,Scores_2017!R11) -> 0 | S11: =CHOOSE(uxb_works!$B$46,Scores_2014_O!S11,Scores_2014_N!S11,Scores_2017!S11) -> 0 | T11: =CHOOSE(uxb_works!$B$46,Scores_2014_O!T11,Scores_2014_N!T11,Scores_2017!T11) -> 50 | U11: =CHOOSE(uxb_works!$B$46,Scores_2014_O!U11,Scores_2014_N!U11,Scores_2017!U11) -> 0 | V11: =CHOOSE(uxb_works!$B$46,Scores_2014_O!V11,Scores_2014_N!V11,Scores_2017!V11) -> 0 | W11: =CHOOSE(uxb_works!$B$46,Scores_2014_O!W11,Scores_2014_N!W11,Scores_2017!W11) -> 50 | X11: =CHOOSE(uxb_works!$B$46,Scores_2014_O!X11,Scores_2014_N!X11,Scores_2017!X11) -> 50 | Y11: =CHOOSE(uxb_works!$B$46,Scores_2014_O!Z11,Scores_2014_N!Y11,Scores_2017!Y11) -> 0 | Z11: =CHOOSE(uxb_works!$B$46,Scores_2014_O!AA11,Scores_2014_N!Z11,Scores_2017!Z11) -> 50 | AA11: =CHOOSE(uxb_works!$B$46,Scores_2014_O!AB11,Scores_2014_N!AA11,Scores_2017!AA11) -> 0 | AB11: =CHOOSE(uxb_works!$B$46,Scores_2014_O!AC11,Scores_2014_N!AB11,Scores_2017!AB11) -> 100 | AC11: =CHOOSE(uxb_works!$B$46,Scores_2014_O!AD11,Scores_2014_N!AC11,Scores_2017!AC11) -> 100 | AD11: =CHOOSE(uxb_works!$B$46,Scores_2014_O!AE11,Scores_2014_N!AD11,Scores_2017!AD11) -> 50 | AE11: =CHOOSE(uxb_works!$B$46,Scores_2014_O!AF11,Scores_2014_N!AE11,Scores_2017!AE11) -> 50 | AF11: =CHOOSE(uxb_works!$B$46,Scores_2014_O!AG11,Scores_2014_N!AF11,Scores_2017!AF11) -> 50 | AG11: =CHOOSE(uxb_works!$B$46,Scores_2014_O!AH11,Scores_2014_N!AG11,Scores_2017!AG11) -> 50 | AH11: =CHOOSE(uxb_works!$B$46,Scores_2014_O!AI11,Scores_2014_N!AH11,Scores_2017!AH11) -> 0 | AI11: =CHOOSE(uxb_works!$B$46,Scores_2014_O!AJ11,Scores_2014_N!AI11,Scores_2017!AI11) -> 100 | AJ11: =CHOOSE(uxb_works!$B$46,Scores_2014_O!AK11,Scores_2014_N!AJ11,Scores_2017!AJ11) -> 50 | AK11: =CHOOSE(uxb_works!$B$46,Scores_2014_O!AL11,Scores_2014_N!AK11,Scores_2017!AK11) -> 0 | AL11: =CHOOSE(uxb_works!$B$46,Scores_2014_O!AM11,Scores_2014_N!AL11,Scores_2017!AL11) -> 0 | AM11: =CHOOSE(uxb_works!$B$46,Scores_2014_O!AN11,Scores_2014_N!AM11,Scores_2017!AM11) -> 50 | AN11: =CHOOSE(uxb_works!$B$46,Scores_2014_O!AO11,Scores_2014_N!AN11,Scores_2017!AN11) -> 0 | AO11: =CHOOSE(uxb_works!$B$46,Scores_2014_O!AP11,Scores_2014_N!AO11,Scores_2017!AO11) -> 50 | AP11: =CHOOSE(uxb_works!$B$46,Scores_2014_O!AQ11,Scores_2014_N!AP11,Scores_2017!AP11) -> 0 | AQ11: =CHOOSE(uxb_works!$B$46,Scores_2014_O!Y11,Scores_2014_N!AQ11,Scores_2017!AQ11) -> 50 | AR11: =CHOOSE(uxb_works!$B$46,Scores_2014_O!AR11,Scores_2014_N!AR11,Scores_2017!AR11) -> 50 | AS11: =CHOOSE(uxb_works!$B$46,Scores_2014_O!AS11,Scores_2014_N!AS11,Scores_2017!AS11) -> 100 | AT11: =CHOOSE(uxb_works!$B$46,Scores_2014_O!AT11,Scores_2014_N!AT11,Scores_2017!AT11) -> 50 | AU11: =CHOOSE(uxb_works!$B$46,Scores_2014_O!AU11,Scores_2014_N!AU11,Scores_2017!AU11) -> 50 | AV11: =CHOOSE(uxb_works!$B$46,Scores_2014_O!AV11,Scores_2014_N!AV11,Scores_2017!AV11) -> 50 | AW11: =CHOOSE(uxb_works!$B$46,Scores_2014_O!AW11,Scores_2014_N!AW11,Scores_2017!AW11) -> 50 | AX11: =CHOOSE(uxb_works!$B$46,Scores_2014_O!AX11,Scores_2014_N!AX11,Scores_2017!AX11) -> 100 | AY11: =CHOOSE(uxb_works!$B$46,Scores_2014_O!AY11,Scores_2014_N!AY11,Scores_2017!AY11) -> 0 | AZ11: =CHOOSE(uxb_works!$B$46,Scores_2014_O!AZ11,Scores_2014_N!AZ11,Scores_2017!AZ11) -> 50 | BA11: =CHOOSE(uxb_works!$B$46,Scores_2014_O!BA11,Scores_2014_N!BA11,Scores_2017!BA11) -> 100 | BB11: =CHOOSE(uxb_works!$B$46,Scores_2014_O!BB11,Scores_2014_N!BB11,Scores_2017!BB11) -> 50 | BC11: =CHOOSE(uxb_works!$B$46,Scores_2014_O!BC11,Scores_2014_N!BC11,Scores_2017!BC11) -> 50 | BD11: =CHOOSE(uxb_works!$B$46,Scores_2014_O!BD11,Scores_2014_N!BD11,Scores_2017!BD11) -> 50 | BE11: =CHOOSE(uxb_works!$B$46,Scores_2014_O!BE11,Scores_2014_N!BE11,Scores_2017!BE11) -> 0 | BF11: =CHOOSE(uxb_works!$B$46,Scores_2014_O!BF11,Scores_2014_N!BF11,Scores_2017!BF11) -> 0 | BG11: =CHOOSE(uxb_works!$B$46,Scores_2014_O!BG11,Scores_2014_N!BG11,Scores_2017!BG11) -> 50 | BH11: =CHOOSE(uxb_works!$B$46,Scores_2014_O!BH11,Scores_2014_N!BH11,Scores_2017!BH11) -> 100 | BI11: =CHOOSE(uxb_works!$B$46,Scores_2014_O!BI11,Scores_2014_N!BI11,Scores_2017!BI11) -> 50 | BJ11: =CHOOSE(uxb_works!$B$46,Scores_2014_O!BJ11,Scores_2014_N!BJ11,Scores_2017!BJ11) -> 0 | BK11: =CHOOSE(uxb_works!$B$46,Scores_2014_O!BK11,Scores_2014_N!BK11,Scores_2017!BK11) -> 50 | BL11: =CHOOSE(uxb_works!$B$46,Scores_2014_O!BL11,Scores_2014_N!BL11,Scores_2017!BL11) -> 0 | BM11: =CHOOSE(uxb_works!$B$46,Scores_2014_O!BM11,Scores_2014_N!BM11,Scores_2017!BM11) -> 100 | BN11: =CHOOSE(uxb_works!$B$46,Scores_2014_O!BN11,Scores_2014_N!BN11,Scores_2017!BN11) -> 50 | BO11: =CHOOSE(uxb_works!$B$46,Scores_2014_O!BO11,Scores_2014_N!BO11,Scores_2017!BO11) -> 50 | BP11: =CHOOSE(uxb_works!$B$46,Scores_2014_O!BP11,Scores_2014_N!BP11,Scores_2017!BP11) -> 100 | BQ11: =CHOOSE(uxb_works!$B$46,Scores_2014_O!BQ11,Scores_2014_N!BQ11,Scores_2017!BQ11) -> 0 | BR11: =CHOOSE(uxb_works!$B$46,Scores_2014_O!BR11,Scores_2014_N!BR11,Scores_2017!BR11) -> 100 | BS11: =CHOOSE(uxb_works!$B$46,Scores_2014_O!BS11,Scores_2014_N!BS11,Scores_2017!BS11) -> 50 | BT11: =CHOOSE(uxb_works!$B$46,Scores_2014_O!BT11,Scores_2014_N!BT11,Scores_2017!BT11) -> 50 | BU11: =CHOOSE(uxb_works!$B$46,Scores_2014_O!BU11,Scores_2014_N!BU11,Scores_2017!BU11) -> 50 | BV11: =CHOOSE(uxb_works!$B$46,Scores_2014_O!BV11,Scores_2014_N!BV11,Scores_2017!BV11) -> 0 | BW11: =CHOOSE(uxb_works!$B$46,Scores_2014_O!BW11,Scores_2014_N!BW11,Scores_2017!BW11) -> 50 | BX11: =CHOOSE(uxb_works!$B$46,Scores_2014_O!BX11,Scores_2014_N!BX11,Scores_2017!BX11) -> 50
B12: =tblIndicators!A8 -> 7 | F12: =CHOOSE(uxb_works!$B$46,Scores_2014_O!F12,Scores_2014_N!F12,Scores_2017!F12) -> 3 | N12: =REPT(" ",F12)&CHOOSE(uxb_works!$B$46,Scores_2014_O!N12,Scores_2014_N!N12,Scores_2017!N12) -> 1.1.4) Level of technology employed | O12: =CHOOSE(uxb_works!$B$46,Scores_2014_O!O12,Scores_2014_N!O12,Scores_2017!O12) -> 0.2 | P12: =CHOOSE(uxb_works!$B$46,Scores_2014_O!P12,Scores_2014_N!P12,Scores_2017!P12) -> 100 | Q12: =CHOOSE(uxb_works!$B$46,Scores_2014_O!Q12,Scores_2014_N!Q12,Scores_2017!Q12) -> 100 | R12: =CHOOSE(uxb_works!$B$46,Scores_2014_O!R12,Scores_2014_N!R12,Scores_2017!R12) -> 75 | S12: =CHOOSE(uxb_works!$B$46,Scores_2014_O!S12,Scores_2014_N!S12,Scores_2017!S12) -> 0 | T12: =CHOOSE(uxb_works!$B$46,Scores_2014_O!T12,Scores_2014_N!T12,Scores_2017!T12) -> 100 | U12: =CHOOSE(uxb_works!$B$46,Scores_2014_O!U12,Scores_2014_N!U12,Scores_2017!U12) -> 75 | V12: =CHOOSE(uxb_works!$B$46,Scores_2014_O!V12,Scores_2014_N!V12,Scores_2017!V12) -> 75 | W12: =CHOOSE(uxb_works!$B$46,Scores_2014_O!W12,Scores_2014_N!W12,Scores_2017!W12) -> 100 | X12: =CHOOSE(uxb_works!$B$46,Scores_2014_O!X12,Scores_2014_N!X12,Scores_2017!X12) -> 75 | Y12: =CHOOSE(uxb_works!$B$46,Scores_2014_O!Z12,Scores_2014_N!Y12,Scores_2017!Y12) -> 0 | Z12: =CHOOSE(uxb_works!$B$46,Scores_2014_O!AA12,Scores_2014_N!Z12,Scores_2017!Z12) -> 75 | AA12: =CHOOSE(uxb_works!$B$46,Scores_2014_O!AB12,Scores_2014_N!AA12,Scores_2017!AA12) -> 75 | AB12: =CHOOSE(uxb_works!$B$46,Scores_2014_O!AC12,Scores_2014_N!AB12,Scores_2017!AB12) -> 100 | AC12: =CHOOSE(uxb_works!$B$46,Scores_2014_O!AD12,Scores_2014_N!AC12,Scores_2017!AC12) -> 100 | AD12: =CHOOSE(uxb_works!$B$46,Scores_2014_O!AE12,Scores_2014_N!AD12,Scores_2017!AD12) -> 75 | AE12: =CHOOSE(uxb_works!$B$46,Scores_2014_O!AF12,Scores_2014_N!AE12,Scores_2017!AE12) -> 0 | AF12: =CHOOSE(uxb_works!$B$46,Scores_2014_O!AG12,Scores_2014_N!AF12,Scores_2017!AF12) -> 75 | AG12: =CHOOSE(uxb_works!$B$46,Scores_2014_O!AH12,Scores_2014_N!AG12,Scores_2017!AG12) -> 100 | AH12: =CHOOSE(uxb_works!$B$46,Scores_2014_O!AI12,Scores_2014_N!AH12,Scores_2017!AH12) -> 0 | AI12: =CHOOSE(uxb_works!$B$46,Scores_2014_O!AJ12,Scores_2014_N!AI12,Scores_2017!AI12) -> 100 | AJ12: =CHOOSE(uxb_works!$B$46,Scores_2014_O!AK12,Scores_2014_N!AJ12,Scores_2017!AJ12) -> 75 | AK12: =CHOOSE(uxb_works!$B$46,Scores_2014_O!AL12,Scores_2014_N!AK12,Scores_2017!AK12) -> 0 | AL12: =CHOOSE(uxb_works!$B$46,Scores_2014_O!AM12,Scores_2014_N!AL12,Scores_2017!AL12) -> 75 | AM12: =CHOOSE(uxb_works!$B$46,Scores_2014_O!AN12,Scores_2014_N!AM12,Scores_2017!AM12) -> 75 | AN12: =CHOOSE(uxb_works!$B$46,Scores_2014_O!AO12,Scores_2014_N!AN12,Scores_2017!AN12) -> 0 | AO12: =CHOOSE(uxb_works!$B$46,Scores_2014_O!AP12,Scores_2014_N!AO12,Scores_2017!AO12) -> 75 | AP12: =CHOOSE(uxb_works!$B$46,Scores_2014_O!AQ12,Scores_2014_N!AP12,Scores_2017!AP12) -> 75 | AQ12: =CHOOSE(uxb_works!$B$46,Scores_2014_O!Y12,Scores_2014_N!AQ12,Scores_2017!AQ12) -> 75 | AR12: =CHOOSE(uxb_works!$B$46,Scores_2014_O!AR12,Scores_2014_N!AR12,Scores_2017!AR12) -> 100 | AS12: =CHOOSE(uxb_works!$B$46,Scores_2014_O!AS12,Scores_2014_N!AS12,Scores_2017!AS12) -> 100 | AT12: =CHOOSE(uxb_works!$B$46,Scores_2014_O!AT12,Scores_2014_N!AT12,Scores_2017!AT12) -> 100 | AU12: =CHOOSE(uxb_works!$B$46,Scores_2014_O!AU12,Scores_2014_N!AU12,Scores_2017!AU12) -> 0 | AV12: =CHOOSE(uxb_works!$B$46,Scores_2014_O!AV12,Scores_2014_N!AV12,Scores_2017!AV12) -> 100 | AW12: =CHOOSE(uxb_works!$B$46,Scores_2014_O!AW12,Scores_2014_N!AW12,Scores_2017!AW12) -> 75 | AX12: =CHOOSE(uxb_works!$B$46,Scores_2014_O!AX12,Scores_2014_N!AX12,Scores_2017!AX12) -> 100 | AY12: =CHOOSE(uxb_works!$B$46,Scores_2014_O!AY12,Scores_2014_N!AY12,Scores_2017!AY12) -> 75 | AZ12: =CHOOSE(uxb_works!$B$46,Scores_2014_O!AZ12,Scores_2014_N!AZ12,Scores_2017!AZ12) -> 75 | BA12: =CHOOSE(uxb_works!$B$46,Scores_2014_O!BA12,Scores_2014_N!BA12,Scores_2017!BA12) -> 100 | BB12: =CHOOSE(uxb_works!$B$46,Scores_2014_O!BB12,Scores_2014_N!BB12,Scores_2017!BB12) -> 100 | BC12: =CHOOSE(uxb_works!$B$46,Scores_2014_O!BC12,Scores_2014_N!BC12,Scores_2017!BC12) -> 100 | BD12: =CHOOSE(uxb_works!$B$46,Scores_2014_O!BD12,Scores_2014_N!BD12,Scores_2017!BD12) -> 75 | BE12: =CHOOSE(uxb_works!$B$46,Scores_2014_O!BE12,Scores_2014_N!BE12,Scores_2017!BE12) -> 75 | BF12: =CHOOSE(uxb_works!$B$46,Scores_2014_O!BF12,Scores_2014_N!BF12,Scores_2017!BF12) -> 75 | BG12: =CHOOSE(uxb_works!$B$46,Scores_2014_O!BG12,Scores_2014_N!BG12,Scores_2017!BG12) -> 100 | BH12: =CHOOSE(uxb_works!$B$46,Scores_2014_O!BH12,Scores_2014_N!BH12,Scores_2017!BH12) -> 100 | BI12: =CHOOSE(uxb_works!$B$46,Scores_2014_O!BI12,Scores_2014_N!BI12,Scores_2017!BI12) -> 75 | BJ12: =CHOOSE(uxb_works!$B$46,Scores_2014_O!BJ12,Scores_2014_N!BJ12,Scores_2017!BJ12) -> 75 | BK12: =CHOOSE(uxb_works!$B$46,Scores_2014_O!BK12,Scores_2014_N!BK12,Scores_2017!BK12) -> 100 | BL12: =CHOOSE(uxb_works!$B$46,Scores_2014_O!BL12,Scores_2014_N!BL12,Scores_2017!BL12) -> 75 | BM12: =CHOOSE(uxb_works!$B$46,Scores_2014_O!BM12,Scores_2014_N!BM12,Scores_2017!BM12) -> 100 | BN12: =CHOOSE(uxb_works!$B$46,Scores_2014_O!BN12,Scores_2014_N!BN12,Scores_2017!BN12) -> 100 | BO12: =CHOOSE(uxb_works!$B$46,Scores_2014_O!BO12,Scores_2014_N!BO12,Scores_2017!BO12) -> 100 | BP12: =CHOOSE(uxb_works!$B$46,Scores_2014_O!BP12,Scores_2014_N!BP12,Scores_2017!BP12) -> 100 | BQ12: =CHOOSE(uxb_works!$B$46,Scores_2014_O!BQ12,Scores_2014_N!BQ12,Scores_2017!BQ12) -> 0 | BR12: =CHOOSE(uxb_works!$B$46,Scores_2014_O!BR12,Scores_2014_N!BR12,Scores_2017!BR12) -> 100 | BS12: =CHOOSE(uxb_works!$B$46,Scores_2014_O!BS12,Scores_2014_N!BS12,Scores_2017!BS12) -> 100 | BT12: =CHOOSE(uxb_works!$B$46,Scores_2014_O!BT12,Scores_2014_N!BT12,Scores_2017!BT12) -> 100 | BU12: =CHOOSE(uxb_works!$B$46,Scores_2014_O!BU12,Scores_2014_N!BU12,Scores_2017!BU12) -> 100 | BV12: =CHOOSE(uxb_works!$B$46,Scores_2014_O!BV12,Scores_2014_N!BV12,Scores_2017!BV12) -> 0 | BW12: =CHOOSE(uxb_works!$B$46,Scores_2014_O!BW12,Scores_2014_N!BW12,Scores_2017!BW12) -> 100 | BX12: =CHOOSE(uxb_works!$B$46,Scores_2014_O!BX12,Scores_2014_N!BX12,Scores_2017!BX12) -> 100
B13: =tblIndicators!A9 -> 8 | F13: =CHOOSE(uxb_works!$B$46,Scores_2014_O!F13,Scores_2014_N!F13,Scores_2017!F13) -> 3 | N13: =REPT(" ",F13)&CHOOSE(uxb_works!$B$46,Scores_2014_O!N13,Scores_2014_N!N13,Scores_2017!N13) -> 1.1.5) Dedicated cyber security teams | O13: =CHOOSE(uxb_works!$B$46,Scores_2014_O!O13,Scores_2014_N!O13,Scores_2017!O13) -> 0.2 | P13: =CHOOSE(uxb_works!$B$46,Scores_2014_O!P13,Scores_2014_N!P13,Scores_2017!P13) -> 50 | Q13: =CHOOSE(uxb_works!$B$46,Scores_2014_O!Q13,Scores_2014_N!Q13,Scores_2017!Q13) -> 50 | R13: =CHOOSE(uxb_works!$B$46,Scores_2014_O!R13,Scores_2014_N!R13,Scores_2017!R13) -> 50 | S13: =CHOOSE(uxb_works!$B$46,Scores_2014_O!S13,Scores_2014_N!S13,Scores_2017!S13) -> 50 | T13: =CHOOSE(uxb_works!$B$46,Scores_2014_O!T13,Scores_2014_N!T13,Scores_2017!T13) -> 50 | U13: =CHOOSE(uxb_works!$B$46,Scores_2014_O!U13,Scores_2014_N!U13,Scores_2017!U13) -> 100 | V13: =CHOOSE(uxb_works!$B$46,Scores_2014_O!V13,Scores_2014_N!V13,Scores_2017!V13) -> 50 | W13: =CHOOSE(uxb_works!$B$46,Scores_2014_O!W13,Scores_2014_N!W13,Scores_2017!W13) -> 50 | X13: =CHOOSE(uxb_works!$B$46,Scores_2014_O!X13,Scores_2014_N!X13,Scores_2017!X13) -> 100 | Y13: =CHOOSE(uxb_works!$B$46,Scores_2014_O!Z13,Scores_2014_N!Y13,Scores_2017!Y13) -> 50 | Z13: =CHOOSE(uxb_works!$B$46,Scores_2014_O!AA13,Scores_2014_N!Z13,Scores_2017!Z13) -> 50 | AA13: =CHOOSE(uxb_works!$B$46,Scores_2014_O!AB13,Scores_2014_N!AA13,Scores_2017!AA13) -> 50 | AB13: =CHOOSE(uxb_works!$B$46,Scores_2014_O!AC13,Scores_2014_N!AB13,Scores_2017!AB13) -> 100 | AC13: =CHOOSE(uxb_works!$B$46,Scores_2014_O!AD13,Scores_2014_N!AC13,Scores_2017!AC13) -> 100 | AD13: =CHOOSE(uxb_works!$B$46,Scores_2014_O!AE13,Scores_2014_N!AD13,Scores_2017!AD13) -> 100 | AE13: =CHOOSE(uxb_works!$B$46,Scores_2014_O!AF13,Scores_2014_N!AE13,Scores_2017!AE13) -> 50 | AF13: =CHOOSE(uxb_works!$B$46,Scores_2014_O!AG13,Scores_2014_N!AF13,Scores_2017!AF13) -> 50 | AG13: =CHOOSE(uxb_works!$B$46,Scores_2014_O!AH13,Scores_2014_N!AG13,Scores_2017!AG13) -> 50 | AH13: =CHOOSE(uxb_works!$B$46,Scores_2014_O!AI13,Scores_2014_N!AH13,Scores_2017!AH13) -> 50 | AI13: =CHOOSE(uxb_works!$B$46,Scores_2014_O!AJ13,Scores_2014_N!AI13,Scores_2017!AI13) -> 100 | AJ13: =CHOOSE(uxb_works!$B$46,Scores_2014_O!AK13,Scores_2014_N!AJ13,Scores_2017!AJ13) -> 50 | AK13: =CHOOSE(uxb_works!$B$46,Scores_2014_O!AL13,Scores_2014_N!AK13,Scores_2017!AK13) -> 50 | AL13: =CHOOSE(uxb_works!$B$46,Scores_2014_O!AM13,Scores_2014_N!AL13,Scores_2017!AL13) -> 100 | AM13: =CHOOSE(uxb_works!$B$46,Scores_2014_O!AN13,Scores_2014_N!AM13,Scores_2017!AM13) -> 50 | AN13: =CHOOSE(uxb_works!$B$46,Scores_2014_O!AO13,Scores_2014_N!AN13,Scores_2017!AN13) -> 50 | AO13: =CHOOSE(uxb_works!$B$46,Scores_2014_O!AP13,Scores_2014_N!AO13,Scores_2017!AO13) -> 50 | AP13: =CHOOSE(uxb_works!$B$46,Scores_2014_O!AQ13,Scores_2014_N!AP13,Scores_2017!AP13) -> 50 | AQ13: =CHOOSE(uxb_works!$B$46,Scores_2014_O!Y13,Scores_2014_N!AQ13,Scores_2017!AQ13) -> 50 | AR13: =CHOOSE(uxb_works!$B$46,Scores_2014_O!AR13,Scores_2014_N!AR13,Scores_2017!AR13) -> 50 | AS13: =CHOOSE(uxb_works!$B$46,Scores_2014_O!AS13,Scores_2014_N!AS13,Scores_2017!AS13) -> 100 | AT13: =CHOOSE(uxb_works!$B$46,Scores_2014_O!AT13,Scores_2014_N!AT13,Scores_2017!AT13) -> 50 | AU13: =CHOOSE(uxb_works!$B$46,Scores_2014_O!AU13,Scores_2014_N!AU13,Scores_2017!AU13) -> 50 | AV13: =CHOOSE(uxb_works!$B$46,Scores_2014_O!AV13,Scores_2014_N!AV13,Scores_2017!AV13) -> 100 | AW13: =CHOOSE(uxb_works!$B$46,Scores_2014_O!AW13,Scores_2014_N!AW13,Scores_2017!AW13) -> 50 | AX13: =CHOOSE(uxb_works!$B$46,Scores_2014_O!AX13,Scores_2014_N!AX13,Scores_2017!AX13) -> 50 | AY13: =CHOOSE(uxb_works!$B$46,Scores_2014_O!AY13,Scores_2014_N!AY13,Scores_2017!AY13) -> 50 | AZ13: =CHOOSE(uxb_works!$B$46,Scores_2014_O!AZ13,Scores_2014_N!AZ13,Scores_2017!AZ13) -> 100 | BA13: =CHOOSE(uxb_works!$B$46,Scores_2014_O!BA13,Scores_2014_N!BA13,Scores_2017!BA13) -> 100 | BB13: =CHOOSE(uxb_works!$B$46,Scores_2014_O!BB13,Scores_2014_N!BB13,Scores_2017!BB13) -> 100 | BC13: =CHOOSE(uxb_works!$B$46,Scores_2014_O!BC13,Scores_2014_N!BC13,Scores_2017!BC13) -> 50 | BD13: =CHOOSE(uxb_works!$B$46,Scores_2014_O!BD13,Scores_2014_N!BD13,Scores_2017!BD13) -> 50 | BE13: =CHOOSE(uxb_works!$B$46,Scores_2014_O!BE13,Scores_2014_N!BE13,Scores_2017!BE13) -> 50 | BF13: =CHOOSE(uxb_works!$B$46,Scores_2014_O!BF13,Scores_2014_N!BF13,Scores_2017!BF13) -> 50 | BG13: =CHOOSE(uxb_works!$B$46,Scores_2014_O!BG13,Scores_2014_N!BG13,Scores_2017!BG13) -> 50 | BH13: =CHOOSE(uxb_works!$B$46,Scores_2014_O!BH13,Scores_2014_N!BH13,Scores_2017!BH13) -> 100 | BI13: =CHOOSE(uxb_works!$B$46,Scores_2014_O!BI13,Scores_2014_N!BI13,Scores_2017!BI13) -> 50 | BJ13: =CHOOSE(uxb_works!$B$46,Scores_2014_O!BJ13,Scores_2014_N!BJ13,Scores_2017!BJ13) -> 50 | BK13: =CHOOSE(uxb_works!$B$46,Scores_2014_O!BK13,Scores_2014_N!BK13,Scores_2017!BK13) -> 50 | BL13: =CHOOSE(uxb_works!$B$46,Scores_2014_O!BL13,Scores_2014_N!BL13,Scores_2017!BL13) -> 50 | BM13: =CHOOSE(uxb_works!$B$46,Scores_2014_O!BM13,Scores_2014_N!BM13,Scores_2017!BM13) -> 100 | BN13: =CHOOSE(uxb_works!$B$46,Scores_2014_O!BN13,Scores_2014_N!BN13,Scores_2017!BN13) -> 50 | BO13: =CHOOSE(uxb_works!$B$46,Scores_2014_O!BO13,Scores_2014_N!BO13,Scores_2017!BO13) -> 100 | BP13: =CHOOSE(uxb_works!$B$46,Scores_2014_O!BP13,Scores_2014_N!BP13,Scores_2017!BP13) -> 100 | BQ13: =CHOOSE(uxb_works!$B$46,Scores_2014_O!BQ13,Scores_2014_N!BQ13,Scores_2017!BQ13) -> 50 | BR13: =CHOOSE(uxb_works!$B$46,Scores_2014_O!BR13,Scores_2014_N!BR13,Scores_2017!BR13) -> 100 | BS13: =CHOOSE(uxb_works!$B$46,Scores_2014_O!BS13,Scores_2014_N!BS13,Scores_2017!BS13) -> 100 | BT13: =CHOOSE(uxb_works!$B$46,Scores_2014_O!BT13,Scores_2014_N!BT13,Scores_2017!BT13) -> 100 | BU13: =CHOOSE(uxb_works!$B$46,Scores_2014_O!BU13,Scores_2014_N!BU13,Scores_2017!BU13) -> 50 | BV13: =CHOOSE(uxb_works!$B$46,Scores_2014_O!BV13,Scores_2014_N!BV13,Scores_2017!BV13) -> 50 | BW13: =CHOOSE(uxb_works!$B$46,Scores_2014_O!BW13,Scores_2014_N!BW13,Scores_2017!BW13) -> 50 | BX13: =CHOOSE(uxb_works!$B$46,Scores_2014_O!BX13,Scores_2014_N!BX13,Scores_2017!BX13) -> 100
B14: =tblIndicators!A10 -> 9 | F14: =CHOOSE(uxb_works!$B$46,Scores_2014_O!F14,Scores_2014_N!F14,Scores_2017!F14) -> 2 | N14: =REPT(" ",F14)&CHOOSE(uxb_works!$B$46,Scores_2014_O!N14,Scores_2014_N!N14,Scores_2017!N14) -> 1.2) Digital security (Outputs) | O14: =CHOOSE(uxb_works!$B$46,Scores_2014_O!O14,Scores_2014_N!O14,Scores_2017!O14) -> 0.5 | P14: =CHOOSE(uxb_works!$B$46,Scores_2014_O!P14,Scores_2014_N!P14,Scores_2017!P14) -> 74.21508825 | Q14: =CHOOSE(uxb_works!$B$46,Scores_2014_O!Q14,Scores_2014_N!Q14,Scores_2017!Q14) -> 91.58142006 | R14: =CHOOSE(uxb_works!$B$46,Scores_2014_O!R14,Scores_2014_N!R14,Scores_2017!R14) -> 63.87646422 | S14: =CHOOSE(uxb_works!$B$46,Scores_2014_O!S14,Scores_2014_N!S14,Scores_2017!S14) -> 60.55291257 | T14: =CHOOSE(uxb_works!$B$46,Scores_2014_O!T14,Scores_2014_N!T14,Scores_2017!T14) -> 68.88293446 | U14: =CHOOSE(uxb_works!$B$46,Scores_2014_O!U14,Scores_2014_N!U14,Scores_2017!U14) -> 67.4191729 | V14: =CHOOSE(uxb_works!$B$46,Scores_2014_O!V14,Scores_2014_N!V14,Scores_2017!V14) -> 67.57869323 | W14: =CHOOSE(uxb_works!$B$46,Scores_2014_O!W14,Scores_2014_N!W14,Scores_2017!W14) -> 79.92632031 | X14: =CHOOSE(uxb_works!$B$46,Scores_2014_O!X14,Scores_2014_N!X14,Scores_2017!X14) -> 81.61933865 | Y14: =CHOOSE(uxb_works!$B$46,Scores_2014_O!Z14,Scores_2014_N!Y14,Scores_2017!Y14) -> 59.91970563 | Z14: =CHOOSE(uxb_works!$B$46,Scores_2014_O!AA14,Scores_2014_N!Z14,Scores_2017!Z14) -> 70.10646306 | AA14: =CHOOSE(uxb_works!$B$46,Scores_2014_O!AB14,Scores_2014_N!AA14,Scores_2017!AA14) -> 68.07788995 | AB14: =CHOOSE(uxb_works!$B$46,Scores_2014_O!AC14,Scores_2014_N!AB14,Scores_2017!AB14) -> 73.50089498 | AC14: =CHOOSE(uxb_works!$B$46,Scores_2014_O!AD14,Scores_2014_N!AC14,Scores_2017!AC14) -> 69.30756999 | AD14: =CHOOSE(uxb_works!$B$46,Scores_2014_O!AE14,Scores_2014_N!AD14,Scores_2017!AD14) -> 45.87784322 | AE14: =CHOOSE(uxb_works!$B$46,Scores_2014_O!AF14,Scores_2014_N!AE14,Scores_2017!AE14) -> 50 | AF14: =CHOOSE(uxb_works!$B$46,Scores_2014_O!AG14,Scores_2014_N!AF14,Scores_2017!AF14) -> 69.70342851 | AG14: =CHOOSE(uxb_works!$B$46,Scores_2014_O!AH14,Scores_2014_N!AG14,Scores_2017!AG14) -> 81.00087043 | AH14: =CHOOSE(uxb_works!$B$46,Scores_2014_O!AI14,Scores_2014_N!AH14,Scores_2017!AH14) -> 57.89779935 | AI14: =CHOOSE(uxb_works!$B$46,Scores_2014_O!AJ14,Scores_2014_N!AI14,Scores_2017!AI14) -> 71.54870418 | AJ14: =CHOOSE(uxb_works!$B$46,Scores_2014_O!AK14,Scores_2014_N!AJ14,Scores_2017!AJ14) -> 63.41291173 | AK14: =CHOOSE(uxb_works!$B$46,Scores_2014_O!AL14,Scores_2014_N!AK14,Scores_2017!AK14) -> 44.87564788 | AL14: =CHOOSE(uxb_works!$B$46,Scores_2014_O!AM14,Scores_2014_N!AL14,Scores_2017!AL14) -> 73.38784054 | AM14: =CHOOSE(uxb_works!$B$46,Scores_2014_O!AN14,Scores_2014_N!AM14,Scores_2017!AM14) -> 74.2225001 | AN14: =CHOOSE(uxb_works!$B$46,Scores_2014_O!AO14,Scores_2014_N!AN14,Scores_2017!AN14) -> 51.4351194 | AO14: =CHOOSE(uxb_works!$B$46,Scores_2014_O!AP14,Scores_2014_N!AO14,Scores_2017!AO14) -> 74.00109611 | AP14: =CHOOSE(uxb_works!$B$46,Scores_2014_O!AQ14,Scores_2014_N!AP14,Scores_2017!AP14) -> 78.66671951 | AQ14: =CHOOSE(uxb_works!$B$46,Scores_2014_O!Y14,Scores_2014_N!AQ14,Scores_2017!AQ14) -> 61.22455679 | AR14: =CHOOSE(uxb_works!$B$46,Scores_2014_O!AR14,Scores_2014_N!AR14,Scores_2017!AR14) -> 66.72701637 | AS14: =CHOOSE(uxb_works!$B$46,Scores_2014_O!AS14,Scores_2014_N!AS14,Scores_2017!AS14) -> 70.23941999 | AT14: =CHOOSE(uxb_works!$B$46,Scores_2014_O!AT14,Scores_2014_N!AT14,Scores_2017!AT14) -> 68.88293446 | AU14: =CHOOSE(uxb_works!$B$46,Scores_2014_O!AU14,Scores_2014_N!AU14,Scores_2017!AU14) -> 41.55170192 | AV14: =CHOOSE(uxb_works!$B$46,Scores_2014_O!AV14,Scores_2014_N!AV14,Scores_2017!AV14) -> 76.63412571 | AW14: =CHOOSE(uxb_works!$B$46,Scores_2014_O!AW14,Scores_2014_N!AW14,Scores_2017!AW14) -> 49.04732943 | AX14: =CHOOSE(uxb_works!$B$46,Scores_2014_O!AX14,Scores_2014_N!AX14,Scores_2017!AX14) -> 63.2459785 | AY14: =CHOOSE(uxb_works!$B$46,Scores_2014_O!AY14,Scores_2014_N!AY14,Scores_2017!AY14) -> 56.38924913 | AZ14: =CHOOSE(uxb_works!$B$46,Scores_2014_O!AZ14,Scores_2014_N!AZ14,Scores_2017!AZ14) -> 45.87784322 | BA14: =CHOOSE(uxb_works!$B$46,Scores_2014_O!BA14,Scores_2014_N!BA14,Scores_2017!BA14) -> 69.90056544 | BB14: =CHOOSE(uxb_works!$B$46,Scores_2014_O!BB14,Scores_2014_N!BB14,Scores_2017!BB14) -> 85.88857326 | BC14: =CHOOSE(uxb_works!$B$46,Scores_2014_O!BC14,Scores_2014_N!BC14,Scores_2017!BC14) -> 67.41353069 | BD14: =CHOOSE(uxb_works!$B$46,Scores_2014_O!BD14,Scores_2014_N!BD14,Scores_2017!BD14) -> 72.96356203 | BE14: =CHOOSE(uxb_works!$B$46,Scores_2014_O!BE14,Scores_2014_N!BE14,Scores_2017!BE14) -> 60.59147184 | BF14: =CHOOSE(uxb_works!$B$46,Scores_2014_O!BF14,Scores_2014_N!BF14,Scores_2017!BF14) -> 73.38784054 | BG14: =CHOOSE(uxb_works!$B$46,Scores_2014_O!BG14,Scores_2014_N!BG14,Scores_2017!BG14) -> 63.2459785 | BH14: =CHOOSE(uxb_works!$B$46,Scores_2014_O!BH14,Scores_2014_N!BH14,Scores_2017!BH14) -> 70.23941999 | BI14: =CHOOSE(uxb_works!$B$46,Scores_2014_O!BI14,Scores_2014_N!BI14,Scores_2017!BI14) -> 62.79805963 | BJ14: =CHOOSE(uxb_works!$B$46,Scores_2014_O!BJ14,Scores_2014_N!BJ14,Scores_2017!BJ14) -> 60.59147184 | BK14: =CHOOSE(uxb_works!$B$46,Scores_2014_O!BK14,Scores_2014_N!BK14,Scores_2017!BK14) -> 90.18200037 | BL14: =CHOOSE(uxb_works!$B$46,Scores_2014_O!BL14,Scores_2014_N!BL14,Scores_2017!BL14) -> 65.51311609 | BM14: =CHOOSE(uxb_works!$B$46,Scores_2014_O!BM14,Scores_2014_N!BM14,Scores_2017!BM14) -> 78.67683654 | BN14: =CHOOSE(uxb_works!$B$46,Scores_2014_O!BN14,Scores_2014_N!BN14,Scores_2017!BN14) -> 90.6135491 | BO14: =CHOOSE(uxb_works!$B$46,Scores_2014_O!BO14,Scores_2014_N!BO14,Scores_2017!BO14) -> 75.9140598 | BP14: =CHOOSE(uxb_works!$B$46,Scores_2014_O!BP14,Scores_2014_N!BP14,Scores_2017!BP14) -> 43.62122125 | BQ14: =CHOOSE(uxb_works!$B$46,Scores_2014_O!BQ14,Scores_2014_N!BQ14,Scores_2017!BQ14) -> 63.10307146 | BR14: =CHOOSE(uxb_works!$B$46,Scores_2014_O!BR14,Scores_2014_N!BR14,Scores_2017!BR14) -> 88.47233917 | BS14: =CHOOSE(uxb_works!$B$46,Scores_2014_O!BS14,Scores_2014_N!BS14,Scores_2017!BS14) -> 80.66317873 | BT14: =CHOOSE(uxb_works!$B$46,Scores_2014_O!BT14,Scores_2014_N!BT14,Scores_2017!BT14) -> 71.76426544 | BU14: =CHOOSE(uxb_works!$B$46,Scores_2014_O!BU14,Scores_2014_N!BU14,Scores_2017!BU14) -> 81.26870941 | BV14: =CHOOSE(uxb_works!$B$46,Scores_2014_O!BV14,Scores_2014_N!BV14,Scores_2017!BV14) -> 61.46773787 | BW14: =CHOOSE(uxb_works!$B$46,Scores_2014_O!BW14,Scores_2014_N!BW14,Scores_2017!BW14) -> 80.95396263 | BX14: =CHOOSE(uxb_works!$B$46,Scores_2014_O!BX14,Scores_2014_N!BX14,Scores_2017!BX14) -> 86.73570963
B15: =tblIndicators!A11 -> 10 | F15: =CHOOSE(uxb_works!$B$46,Scores_2014_O!F15,Scores_2014_N!F15,Scores_2017!F15) -> 3 | N15: =REPT(" ",F15)&CHOOSE(uxb_works!$B$46,Scores_2014_O!N15,Scores_2014_N!N15,Scores_2017!N15) -> 1.2.1) Frequency of identity theft | O15: =CHOOSE(uxb_works!$B$46,Scores_2014_O!O15,Scores_2014_N!O15,Scores_2017!O15) -> 0.3333333333 | P15: =CHOOSE(uxb_works!$B$46,Scores_2014_O!P15,Scores_2014_N!P15,Scores_2017!P15) -> 100 | Q15: =CHOOSE(uxb_works!$B$46,Scores_2014_O!Q15,Scores_2014_N!Q15,Scores_2017!Q15) -> 99.74426019 | R15: =CHOOSE(uxb_works!$B$46,Scores_2014_O!R15,Scores_2014_N!R15,Scores_2017!R15) -> 100 | S15: =CHOOSE(uxb_works!$B$46,Scores_2014_O!S15,Scores_2014_N!S15,Scores_2017!S15) -> 99.99770229 | T15: =CHOOSE(uxb_works!$B$46,Scores_2014_O!T15,Scores_2014_N!T15,Scores_2017!T15) -> 99.95571666 | U15: =CHOOSE(uxb_works!$B$46,Scores_2014_O!U15,Scores_2014_N!U15,Scores_2017!U15) -> 99.99868254 | V15: =CHOOSE(uxb_works!$B$46,Scores_2014_O!V15,Scores_2014_N!V15,Scores_2017!V15) -> 99.99552259 | W15: =CHOOSE(uxb_works!$B$46,Scores_2014_O!W15,Scores_2014_N!W15,Scores_2017!W15) -> 100 | X15: =CHOOSE(uxb_works!$B$46,Scores_2014_O!X15,Scores_2014_N!X15,Scores_2017!X15) -> 99.96809578 | Y15: =CHOOSE(uxb_works!$B$46,Scores_2014_O!Z15,Scores_2014_N!Y15,Scores_2017!Y15) -> 100 | Z15: =CHOOSE(uxb_works!$B$46,Scores_2014_O!AA15,Scores_2014_N!Z15,Scores_2017!Z15) -> 100 | AA15: =CHOOSE(uxb_works!$B$46,Scores_2014_O!AB15,Scores_2014_N!AA15,Scores_2017!AA15) -> 100 | AB15: =CHOOSE(uxb_works!$B$46,Scores_2014_O!AC15,Scores_2014_N!AB15,Scores_2017!AB15) -> 85.49255106 | AC15: =CHOOSE(uxb_works!$B$46,Scores_2014_O!AD15,Scores_2014_N!AC15,Scores_2017!AC15) -> 85.49255106 | AD15: =CHOOSE(uxb_works!$B$46,Scores_2014_O!AE15,Scores_2014_N!AD15,Scores_2017!AD15) -> 97.89335696 | AE15: =CHOOSE(uxb_works!$B$46,Scores_2014_O!AF15,Scores_2014_N!AE15,Scores_2017!AE15) -> 100 | AF15: =CHOOSE(uxb_works!$B$46,Scores_2014_O!AG15,Scores_2014_N!AF15,Scores_2017!AF15) -> 84.37926008 | AG15: =CHOOSE(uxb_works!$B$46,Scores_2014_O!AH15,Scores_2014_N!AG15,Scores_2017!AG15) -> 100 | AH15: =CHOOSE(uxb_works!$B$46,Scores_2014_O!AI15,Scores_2014_N!AH15,Scores_2017!AH15) -> 100 | AI15: =CHOOSE(uxb_works!$B$46,Scores_2014_O!AJ15,Scores_2014_N!AI15,Scores_2017!AI15) -> 100 | AJ15: =CHOOSE(uxb_works!$B$46,Scores_2014_O!AK15,Scores_2014_N!AJ15,Scores_2017!AJ15) -> 90.24289149 | AK15: =CHOOSE(uxb_works!$B$46,Scores_2014_O!AL15,Scores_2014_N!AK15,Scores_2017!AK15) -> 100 | AL15: =CHOOSE(uxb_works!$B$46,Scores_2014_O!AM15,Scores_2014_N!AL15,Scores_2017!AL15) -> 100 | AM15: =CHOOSE(uxb_works!$B$46,Scores_2014_O!AN15,Scores_2014_N!AM15,Scores_2017!AM15) -> 99.99178952 | AN15: =CHOOSE(uxb_works!$B$46,Scores_2014_O!AO15,Scores_2014_N!AN15,Scores_2017!AN15) -> 99.73082184 | AO15: =CHOOSE(uxb_works!$B$46,Scores_2014_O!AP15,Scores_2014_N!AO15,Scores_2017!AO15) -> 100 | AP15: =CHOOSE(uxb_works!$B$46,Scores_2014_O!AQ15,Scores_2014_N!AP15,Scores_2017!AP15) -> 100 | AQ15: =CHOOSE(uxb_works!$B$46,Scores_2014_O!Y15,Scores_2014_N!AQ15,Scores_2017!AQ15) -> 100 | AR15: =CHOOSE(uxb_works!$B$46,Scores_2014_O!AR15,Scores_2014_N!AR15,Scores_2017!AR15) -> 51.57399542 | AS15: =CHOOSE(uxb_works!$B$46,Scores_2014_O!AS15,Scores_2014_N!AS15,Scores_2017!AS15) -> 85.49255106 | AT15: =CHOOSE(uxb_works!$B$46,Scores_2014_O!AT15,Scores_2014_N!AT15,Scores_2017!AT15) -> 99.95571666 | AU15: =CHOOSE(uxb_works!$B$46,Scores_2014_O!AU15,Scores_2014_N!AU15,Scores_2017!AU15) -> 41.23557629 | AV15: =CHOOSE(uxb_works!$B$46,Scores_2014_O!AV15,Scores_2014_N!AV15,Scores_2017!AV15) -> 89.80942509 | AW15: =CHOOSE(uxb_works!$B$46,Scores_2014_O!AW15,Scores_2014_N!AW15,Scores_2017!AW15) -> 42.46224652 | AX15: =CHOOSE(uxb_works!$B$46,Scores_2014_O!AX15,Scores_2014_N!AX15,Scores_2017!AX15) -> 99.71395095 | AY15: =CHOOSE(uxb_works!$B$46,Scores_2014_O!AY15,Scores_2014_N!AY15,Scores_2017!AY15) -> 98.39046858 | AZ15: =CHOOSE(uxb_works!$B$46,Scores_2014_O!AZ15,Scores_2014_N!AZ15,Scores_2017!AZ15) -> 97.89335696 | BA15: =CHOOSE(uxb_works!$B$46,Scores_2014_O!BA15,Scores_2014_N!BA15,Scores_2017!BA15) -> 85.49255106 | BB15: =CHOOSE(uxb_works!$B$46,Scores_2014_O!BB15,Scores_2014_N!BB15,Scores_2017!BB15) -> 94.73296548 | BC15: =CHOOSE(uxb_works!$B$46,Scores_2014_O!BC15,Scores_2014_N!BC15,Scores_2017!BC15) -> 87.91705164 | BD15: =CHOOSE(uxb_works!$B$46,Scores_2014_O!BD15,Scores_2014_N!BD15,Scores_2017!BD15) -> 100 | BE15: =CHOOSE(uxb_works!$B$46,Scores_2014_O!BE15,Scores_2014_N!BE15,Scores_2017!BE15) -> 100 | BF15: =CHOOSE(uxb_works!$B$46,Scores_2014_O!BF15,Scores_2014_N!BF15,Scores_2017!BF15) -> 100 | BG15: =CHOOSE(uxb_works!$B$46,Scores_2014_O!BG15,Scores_2014_N!BG15,Scores_2017!BG15) -> 99.71395095 | BH15: =CHOOSE(uxb_works!$B$46,Scores_2014_O!BH15,Scores_2014_N!BH15,Scores_2017!BH15) -> 85.49255106 | BI15: =CHOOSE(uxb_works!$B$46,Scores_2014_O!BI15,Scores_2014_N!BI15,Scores_2017!BI15) -> 100 | BJ15: =CHOOSE(uxb_works!$B$46,Scores_2014_O!BJ15,Scores_2014_N!BJ15,Scores_2017!BJ15) -> 100 | BK15: =CHOOSE(uxb_works!$B$46,Scores_2014_O!BK15,Scores_2014_N!BK15,Scores_2017!BK15) -> 99.9272241 | BL15: =CHOOSE(uxb_works!$B$46,Scores_2014_O!BL15,Scores_2014_N!BL15,Scores_2017!BL15) -> 99.99868254 | BM15: =CHOOSE(uxb_works!$B$46,Scores_2014_O!BM15,Scores_2014_N!BM15,Scores_2017!BM15) -> 100 | BN15: =CHOOSE(uxb_works!$B$46,Scores_2014_O!BN15,Scores_2014_N!BN15,Scores_2017!BN15) -> 100 | BO15: =CHOOSE(uxb_works!$B$46,Scores_2014_O!BO15,Scores_2014_N!BO15,Scores_2017!BO15) -> 89.80942509 | BP15: =CHOOSE(uxb_works!$B$46,Scores_2014_O!BP15,Scores_2014_N!BP15,Scores_2017!BP15) -> 0 | BQ15: =CHOOSE(uxb_works!$B$46,Scores_2014_O!BQ15,Scores_2014_N!BQ15,Scores_2017!BQ15) -> 100 | BR15: =CHOOSE(uxb_works!$B$46,Scores_2014_O!BR15,Scores_2014_N!BR15,Scores_2017!BR15) -> 94.73296548 | BS15: =CHOOSE(uxb_works!$B$46,Scores_2014_O!BS15,Scores_2014_N!BS15,Scores_2017!BS15) -> 97.86845075 | BT15: =CHOOSE(uxb_works!$B$46,Scores_2014_O!BT15,Scores_2014_N!BT15,Scores_2017!BT15) -> 85.49255106 | BU15: =CHOOSE(uxb_works!$B$46,Scores_2014_O!BU15,Scores_2014_N!BU15,Scores_2017!BU15) -> 99.99904809 | BV15: =CHOOSE(uxb_works!$B$46,Scores_2014_O!BV15,Scores_2014_N!BV15,Scores_2017!BV15) -> 100 | BW15: =CHOOSE(uxb_works!$B$46,Scores_2014_O!BW15,Scores_2014_N!BW15,Scores_2017!BW15) -> 100 | BX15: =CHOOSE(uxb_works!$B$46,Scores_2014_O!BX15,Scores_2014_N!BX15,Scores_2017!BX15) -> 94.73296548
B16: =tblIndicators!A12 -> 11 | F16: =CHOOSE(uxb_works!$B$46,Scores_2014_O!F16,Scores_2014_N!F16,Scores_2017!F16) -> 3 | N16: =REPT(" ",F16)&CHOOSE(uxb_works!$B$46,Scores_2014_O!N16,Scores_2014_N!N16,Scores_2017!N16) -> 1.2.2) Percentage of computers infected | O16: =CHOOSE(uxb_works!$B$46,Scores_2014_O!O16,Scores_2014_N!O16,Scores_2017!O16) -> 0.3333333333 | P16: =CHOOSE(uxb_works!$B$46,Scores_2014_O!P16,Scores_2014_N!P16,Scores_2017!P16) -> 25 | Q16: =CHOOSE(uxb_works!$B$46,Scores_2014_O!Q16,Scores_2014_N!Q16,Scores_2017!Q16) -> 75 | R16: =CHOOSE(uxb_works!$B$46,Scores_2014_O!R16,Scores_2014_N!R16,Scores_2017!R16) -> 25 | S16: =CHOOSE(uxb_works!$B$46,Scores_2014_O!S16,Scores_2014_N!S16,Scores_2017!S16) -> 50 | T16: =CHOOSE(uxb_works!$B$46,Scores_2014_O!T16,Scores_2014_N!T16,Scores_2017!T16) -> 25 | U16: =CHOOSE(uxb_works!$B$46,Scores_2014_O!U16,Scores_2014_N!U16,Scores_2017!U16) -> 25 | V16: =CHOOSE(uxb_works!$B$46,Scores_2014_O!V16,Scores_2014_N!V16,Scores_2017!V16) -> 50 | W16: =CHOOSE(uxb_works!$B$46,Scores_2014_O!W16,Scores_2014_N!W16,Scores_2017!W16) -> 50 | X16: =CHOOSE(uxb_works!$B$46,Scores_2014_O!X16,Scores_2014_N!X16,Scores_2017!X16) -> 75 | Y16: =CHOOSE(uxb_works!$B$46,Scores_2014_O!Z16,Scores_2014_N!Y16,Scores_2017!Y16) -> 50 | Z16: =CHOOSE(uxb_works!$B$46,Scores_2014_O!AA16,Scores_2014_N!Z16,Scores_2017!Z16) -> 50 | AA16: =CHOOSE(uxb_works!$B$46,Scores_2014_O!AB16,Scores_2014_N!AA16,Scores_2017!AA16) -> 50 | AB16: =CHOOSE(uxb_works!$B$46,Scores_2014_O!AC16,Scores_2014_N!AB16,Scores_2017!AB16) -> 50 | AC16: =CHOOSE(uxb_works!$B$46,Scores_2014_O!AD16,Scores_2014_N!AC16,Scores_2017!AC16) -> 50 | AD16: =CHOOSE(uxb_works!$B$46,Scores_2014_O!AE16,Scores_2014_N!AD16,Scores_2017!AD16) -> 25 | AE16: =CHOOSE(uxb_works!$B$46,Scores_2014_O!AF16,Scores_2014_N!AE16,Scores_2017!AE16) -> 50 | AF16: =CHOOSE(uxb_works!$B$46,Scores_2014_O!AG16,Scores_2014_N!AF16,Scores_2017!AF16) -> 25 | AG16: =CHOOSE(uxb_works!$B$46,Scores_2014_O!AH16,Scores_2014_N!AG16,Scores_2017!AG16) -> 50 | AH16: =CHOOSE(uxb_works!$B$46,Scores_2014_O!AI16,Scores_2014_N!AH16,Scores_2017!AH16) -> 25 | AI16: =CHOOSE(uxb_works!$B$46,Scores_2014_O!AJ16,Scores_2014_N!AI16,Scores_2017!AI16) -> 25 | AJ16: =CHOOSE(uxb_works!$B$46,Scores_2014_O!AK16,Scores_2014_N!AJ16,Scores_2017!AJ16) -> 50 | AK16: =CHOOSE(uxb_works!$B$46,Scores_2014_O!AL16,Scores_2014_N!AK16,Scores_2017!AK16) -> 25 | AL16: =CHOOSE(uxb_works!$B$46,Scores_2014_O!AM16,Scores_2014_N!AL16,Scores_2017!AL16) -> 50 | AM16: =CHOOSE(uxb_works!$B$46,Scores_2014_O!AN16,Scores_2014_N!AM16,Scores_2017!AM16) -> 75 | AN16: =CHOOSE(uxb_works!$B$46,Scores_2014_O!AO16,Scores_2014_N!AN16,Scores_2017!AN16) -> 50 | AO16: =CHOOSE(uxb_works!$B$46,Scores_2014_O!AP16,Scores_2014_N!AO16,Scores_2017!AO16) -> 50 | AP16: =CHOOSE(uxb_works!$B$46,Scores_2014_O!AQ16,Scores_2014_N!AP16,Scores_2017!AP16) -> 50 | AQ16: =CHOOSE(uxb_works!$B$46,Scores_2014_O!Y16,Scores_2014_N!AQ16,Scores_2017!AQ16) -> 50 | AR16: =CHOOSE(uxb_works!$B$46,Scores_2014_O!AR16,Scores_2014_N!AR16,Scores_2017!AR16) -> 50 | AS16: =CHOOSE(uxb_works!$B$46,Scores_2014_O!AS16,Scores_2014_N!AS16,Scores_2017!AS16) -> 50 | AT16: =CHOOSE(uxb_works!$B$46,Scores_2014_O!AT16,Scores_2014_N!AT16,Scores_2017!AT16) -> 25 | AU16: =CHOOSE(uxb_works!$B$46,Scores_2014_O!AU16,Scores_2014_N!AU16,Scores_2017!AU16) -> 50 | AV16: =CHOOSE(uxb_works!$B$46,Scores_2014_O!AV16,Scores_2014_N!AV16,Scores_2017!AV16) -> 50 | AW16: =CHOOSE(uxb_works!$B$46,Scores_2014_O!AW16,Scores_2014_N!AW16,Scores_2017!AW16) -> 50 | AX16: =CHOOSE(uxb_works!$B$46,Scores_2014_O!AX16,Scores_2014_N!AX16,Scores_2017!AX16) -> 25 | AY16: =CHOOSE(uxb_works!$B$46,Scores_2014_O!AY16,Scores_2014_N!AY16,Scores_2017!AY16) -> 0 | AZ16: =CHOOSE(uxb_works!$B$46,Scores_2014_O!AZ16,Scores_2014_N!AZ16,Scores_2017!AZ16) -> 25 | BA16: =CHOOSE(uxb_works!$B$46,Scores_2014_O!BA16,Scores_2014_N!BA16,Scores_2017!BA16) -> 50 | BB16: =CHOOSE(uxb_works!$B$46,Scores_2014_O!BB16,Scores_2014_N!BB16,Scores_2017!BB16) -> 75 | BC16: =CHOOSE(uxb_works!$B$46,Scores_2014_O!BC16,Scores_2014_N!BC16,Scores_2017!BC16) -> 25 | BD16: =CHOOSE(uxb_works!$B$46,Scores_2014_O!BD16,Scores_2014_N!BD16,Scores_2017!BD16) -> 75 | BE16: =CHOOSE(uxb_works!$B$46,Scores_2014_O!BE16,Scores_2014_N!BE16,Scores_2017!BE16) -> 25 | BF16: =CHOOSE(uxb_works!$B$46,Scores_2014_O!BF16,Scores_2014_N!BF16,Scores_2017!BF16) -> 50 | BG16: =CHOOSE(uxb_works!$B$46,Scores_2014_O!BG16,Scores_2014_N!BG16,Scores_2017!BG16) -> 25 | BH16: =CHOOSE(uxb_works!$B$46,Scores_2014_O!BH16,Scores_2014_N!BH16,Scores_2017!BH16) -> 50 | BI16: =CHOOSE(uxb_works!$B$46,Scores_2014_O!BI16,Scores_2014_N!BI16,Scores_2017!BI16) -> 25 | BJ16: =CHOOSE(uxb_works!$B$46,Scores_2014_O!BJ16,Scores_2014_N!BJ16,Scores_2017!BJ16) -> 25 | BK16: =CHOOSE(uxb_works!$B$46,Scores_2014_O!BK16,Scores_2014_N!BK16,Scores_2017!BK16) -> 75 | BL16: =CHOOSE(uxb_works!$B$46,Scores_2014_O!BL16,Scores_2014_N!BL16,Scores_2017!BL16) -> 25 | BM16: =CHOOSE(uxb_works!$B$46,Scores_2014_O!BM16,Scores_2014_N!BM16,Scores_2017!BM16) -> 50 | BN16: =CHOOSE(uxb_works!$B$46,Scores_2014_O!BN16,Scores_2014_N!BN16,Scores_2017!BN16) -> 75 | BO16: =CHOOSE(uxb_works!$B$46,Scores_2014_O!BO16,Scores_2014_N!BO16,Scores_2017!BO16) -> 50 | BP16: =CHOOSE(uxb_works!$B$46,Scores_2014_O!BP16,Scores_2014_N!BP16,Scores_2017!BP16) -> 50 | BQ16: =CHOOSE(uxb_works!$B$46,Scores_2014_O!BQ16,Scores_2014_N!BQ16,Scores_2017!BQ16) -> 50 | BR16: =CHOOSE(uxb_works!$B$46,Scores_2014_O!BR16,Scores_2014_N!BR16,Scores_2017!BR16) -> 75 | BS16: =CHOOSE(uxb_works!$B$46,Scores_2014_O!BS16,Scores_2014_N!BS16,Scores_2017!BS16) -> 50 | BT16: =CHOOSE(uxb_works!$B$46,Scores_2014_O!BT16,Scores_2014_N!BT16,Scores_2017!BT16) -> 50 | BU16: =CHOOSE(uxb_works!$B$46,Scores_2014_O!BU16,Scores_2014_N!BU16,Scores_2017!BU16) -> 50 | BV16: =CHOOSE(uxb_works!$B$46,Scores_2014_O!BV16,Scores_2014_N!BV16,Scores_2017!BV16) -> 75 | BW16: =CHOOSE(uxb_works!$B$46,Scores_2014_O!BW16,Scores_2014_N!BW16,Scores_2017!BW16) -> 50 | BX16: =CHOOSE(uxb_works!$B$46,Scores_2014_O!BX16,Scores_2014_N!BX16,Scores_2017!BX16) -> 75
B17: =tblIndicators!A13 -> 12 | F17: =CHOOSE(uxb_works!$B$46,Scores_2014_O!F17,Scores_2014_N!F17,Scores_2017!F17) -> 3 | N17: =REPT(" ",F17)&CHOOSE(uxb_works!$B$46,Scores_2014_O!N17,Scores_2014_N!N17,Scores_2017!N17) -> 1.2.3) Percentage with Internet access | O17: =CHOOSE(uxb_works!$B$46,Scores_2014_O!O17,Scores_2014_N!O17,Scores_2017!O17) -> 0.3333333333 | P17: =CHOOSE(uxb_works!$B$46,Scores_2014_O!P17,Scores_2014_N!P17,Scores_2017!P17) -> 97.64526475 | Q17: =CHOOSE(uxb_works!$B$46,Scores_2014_O!Q17,Scores_2014_N!Q17,Scores_2017!Q17) -> 100 | R17: =CHOOSE(uxb_works!$B$46,Scores_2014_O!R17,Scores_2014_N!R17,Scores_2017!R17) -> 66.62939267 | S17: =CHOOSE(uxb_works!$B$46,Scores_2014_O!S17,Scores_2014_N!S17,Scores_2017!S17) -> 31.66103542 | T17: =CHOOSE(uxb_works!$B$46,Scores_2014_O!T17,Scores_2014_N!T17,Scores_2017!T17) -> 81.69308673 | U17: =CHOOSE(uxb_works!$B$46,Scores_2014_O!U17,Scores_2014_N!U17,Scores_2017!U17) -> 77.25883616 | V17: =CHOOSE(uxb_works!$B$46,Scores_2014_O!V17,Scores_2014_N!V17,Scores_2017!V17) -> 52.7405571 | W17: =CHOOSE(uxb_works!$B$46,Scores_2014_O!W17,Scores_2014_N!W17,Scores_2017!W17) -> 89.77896094 | X17: =CHOOSE(uxb_works!$B$46,Scores_2014_O!X17,Scores_2014_N!X17,Scores_2017!X17) -> 69.88992016 | Y17: =CHOOSE(uxb_works!$B$46,Scores_2014_O!Z17,Scores_2014_N!Y17,Scores_2017!Y17) -> 29.7591169 | Z17: =CHOOSE(uxb_works!$B$46,Scores_2014_O!AA17,Scores_2014_N!Z17,Scores_2017!Z17) -> 60.31938917 | AA17: =CHOOSE(uxb_works!$B$46,Scores_2014_O!AB17,Scores_2014_N!AA17,Scores_2017!AA17) -> 54.23366986 | AB17: =CHOOSE(uxb_works!$B$46,Scores_2014_O!AC17,Scores_2014_N!AB17,Scores_2017!AB17) -> 85.01013387 | AC17: =CHOOSE(uxb_works!$B$46,Scores_2014_O!AD17,Scores_2014_N!AC17,Scores_2017!AC17) -> 72.4301589 | AD17: =CHOOSE(uxb_works!$B$46,Scores_2014_O!AE17,Scores_2014_N!AD17,Scores_2017!AD17) -> 14.74017269 | AE17: =CHOOSE(uxb_works!$B$46,Scores_2014_O!AF17,Scores_2014_N!AE17,Scores_2017!AE17) -> 0 | AF17: =CHOOSE(uxb_works!$B$46,Scores_2014_O!AG17,Scores_2014_N!AF17,Scores_2017!AF17) -> 99.73102546 | AG17: =CHOOSE(uxb_works!$B$46,Scores_2014_O!AH17,Scores_2014_N!AG17,Scores_2017!AG17) -> 93.0026113 | AH17: =CHOOSE(uxb_works!$B$46,Scores_2014_O!AI17,Scores_2014_N!AH17,Scores_2017!AH17) -> 48.69339805 | AI17: =CHOOSE(uxb_works!$B$46,Scores_2014_O!AJ17,Scores_2014_N!AI17,Scores_2017!AI17) -> 89.64611255 | AJ17: =CHOOSE(uxb_works!$B$46,Scores_2014_O!AK17,Scores_2014_N!AJ17,Scores_2017!AJ17) -> 49.99584371 | AK17: =CHOOSE(uxb_works!$B$46,Scores_2014_O!AL17,Scores_2014_N!AK17,Scores_2017!AK17) -> 9.626943652 | AL17: =CHOOSE(uxb_works!$B$46,Scores_2014_O!AM17,Scores_2014_N!AL17,Scores_2017!AL17) -> 70.16352163 | AM17: =CHOOSE(uxb_works!$B$46,Scores_2014_O!AN17,Scores_2014_N!AM17,Scores_2017!AM17) -> 47.67571077 | AN17: =CHOOSE(uxb_works!$B$46,Scores_2014_O!AO17,Scores_2014_N!AN17,Scores_2017!AN17) -> 4.574536352 | AO17: =CHOOSE(uxb_works!$B$46,Scores_2014_O!AP17,Scores_2014_N!AO17,Scores_2017!AO17) -> 72.00328834 | AP17: =CHOOSE(uxb_works!$B$46,Scores_2014_O!AQ17,Scores_2014_N!AP17,Scores_2017!AP17) -> 86.00015854 | AQ17: =CHOOSE(uxb_works!$B$46,Scores_2014_O!Y17,Scores_2014_N!AQ17,Scores_2017!AQ17) -> 33.67367037 | AR17: =CHOOSE(uxb_works!$B$46,Scores_2014_O!AR17,Scores_2014_N!AR17,Scores_2017!AR17) -> 98.60705368 | AS17: =CHOOSE(uxb_works!$B$46,Scores_2014_O!AS17,Scores_2014_N!AS17,Scores_2017!AS17) -> 75.22570889 | AT17: =CHOOSE(uxb_works!$B$46,Scores_2014_O!AT17,Scores_2014_N!AT17,Scores_2017!AT17) -> 81.69308673 | AU17: =CHOOSE(uxb_works!$B$46,Scores_2014_O!AU17,Scores_2014_N!AU17,Scores_2017!AU17) -> 33.41952946 | AV17: =CHOOSE(uxb_works!$B$46,Scores_2014_O!AV17,Scores_2014_N!AV17,Scores_2017!AV17) -> 90.09295204 | AW17: =CHOOSE(uxb_works!$B$46,Scores_2014_O!AW17,Scores_2014_N!AW17,Scores_2017!AW17) -> 54.67974178 | AX17: =CHOOSE(uxb_works!$B$46,Scores_2014_O!AX17,Scores_2014_N!AX17,Scores_2017!AX17) -> 65.02398455 | AY17: =CHOOSE(uxb_works!$B$46,Scores_2014_O!AY17,Scores_2014_N!AY17,Scores_2017!AY17) -> 70.77727882 | AZ17: =CHOOSE(uxb_works!$B$46,Scores_2014_O!AZ17,Scores_2014_N!AZ17,Scores_2017!AZ17) -> 14.74017269 | BA17: =CHOOSE(uxb_works!$B$46,Scores_2014_O!BA17,Scores_2014_N!BA17,Scores_2017!BA17) -> 74.20914526 | BB17: =CHOOSE(uxb_works!$B$46,Scores_2014_O!BB17,Scores_2014_N!BB17,Scores_2017!BB17) -> 87.93275432 | BC17: =CHOOSE(uxb_works!$B$46,Scores_2014_O!BC17,Scores_2014_N!BC17,Scores_2017!BC17) -> 89.32354044 | BD17: =CHOOSE(uxb_works!$B$46,Scores_2014_O!BD17,Scores_2014_N!BD17,Scores_2017!BD17) -> 43.8906861 | BE17: =CHOOSE(uxb_works!$B$46,Scores_2014_O!BE17,Scores_2014_N!BE17,Scores_2017!BE17) -> 56.77441552 | BF17: =CHOOSE(uxb_works!$B$46,Scores_2014_O!BF17,Scores_2014_N!BF17,Scores_2017!BF17) -> 70.16352163 | BG17: =CHOOSE(uxb_works!$B$46,Scores_2014_O!BG17,Scores_2014_N!BG17,Scores_2017!BG17) -> 65.02398455 | BH17: =CHOOSE(uxb_works!$B$46,Scores_2014_O!BH17,Scores_2014_N!BH17,Scores_2017!BH17) -> 75.22570889 | BI17: =CHOOSE(uxb_works!$B$46,Scores_2014_O!BI17,Scores_2014_N!BI17,Scores_2017!BI17) -> 63.3941789 | BJ17: =CHOOSE(uxb_works!$B$46,Scores_2014_O!BJ17,Scores_2014_N!BJ17,Scores_2017!BJ17) -> 56.77441552 | BK17: =CHOOSE(uxb_works!$B$46,Scores_2014_O!BK17,Scores_2014_N!BK17,Scores_2017!BK17) -> 95.61877702 | BL17: =CHOOSE(uxb_works!$B$46,Scores_2014_O!BL17,Scores_2014_N!BL17,Scores_2017!BL17) -> 71.54066572 | BM17: =CHOOSE(uxb_works!$B$46,Scores_2014_O!BM17,Scores_2014_N!BM17,Scores_2017!BM17) -> 86.03050962 | BN17: =CHOOSE(uxb_works!$B$46,Scores_2014_O!BN17,Scores_2014_N!BN17,Scores_2017!BN17) -> 96.8406473 | BO17: =CHOOSE(uxb_works!$B$46,Scores_2014_O!BO17,Scores_2014_N!BO17,Scores_2017!BO17) -> 87.93275432 | BP17: =CHOOSE(uxb_works!$B$46,Scores_2014_O!BP17,Scores_2014_N!BP17,Scores_2017!BP17) -> 80.86366375 | BQ17: =CHOOSE(uxb_works!$B$46,Scores_2014_O!BQ17,Scores_2014_N!BQ17,Scores_2017!BQ17) -> 39.30921437 | BR17: =CHOOSE(uxb_works!$B$46,Scores_2014_O!BR17,Scores_2014_N!BR17,Scores_2017!BR17) -> 95.68405202 | BS17: =CHOOSE(uxb_works!$B$46,Scores_2014_O!BS17,Scores_2014_N!BS17,Scores_2017!BS17) -> 94.12108544 | BT17: =CHOOSE(uxb_works!$B$46,Scores_2014_O!BT17,Scores_2014_N!BT17,Scores_2017!BT17) -> 79.80024525 | BU17: =CHOOSE(uxb_works!$B$46,Scores_2014_O!BU17,Scores_2014_N!BU17,Scores_2017!BU17) -> 93.80708013 | BV17: =CHOOSE(uxb_works!$B$46,Scores_2014_O!BV17,Scores_2014_N!BV17,Scores_2017!BV17) -> 9.403213612 | BW17: =CHOOSE(uxb_works!$B$46,Scores_2014_O!BW17,Scores_2014_N!BW17,Scores_2017!BW17) -> 92.86188788 | BX17: =CHOOSE(uxb_works!$B$46,Scores_2014_O!BX17,Scores_2014_N!BX17,Scores_2017!BX17) -> 90.4741634
B18: =tblIndicators!A14 -> 13 | F18: =CHOOSE(uxb_works!$B$46,Scores_2014_O!F18,Scores_2014_N!F18,Scores_2017!F18) -> 1 | N18: =REPT(" ",F18)&CHOOSE(uxb_works!$B$46,Scores_2014_O!N18,Scores_2014_N!N18,Scores_2017!N18) -> 2) HEALTH SECURITY | O18: =CHOOSE(uxb_works!$B$46,Scores_2014_O!O18,Scores_2014_N!O18,Scores_2017!O18) -> 0.25 | P18: =CHOOSE(uxb_works!$B$46,Scores_2014_O!P18,Scores_2014_N!P18,Scores_2017!P18) -> 68.54043229 | Q18: =CHOOSE(uxb_works!$B$46,Scores_2014_O!Q18,Scores_2014_N!Q18,Scores_2017!Q18) -> 79.7932254 | R18: =CHOOSE(uxb_works!$B$46,Scores_2014_O!R18,Scores_2014_N!R18,Scores_2017!R18) -> 74.57160767 | S18: =CHOOSE(uxb_works!$B$46,Scores_2014_O!S18,Scores_2014_N!S18,Scores_2017!S18) -> 66.63738957 | T18: =CHOOSE(uxb_works!$B$46,Scores_2014_O!T18,Scores_2014_N!T18,Scores_2017!T18) -> 78.54112761 | U18: =CHOOSE(uxb_works!$B$46,Scores_2014_O!U18,Scores_2014_N!U18,Scores_2017!U18) -> 67.62941691 | V18: =CHOOSE(uxb_works!$B$46,Scores_2014_O!V18,Scores_2014_N!V18,Scores_2017!V18) -> 65.37396685 | W18: =CHOOSE(uxb_works!$B$46,Scores_2014_O!W18,Scores_2014_N!W18,Scores_2017!W18) -> 81.41261966 | X18: =CHOOSE(uxb_works!$B$46,Scores_2014_O!X18,Scores_2014_N!X18,Scores_2017!X18) -> 74.8441021 | Y18: =CHOOSE(uxb_works!$B$46,Scores_2014_O!Z18,Scores_2014_N!Y18,Scores_2017!Y18) -> 52.28063904 | Z18: =CHOOSE(uxb_works!$B$46,Scores_2014_O!AA18,Scores_2014_N!Z18,Scores_2017!Z18) -> 56.72243518 | AA18: =CHOOSE(uxb_works!$B$46,Scores_2014_O!AB18,Scores_2014_N!AA18,Scores_2017!AA18) -> 58.52160553 | AB18: =CHOOSE(uxb_works!$B$46,Scores_2014_O!AC18,Scores_2014_N!AB18,Scores_2017!AB18) -> 71.78082872 | AC18: =CHOOSE(uxb_works!$B$46,Scores_2014_O!AD18,Scores_2014_N!AC18,Scores_2017!AC18) -> 70.27330879 | AD18: =CHOOSE(uxb_works!$B$46,Scores_2014_O!AE18,Scores_2014_N!AD18,Scores_2017!AD18) -> 59.64944608 | AE18: =CHOOSE(uxb_works!$B$46,Scores_2014_O!AF18,Scores_2014_N!AE18,Scores_2017!AE18) -> 45.58592825 | AF18: =CHOOSE(uxb_works!$B$46,Scores_2014_O!AG18,Scores_2014_N!AF18,Scores_2017!AF18) -> 62.6022311 | AG18: =CHOOSE(uxb_works!$B$46,Scores_2014_O!AH18,Scores_2014_N!AG18,Scores_2017!AG18) -> 84.06330169 | AH18: =CHOOSE(uxb_works!$B$46,Scores_2014_O!AI18,Scores_2014_N!AH18,Scores_2017!AH18) -> 61.28741796 | AI18: =CHOOSE(uxb_works!$B$46,Scores_2014_O!AJ18,Scores_2014_N!AI18,Scores_2017!AI18) -> 73.29173635 | AJ18: =CHOOSE(uxb_works!$B$46,Scores_2014_O!AK18,Scores_2014_N!AJ18,Scores_2017!AJ18) -> 62.59830551 | AK18: =CHOOSE(uxb_works!$B$46,Scores_2014_O!AL18,Scores_2014_N!AK18,Scores_2017!AK18) -> 54.40487111 | AL18: =CHOOSE(uxb_works!$B$46,Scores_2014_O!AM18,Scores_2014_N!AL18,Scores_2017!AL18) -> 63.5595117 | AM18: =CHOOSE(uxb_works!$B$46,Scores_2014_O!AN18,Scores_2014_N!AM18,Scores_2017!AM18) -> 57.70857528 | AN18: =CHOOSE(uxb_works!$B$46,Scores_2014_O!AO18,Scores_2014_N!AN18,Scores_2017!AN18) -> 39.92121066 | AO18: =CHOOSE(uxb_works!$B$46,Scores_2014_O!AP18,Scores_2014_N!AO18,Scores_2017!AO18) -> 67.1493274 | AP18: =CHOOSE(uxb_works!$B$46,Scores_2014_O!AQ18,Scores_2014_N!AP18,Scores_2017!AP18) -> 63.81035786 | AQ18: =CHOOSE(uxb_works!$B$46,Scores_2014_O!Y18,Scores_2014_N!AQ18,Scores_2017!AQ18) -> 62.48006656 | AR18: =CHOOSE(uxb_works!$B$46,Scores_2014_O!AR18,Scores_2014_N!AR18,Scores_2017!AR18) -> 76.06428764 | AS18: =CHOOSE(uxb_works!$B$46,Scores_2014_O!AS18,Scores_2014_N!AS18,Scores_2017!AS18) -> 72.26365402 | AT18: =CHOOSE(uxb_works!$B$46,Scores_2014_O!AT18,Scores_2014_N!AT18,Scores_2017!AT18) -> 78.69150545 | AU18: =CHOOSE(uxb_works!$B$46,Scores_2014_O!AU18,Scores_2014_N!AU18,Scores_2017!AU18) -> 60.11916756 | AV18: =CHOOSE(uxb_works!$B$46,Scores_2014_O!AV18,Scores_2014_N!AV18,Scores_2017!AV18) -> 81.33918698 | AW18: =CHOOSE(uxb_works!$B$46,Scores_2014_O!AW18,Scores_2014_N!AW18,Scores_2017!AW18) -> 70.78869322 | AX18: =CHOOSE(uxb_works!$B$46,Scores_2014_O!AX18,Scores_2014_N!AX18,Scores_2017!AX18) -> 76.72210909 | AY18: =CHOOSE(uxb_works!$B$46,Scores_2014_O!AY18,Scores_2014_N!AY18,Scores_2017!AY18) -> 72.59226136 | AZ18: =CHOOSE(uxb_works!$B$46,Scores_2014_O!AZ18,Scores_2014_N!AZ18,Scores_2017!AZ18) -> 55.7426683 | BA18: =CHOOSE(uxb_works!$B$46,Scores_2014_O!BA18,Scores_2014_N!BA18,Scores_2017!BA18) -> 69.73002465 | BB18: =CHOOSE(uxb_works!$B$46,Scores_2014_O!BB18,Scores_2014_N!BB18,Scores_2017!BB18) -> 87.14826164 | BC18: =CHOOSE(uxb_works!$B$46,Scores_2014_O!BC18,Scores_2014_N!BC18,Scores_2017!BC18) -> 81.3513942 | BD18: =CHOOSE(uxb_works!$B$46,Scores_2014_O!BD18,Scores_2014_N!BD18,Scores_2017!BD18) -> 57.46413112 | BE18: =CHOOSE(uxb_works!$B$46,Scores_2014_O!BE18,Scores_2014_N!BE18,Scores_2017!BE18) -> 64.80418396 | BF18: =CHOOSE(uxb_works!$B$46,Scores_2014_O!BF18,Scores_2014_N!BF18,Scores_2017!BF18) -> 66.13480966 | BG18: =CHOOSE(uxb_works!$B$46,Scores_2014_O!BG18,Scores_2014_N!BG18,Scores_2017!BG18) -> 76.37812911 | BH18: =CHOOSE(uxb_works!$B$46,Scores_2014_O!BH18,Scores_2014_N!BH18,Scores_2017!BH18) -> 74.1470062 | BI18: =CHOOSE(uxb_works!$B$46,Scores_2014_O!BI18,Scores_2014_N!BI18,Scores_2017!BI18) -> 67.16623197 | BJ18: =CHOOSE(uxb_works!$B$46,Scores_2014_O!BJ18,Scores_2014_N!BJ18,Scores_2017!BJ18) -> 63.73951892 | BK18: =CHOOSE(uxb_works!$B$46,Scores_2014_O!BK18,Scores_2014_N!BK18,Scores_2017!BK18) -> 82.72241559 | BL18: =CHOOSE(uxb_works!$B$46,Scores_2014_O!BL18,Scores_2014_N!BL18,Scores_2017!BL18) -> 69.92170591 | BM18: =CHOOSE(uxb_works!$B$46,Scores_2014_O!BM18,Scores_2014_N!BM18,Scores_2017!BM18) -> 79.72042648 | BN18: =CHOOSE(uxb_works!$B$46,Scores_2014_O!BN18,Scores_2014_N!BN18,Scores_2017!BN18) -> 79.94308056 | BO18: =CHOOSE(uxb_works!$B$46,Scores_2014_O!BO18,Scores_2014_N!BO18,Scores_2017!BO18) -> 81.79860331 | BP18: =CHOOSE(uxb_works!$B$46,Scores_2014_O!BP18,Scores_2014_N!BP18,Scores_2017!BP18) -> 79.22623179 | BQ18: =CHOOSE(uxb_works!$B$46,Scores_2014_O!BQ18,Scores_2014_N!BQ18,Scores_2017!BQ18) -> 62.96222944 | BR18: =CHOOSE(uxb_works!$B$46,Scores_2014_O!BR18,Scores_2014_N!BR18,Scores_2017!BR18) -> 85.62541927 | BS18: =CHOOSE(uxb_works!$B$46,Scores_2014_O!BS18,Scores_2014_N!BS18,Scores_2017!BS18) -> 79.83595168 | BT18: =CHOOSE(uxb_works!$B$46,Scores_2014_O!BT18,Scores_2014_N!BT18,Scores_2017!BT18) -> 73.37841801 | BU18: =CHOOSE(uxb_works!$B$46,Scores_2014_O!BU18,Scores_2014_N!BU18,Scores_2017!BU18) -> 69.51276049 | BV18: =CHOOSE(uxb_works!$B$46,Scores_2014_O!BV18,Scores_2014_N!BV18,Scores_2017!BV18) -> 45.78923103 | BW18: =CHOOSE(uxb_works!$B$46,Scores_2014_O!BW18,Scores_2014_N!BW18,Scores_2017!BW18) -> 83.38575728 | BX18: =CHOOSE(uxb_works!$B$46,Scores_2014_O!BX18,Scores_2014_N!BX18,Scores_2017!BX18) -> 89.51658862
B19: =tblIndicators!A15 -> 14 | F19: =CHOOSE(uxb_works!$B$46,Scores_2014_O!F19,Scores_2014_N!F19,Scores_2017!F19) -> 2 | N19: =REPT(" ",F19)&CHOOSE(uxb_works!$B$46,Scores_2014_O!N19,Scores_2014_N!N19,Scores_2017!N19) -> 2.1) Health security (Inputs) | O19: =CHOOSE(uxb_works!$B$46,Scores_2014_O!O19,Scores_2014_N!O19,Scores_2017!O19) -> 0.5 | P19: =CHOOSE(uxb_works!$B$46,Scores_2014_O!P19,Scores_2014_N!P19,Scores_2017!P19) -> 55.90905802 | Q19: =CHOOSE(uxb_works!$B$46,Scores_2014_O!Q19,Scores_2014_N!Q19,Scores_2017!Q19) -> 78.94909534 | R19: =CHOOSE(uxb_works!$B$46,Scores_2014_O!R19,Scores_2014_N!R19,Scores_2017!R19) -> 64.92501906 | S19: =CHOOSE(uxb_works!$B$46,Scores_2014_O!S19,Scores_2014_N!S19,Scores_2017!S19) -> 55.27514327 | T19: =CHOOSE(uxb_works!$B$46,Scores_2014_O!T19,Scores_2014_N!T19,Scores_2017!T19) -> 73.85942277 | U19: =CHOOSE(uxb_works!$B$46,Scores_2014_O!U19,Scores_2014_N!U19,Scores_2017!U19) -> 69.49092609 | V19: =CHOOSE(uxb_works!$B$46,Scores_2014_O!V19,Scores_2014_N!V19,Scores_2017!V19) -> 53.24683411 | W19: =CHOOSE(uxb_works!$B$46,Scores_2014_O!W19,Scores_2014_N!W19,Scores_2017!W19) -> 80.66284074 | X19: =CHOOSE(uxb_works!$B$46,Scores_2014_O!X19,Scores_2014_N!X19,Scores_2017!X19) -> 73.19928101 | Y19: =CHOOSE(uxb_works!$B$46,Scores_2014_O!Z19,Scores_2014_N!Y19,Scores_2017!Y19) -> 42.36839232 | Z19: =CHOOSE(uxb_works!$B$46,Scores_2014_O!AA19,Scores_2014_N!Z19,Scores_2017!Z19) -> 39.28206466 | AA19: =CHOOSE(uxb_works!$B$46,Scores_2014_O!AB19,Scores_2014_N!AA19,Scores_2017!AA19) -> 43.27195966 | AB19: =CHOOSE(uxb_works!$B$46,Scores_2014_O!AC19,Scores_2014_N!AB19,Scores_2017!AB19) -> 70.1642895 | AC19: =CHOOSE(uxb_works!$B$46,Scores_2014_O!AD19,Scores_2014_N!AC19,Scores_2017!AC19) -> 64.89469302 | AD19: =CHOOSE(uxb_works!$B$46,Scores_2014_O!AE19,Scores_2014_N!AD19,Scores_2017!AD19) -> 57.26484152 | AE19: =CHOOSE(uxb_works!$B$46,Scores_2014_O!AF19,Scores_2014_N!AE19,Scores_2017!AE19) -> 28.61960799 | AF19: =CHOOSE(uxb_works!$B$46,Scores_2014_O!AG19,Scores_2014_N!AF19,Scores_2017!AF19) -> 50.12668234 | AG19: =CHOOSE(uxb_works!$B$46,Scores_2014_O!AH19,Scores_2014_N!AG19,Scores_2017!AG19) -> 84.16134612 | AH19: =CHOOSE(uxb_works!$B$46,Scores_2014_O!AI19,Scores_2014_N!AH19,Scores_2017!AH19) -> 47.77239479 | AI19: =CHOOSE(uxb_works!$B$46,Scores_2014_O!AJ19,Scores_2014_N!AI19,Scores_2017!AI19) -> 72.89160408 | AJ19: =CHOOSE(uxb_works!$B$46,Scores_2014_O!AK19,Scores_2014_N!AJ19,Scores_2017!AJ19) -> 53.43299493 | AK19: =CHOOSE(uxb_works!$B$46,Scores_2014_O!AL19,Scores_2014_N!AK19,Scores_2017!AK19) -> 39.75524942 | AL19: =CHOOSE(uxb_works!$B$46,Scores_2014_O!AM19,Scores_2014_N!AL19,Scores_2017!AL19) -> 50.21556149 | AM19: =CHOOSE(uxb_works!$B$46,Scores_2014_O!AN19,Scores_2014_N!AM19,Scores_2017!AM19) -> 56.16811966 | AN19: =CHOOSE(uxb_works!$B$46,Scores_2014_O!AO19,Scores_2014_N!AN19,Scores_2017!AN19) -> 31.69148618 | AO19: =CHOOSE(uxb_works!$B$46,Scores_2014_O!AP19,Scores_2014_N!AO19,Scores_2017!AO19) -> 54.1709826 | AP19: =CHOOSE(uxb_works!$B$46,Scores_2014_O!AQ19,Scores_2014_N!AP19,Scores_2017!AP19) -> 50.85622765 | AQ19: =CHOOSE(uxb_works!$B$46,Scores_2014_O!Y19,Scores_2014_N!AQ19,Scores_2017!AQ19) -> 55.05667417 | AR19: =CHOOSE(uxb_works!$B$46,Scores_2014_O!AR19,Scores_2014_N!AR19,Scores_2017!AR19) -> 68.74097131 | AS19: =CHOOSE(uxb_works!$B$46,Scores_2014_O!AS19,Scores_2014_N!AS19,Scores_2017!AS19) -> 69.79431903 | AT19: =CHOOSE(uxb_works!$B$46,Scores_2014_O!AT19,Scores_2014_N!AT19,Scores_2017!AT19) -> 71.77608943 | AU19: =CHOOSE(uxb_works!$B$46,Scores_2014_O!AU19,Scores_2014_N!AU19,Scores_2017!AU19) -> 45.87355246 | AV19: =CHOOSE(uxb_works!$B$46,Scores_2014_O!AV19,Scores_2014_N!AV19,Scores_2017!AV19) -> 75.17811692 | AW19: =CHOOSE(uxb_works!$B$46,Scores_2014_O!AW19,Scores_2014_N!AW19,Scores_2017!AW19) -> 58.92270662 | AX19: =CHOOSE(uxb_works!$B$46,Scores_2014_O!AX19,Scores_2014_N!AX19,Scores_2017!AX19) -> 70.74686644 | AY19: =CHOOSE(uxb_works!$B$46,Scores_2014_O!AY19,Scores_2014_N!AY19,Scores_2017!AY19) -> 74.0238228 | AZ19: =CHOOSE(uxb_works!$B$46,Scores_2014_O!AZ19,Scores_2014_N!AZ19,Scores_2017!AZ19) -> 45.33210283 | BA19: =CHOOSE(uxb_works!$B$46,Scores_2014_O!BA19,Scores_2014_N!BA19,Scores_2017!BA19) -> 72.86919302 | BB19: =CHOOSE(uxb_works!$B$46,Scores_2014_O!BB19,Scores_2014_N!BB19,Scores_2017!BB19) -> 86.89831798 | BC19: =CHOOSE(uxb_works!$B$46,Scores_2014_O!BC19,Scores_2014_N!BC19,Scores_2017!BC19) -> 81.03964049 | BD19: =CHOOSE(uxb_works!$B$46,Scores_2014_O!BD19,Scores_2014_N!BD19,Scores_2017!BD19) -> 39.96818407 | BE19: =CHOOSE(uxb_works!$B$46,Scores_2014_O!BE19,Scores_2014_N!BE19,Scores_2017!BE19) -> 55.46542132 | BF19: =CHOOSE(uxb_works!$B$46,Scores_2014_O!BF19,Scores_2014_N!BF19,Scores_2017!BF19) -> 51.41078412 | BG19: =CHOOSE(uxb_works!$B$46,Scores_2014_O!BG19,Scores_2014_N!BG19,Scores_2017!BG19) -> 68.42128505 | BH19: =CHOOSE(uxb_works!$B$46,Scores_2014_O!BH19,Scores_2014_N!BH19,Scores_2017!BH19) -> 69.01912523 | BI19: =CHOOSE(uxb_works!$B$46,Scores_2014_O!BI19,Scores_2014_N!BI19,Scores_2017!BI19) -> 52.85021142 | BJ19: =CHOOSE(uxb_works!$B$46,Scores_2014_O!BJ19,Scores_2014_N!BJ19,Scores_2017!BJ19) -> 56.57653243 | BK19: =CHOOSE(uxb_works!$B$46,Scores_2014_O!BK19,Scores_2014_N!BK19,Scores_2017!BK19) -> 80.3904175 | BL19: =CHOOSE(uxb_works!$B$46,Scores_2014_O!BL19,Scores_2014_N!BL19,Scores_2017!BL19) -> 66.31881593 | BM19: =CHOOSE(uxb_works!$B$46,Scores_2014_O!BM19,Scores_2014_N!BM19,Scores_2017!BM19) -> 71.22632255 | BN19: =CHOOSE(uxb_works!$B$46,Scores_2014_O!BN19,Scores_2014_N!BN19,Scores_2017!BN19) -> 71.4680336 | BO19: =CHOOSE(uxb_works!$B$46,Scores_2014_O!BO19,Scores_2014_N!BO19,Scores_2017!BO19) -> 75.95331072 | BP19: =CHOOSE(uxb_works!$B$46,Scores_2014_O!BP19,Scores_2014_N!BP19,Scores_2017!BP19) -> 76.23883278 | BQ19: =CHOOSE(uxb_works!$B$46,Scores_2014_O!BQ19,Scores_2014_N!BQ19,Scores_2017!BQ19) -> 48.73575465 | BR19: =CHOOSE(uxb_works!$B$46,Scores_2014_O!BR19,Scores_2014_N!BR19,Scores_2017!BR19) -> 83.36263324 | BS19: =CHOOSE(uxb_works!$B$46,Scores_2014_O!BS19,Scores_2014_N!BS19,Scores_2017!BS19) -> 74.01439321 | BT19: =CHOOSE(uxb_works!$B$46,Scores_2014_O!BT19,Scores_2014_N!BT19,Scores_2017!BT19) -> 82.22626112 | BU19: =CHOOSE(uxb_works!$B$46,Scores_2014_O!BU19,Scores_2014_N!BU19,Scores_2017!BU19) -> 69.50562332 | BV19: =CHOOSE(uxb_works!$B$46,Scores_2014_O!BV19,Scores_2014_N!BV19,Scores_2017!BV19) -> 35.88239043 | BW19: =CHOOSE(uxb_works!$B$46,Scores_2014_O!BW19,Scores_2014_N!BW19,Scores_2017!BW19) -> 78.95596486 | BX19: =CHOOSE(uxb_works!$B$46,Scores_2014_O!BX19,Scores_2014_N!BX19,Scores_2017!BX19) -> 91.65608305
B20: =tblIndicators!A16 -> 15 | F20: =CHOOSE(uxb_works!$B$46,Scores_2014_O!F20,Scores_2014_N!F20,Scores_2017!F20) -> 3 | N20: =REPT(" ",F20)&CHOOSE(uxb_works!$B$46,Scores_2014_O!N20,Scores_2014_N!N20,Scores_2017!N20) -> 2.1.1) Environmental policies | O20: =CHOOSE(uxb_works!$B$46,Scores_2014_O!O20,Scores_2014_N!O20,Scores_2017!O20) -> 0.1666666667 | P20: =CHOOSE(uxb_works!$B$46,Scores_2014_O!P20,Scores_2014_N!P20,Scores_2017!P20) -> 62.79069767 | Q20: =CHOOSE(uxb_works!$B$46,Scores_2014_O!Q20,Scores_2014_N!Q20,Scores_2017!Q20) -> 97.6744186 | R20: =CHOOSE(uxb_works!$B$46,Scores_2014_O!R20,Scores_2014_N!R20,Scores_2017!R20) -> 41.86046512 | S20: =CHOOSE(uxb_works!$B$46,Scores_2014_O!S20,Scores_2014_N!S20,Scores_2017!S20) -> 72.09302326 | T20: =CHOOSE(uxb_works!$B$46,Scores_2014_O!T20,Scores_2014_N!T20,Scores_2017!T20) -> 81.39534884 | U20: =CHOOSE(uxb_works!$B$46,Scores_2014_O!U20,Scores_2014_N!U20,Scores_2017!U20) -> 79.06976744 | V20: =CHOOSE(uxb_works!$B$46,Scores_2014_O!V20,Scores_2014_N!V20,Scores_2017!V20) -> 62.79069767 | W20: =CHOOSE(uxb_works!$B$46,Scores_2014_O!W20,Scores_2014_N!W20,Scores_2017!W20) -> 97.6744186 | X20: =CHOOSE(uxb_works!$B$46,Scores_2014_O!X20,Scores_2014_N!X20,Scores_2017!X20) -> 90.69767442 | Y20: =CHOOSE(uxb_works!$B$46,Scores_2014_O!Z20,Scores_2014_N!Y20,Scores_2017!Y20) -> 46.51162791 | Z20: =CHOOSE(uxb_works!$B$46,Scores_2014_O!AA20,Scores_2014_N!Z20,Scores_2017!Z20) -> 23.25581395 | AA20: =CHOOSE(uxb_works!$B$46,Scores_2014_O!AB20,Scores_2014_N!AA20,Scores_2017!AA20) -> 62.79069767 | AB20: =CHOOSE(uxb_works!$B$46,Scores_2014_O!AC20,Scores_2014_N!AB20,Scores_2017!AB20) -> 90.69767442 | AC20: =CHOOSE(uxb_works!$B$46,Scores_2014_O!AD20,Scores_2014_N!AC20,Scores_2017!AC20) -> 74.41860465 | AD20: =CHOOSE(uxb_works!$B$46,Scores_2014_O!AE20,Scores_2014_N!AD20,Scores_2017!AD20) -> 90.69767442 | AE20: =CHOOSE(uxb_works!$B$46,Scores_2014_O!AF20,Scores_2014_N!AE20,Scores_2017!AE20) -> 4.651162791 | AF20: =CHOOSE(uxb_works!$B$46,Scores_2014_O!AG20,Scores_2014_N!AF20,Scores_2017!AF20) -> 27.90697674 | AG20: =CHOOSE(uxb_works!$B$46,Scores_2014_O!AH20,Scores_2014_N!AG20,Scores_2017!AG20) -> 90.69767442 | AH20: =CHOOSE(uxb_works!$B$46,Scores_2014_O!AI20,Scores_2014_N!AH20,Scores_2017!AH20) -> 62.79069767 | AI20: =CHOOSE(uxb_works!$B$46,Scores_2014_O!AJ20,Scores_2014_N!AI20,Scores_2017!AI20) -> 97.6744186 | AJ20: =CHOOSE(uxb_works!$B$46,Scores_2014_O!AK20,Scores_2014_N!AJ20,Scores_2017!AJ20) -> 72.09302326 | AK20: =CHOOSE(uxb_works!$B$46,Scores_2014_O!AL20,Scores_2014_N!AK20,Scores_2017!AK20) -> 44.18604651 | AL20: =CHOOSE(uxb_works!$B$46,Scores_2014_O!AM20,Scores_2014_N!AL20,Scores_2017!AL20) -> 32.55813953 | AM20: =CHOOSE(uxb_works!$B$46,Scores_2014_O!AN20,Scores_2014_N!AM20,Scores_2017!AM20) -> 86.04651163 | AN20: =CHOOSE(uxb_works!$B$46,Scores_2014_O!AO20,Scores_2014_N!AN20,Scores_2017!AN20) -> 13.95348837 | AO20: =CHOOSE(uxb_works!$B$46,Scores_2014_O!AP20,Scores_2014_N!AO20,Scores_2017!AO20) -> 62.79069767 | AP20: =CHOOSE(uxb_works!$B$46,Scores_2014_O!AQ20,Scores_2014_N!AP20,Scores_2017!AP20) -> 0 | AQ20: =CHOOSE(uxb_works!$B$46,Scores_2014_O!Y20,Scores_2014_N!AQ20,Scores_2017!AQ20) -> 69.76744186 | AR20: =CHOOSE(uxb_works!$B$46,Scores_2014_O!AR20,Scores_2014_N!AR20,Scores_2017!AR20) -> 83.72093023 | AS20: =CHOOSE(uxb_works!$B$46,Scores_2014_O!AS20,Scores_2014_N!AS20,Scores_2017!AS20) -> 95.34883721 | AT20: =CHOOSE(uxb_works!$B$46,Scores_2014_O!AT20,Scores_2014_N!AT20,Scores_2017!AT20) -> 81.39534884 | AU20: =CHOOSE(uxb_works!$B$46,Scores_2014_O!AU20,Scores_2014_N!AU20,Scores_2017!AU20) -> 27.90697674 | AV20: =CHOOSE(uxb_works!$B$46,Scores_2014_O!AV20,Scores_2014_N!AV20,Scores_2017!AV20) -> 81.39534884 | AW20: =CHOOSE(uxb_works!$B$46,Scores_2014_O!AW20,Scores_2014_N!AW20,Scores_2017!AW20) -> 86.04651163 | AX20: =CHOOSE(uxb_works!$B$46,Scores_2014_O!AX20,Scores_2014_N!AX20,Scores_2017!AX20) -> 83.72093023 | AY20: =CHOOSE(uxb_works!$B$46,Scores_2014_O!AY20,Scores_2014_N!AY20,Scores_2017!AY20) -> 65.11627907 | AZ20: =CHOOSE(uxb_works!$B$46,Scores_2014_O!AZ20,Scores_2014_N!AZ20,Scores_2017!AZ20) -> 32.55813953 | BA20: =CHOOSE(uxb_works!$B$46,Scores_2014_O!BA20,Scores_2014_N!BA20,Scores_2017!BA20) -> 95.34883721 | BB20: =CHOOSE(uxb_works!$B$46,Scores_2014_O!BB20,Scores_2014_N!BB20,Scores_2017!BB20) -> 90.69767442 | BC20: =CHOOSE(uxb_works!$B$46,Scores_2014_O!BC20,Scores_2014_N!BC20,Scores_2017!BC20) -> 97.6744186 | BD20: =CHOOSE(uxb_works!$B$46,Scores_2014_O!BD20,Scores_2014_N!BD20,Scores_2017!BD20) -> 23.25581395 | BE20: =CHOOSE(uxb_works!$B$46,Scores_2014_O!BE20,Scores_2014_N!BE20,Scores_2017!BE20) -> 60.46511628 | BF20: =CHOOSE(uxb_works!$B$46,Scores_2014_O!BF20,Scores_2014_N!BF20,Scores_2017!BF20) -> 32.55813953 | BG20: =CHOOSE(uxb_works!$B$46,Scores_2014_O!BG20,Scores_2014_N!BG20,Scores_2017!BG20) -> 69.76744186 | BH20: =CHOOSE(uxb_works!$B$46,Scores_2014_O!BH20,Scores_2014_N!BH20,Scores_2017!BH20) -> 90.69767442 | BI20: =CHOOSE(uxb_works!$B$46,Scores_2014_O!BI20,Scores_2014_N!BI20,Scores_2017!BI20) -> 48.8372093 | BJ20: =CHOOSE(uxb_works!$B$46,Scores_2014_O!BJ20,Scores_2014_N!BJ20,Scores_2017!BJ20) -> 60.46511628 | BK20: =CHOOSE(uxb_works!$B$46,Scores_2014_O!BK20,Scores_2014_N!BK20,Scores_2017!BK20) -> 93.02325581 | BL20: =CHOOSE(uxb_works!$B$46,Scores_2014_O!BL20,Scores_2014_N!BL20,Scores_2017!BL20) -> 79.06976744 | BM20: =CHOOSE(uxb_works!$B$46,Scores_2014_O!BM20,Scores_2014_N!BM20,Scores_2017!BM20) -> 97.6744186 | BN20: =CHOOSE(uxb_works!$B$46,Scores_2014_O!BN20,Scores_2014_N!BN20,Scores_2017!BN20) -> 86.04651163 | BO20: =CHOOSE(uxb_works!$B$46,Scores_2014_O!BO20,Scores_2014_N!BO20,Scores_2017!BO20) -> 86.04651163 | BP20: =CHOOSE(uxb_works!$B$46,Scores_2014_O!BP20,Scores_2014_N!BP20,Scores_2017!BP20) -> 97.6744186 | BQ20: =CHOOSE(uxb_works!$B$46,Scores_2014_O!BQ20,Scores_2014_N!BQ20,Scores_2017!BQ20) -> 62.79069767 | BR20: =CHOOSE(uxb_works!$B$46,Scores_2014_O!BR20,Scores_2014_N!BR20,Scores_2017!BR20) -> 86.04651163 | BS20: =CHOOSE(uxb_works!$B$46,Scores_2014_O!BS20,Scores_2014_N!BS20,Scores_2017!BS20) -> 95.34883721 | BT20: =CHOOSE(uxb_works!$B$46,Scores_2014_O!BT20,Scores_2014_N!BT20,Scores_2017!BT20) -> 100 | BU20: =CHOOSE(uxb_works!$B$46,Scores_2014_O!BU20,Scores_2014_N!BU20,Scores_2017!BU20) -> 86.04651163 | BV20: =CHOOSE(uxb_works!$B$46,Scores_2014_O!BV20,Scores_2014_N!BV20,Scores_2017!BV20) -> 37.20930233 | BW20: =CHOOSE(uxb_works!$B$46,Scores_2014_O!BW20,Scores_2014_N!BW20,Scores_2017!BW20) -> 86.04651163 | BX20: =CHOOSE(uxb_works!$B$46,Scores_2014_O!BX20,Scores_2014_N!BX20,Scores_2017!BX20) -> 100
B21: =tblIndicators!A17 -> 16 | F21: =CHOOSE(uxb_works!$B$46,Scores_2014_O!F21,Scores_2014_N!F21,Scores_2017!F21) -> 3 | N21: =REPT(" ",F21)&CHOOSE(uxb_works!$B$46,Scores_2014_O!N21,Scores_2014_N!N21,Scores_2017!N21) -> 2.1.2) Access to healthcare | O21: =CHOOSE(uxb_works!$B$46,Scores_2014_O!O21,Scores_2014_N!O21,Scores_2017!O21) -> 0.1666666667 | P21: =CHOOSE(uxb_works!$B$46,Scores_2014_O!P21,Scores_2014_N!P21,Scores_2017!P21) -> 73.33333333 | Q21: =CHOOSE(uxb_works!$B$46,Scores_2014_O!Q21,Scores_2014_N!Q21,Scores_2017!Q21) -> 100 | R21: =CHOOSE(uxb_works!$B$46,Scores_2014_O!R21,Scores_2014_N!R21,Scores_2017!R21) -> 73.33333333 | S21: =CHOOSE(uxb_works!$B$46,Scores_2014_O!S21,Scores_2014_N!S21,Scores_2017!S21) -> 80 | T21: =CHOOSE(uxb_works!$B$46,Scores_2014_O!T21,Scores_2014_N!T21,Scores_2017!T21) -> 93.33333333 | U21: =CHOOSE(uxb_works!$B$46,Scores_2014_O!U21,Scores_2014_N!U21,Scores_2017!U21) -> 86.66666667 | V21: =CHOOSE(uxb_works!$B$46,Scores_2014_O!V21,Scores_2014_N!V21,Scores_2017!V21) -> 73.33333333 | W21: =CHOOSE(uxb_works!$B$46,Scores_2014_O!W21,Scores_2014_N!W21,Scores_2017!W21) -> 100 | X21: =CHOOSE(uxb_works!$B$46,Scores_2014_O!X21,Scores_2014_N!X21,Scores_2017!X21) -> 93.33333333 | Y21: =CHOOSE(uxb_works!$B$46,Scores_2014_O!Z21,Scores_2014_N!Y21,Scores_2017!Y21) -> 60 | Z21: =CHOOSE(uxb_works!$B$46,Scores_2014_O!AA21,Scores_2014_N!Z21,Scores_2017!Z21) -> 53.33333333 | AA21: =CHOOSE(uxb_works!$B$46,Scores_2014_O!AB21,Scores_2014_N!AA21,Scores_2017!AA21) -> 60 | AB21: =CHOOSE(uxb_works!$B$46,Scores_2014_O!AC21,Scores_2014_N!AB21,Scores_2017!AB21) -> 93.33333333 | AC21: =CHOOSE(uxb_works!$B$46,Scores_2014_O!AD21,Scores_2014_N!AC21,Scores_2017!AC21) -> 86.66666667 | AD21: =CHOOSE(uxb_works!$B$46,Scores_2014_O!AE21,Scores_2014_N!AD21,Scores_2017!AD21) -> 80 | AE21: =CHOOSE(uxb_works!$B$46,Scores_2014_O!AF21,Scores_2014_N!AE21,Scores_2017!AE21) -> 46.66666667 | AF21: =CHOOSE(uxb_works!$B$46,Scores_2014_O!AG21,Scores_2014_N!AF21,Scores_2017!AF21) -> 80 | AG21: =CHOOSE(uxb_works!$B$46,Scores_2014_O!AH21,Scores_2014_N!AG21,Scores_2017!AG21) -> 100 | AH21: =CHOOSE(uxb_works!$B$46,Scores_2014_O!AI21,Scores_2014_N!AH21,Scores_2017!AH21) -> 73.33333333 | AI21: =CHOOSE(uxb_works!$B$46,Scores_2014_O!AJ21,Scores_2014_N!AI21,Scores_2017!AI21) -> 93.33333333 | AJ21: =CHOOSE(uxb_works!$B$46,Scores_2014_O!AK21,Scores_2014_N!AJ21,Scores_2017!AJ21) -> 60 | AK21: =CHOOSE(uxb_works!$B$46,Scores_2014_O!AL21,Scores_2014_N!AK21,Scores_2017!AK21) -> 73.33333333 | AL21: =CHOOSE(uxb_works!$B$46,Scores_2014_O!AM21,Scores_2014_N!AL21,Scores_2017!AL21) -> 73.33333333 | AM21: =CHOOSE(uxb_works!$B$46,Scores_2014_O!AN21,Scores_2014_N!AM21,Scores_2017!AM21) -> 80 | AN21: =CHOOSE(uxb_works!$B$46,Scores_2014_O!AO21,Scores_2014_N!AN21,Scores_2017!AN21) -> 66.66666667 | AO21: =CHOOSE(uxb_works!$B$46,Scores_2014_O!AP21,Scores_2014_N!AO21,Scores_2017!AO21) -> 73.33333333 | AP21: =CHOOSE(uxb_works!$B$46,Scores_2014_O!AQ21,Scores_2014_N!AP21,Scores_2017!AP21) -> 80 | AQ21: =CHOOSE(uxb_works!$B$46,Scores_2014_O!Y21,Scores_2014_N!AQ21,Scores_2017!AQ21) -> 86.66666667 | AR21: =CHOOSE(uxb_works!$B$46,Scores_2014_O!AR21,Scores_2014_N!AR21,Scores_2017!AR21) -> 86.66666667 | AS21: =CHOOSE(uxb_works!$B$46,Scores_2014_O!AS21,Scores_2014_N!AS21,Scores_2017!AS21) -> 93.33333333 | AT21: =CHOOSE(uxb_works!$B$46,Scores_2014_O!AT21,Scores_2014_N!AT21,Scores_2017!AT21) -> 93.33333333 | AU21: =CHOOSE(uxb_works!$B$46,Scores_2014_O!AU21,Scores_2014_N!AU21,Scores_2017!AU21) -> 73.33333333 | AV21: =CHOOSE(uxb_works!$B$46,Scores_2014_O!AV21,Scores_2014_N!AV21,Scores_2017!AV21) -> 100 | AW21: =CHOOSE(uxb_works!$B$46,Scores_2014_O!AW21,Scores_2014_N!AW21,Scores_2017!AW21) -> 86.66666667 | AX21: =CHOOSE(uxb_works!$B$46,Scores_2014_O!AX21,Scores_2014_N!AX21,Scores_2017!AX21) -> 93.33333333 | AY21: =CHOOSE(uxb_works!$B$46,Scores_2014_O!AY21,Scores_2014_N!AY21,Scores_2017!AY21) -> 80 | AZ21: =CHOOSE(uxb_works!$B$46,Scores_2014_O!AZ21,Scores_2014_N!AZ21,Scores_2017!AZ21) -> 86.66666667 | BA21: =CHOOSE(uxb_works!$B$46,Scores_2014_O!BA21,Scores_2014_N!BA21,Scores_2017!BA21) -> 93.33333333 | BB21: =CHOOSE(uxb_works!$B$46,Scores_2014_O!BB21,Scores_2014_N!BB21,Scores_2017!BB21) -> 100 | BC21: =CHOOSE(uxb_works!$B$46,Scores_2014_O!BC21,Scores_2014_N!BC21,Scores_2017!BC21) -> 100 | BD21: =CHOOSE(uxb_works!$B$46,Scores_2014_O!BD21,Scores_2014_N!BD21,Scores_2017!BD21) -> 60 | BE21: =CHOOSE(uxb_works!$B$46,Scores_2014_O!BE21,Scores_2014_N!BE21,Scores_2017!BE21) -> 73.33333333 | BF21: =CHOOSE(uxb_works!$B$46,Scores_2014_O!BF21,Scores_2014_N!BF21,Scores_2017!BF21) -> 80 | BG21: =CHOOSE(uxb_works!$B$46,Scores_2014_O!BG21,Scores_2014_N!BG21,Scores_2017!BG21) -> 93.33333333 | BH21: =CHOOSE(uxb_works!$B$46,Scores_2014_O!BH21,Scores_2014_N!BH21,Scores_2017!BH21) -> 93.33333333 | BI21: =CHOOSE(uxb_works!$B$46,Scores_2014_O!BI21,Scores_2014_N!BI21,Scores_2017!BI21) -> 80 | BJ21: =CHOOSE(uxb_works!$B$46,Scores_2014_O!BJ21,Scores_2014_N!BJ21,Scores_2017!BJ21) -> 80 | BK21: =CHOOSE(uxb_works!$B$46,Scores_2014_O!BK21,Scores_2014_N!BK21,Scores_2017!BK21) -> 93.33333333 | BL21: =CHOOSE(uxb_works!$B$46,Scores_2014_O!BL21,Scores_2014_N!BL21,Scores_2017!BL21) -> 86.66666667 | BM21: =CHOOSE(uxb_works!$B$46,Scores_2014_O!BM21,Scores_2014_N!BM21,Scores_2017!BM21) -> 93.33333333 | BN21: =CHOOSE(uxb_works!$B$46,Scores_2014_O!BN21,Scores_2014_N!BN21,Scores_2017!BN21) -> 86.66666667 | BO21: =CHOOSE(uxb_works!$B$46,Scores_2014_O!BO21,Scores_2014_N!BO21,Scores_2017!BO21) -> 100 | BP21: =CHOOSE(uxb_works!$B$46,Scores_2014_O!BP21,Scores_2014_N!BP21,Scores_2017!BP21) -> 86.66666667 | BQ21: =CHOOSE(uxb_works!$B$46,Scores_2014_O!BQ21,Scores_2014_N!BQ21,Scores_2017!BQ21) -> 66.66666667 | BR21: =CHOOSE(uxb_works!$B$46,Scores_2014_O!BR21,Scores_2014_N!BR21,Scores_2017!BR21) -> 100 | BS21: =CHOOSE(uxb_works!$B$46,Scores_2014_O!BS21,Scores_2014_N!BS21,Scores_2017!BS21) -> 100 | BT21: =CHOOSE(uxb_works!$B$46,Scores_2014_O!BT21,Scores_2014_N!BT21,Scores_2017!BT21) -> 93.33333333 | BU21: =CHOOSE(uxb_works!$B$46,Scores_2014_O!BU21,Scores_2014_N!BU21,Scores_2017!BU21) -> 93.33333333 | BV21: =CHOOSE(uxb_works!$B$46,Scores_2014_O!BV21,Scores_2014_N!BV21,Scores_2017!BV21) -> 60 | BW21: =CHOOSE(uxb_works!$B$46,Scores_2014_O!BW21,Scores_2014_N!BW21,Scores_2017!BW21) -> 100 | BX21: =CHOOSE(uxb_works!$B$46,Scores_2014_O!BX21,Scores_2014_N!BX21,Scores_2017!BX21) -> 100
B22: =tblIndicators!A18 -> 17 | F22: =CHOOSE(uxb_works!$B$46,Scores_2014_O!F22,Scores_2014_N!F22,Scores_2017!F22) -> 3 | N22: =REPT(" ",F22)&CHOOSE(uxb_works!$B$46,Scores_2014_O!N22,Scores_2014_N!N22,Scores_2017!N22) -> 2.1.3) No. of beds per 1,000 | O22: =CHOOSE(uxb_works!$B$46,Scores_2014_O!O22,Scores_2014_N!O22,Scores_2017!O22) -> 0.1666666667 | P22: =CHOOSE(uxb_works!$B$46,Scores_2014_O!P22,Scores_2014_N!P22,Scores_2017!P22) -> 8.26514588 | Q22: =CHOOSE(uxb_works!$B$46,Scores_2014_O!Q22,Scores_2014_N!Q22,Scores_2017!Q22) -> 38.01967105 | R22: =CHOOSE(uxb_works!$B$46,Scores_2014_O!R22,Scores_2014_N!R22,Scores_2017!R22) -> 38.84618564 | S22: =CHOOSE(uxb_works!$B$46,Scores_2014_O!S22,Scores_2014_N!S22,Scores_2017!S22) -> 16.53029176 | T22: =CHOOSE(uxb_works!$B$46,Scores_2014_O!T22,Scores_2014_N!T22,Scores_2017!T22) -> 24.79543764 | U22: =CHOOSE(uxb_works!$B$46,Scores_2014_O!U22,Scores_2014_N!U22,Scores_2017!U22) -> 47.89986049 | V22: =CHOOSE(uxb_works!$B$46,Scores_2014_O!V22,Scores_2014_N!V22,Scores_2017!V22) -> 11.57120423 | W22: =CHOOSE(uxb_works!$B$46,Scores_2014_O!W22,Scores_2014_N!W22,Scores_2017!W22) -> 52.89693363 | X22: =CHOOSE(uxb_works!$B$46,Scores_2014_O!X22,Scores_2014_N!X22,Scores_2017!X22) -> 38.01967105 | Y22: =CHOOSE(uxb_works!$B$46,Scores_2014_O!Z22,Scores_2014_N!Y22,Scores_2017!Y22) -> 3.306058352 | Z22: =CHOOSE(uxb_works!$B$46,Scores_2014_O!AA22,Scores_2014_N!Z22,Scores_2017!Z22) -> 6.612116704 | AA22: =CHOOSE(uxb_works!$B$46,Scores_2014_O!AB22,Scores_2014_N!AA22,Scores_2017!AA22) -> 6.612116704 | AB22: =CHOOSE(uxb_works!$B$46,Scores_2014_O!AC22,Scores_2014_N!AB22,Scores_2017!AB22) -> 19.83635011 | AC22: =CHOOSE(uxb_works!$B$46,Scores_2014_O!AD22,Scores_2014_N!AC22,Scores_2017!AC22) -> 18.18332094 | AD22: =CHOOSE(uxb_works!$B$46,Scores_2014_O!AE22,Scores_2014_N!AD22,Scores_2017!AD22) -> 21.57203075 | AE22: =CHOOSE(uxb_works!$B$46,Scores_2014_O!AF22,Scores_2014_N!AE22,Scores_2017!AE22) -> 4.13257294 | AF22: =CHOOSE(uxb_works!$B$46,Scores_2014_O!AG22,Scores_2014_N!AF22,Scores_2017!AF22) -> 9.091660468 | AG22: =CHOOSE(uxb_works!$B$46,Scores_2014_O!AH22,Scores_2014_N!AG22,Scores_2017!AG22) -> 66.94768163 | AH22: =CHOOSE(uxb_works!$B$46,Scores_2014_O!AI22,Scores_2014_N!AH22,Scores_2017!AH22) -> 15.70377717 | AI22: =CHOOSE(uxb_works!$B$46,Scores_2014_O!AJ22,Scores_2014_N!AI22,Scores_2017!AI22) -> 42.15224399 | AJ22: =CHOOSE(uxb_works!$B$46,Scores_2014_O!AK22,Scores_2014_N!AJ22,Scores_2017!AJ22) -> 19.83635011 | AK22: =CHOOSE(uxb_works!$B$46,Scores_2014_O!AL22,Scores_2014_N!AK22,Scores_2017!AK22) -> 6.612116704 | AL22: =CHOOSE(uxb_works!$B$46,Scores_2014_O!AM22,Scores_2014_N!AL22,Scores_2017!AL22) -> 11.18847491 | AM22: =CHOOSE(uxb_works!$B$46,Scores_2014_O!AN22,Scores_2014_N!AM22,Scores_2017!AM22) -> 19.83635011 | AN22: =CHOOSE(uxb_works!$B$46,Scores_2014_O!AO22,Scores_2014_N!AN22,Scores_2017!AN22) -> 4.13257294 | AO22: =CHOOSE(uxb_works!$B$46,Scores_2014_O!AP22,Scores_2014_N!AO22,Scores_2017!AO22) -> 14.87726258 | AP22: =CHOOSE(uxb_works!$B$46,Scores_2014_O!AQ22,Scores_2014_N!AP22,Scores_2017!AP22) -> 17.35680635 | AQ22: =CHOOSE(uxb_works!$B$46,Scores_2014_O!Y22,Scores_2014_N!AQ22,Scores_2017!AQ22) -> 11.57120423 | AR22: =CHOOSE(uxb_works!$B$46,Scores_2014_O!AR22,Scores_2014_N!AR22,Scores_2017!AR22) -> 23.14240846 | AS22: =CHOOSE(uxb_works!$B$46,Scores_2014_O!AS22,Scores_2014_N!AS22,Scores_2017!AS22) -> 14.050748 | AT22: =CHOOSE(uxb_works!$B$46,Scores_2014_O!AT22,Scores_2014_N!AT22,Scores_2017!AT22) -> 24.79543764 | AU22: =CHOOSE(uxb_works!$B$46,Scores_2014_O!AU22,Scores_2014_N!AU22,Scores_2017!AU22) -> 7.438631292 | AV22: =CHOOSE(uxb_works!$B$46,Scores_2014_O!AV22,Scores_2014_N!AV22,Scores_2017!AV22) -> 31.40755434 | AW22: =CHOOSE(uxb_works!$B$46,Scores_2014_O!AW22,Scores_2014_N!AW22,Scores_2017!AW22) -> 11.57120423 | AX22: =CHOOSE(uxb_works!$B$46,Scores_2014_O!AX22,Scores_2014_N!AX22,Scores_2017!AX22) -> 27.2749814 | AY22: =CHOOSE(uxb_works!$B$46,Scores_2014_O!AY22,Scores_2014_N!AY22,Scores_2017!AY22) -> 89.18092688 | AZ22: =CHOOSE(uxb_works!$B$46,Scores_2014_O!AZ22,Scores_2014_N!AZ22,Scores_2017!AZ22) -> 26.44846682 | BA22: =CHOOSE(uxb_works!$B$46,Scores_2014_O!BA22,Scores_2014_N!BA22,Scores_2017!BA22) -> 21.48937929 | BB22: =CHOOSE(uxb_works!$B$46,Scores_2014_O!BB22,Scores_2014_N!BB22,Scores_2017!BB22) -> 100 | BC22: =CHOOSE(uxb_works!$B$46,Scores_2014_O!BC22,Scores_2014_N!BC22,Scores_2017!BC22) -> 52.07041904 | BD22: =CHOOSE(uxb_works!$B$46,Scores_2014_O!BD22,Scores_2014_N!BD22,Scores_2017!BD22) -> 12.39771882 | BE22: =CHOOSE(uxb_works!$B$46,Scores_2014_O!BE22,Scores_2014_N!BE22,Scores_2017!BE22) -> 18.18332094 | BF22: =CHOOSE(uxb_works!$B$46,Scores_2014_O!BF22,Scores_2014_N!BF22,Scores_2017!BF22) -> 12.7043408 | BG22: =CHOOSE(uxb_works!$B$46,Scores_2014_O!BG22,Scores_2014_N!BG22,Scores_2017!BG22) -> 27.2749814 | BH22: =CHOOSE(uxb_works!$B$46,Scores_2014_O!BH22,Scores_2014_N!BH22,Scores_2017!BH22) -> 14.050748 | BI22: =CHOOSE(uxb_works!$B$46,Scores_2014_O!BI22,Scores_2014_N!BI22,Scores_2017!BI22) -> 16.53029176 | BJ22: =CHOOSE(uxb_works!$B$46,Scores_2014_O!BJ22,Scores_2014_N!BJ22,Scores_2017!BJ22) -> 18.18332094 | BK22: =CHOOSE(uxb_works!$B$46,Scores_2014_O!BK22,Scores_2014_N!BK22,Scores_2017!BK22) -> 84.30448797 | BL22: =CHOOSE(uxb_works!$B$46,Scores_2014_O!BL22,Scores_2014_N!BL22,Scores_2017!BL22) -> 44.54496123 | BM22: =CHOOSE(uxb_works!$B$46,Scores_2014_O!BM22,Scores_2014_N!BM22,Scores_2017!BM22) -> 15.70377717 | BN22: =CHOOSE(uxb_works!$B$46,Scores_2014_O!BN22,Scores_2014_N!BN22,Scores_2017!BN22) -> 21.48937929 | BO22: =CHOOSE(uxb_works!$B$46,Scores_2014_O!BO22,Scores_2014_N!BO22,Scores_2017!BO22) -> 31.40755434 | BP22: =CHOOSE(uxb_works!$B$46,Scores_2014_O!BP22,Scores_2014_N!BP22,Scores_2017!BP22) -> 75.32853955 | BQ22: =CHOOSE(uxb_works!$B$46,Scores_2014_O!BQ22,Scores_2014_N!BQ22,Scores_2017!BQ22) -> 0 | BR22: =CHOOSE(uxb_works!$B$46,Scores_2014_O!BR22,Scores_2014_N!BR22,Scores_2017!BR22) -> 77.55186379 | BS22: =CHOOSE(uxb_works!$B$46,Scores_2014_O!BS22,Scores_2014_N!BS22,Scores_2017!BS22) -> 21.48937929 | BT22: =CHOOSE(uxb_works!$B$46,Scores_2014_O!BT22,Scores_2014_N!BT22,Scores_2017!BT22) -> 13.22423341 | BU22: =CHOOSE(uxb_works!$B$46,Scores_2014_O!BU22,Scores_2014_N!BU22,Scores_2017!BU22) -> 18.18332094 | BV22: =CHOOSE(uxb_works!$B$46,Scores_2014_O!BV22,Scores_2014_N!BV22,Scores_2017!BV22) -> 4.959087528 | BW22: =CHOOSE(uxb_works!$B$46,Scores_2014_O!BW22,Scores_2014_N!BW22,Scores_2017!BW22) -> 40.49921481 | BX22: =CHOOSE(uxb_works!$B$46,Scores_2014_O!BX22,Scores_2014_N!BX22,Scores_2017!BX22) -> 113.0093396
B23: =tblIndicators!A19 -> 18 | F23: =CHOOSE(uxb_works!$B$46,Scores_2014_O!F23,Scores_2014_N!F23,Scores_2017!F23) -> 3 | N23: =REPT(" ",F23)&CHOOSE(uxb_works!$B$46,Scores_2014_O!N23,Scores_2014_N!N23,Scores_2017!N23) -> 2.1.4) No. of doctors per 1,000 | O23: =CHOOSE(uxb_works!$B$46,Scores_2014_O!O23,Scores_2014_N!O23,Scores_2017!O23) -> 0.1666666667 | P23: =CHOOSE(uxb_works!$B$46,Scores_2014_O!P23,Scores_2014_N!P23,Scores_2017!P23) -> 16.36517125 | Q23: =CHOOSE(uxb_works!$B$46,Scores_2014_O!Q23,Scores_2014_N!Q23,Scores_2017!Q23) -> 38.00048239 | R23: =CHOOSE(uxb_works!$B$46,Scores_2014_O!R23,Scores_2014_N!R23,Scores_2017!R23) -> 73.01013025 | S23: =CHOOSE(uxb_works!$B$46,Scores_2014_O!S23,Scores_2014_N!S23,Scores_2017!S23) -> 2.327544621 | T23: =CHOOSE(uxb_works!$B$46,Scores_2014_O!T23,Scores_2014_N!T23,Scores_2017!T23) -> 43.63241679 | U23: =CHOOSE(uxb_works!$B$46,Scores_2014_O!U23,Scores_2014_N!U23,Scores_2017!U23) -> 44.60926194 | V23: =CHOOSE(uxb_works!$B$46,Scores_2014_O!V23,Scores_2014_N!V23,Scores_2017!V23) -> 16.48576942 | W23: =CHOOSE(uxb_works!$B$46,Scores_2014_O!W23,Scores_2014_N!W23,Scores_2017!W23) -> 33.40569223 | X23: =CHOOSE(uxb_works!$B$46,Scores_2014_O!X23,Scores_2014_N!X23,Scores_2017!X23) -> 42.94500724 | Y23: =CHOOSE(uxb_works!$B$46,Scores_2014_O!Z23,Scores_2014_N!Y23,Scores_2017!Y23) -> 7.392667631 | Z23: =CHOOSE(uxb_works!$B$46,Scores_2014_O!AA23,Scores_2014_N!Z23,Scores_2017!Z23) -> 20.79112397 | AA23: =CHOOSE(uxb_works!$B$46,Scores_2014_O!AB23,Scores_2014_N!AA23,Scores_2017!AA23) -> 5.02894356 | AB23: =CHOOSE(uxb_works!$B$46,Scores_2014_O!AC23,Scores_2014_N!AB23,Scores_2017!AB23) -> 30.31837916 | AC23: =CHOOSE(uxb_works!$B$46,Scores_2014_O!AD23,Scores_2014_N!AC23,Scores_2017!AC23) -> 23.29956585 | AD23: =CHOOSE(uxb_works!$B$46,Scores_2014_O!AE23,Scores_2014_N!AD23,Scores_2017!AD23) -> 6.319343946 | AE23: =CHOOSE(uxb_works!$B$46,Scores_2014_O!AF23,Scores_2014_N!AE23,Scores_2017!AE23) -> 2.267245538 | AF23: =CHOOSE(uxb_works!$B$46,Scores_2014_O!AG23,Scores_2014_N!AF23,Scores_2017!AF23) -> 21.26145683 | AG23: =CHOOSE(uxb_works!$B$46,Scores_2014_O!AH23,Scores_2014_N!AG23,Scores_2017!AG23) -> 47.32272069 | AH23: =CHOOSE(uxb_works!$B$46,Scores_2014_O!AI23,Scores_2014_N!AH23,Scores_2017!AH23) -> 11.80656054 | AI23: =CHOOSE(uxb_works!$B$46,Scores_2014_O!AJ23,Scores_2014_N!AI23,Scores_2017!AI23) -> 20.48962856 | AJ23: =CHOOSE(uxb_works!$B$46,Scores_2014_O!AK23,Scores_2014_N!AJ23,Scores_2017!AJ23) -> 18.66859624 | AK23: =CHOOSE(uxb_works!$B$46,Scores_2014_O!AL23,Scores_2014_N!AK23,Scores_2017!AK23) -> 0 | AL23: =CHOOSE(uxb_works!$B$46,Scores_2014_O!AM23,Scores_2014_N!AL23,Scores_2017!AL23) -> 24.21342115 | AM23: =CHOOSE(uxb_works!$B$46,Scores_2014_O!AN23,Scores_2014_N!AM23,Scores_2017!AM23) -> 6.825856247 | AN23: =CHOOSE(uxb_works!$B$46,Scores_2014_O!AO23,Scores_2014_N!AN23,Scores_2017!AN23) -> 7.296189098 | AO23: =CHOOSE(uxb_works!$B$46,Scores_2014_O!AP23,Scores_2014_N!AO23,Scores_2017!AO23) -> 13.02460203 | AP23: =CHOOSE(uxb_works!$B$46,Scores_2014_O!AQ23,Scores_2014_N!AP23,Scores_2017!AP23) -> 21.08055958 | AQ23: =CHOOSE(uxb_works!$B$46,Scores_2014_O!Y23,Scores_2014_N!AQ23,Scores_2017!AQ23) -> 11.03473227 | AR23: =CHOOSE(uxb_works!$B$46,Scores_2014_O!AR23,Scores_2014_N!AR23,Scores_2017!AR23) -> 31.41582248 | AS23: =CHOOSE(uxb_works!$B$46,Scores_2014_O!AS23,Scores_2014_N!AS23,Scores_2017!AS23) -> 29.23299566 | AT23: =CHOOSE(uxb_works!$B$46,Scores_2014_O!AT23,Scores_2014_N!AT23,Scores_2017!AT23) -> 43.63241679 | AU23: =CHOOSE(uxb_works!$B$46,Scores_2014_O!AU23,Scores_2014_N!AU23,Scores_2017!AU23) -> 10.96237337 | AV23: =CHOOSE(uxb_works!$B$46,Scores_2014_O!AV23,Scores_2014_N!AV23,Scores_2017!AV23) -> 38.26579836 | AW23: =CHOOSE(uxb_works!$B$46,Scores_2014_O!AW23,Scores_2014_N!AW23,Scores_2017!AW23) -> 22.55185721 | AX23: =CHOOSE(uxb_works!$B$46,Scores_2014_O!AX23,Scores_2014_N!AX23,Scores_2017!AX23) -> 45.15195369 | AY23: =CHOOSE(uxb_works!$B$46,Scores_2014_O!AY23,Scores_2014_N!AY23,Scores_2017!AY23) -> 37.44573082 | AZ23: =CHOOSE(uxb_works!$B$46,Scores_2014_O!AZ23,Scores_2014_N!AZ23,Scores_2017!AZ23) -> 6.319343946 | BA23: =CHOOSE(uxb_works!$B$46,Scores_2014_O!BA23,Scores_2014_N!BA23,Scores_2017!BA23) -> 40.2436083 | BB23: =CHOOSE(uxb_works!$B$46,Scores_2014_O!BB23,Scores_2014_N!BB23,Scores_2017!BB23) -> 30.69223348 | BC23: =CHOOSE(uxb_works!$B$46,Scores_2014_O!BC23,Scores_2014_N!BC23,Scores_2017!BC23) -> 36.49300531 | BD23: =CHOOSE(uxb_works!$B$46,Scores_2014_O!BD23,Scores_2014_N!BD23,Scores_2017!BD23) -> 17.65557164 | BE23: =CHOOSE(uxb_works!$B$46,Scores_2014_O!BE23,Scores_2014_N!BE23,Scores_2017!BE23) -> 19.91075736 | BF23: =CHOOSE(uxb_works!$B$46,Scores_2014_O!BF23,Scores_2014_N!BF23,Scores_2017!BF23) -> 23.20222437 | BG23: =CHOOSE(uxb_works!$B$46,Scores_2014_O!BG23,Scores_2014_N!BG23,Scores_2017!BG23) -> 45.15195369 | BH23: =CHOOSE(uxb_works!$B$46,Scores_2014_O!BH23,Scores_2014_N!BH23,Scores_2017!BH23) -> 29.23299566 | BI23: =CHOOSE(uxb_works!$B$46,Scores_2014_O!BI23,Scores_2014_N!BI23,Scores_2017!BI23) -> 10.03376749 | BJ23: =CHOOSE(uxb_works!$B$46,Scores_2014_O!BJ23,Scores_2014_N!BJ23,Scores_2017!BJ23) -> 19.91075736 | BK23: =CHOOSE(uxb_works!$B$46,Scores_2014_O!BK23,Scores_2014_N!BK23,Scores_2017!BK23) -> 24.48142788 | BL23: =CHOOSE(uxb_works!$B$46,Scores_2014_O!BL23,Scores_2014_N!BL23,Scores_2017!BL23) -> 28.93150024 | BM23: =CHOOSE(uxb_works!$B$46,Scores_2014_O!BM23,Scores_2014_N!BM23,Scores_2017!BM23) -> 20.64640617 | BN23: =CHOOSE(uxb_works!$B$46,Scores_2014_O!BN23,Scores_2014_N!BN23,Scores_2017!BN23) -> 47.10564399 | BO23: =CHOOSE(uxb_works!$B$46,Scores_2014_O!BO23,Scores_2014_N!BO23,Scores_2017!BO23) -> 38.26579836 | BP23: =CHOOSE(uxb_works!$B$46,Scores_2014_O!BP23,Scores_2014_N!BP23,Scores_2017!BP23) -> 14.06337186 | BQ23: =CHOOSE(uxb_works!$B$46,Scores_2014_O!BQ23,Scores_2014_N!BQ23,Scores_2017!BQ23) -> 15.55716353 | BR23: =CHOOSE(uxb_works!$B$46,Scores_2014_O!BR23,Scores_2014_N!BR23,Scores_2017!BR23) -> 36.57742402 | BS23: =CHOOSE(uxb_works!$B$46,Scores_2014_O!BS23,Scores_2014_N!BS23,Scores_2017!BS23) -> 27.44814279 | BT23: =CHOOSE(uxb_works!$B$46,Scores_2014_O!BT23,Scores_2014_N!BT23,Scores_2017!BT23) -> 100 | BU23: =CHOOSE(uxb_works!$B$46,Scores_2014_O!BU23,Scores_2014_N!BU23,Scores_2017!BU23) -> 31.97057405 | BV23: =CHOOSE(uxb_works!$B$46,Scores_2014_O!BV23,Scores_2014_N!BV23,Scores_2017!BV23) -> 4.425952726 | BW23: =CHOOSE(uxb_works!$B$46,Scores_2014_O!BW23,Scores_2014_N!BW23,Scores_2017!BW23) -> 47.19006271 | BX23: =CHOOSE(uxb_works!$B$46,Scores_2014_O!BX23,Scores_2014_N!BX23,Scores_2017!BX23) -> 36.92715871
